Workbook

Sheet Ohjeet
A1: Ennen kilpailua kannattaa kokeilla tulospalvelun toimivuutta, jotta ehtii korjata mahdollisesti ilmenneet virheet.
A3: Kun avaat tämän excelin, muista ottaa makrot käyttöön. Yleensä excel ilmoittaa asiasta huomautuksella:
A4: Valitse tähän huomautukseen "Ota sisältö käyttöön".
A6: Taulukkoon Koulut kirjoitetaan koulun/luokan ja oppilaiden nimet (Huomaa oikea järjestys, pojat-tytöt, jotta pöytökirjoihin ja tuloksiin tulee oikeat nimet).
A7: Koulut-taulukosta siirtyjät tiedot automaattisesti muihin taulukoihin, joten kaikki nimi korjaukset tehtään tähän taulukkoon.
A8: Sen jälkeen, kun tiedot on syötetty Koulut-taulukkoon, tulosta haluamasi pöytäkirjaversiosi.
A9: Joko Pysty-suuntaiset pöytäkirjat | E9: tai Vaaka-suuntaiset pöytäkirjat.
A10: Joukkuenumeroinnin saa muutettua Koulut-taulukkoon koulun nimen eteen omaan soluun. Tästä numerointi siirtyy pöytäkirjoihinkin näkyviin.
A11: Jos kisassa ei ole 30 koulua, muuta pöytäkirjojen tulostusalueet pienemmiksi tai tulosta vain halutu sivunumerot, näin ei tulostu turhia papereita.
A12: Koulut-taulukon ylälaitaan on lisätty koulukohtaiset pikalinkit, joilla on helpompi/nopeampi löytää halutun koulun kohta työkirjasta.
A14: Pituushyppytulokset kirjoitetaan sentteinä ja junnukeihään tulokset metreinä (desimaalierottimena käytetään pilkkua) Koulut-taulukkoon.
A15: Luokan tulos (viisi parasta poikaa ja viisi parasta tyttöä) tulee automaattisesti punaiseen ruutuun
A17: Viestien tulokset kirjoitetaan yht-taulukkoon.
A18: Sukkulaviestin järjestys tulee automaattisesti tulosten perusteella kun tulokset syötetään sekuntteina (desimaalierottimena jälleen pilkku)
A19: Kierrosviestin aikoja ei tarvitse syöttää sekuntteina, mutta sijatkin täytyy syöttää käsin (sijat ihan normaaleina numeroina, ei siis pistettä tms. perään)
A21: Yht-taulukossa näkyy koko ajan sen hetkinen yksittäisten lajien tilanne ja kokonaistilanne.
A22: Jos kaksi joukkuetta on loppupisteissä tasoissa voit määrätä heidän keskinäisen järjestyksen käsin (vasemman reunimmaiseen Sija-sarakkeeseen)
A24: Koulut-taulukosta ja yht-taulukosta muodostuu lajitulokset erillisiin taulukoihin, joissa ne voi järjestää painamalla "Järjestä-nappulaa".
A26: Lehtituloksissa desimaalien viimeiset nollat eivät näy automaattisesti. Jos haluat ne näkyviin, lisää ne käsin.
A28: Tästä excelistä löytyy myös apupöytäkirjat sukkulaviestiin (2 eri versiota) sekä kierrosviestiin.
A29: Sukkulaviesti 1 | C29: Sukkulaviesti 2 | E29: Kierrosviesti

Sheet Koulut
G1: Kouluihin siirtyminen:
G2: =CONCATENATE(A13,":"," ",B13) -> Koulu 1: Etelänkylän koulu | H2: =CONCATENATE(A153,":"," ",B153) -> Koulu 11: Korhosen koulu | I2: =CONCATENATE(A293,":"," ",B293) -> Koulu 21: Takalon koulu
G3: =CONCATENATE(A27,":"," ",B27) -> Koulu 2: Pohjankylän koulu 6A | H3: =CONCATENATE(A167,":"," ",B167) -> Koulu 12: Kyösti Kallion koulu 5B | I3: =CONCATENATE(A307,":"," ",B307) -> Koulu 22: Pohjankylän koulu 6B
G4: =CONCATENATE(A41,":"," ",B41) -> Koulu 3: Roikolan koulu | H4: =CONCATENATE(A181,":"," ",B181) -> Koulu 13: Kirkonmäen koulu | I4: =CONCATENATE(A321,":"," ",B321) -> Koulu 23: Vuorenkallion koulu
G5: =CONCATENATE(A55,":"," ",B55) -> Koulu 4: Kälviän Kirkonkylän koulu | H5: =CONCATENATE(A195,":"," ",B195) -> Koulu 14: Tyngän aluekoulu | I5: =CONCATENATE(A335,":"," ",B335) -> Koulu 24:
G6: =CONCATENATE(A69,":"," ",B69) -> Koulu 5: Kyösti Kallion koulu 5A | H6: =CONCATENATE(A209,":"," ",B209) -> Koulu 15: Lohtajan Kirkonkylän koulu | I6: =CONCATENATE(A349,":"," ",B349) -> Koulu 25:
G7: =CONCATENATE(A83,":"," ",B83) -> Koulu 6: Raasakan koulu 6C | H7: =CONCATENATE(A223,":"," ",B223) -> Koulu 16: Pohjankylän koulu 5C | I7: =CONCATENATE(A363,":"," ",B363) -> Koulu 26:
G8: =CONCATENATE(A97,":"," ",B97) -> Koulu 7: Pohjankylän koulu 6C | H8: =CONCATENATE(A237,":"," ",B237) -> Koulu 17: Pohjankylän koulu 5B | I8: =CONCATENATE(A377,":"," ",B377) -> Koulu 27:
G9: =CONCATENATE(A111,":"," ",B111) -> Koulu 8: Marttilan koulu | H9: =CONCATENATE(A251,":"," ",B251) -> Koulu 18: Hollihaan koulu | I9: =CONCATENATE(A391,":"," ",B391) -> Koulu 28:
G10: =CONCATENATE(A125,":"," ",B125) -> Koulu 9: Pohjankylän koulu 5A | H10: =CONCATENATE(A265,":"," ",B265) -> Koulu 19: Raumankarin koulu | I10: =CONCATENATE(A405,":"," ",B405) -> Koulu 29:
G11: =CONCATENATE(A139,":"," ",B139) -> Koulu 10: Hollihaan koulu 5R | H11: =CONCATENATE(A279,":"," ",B279) -> Koulu 20: Kyösti Kallion koulu 5C | I11: =CONCATENATE(A419,":"," ",B419) -> Koulu 30:
C12: Pituus (cm) | D12: Keihäs (m)
A13: Koulu 1 | B13: Etelänkylän koulu | C13: =IF(SUM(C14:C25)<>0,SUM(C14:C25)-SMALL(C14:C19,1)-SMALL(C20:C25,1),0) -> 3170 | D13: =IF(SUM(D14:D25)<>0,SUM(D14:D25)-SMALL(D14:D19,1)-SMALL(D20:D25,1),0) -> 166.68
A14: Poika | B14: Lauri Isopahkala | C14: 402 | D14: 34.2
A15: Poika | B15: Riku Isopahkala | C15: 328 | D15: 17.54
A16: Poika | B16: Oskari Vihelä | C16: 313 | D16: 22.29
A17: Poika | B17: Lassi Simpanen | C17: 303 | D17: 14.14
A18: Poika | B18: Juuso Lassila | C18: 282 | D18: 14.34
A19: Poika | B19: Aleksi Heikkilä | C19: 401 | D19: 34.5
A20: Tyttö | B20: Jenni Jaatinen | C20: 372 | D20: 7.76
A21: Tyttö | B21: Fanny Isopahkala | C21: 256 | D21: 8.98
A22: Tyttö | B22: Pinja Pulkkinen | C22: 234 | D22: 8.06
A23: Tyttö | B23: Jenna Siirtola | C23: 307 | D23: 7.91
A24: Tyttö | B24: Saana Heikkilä | C24: 254 | D24: 8.96
A25: Tyttö | B25: Janette Pekola | C25: 160 | D25: 9.9
A27: Koulu 2 | B27: Pohjankylän koulu 6A | C27: =IF(SUM(C28:C39)<>0,SUM(C28:C39)-SMALL(C28:C33,1)-SMALL(C34:C39,1),0) -> 3573 | D27: =IF(SUM(D28:D39)<>0,SUM(D28:D39)-SMALL(D28:D33,1)-SMALL(D34:D39,1),0) -> 175.73
A28: Poika | B28: Leevi Palola | C28: 371 | D28: 19.21
A29: Poika | B29: Roope Rahkola | C29: 373 | D29: 21.95
A30: Poika | B30: Tamas Hietala | C30: 334 | D30: 21.23
A31: Poika | B31: Paavo Tilvis | C31: 275 | D31: 12.91
A32: Poika | B32: Frank Sorjonen | C32: 355 | D32: 21.94
A33: Poika | B33: Arttu Forss | C33: 370 | D33: 16.04
A34: Tyttö | B34: Anni Kärjä | C34: 338 | D34: 12.28
A35: Tyttö | B35: Julia Anttila | C35: 394 | D35: 14.98
A36: Tyttö | B36: Alina Siiranen | C36: 333 | D36: 12.58
A37: Tyttö | B37: Neea Kolppanen | C37: 358 | D37: 18.94
A38: Tyttö | B38: Aliz Rotan | C38: 314 | D38: 16.25
A39: Tyttö | B39: Sofia Vainio | C39: 347 | D39: 12.61
A41: Koulu 3 | B41: Roikolan koulu | C41: =IF(SUM(C42:C53)<>0,SUM(C42:C53)-SMALL(C42:C47,1)-SMALL(C48:C53,1),0) -> 3703 | D41: =IF(SUM(D42:D53)<>0,SUM(D42:D53)-SMALL(D42:D47,1)-SMALL(D48:D53,1),0) -> 154.03
A42: Poika | B42: Jerry Kivioja | C42: 221 | D42: 16.12
A43: Poika | B43: Joel Kivioja | C43: 293 | D43: 13.6
A44: Poika | B44: Luka Karhu | C44: 359 | D44: 18.7
A45: Poika | B45: Max Witick | C45: 288 | D45: 18.07
A46: Poika | B46: Rasmus Mäkelä | C46: 355 | D46: 12.7
A47: Poika | B47: Joni Luoma-Tokoi | C47: 409 | D47: 16.8
A48: Tyttö | B48: Vera Karhu | C48: 374 | D48: 11.51
A49: Tyttö | B49: Amanda Niemi-Korpi | C49: 280 | D49: 12.06
A50: Tyttö | B50: Matilda Haavisto | C50: 404 | D50: 11.91
A51: Tyttö | B51: Loviisa Kupsala | C51: 347 | D51: 16.86
A52: Tyttö | B52: Sofia Kukkola | C52: 443 | D52: 11.15
A53: Tyttö | B53: Reetta Haapalehto | C53: 431 | D53: 18.4
A55: Koulu 4 | B55: Kälviän Kirkonkylän koulu | C55: =IF(SUM(C56:C67)<>0,SUM(C56:C67)-SMALL(C56:C61,1)-SMALL(C62:C67,1),0) -> 3298 | D55: =IF(SUM(D56:D67)<>0,SUM(D56:D67)-SMALL(D56:D61,1)-SMALL(D62:D67,1),0) -> 155.86
A56: Poika | B56: Timi Tanskanen | C56: 317 | D56: 17.25
A57: Poika | B57: Jarno Puikko | C57: 301 | D57: 26.65
A58: Poika | B58: Oskari Nissilä | C58: 270 | D58: 12.95
A59: Poika | B59: Atte Kangas | C59: 368 | D59: 19.87
A60: Poika | B60: Joona Keskinen | C60: 344 | D60: 13.3
A61: Poika | B61: Silver Karjus | C61: 397 | D61: 18.16
A62: Tyttö | B62: Tytti Keränen | C62: 310 | D62: 9.48
A63: Tyttö | B63: Anniina Lamberg | C63: 326 | D63: 7.67
A64: Tyttö | B64: Alisa Luostarinen | C64: 289 | D64: 10.85
A65: Tyttö | B65: Saara Hautamäki | C65: 296 | D65: 12.68
A66: Tyttö | B66: Wilmiina Pöppönen | C66: 298 | D66: 11.45
A67: Tyttö | B67: Olga Ahokangas | C67: 341 | D67: 16.17
A69: Koulu 5 | B69: Kyösti Kallion koulu 5A | C69: =IF(SUM(C70:C81)<>0,SUM(C70:C81)-SMALL(C70:C75,1)-SMALL(C76:C81,1),0) -> 3141 | D69: =IF(SUM(D70:D81)<>0,SUM(D70:D81)-SMALL(D70:D75,1)-SMALL(D76:D81,1),0) -> 133.73
A70: Poika | B70: Eemil Karikumpu | C70: 310 | D70: 16.95
A71: Poika | B71: Matias Eskola | C71: 306 | D71: 13.95
A72: Poika | B72: Samuli Ranta-Nilkku | C72: 367 | D72: 15.26
A73: Poika | B73: Herman Salmela | C73: 304 | D73: 12.84
A74: Poika | B74: Topi Päiveröinen | C74: 278 | D74: 10.79
A75: Poika | B75: Iiro Kallio | C75: 303 | D75: 15.34
A76: Tyttö | B76: Netta Korkiakoski | C76: 318 | D76: 14.73
A77: Tyttö | B77: Elina Nikkola | C77: 318 | D77: 13.26
A78: Tyttö | B78: Jasmin Heinola | C78: 300 | D78: 12.19
A79: Tyttö | B79: Jonna Mämmi | C79: 244 | D79: 9.29
A80: Tyttö | B80: Emmi Raappana | C80: 315 | D80: 7.66
A81: Tyttö | B81: Petra Ylikotila | C81: 300 | D81: 9.92
A83: Koulu 6 | B83: Raasakan koulu 6C | C83: =IF(SUM(C84:C95)<>0,SUM(C84:C95)-SMALL(C84:C89,1)-SMALL(C90:C95,1),0) -> 3554 | D83: =IF(SUM(D84:D95)<>0,SUM(D84:D95)-SMALL(D84:D89,1)-SMALL(D90:D95,1),0) -> 178.25
A84: Poika | B84: Santeri Hirsikangas | C84: 356 | D84: 28.46
A85: Poika | B85: Aatu Silakka | C85: 335 | D85: 10.32
A86: Poika | B86: Artturi Nikunen | C86: 308 | D86: 23.35
A87: Poika | B87: Nico Mäenpää | C87: 315 | D87: 13.19
A88: Poika | B88: Joni Pentinmikko | C88: 338 | D88: 13.98
A89: Poika | B89: Antton Rantanilkku | C89: 400 | D89: 21.09
A90: Tyttö | B90: Lilja Koskela | C90: 419 | D90: 20.3
A91: Tyttö | B91: Essi Rekilä | C91: 329 | D91: 16.19
A92: Tyttö | B92: Saila Vesisenaho | C92: 292 | D92: 9.52
A93: Tyttö | B93: Hanna Nisula | C93: 280 | D93: 13.47
A94: Tyttö | B94: Elli Puustinen | C94: 369 | D94: 16.67
A95: Tyttö | B95: Enni Katajalaakso | C95: 401 | D95: 11.55
A97: Koulu 7 | B97: Pohjankylän koulu 6C | C97: =IF(SUM(C98:C109)<>0,SUM(C98:C109)-SMALL(C98:C103,1)-SMALL(C104:C109,1),0) -> 3441 | D97: =IF(SUM(D98:D109)<>0,SUM(D98:D109)-SMALL(D98:D103,1)-SMALL(D104:D109,1),0) -> 176.13
A98: Poika | B98: Aatos Perttula | C98: 296 | D98: 20.65
A99: Poika | B99: Alexi Similä | C99: 344 | D99: 22.72
A100: Poika | B100: Hannes Häkkilä | C100: 336 | D100: 20.55
A101: Poika | B101: Viljami Tanhula | C101: 361 | D101: 18.18
A102: Poika | B102: Lari Ojala | C102: 315 | D102: 18.58
A103: Poika | B103: Jeremias Heikkilä | C103: 407 | D103: 23.85
A104: Tyttö | B104: Laura Nivala | C104: 424 | D104: 14.2
A105: Tyttö | B105: Laura Lindenhoffer | C105: 310 | D105: 14.33
A106: Tyttö | B106: Eveliina Kerola | C106: 319 | D106: 12.7
A107: Tyttö | B107: Noora Myllylä | C107: 306 | D107: 12.65
A108: Tyttö | B108: Julia Isopahkala | C108: 268 | D108: 13.21
A109: Tyttö | B109: Annele Piukkala | C109: 319 | D109: 15.34
A111: Koulu 8 | B111: Marttilan koulu | C111: =IF(SUM(C112:C123)<>0,SUM(C112:C123)-SMALL(C112:C117,1)-SMALL(C118:C123,1),0) -> 3134 | D111: =IF(SUM(D112:D123)<>0,SUM(D112:D123)-SMALL(D112:D117,1)-SMALL(D118:D123,1),0) -> 132.57
A112: Poika | B112: Jimi Uusitalo | C112: 339 | D112: 16.02
A113: Poika | B113: Panu Rimpioja | C113: 329 | D113: 19.13
A114: Poika | B114: Robin Kämäräinen | C114: 304 | D114: 8.04
A115: Poika | B115: Eeli Hiltula | C115: 281 | D115: 11.03
A116: Poika | B116: Julius Poutanen | C116: 298 | D116: 18.02
A117: Poika | B117: Lauri Knuuttila | C117: 376 | D117: 24.88
A118: Tyttö | B118: Jenna Kilpiö | C118: 306 | D118: 10.75
A119: Tyttö | B119: Alina Niskala | C119: 264 | D119: 6.19
A120: Tyttö | B120: Elli Toivonen | C120: 285 | D120: 6.77
A121: Tyttö | B121: Ella Rahja | C121: 276 | D121: 10.2
A122: Tyttö | B122: Viola Nurm | C122: 314 | D122: 6.85
A123: Tyttö | B123: Viivi Kaunisvesi | C123: 307 | D123: 8.92
A125: Koulu 9 | B125: Pohjankylän koulu 5A | C125: =IF(SUM(C126:C137)<>0,SUM(C126:C137)-SMALL(C126:C131,1)-SMALL(C132:C137,1),0) -> 3170 | D125: =IF(SUM(D126:D137)<>0,SUM(D126:D137)-SMALL(D126:D131,1)-SMALL(D132:D137,1),0) -> 141.24
A126: Poika | B126: Kasperi Hannula | C126: 302 | D126: 18.73
A127: Poika | B127: Jere Ojala | C127: 326 | D127: 18.94
A128: Poika | B128: Martti Prittinen | C128: 259 | D128: 13.16
A129: Poika | B129: Valtteri Himanka | C129: 345 | D129: 18.04
A130: Poika | B130: Jere Laurila | C130: 313 | D130: 13.85
A131: Poika | B131: Jyry-Matti Niemi | C131: 286 | D131: 8.39
A132: Tyttö | B132: Miia-Riikka Eeronketo | C132: 296 | D132: 12.35
A133: Tyttö | B133: Vilma Jutila | C133: 302 | D133: 10.62
A134: Tyttö | B134: Jessica Niska | C134: 331 | D134: 11.6
A135: Tyttö | B135: Rosita Saarnio | C135: 287 | D135: 12.75
A136: Tyttö | B136: Annika Peltola | C136: 336 | D136: 11.2
A137: Tyttö | B137: Venla Tilvis | C137: 333 | D137: 9.25
A139: Koulu 10 | B139: Hollihaan koulu 5R | C139: =IF(SUM(C140:C151)<>0,SUM(C140:C151)-SMALL(C140:C145,1)-SMALL(C146:C151,1),0) -> 2944 | D139: =IF(SUM(D140:D151)<>0,SUM(D140:D151)-SMALL(D140:D145,1)-SMALL(D146:D151,1),0) -> 120.32
A140: Poika | B140: Atte Manninen | C140: 298 | D140: 11.8
A141: Poika | B141: Janne Forström | C141: 322 | D141: 17.01
A142: Poika | B142: Konsta Piippo | C142: 327 | D142: 17.78
A143: Poika | B143: Juuso Niemelä | C143: 235 | D143: 10.07
A144: Poika | B144: Jami Kinaret | C144: 285 | D144: 11.33
A145: Poika | B145: Vili-Ilmari Hyyppä | C145: 279 | D145: 8.71
A146: Tyttö | B146: Senni Virolainen | C146: 304 | D146: 9.28
A147: Tyttö | B147: Hilla Kallioinen | C147: 321 | D147: 11.89
A148: Tyttö | B148: Sofia Hyytinen | C148: 264 | D148: 10.66
A149: Tyttö | B149: Ada-Sofia Ojala | C149: 232 | D149: 8.72
A150: Tyttö | B150: Nea Laitala | C150: 253 | D150: 5.21
A151: Tyttö | B151: Emilia Vörlin | C151: 291 | D151: 11.78
A153: Koulu 11 | B153: Korhosen koulu | C153: =IF(SUM(C154:C165)<>0,SUM(C154:C165)-SMALL(C154:C159,1)-SMALL(C160:C165,1),0) -> 3618 | D153: =IF(SUM(D154:D165)<>0,SUM(D154:D165)-SMALL(D154:D159,1)-SMALL(D160:D165,1),0) -> 169.09
A154: Poika | B154: Jere Päivärinta | C154: 385 | D154: 20.25
A155: Poika | B155: Samuel Niemikorpi | C155: 349 | D155: 17.71
A156: Poika | B156: Joel Koskela | C156: 395 | D156: 17.57
A157: Poika | B157: Ossi Peltokorpi | C157: 395 | D157: 25.11
A158: Poika | B158: Miika Rimpioja | C158: 385 | D158: 21.75
A159: Poika | B159: Eemeli Impola | C159: 383 | D159: 20.28
A160: Tyttö | B160: Veera Peltokorpi | C160: 348 | D160: 15.67
A161: Tyttö | B161: Tiia Huhtala | C161: 274 | D161: 8.62
A162: Tyttö | B162: Heidi Peltokorpi | C162: 325 | D162: 13.47
A163: Tyttö | B163: Milla Huhtala | C163: 345 | D163: 12.4
A164: Tyttö | B164: Iida Parkkinen | C164: 383 | D164: 11.86
A165: Tyttö | B165: Elina Soini | C165: 248 | D165: 10.59
A167: Koulu 12 | B167: Kyösti Kallion koulu 5B | C167: =IF(SUM(C168:C179)<>0,SUM(C168:C179)-SMALL(C168:C173,1)-SMALL(C174:C179,1),0) -> 3299 | D167: =IF(SUM(D168:D179)<>0,SUM(D168:D179)-SMALL(D168:D173,1)-SMALL(D174:D179,1),0) -> 153.46
A168: Poika | B168: Johannes Oja | C168: 360 | D168: 17.69
A169: Poika | B169: Aleksi Kaarlela | C169: 356 | D169: 18.43
A170: Poika | B170: Miika Ohtamaa | C170: 303 | D170: 14.26
A171: Poika | B171: Heikki Tienvieri | C171: 322 | D171: 19.5
A172: Poika | B172: Jere Peräaho | C172: 297 | D172: 15.45
A173: Poika | B173: Aatu Teppo | C173: 354 | D173: 12.56
A174: Tyttö | B174: Hilla Savolainen | C174: 267 | D174: 10.34
A175: Tyttö | B175: Eveliina Leppimaa | C175: 311 | D175: 12.58
A176: Tyttö | B176: Pauliina Tölli | C176: 294 | D176: 9.22
A177: Tyttö | B177: Olivia Pirttilahti | C177: 370 | D177: 21.72
A178: Tyttö | B178: Tia-Maria Kiviniemi | C178: 317 | D178: 13.03
A179: Tyttö | B179: Riina Päivärinta | C179: 312 | D179: 10.46
A181: Koulu 13 | B181: Kirkonmäen koulu | C181: =IF(SUM(C182:C193)<>0,SUM(C182:C193)-SMALL(C182:C187,1)-SMALL(C188:C193,1),0) -> 2957 | D181: =IF(SUM(D182:D193)<>0,SUM(D182:D193)-SMALL(D182:D187,1)-SMALL(D188:D193,1),0) -> 123.4
A182: Poika | B182: Andreas Thylin | C182: 346 | D182: 11.64
A183: Poika | B183: Kasper Weizman | C183: 344 | D183: 17.43
A184: Poika | B184: Emil Klaavu | C184: 299 | D184: 15.6
A185: Poika | B185: Rasmus Andersson | C185: 285 | D185: 17.39
A186: Poika | B186: Joel Häggblom | C186: 280 | D186: 14.69
A187: Poika
A188: Tyttö | B188: Jessica Häggblom | C188: 348 | D188: 11.5
A189: Tyttö | B189: Erika Rautio | C189: 307 | D189: 11.7
A190: Tyttö | B190: Jullia Grahn | C190: 351 | D190: 10.71
A191: Tyttö | B191: Vilma Saarela | C191: 338 | D191: 12.5
A192: Tyttö | B192: Erica Niemi | C192: 339 | D192: 9.4
A193: Tyttö | B193: Maria Granö | C193: 306 | D193: 11.88
A195: Koulu 14 | B195: Tyngän aluekoulu | C195: =IF(SUM(C196:C207)<>0,SUM(C196:C207)-SMALL(C196:C201,1)-SMALL(C202:C207,1),0) -> 3234 | D195: =IF(SUM(D196:D207)<>0,SUM(D196:D207)-SMALL(D196:D201,1)-SMALL(D202:D207,1),0) -> 150.52
A196: Poika | B196: Juho Pyhälä | C196: 316 | D196: 15.76
A197: Poika | B197: Tuomas Lokkila | C197: 288 | D197: 15.48
A198: Poika | B198: Jani Soukka | C198: 267 | D198: 13.27
A199: Poika | B199: Hugo Stenbäck | C199: 326 | D199: 15.15
A200: Poika | B200: Juulio Pitkämö | C200: 319 | D200: 25.24
A201: Poika | B201: Santeri Rahja | C201: 353 | D201: 18.25
A202: Tyttö | B202: Alina Isopahkala | C202: 332 | D202: 10.62
A203: Tyttö | B203: Johanna Hihnala | C203: 355 | D203: 9.93
A204: Tyttö | B204: Janette Ojala | C204: 300 | D204: 13.81
A205: Tyttö | B205: Venla Vänttilä | C205: 320 | D205: 12.42
A206: Tyttö | B206: Laura Salmu | C206: 305 | D206: 11.46
A207: Tyttö | B207: Janina Nauha | C207: 320 | D207: 12.33
A209: Koulu 15 | B209: Lohtajan Kirkonkylän koulu | C209: =IF(SUM(C210:C221)<>0,SUM(C210:C221)-SMALL(C210:C215,1)-SMALL(C216:C221,1),0) -> 3694 | D209: =IF(SUM(D210:D221)<>0,SUM(D210:D221)-SMALL(D210:D215,1)-SMALL(D216:D221,1),0) -> 141.93
A210: Poika | B210: Joonas Lukkarila | C210: 393 | D210: 7.78
A211: Poika | B211: Jesse Anttila | C211: 433 | D211: 13.34
A212: Poika | B212: Eemeli Himanka | C212: 290 | D212: 14.76
A213: Poika | B213: Juuso Erkkilä | C213: 424 | D213: 17.34
A214: Poika | B214: Alex Suopunki | C214: 311 | D214: 13.48
... 202 more rows

Sheet yht
A1: Sija | B1: Koulun nimi | C1: Sukkula | D1: Sij. | F1: Pituus | G1: Sij. | I1: Keihäs | J1: Sij. | L1: Kierrosviesti | M1: Sij. | O1: Yht. Sij.
A2: =IF(Koulut!B265="","",RANK(O2,O$2:O$31,1)) -> 1 | B2: =IF(Koulut!B265="","",Koulut!B265) -> Raumankarin koulu | C2: 118.52 | D2: =IF(Koulut!B265="","",RANK(C2,C$2:C$31,1)) -> 1 | F2: =IF(Koulut!B265="","",Koulut!C265) -> 3566 | G2: =IF(Koulut!B265="","",RANK(F2,F$2:F$31)) -> 6 | I2: =IF(Koulut!B265="","",Koulut!D265) -> 186.36 | J2: =IF(Koulut!B265="","",RANK(I2,I$2:I$31)) -> 2 | L2: 16.16,00 | M2: 2 | O2: =IF(Koulut!B265="","",G2+J2+D2+M2) -> 11
A3: =IF(Koulut!B293="","",RANK(O3,O$2:O$31,1)) -> 2 | B3: =IF(Koulut!B293="","",Koulut!B293) -> Takalon koulu | C3: 118.88 | D3: =IF(Koulut!B293="","",RANK(C3,C$2:C$31,1)) -> 2 | F3: =IF(Koulut!B293="","",Koulut!C293) -> 3458 | G3: =IF(Koulut!B293="","",RANK(F3,F$2:F$31)) -> 8 | I3: =IF(Koulut!B293="","",Koulut!D293) -> 203.73 | J3: =IF(Koulut!B293="","",RANK(I3,I$2:I$31)) -> 1 | L3: 16.01,00 | M3: 1 | O3: =IF(Koulut!B293="","",G3+J3+D3+M3) -> 12
A4: =IF(Koulut!B83="","",RANK(O4,O$2:O$31,1)) -> 3 | B4: =IF(Koulut!B83="","",Koulut!B83) -> Raasakan koulu 6C | C4: 120.88 | D4: =IF(Koulut!B83="","",RANK(C4,C$2:C$31,1)) -> 5 | F4: =IF(Koulut!B83="","",Koulut!C83) -> 3554 | G4: =IF(Koulut!B83="","",RANK(F4,F$2:F$31)) -> 7 | I4: =IF(Koulut!B83="","",Koulut!D83) -> 178.25 | J4: =IF(Koulut!B83="","",RANK(I4,I$2:I$31)) -> 3 | L4: 16.23,00 | M4: 3 | O4: =IF(Koulut!B83="","",G4+J4+D4+M4) -> 18
A5: =IF(Koulut!B153="","",RANK(O5,O$2:O$31,1)) -> 3 | B5: =IF(Koulut!B153="","",Koulut!B153) -> Korhosen koulu | C5: 119.55 | D5: =IF(Koulut!B153="","",RANK(C5,C$2:C$31,1)) -> 4 | F5: =IF(Koulut!B153="","",Koulut!C153) -> 3618 | G5: =IF(Koulut!B153="","",RANK(F5,F$2:F$31)) -> 4 | I5: =IF(Koulut!B153="","",Koulut!D153) -> 169.09 | J5: =IF(Koulut!B153="","",RANK(I5,I$2:I$31)) -> 6 | L5: 16.49,00 | M5: 4 | O5: =IF(Koulut!B153="","",G5+J5+D5+M5) -> 18
A6: =IF(Koulut!B321="","",RANK(O6,O$2:O$31,1)) -> 5 | B6: =IF(Koulut!B321="","",Koulut!B321) -> Vuorenkallion koulu | C6: 119.3 | D6: =IF(Koulut!B321="","",RANK(C6,C$2:C$31,1)) -> 3 | F6: =IF(Koulut!B321="","",Koulut!C321) -> 3654 | G6: =IF(Koulut!B321="","",RANK(F6,F$2:F$31)) -> 3 | I6: =IF(Koulut!B321="","",Koulut!D321) -> 167.19 | J6: =IF(Koulut!B321="","",RANK(I6,I$2:I$31)) -> 7 | L6: 17.17,00 | M6: 9 | O6: =IF(Koulut!B321="","",G6+J6+D6+M6) -> 22
A7: =IF(Koulut!B27="","",RANK(O7,O$2:O$31,1)) -> 6 | B7: =IF(Koulut!B27="","",Koulut!B27) -> Pohjankylän koulu 6A | C7: 123.6 | D7: =IF(Koulut!B27="","",RANK(C7,C$2:C$31,1)) -> 10 | F7: =IF(Koulut!B27="","",Koulut!C27) -> 3573 | G7: =IF(Koulut!B27="","",RANK(F7,F$2:F$31)) -> 5 | I7: =IF(Koulut!B27="","",Koulut!D27) -> 175.73 | J7: =IF(Koulut!B27="","",RANK(I7,I$2:I$31)) -> 5 | L7: 16.50,00 | M7: 5 | O7: =IF(Koulut!B27="","",G7+J7+D7+M7) -> 25
A8: =IF(Koulut!B41="","",RANK(O8,O$2:O$31,1)) -> 7 | B8: =IF(Koulut!B41="","",Koulut!B41) -> Roikolan koulu | C8: 122.02 | D8: =IF(Koulut!B41="","",RANK(C8,C$2:C$31,1)) -> 6 | F8: =IF(Koulut!B41="","",Koulut!C41) -> 3703 | G8: =IF(Koulut!B41="","",RANK(F8,F$2:F$31)) -> 1 | I8: =IF(Koulut!B41="","",Koulut!D41) -> 154.03 | J8: =IF(Koulut!B41="","",RANK(I8,I$2:I$31)) -> 11 | L8: 17.46,00 | M8: 13 | O8: =IF(Koulut!B41="","",G8+J8+D8+M8) -> 31
A9: =IF(Koulut!B209="","",RANK(O9,O$2:O$31,1)) -> 7 | B9: =IF(Koulut!B209="","",Koulut!B209) -> Lohtajan Kirkonkylän koulu | C9: 123.14 | D9: =IF(Koulut!B209="","",RANK(C9,C$2:C$31,1)) -> 8 | F9: =IF(Koulut!B209="","",Koulut!C209) -> 3694 | G9: =IF(Koulut!B209="","",RANK(F9,F$2:F$31)) -> 2 | I9: =IF(Koulut!B209="","",Koulut!D209) -> 141.93 | J9: =IF(Koulut!B209="","",RANK(I9,I$2:I$31)) -> 15 | L9: 16.51,00 | M9: 6 | O9: =IF(Koulut!B209="","",G9+J9+D9+M9) -> 31
A10: =IF(Koulut!B97="","",RANK(O10,O$2:O$31,1)) -> 9 | B10: =IF(Koulut!B97="","",Koulut!B97) -> Pohjankylän koulu 6C | C10: 124.58 | D10: =IF(Koulut!B97="","",RANK(C10,C$2:C$31,1)) -> 12 | F10: =IF(Koulut!B97="","",Koulut!C97) -> 3441 | G10: =IF(Koulut!B97="","",RANK(F10,F$2:F$31)) -> 9 | I10: =IF(Koulut!B97="","",Koulut!D97) -> 176.13 | J10: =IF(Koulut!B97="","",RANK(I10,I$2:I$31)) -> 4 | L10: 17.27,00 | M10: 10 | O10: =IF(Koulut!B97="","",G10+J10+D10+M10) -> 35
A11: =IF(Koulut!B55="","",RANK(O11,O$2:O$31,1)) -> 10 | B11: =IF(Koulut!B55="","",Koulut!B55) -> Kälviän Kirkonkylän koulu | C11: 124.1 | D11: =IF(Koulut!B55="","",RANK(C11,C$2:C$31,1)) -> 11 | F11: =IF(Koulut!B55="","",Koulut!C55) -> 3298 | G11: =IF(Koulut!B55="","",RANK(F11,F$2:F$31)) -> 12 | I11: =IF(Koulut!B55="","",Koulut!D55) -> 155.86 | J11: =IF(Koulut!B55="","",RANK(I11,I$2:I$31)) -> 10 | L11: 17.16,00 | M11: 8 | O11: =IF(Koulut!B55="","",G11+J11+D11+M11) -> 41
A12: =IF(Koulut!B167="","",RANK(O12,O$2:O$31,1)) -> 11 | B12: =IF(Koulut!B167="","",Koulut!B167) -> Kyösti Kallion koulu 5B | C12: 123.47 | D12: =IF(Koulut!B167="","",RANK(C12,C$2:C$31,1)) -> 9 | F12: =IF(Koulut!B167="","",Koulut!C167) -> 3299 | G12: =IF(Koulut!B167="","",RANK(F12,F$2:F$31)) -> 11 | I12: =IF(Koulut!B167="","",Koulut!D167) -> 153.46 | J12: =IF(Koulut!B167="","",RANK(I12,I$2:I$31)) -> 12 | L12: 17.34,00 | M12: 11 | O12: =IF(Koulut!B167="","",G12+J12+D12+M12) -> 43
A13: =IF(Koulut!B181="","",RANK(O13,O$2:O$31,1)) -> 12 | B13: =IF(Koulut!B181="","",Koulut!B181) -> Kirkonmäen koulu | C13: 122.75 | D13: =IF(Koulut!B181="","",RANK(C13,C$2:C$31,1)) -> 7 | F13: =IF(Koulut!B181="","",Koulut!C181) -> 2957 | G13: =IF(Koulut!B181="","",RANK(F13,F$2:F$31)) -> 19 | I13: =IF(Koulut!B181="","",Koulut!D181) -> 123.4 | J13: =IF(Koulut!B181="","",RANK(I13,I$2:I$31)) -> 20 | L13: 17.02,00 | M13: 7 | O13: =IF(Koulut!B181="","",G13+J13+D13+M13) -> 53
A14: =IF(Koulut!B223="","",RANK(O14,O$2:O$31,1)) -> 12 | B14: =IF(Koulut!B223="","",Koulut!B223) -> Pohjankylän koulu 5C | C14: 128.36 | D14: =IF(Koulut!B223="","",RANK(C14,C$2:C$31,1)) -> 17 | F14: =IF(Koulut!B223="","",Koulut!C223) -> 3317 | G14: =IF(Koulut!B223="","",RANK(F14,F$2:F$31)) -> 10 | I14: =IF(Koulut!B223="","",Koulut!D223) -> 164.38 | J14: =IF(Koulut!B223="","",RANK(I14,I$2:I$31)) -> 9 | L14: 18.25,00 | M14: 17 | O14: =IF(Koulut!B223="","",G14+J14+D14+M14) -> 53
A15: =IF(Koulut!B125="","",RANK(O15,O$2:O$31,1)) -> 14 | B15: =IF(Koulut!B125="","",Koulut!B125) -> Pohjankylän koulu 5A | C15: 127.57 | D15: =IF(Koulut!B125="","",RANK(C15,C$2:C$31,1)) -> 16 | F15: =IF(Koulut!B125="","",Koulut!C125) -> 3170 | G15: =IF(Koulut!B125="","",RANK(F15,F$2:F$31)) -> 14 | I15: =IF(Koulut!B125="","",Koulut!D125) -> 141.24 | J15: =IF(Koulut!B125="","",RANK(I15,I$2:I$31)) -> 16 | L15: 17.47,00 | M15: 14 | O15: =IF(Koulut!B125="","",G15+J15+D15+M15) -> 60
A16: =IF(Koulut!B69="","",RANK(O16,O$2:O$31,1)) -> 15 | B16: =IF(Koulut!B69="","",Koulut!B69) -> Kyösti Kallion koulu 5A | C16: 124.95 | D16: =IF(Koulut!B69="","",RANK(C16,C$2:C$31,1)) -> 13 | F16: =IF(Koulut!B69="","",Koulut!C69) -> 3141 | G16: =IF(Koulut!B69="","",RANK(F16,F$2:F$31)) -> 16 | I16: =IF(Koulut!B69="","",Koulut!D69) -> 133.73 | J16: =IF(Koulut!B69="","",RANK(I16,I$2:I$31)) -> 17 | L16: 17.55,00 | M16: 15 | O16: =IF(Koulut!B69="","",G16+J16+D16+M16) -> 61
A17: =IF(Koulut!B111="","",RANK(O17,O$2:O$31,1)) -> 15 | B17: =IF(Koulut!B111="","",Koulut!B111) -> Marttilan koulu | C17: 126.21 | D17: =IF(Koulut!B111="","",RANK(C17,C$2:C$31,1)) -> 14 | F17: =IF(Koulut!B111="","",Koulut!C111) -> 3134 | G17: =IF(Koulut!B111="","",RANK(F17,F$2:F$31)) -> 17 | I17: =IF(Koulut!B111="","",Koulut!D111) -> 132.57 | J17: =IF(Koulut!B111="","",RANK(I17,I$2:I$31)) -> 18 | L17: 17.43,00 | M17: 12 | O17: =IF(Koulut!B111="","",G17+J17+D17+M17) -> 61
A18: =IF(Koulut!B195="","",RANK(O18,O$2:O$31,1)) -> 15 | B18: =IF(Koulut!B195="","",Koulut!B195) -> Tyngän aluekoulu | C18: 126.29 | D18: =IF(Koulut!B195="","",RANK(C18,C$2:C$31,1)) -> 15 | F18: =IF(Koulut!B195="","",Koulut!C195) -> 3234 | G18: =IF(Koulut!B195="","",RANK(F18,F$2:F$31)) -> 13 | I18: =IF(Koulut!B195="","",Koulut!D195) -> 150.52 | J18: =IF(Koulut!B195="","",RANK(I18,I$2:I$31)) -> 13 | L18: 18.52,00 | M18: 20 | O18: =IF(Koulut!B195="","",G18+J18+D18+M18) -> 61
A19: =IF(Koulut!B13="","",RANK(O19,O$2:O$31,1)) -> 18 | B19: =IF(Koulut!B13="","",Koulut!B13) -> Etelänkylän koulu | C19: 133.84 | D19: =IF(Koulut!B13="","",RANK(C19,C$2:C$31,1)) -> 22 | F19: =IF(Koulut!B13="","",Koulut!C13) -> 3170 | G19: =IF(Koulut!B13="","",RANK(F19,F$2:F$31)) -> 14 | I19: =IF(Koulut!B13="","",Koulut!D13) -> 166.68 | J19: =IF(Koulut!B13="","",RANK(I19,I$2:I$31)) -> 8 | L19: 19.59,00 | M19: 22 | O19: =IF(Koulut!B13="","",G19+J19+D19+M19) -> 66
A20: =IF(Koulut!B307="","",RANK(O20,O$2:O$31,1)) -> 19 | B20: =IF(Koulut!B307="","",Koulut!B307) -> Pohjankylän koulu 6B | C20: 130.93 | D20: =IF(Koulut!B307="","",RANK(C20,C$2:C$31,1)) -> 19 | F20: =IF(Koulut!B307="","",Koulut!C307) -> 2999 | G20: =IF(Koulut!B307="","",RANK(F20,F$2:F$31)) -> 18 | I20: =IF(Koulut!B307="","",Koulut!D307) -> 148.64 | J20: =IF(Koulut!B307="","",RANK(I20,I$2:I$31)) -> 14 | L20: 18.18,00 | M20: 16 | O20: =IF(Koulut!B307="","",G20+J20+D20+M20) -> 67
A21: =IF(Koulut!B139="","",RANK(O21,O$2:O$31,1)) -> 20 | B21: =IF(Koulut!B139="","",Koulut!B139) -> Hollihaan koulu 5R | C21: 130.6 | D21: =IF(Koulut!B139="","",RANK(C21,C$2:C$31,1)) -> 18 | F21: =IF(Koulut!B139="","",Koulut!C139) -> 2944 | G21: =IF(Koulut!B139="","",RANK(F21,F$2:F$31)) -> 20 | I21: =IF(Koulut!B139="","",Koulut!D139) -> 120.32 | J21: =IF(Koulut!B139="","",RANK(I21,I$2:I$31)) -> 21 | L21: 18.43,00 | M21: 18 | O21: =IF(Koulut!B139="","",G21+J21+D21+M21) -> 77
A22: =IF(Koulut!B279="","",RANK(O22,O$2:O$31,1)) -> 21 | B22: =IF(Koulut!B279="","",Koulut!B279) -> Kyösti Kallion koulu 5C | C22: 134.85 | D22: =IF(Koulut!B279="","",RANK(C22,C$2:C$31,1)) -> 23 | F22: =IF(Koulut!B279="","",Koulut!C279) -> 2851 | G22: =IF(Koulut!B279="","",RANK(F22,F$2:F$31)) -> 22 | I22: =IF(Koulut!B279="","",Koulut!D279) -> 128.14 | J22: =IF(Koulut!B279="","",RANK(I22,I$2:I$31)) -> 19 | L22: 18.45,00 | M22: 19 | O22: =IF(Koulut!B279="","",G22+J22+D22+M22) -> 83
A23: =IF(Koulut!B251="","",RANK(O23,O$2:O$31,1)) -> 22 | B23: =IF(Koulut!B251="","",Koulut!B251) -> Hollihaan koulu | C23: 133.27 | D23: =IF(Koulut!B251="","",RANK(C23,C$2:C$31,1)) -> 20 | F23: =IF(Koulut!B251="","",Koulut!C251) -> 2863 | G23: =IF(Koulut!B251="","",RANK(F23,F$2:F$31)) -> 21 | I23: =IF(Koulut!B251="","",Koulut!D251) -> 118.01 | J23: =IF(Koulut!B251="","",RANK(I23,I$2:I$31)) -> 22 | L23: 19.20,00 | M23: 21 | O23: =IF(Koulut!B251="","",G23+J23+D23+M23) -> 84
A24: =IF(Koulut!B237="","",RANK(O24,O$2:O$31,1)) -> 23 | B24: =IF(Koulut!B237="","",Koulut!B237) -> Pohjankylän koulu 5B | C24: 133.68 | D24: =IF(Koulut!B237="","",RANK(C24,C$2:C$31,1)) -> 21 | F24: =IF(Koulut!B237="","",Koulut!C237) -> 2851 | G24: =IF(Koulut!B237="","",RANK(F24,F$2:F$31)) -> 22 | I24: =IF(Koulut!B237="","",Koulut!D237) -> 117.05 | J24: =IF(Koulut!B237="","",RANK(I24,I$2:I$31)) -> 23 | L24: 20.25,00 | M24: 23 | O24: =IF(Koulut!B237="","",G24+J24+D24+M24) -> 89
A25: =IF(Koulut!B335="","",RANK(O25,O$2:O$31,1)) ->  | B25: =IF(Koulut!B335="","",Koulut!B335) ->  | C25: =IF(Koulut!B335="","",0) ->  | D25: =IF(Koulut!B335="","",RANK(C25,C$2:C$31,1)) ->  | F25: =IF(Koulut!B335="","",Koulut!C335) ->  | G25: =IF(Koulut!B335="","",RANK(F25,F$2:F$31)) ->  | I25: =IF(Koulut!B335="","",Koulut!D335) ->  | J25: =IF(Koulut!B335="","",RANK(I25,I$2:I$31)) ->  | O25: =IF(Koulut!B335="","",G25+J25+D25+M25) -> 
A26: =IF(Koulut!B349="","",RANK(O26,O$2:O$31,1)) ->  | B26: =IF(Koulut!B349="","",Koulut!B349) ->  | C26: =IF(Koulut!B349="","",0) ->  | D26: =IF(Koulut!B349="","",RANK(C26,C$2:C$31,1)) ->  | F26: =IF(Koulut!B349="","",Koulut!C349) ->  | G26: =IF(Koulut!B349="","",RANK(F26,F$2:F$31)) ->  | I26: =IF(Koulut!B349="","",Koulut!D349) ->  | J26: =IF(Koulut!B349="","",RANK(I26,I$2:I$31)) ->  | O26: =IF(Koulut!B349="","",G26+J26+D26+M26) -> 
A27: =IF(Koulut!B363="","",RANK(O27,O$2:O$31,1)) ->  | B27: =IF(Koulut!B363="","",Koulut!B363) ->  | C27: =IF(Koulut!B363="","",0) ->  | D27: =IF(Koulut!B363="","",RANK(C27,C$2:C$31,1)) ->  | F27: =IF(Koulut!B363="","",Koulut!C363) ->  | G27: =IF(Koulut!B363="","",RANK(F27,F$2:F$31)) ->  | I27: =IF(Koulut!B363="","",Koulut!D363) ->  | J27: =IF(Koulut!B363="","",RANK(I27,I$2:I$31)) ->  | O27: =IF(Koulut!B363="","",G27+J27+D27+M27) -> 
A28: =IF(Koulut!B377="","",RANK(O28,O$2:O$31,1)) ->  | B28: =IF(Koulut!B377="","",Koulut!B377) ->  | C28: =IF(Koulut!B377="","",0) ->  | D28: =IF(Koulut!B377="","",RANK(C28,C$2:C$31,1)) ->  | F28: =IF(Koulut!B377="","",Koulut!C377) ->  | G28: =IF(Koulut!B377="","",RANK(F28,F$2:F$31)) ->  | I28: =IF(Koulut!B377="","",Koulut!D377) ->  | J28: =IF(Koulut!B377="","",RANK(I28,I$2:I$31)) ->  | O28: =IF(Koulut!B377="","",G28+J28+D28+M28) -> 
A29: =IF(Koulut!B391="","",RANK(O29,O$2:O$31,1)) ->  | B29: =IF(Koulut!B391="","",Koulut!B391) ->  | C29: =IF(Koulut!B391="","",0) ->  | D29: =IF(Koulut!B391="","",RANK(C29,C$2:C$31,1)) ->  | F29: =IF(Koulut!B391="","",Koulut!C391) ->  | G29: =IF(Koulut!B391="","",RANK(F29,F$2:F$31)) ->  | I29: =IF(Koulut!B391="","",Koulut!D391) ->  | J29: =IF(Koulut!B391="","",RANK(I29,I$2:I$31)) ->  | O29: =IF(Koulut!B391="","",G29+J29+D29+M29) -> 
A30: =IF(Koulut!B405="","",RANK(O30,O$2:O$31,1)) ->  | B30: =IF(Koulut!B405="","",Koulut!B405) ->  | C30: =IF(Koulut!B405="","",0) ->  | D30: =IF(Koulut!B405="","",RANK(C30,C$2:C$31,1)) ->  | F30: =IF(Koulut!B405="","",Koulut!C405) ->  | G30: =IF(Koulut!B405="","",RANK(F30,F$2:F$31)) ->  | I30: =IF(Koulut!B405="","",Koulut!D405) ->  | J30: =IF(Koulut!B405="","",RANK(I30,I$2:I$31)) ->  | O30: =IF(Koulut!B405="","",G30+J30+D30+M30) -> 
A31: =IF(Koulut!B419="","",RANK(O31,O$2:O$31,1)) ->  | B31: =IF(Koulut!B419="","",Koulut!B419) ->  | C31: =IF(Koulut!B419="","",0) ->  | D31: =IF(Koulut!B419="","",RANK(C31,C$2:C$31,1)) ->  | F31: =IF(Koulut!B419="","",Koulut!C419) ->  | G31: =IF(Koulut!B419="","",RANK(F31,F$2:F$31)) ->  | I31: =IF(Koulut!B419="","",Koulut!D419) ->  | J31: =IF(Koulut!B419="","",RANK(I31,I$2:I$31)) ->  | O31: =IF(Koulut!B419="","",G31+J31+D31+M31) -> 

Sheet Pojat_pituus
A1: Pojat pituus | C1: Koulu | D1: Tulos | E1: =CONCATENATE(A1,": ",E2) -> Pojat pituus: 1.) Jesse Anttila Lohtajan Kirkonkylän koulu 433, 2.) Juuso Erkkilä Lohtajan Kirkonkylän koulu 424, 3.) Joni Luoma-Tokoi Roikolan koulu 409, 4.) Janne Juhola Vuorenkallion koulu 409, 5.) Jeremias Heikkilä Pohjankylän koulu 6C 407, 6.) Lauri Isopahkala Etelänkylän koulu 402, 7.) Aleksi Heikkilä Etelänkylän koulu 401, 8.) Antton Rantanilkku Raasakan koulu 6C 400, 9.) Silver Karjus Kälviän Kirkonkylän koulu 397, 10.) Arttu Mattila Raumankarin koulu 397, 11.) Teemu Hollanti Takalon koulu 396, 12.) Jere Lahtinen Takalon koulu 396, 13.) Joel Koskela Korhosen koulu 395, 14.) Ossi Peltokorpi Korhosen koulu 395, 15.) Joonas Lukkarila Lohtajan Kirkonkylän koulu 393, 16.) Riku Tohila Pohjankylän koulu 5C 390, 17.) Luka Liimatta Pohjankylän koulu 6B 386, 18.) Jere Päivärinta Korhosen koulu 385, 19.) Miika Rimpioja Korhosen koulu 385, 20.) Eemeli Impola Korhosen koulu 383, 21.) Lauri Knuuttila Marttilan koulu 376, 22.) Roope Rahkola Pohjankylän koulu 6A 373, 23.) Leevi Palola Pohjankylän koulu 6A 371, 24.) Miika Mutka Takalon koulu 371, 25.) Arttu Forss Pohjankylän koulu 6A 370, 26.) Atte Kangas Kälviän Kirkonkylän koulu 368, 27.) Samuli Ranta-Nilkku Kyösti Kallion koulu 5A 367, 28.) Jaakko Mattila Raumankarin koulu 367, 29.) Santtu Mörsky Lohtajan Kirkonkylän koulu 365, 30.) Viljami Tanhula Pohjankylän koulu 6C 361, 31.) Johannes Oja Kyösti Kallion koulu 5B 360, 32.) Tuukka Marjala Raumankarin koulu 360, 33.) Luka Karhu Roikolan koulu 359, 34.) Santeri Hirsikangas Raasakan koulu 6C 356, 35.) Aleksi Kaarlela Kyösti Kallion koulu 5B 356, 36.) Frank Sorjonen Pohjankylän koulu 6A 355, 37.) Rasmus Mäkelä Roikolan koulu 355, 38.) Aatu Teppo Kyösti Kallion koulu 5B 354, 39.) Santeri Rahja Tyngän aluekoulu 353, 40.) Heikki Tuorila Raumankarin koulu 351, 41.) Riku Kalliokoski Pohjankylän koulu 6B 350, 42.) Samuel Niemikorpi Korhosen koulu 349, 43.) Evert Neuvonen Takalon koulu 349, 44.) Andreas Thylin Kirkonmäen koulu 346, 45.) Valtteri Himanka Pohjankylän koulu 5A 345, 46.) Miika Suviola Pohjankylän koulu 6B 345, 47.) Joona Keskinen Kälviän Kirkonkylän koulu 344, 48.) Alexi Similä Pohjankylän koulu 6C 344, 49.) Kasper Weizman Kirkonmäen koulu 344, 50.) Viljami Vihelä Vuorenkallion koulu 340, 51.) Jimi Uusitalo Marttilan koulu 339, 52.) Jose Seppälä Hollihaan koulu 339, 53.) Joni Pentinmikko Raasakan koulu 6C 338, 54.) Arttu Kivioja Takalon koulu 338, 55.) Jere Eskola Takalon koulu 338, 56.) Jaakko Airas Vuorenkallion koulu 337, 57.) Hannes Häkkilä Pohjankylän koulu 6C 336, 58.) Aatu Silakka Raasakan koulu 6C 335, 59.) Tamas Hietala Pohjankylän koulu 6A 334, 60.) Mikael Ylitalo Pohjankylän koulu 5B 331, 61.) Oskari Rahkola Pohjankylän koulu 6B 331, 62.) Bimo Juntunen Pohjankylän koulu 5C 330, 63.) Panu Rimpioja Marttilan koulu 329, 64.) Riku Isopahkala Etelänkylän koulu 328, 65.) Konsta Piippo Hollihaan koulu 5R 327, 66.) Jere Ojala Pohjankylän koulu 5A 326, 67.) Hugo Stenbäck Tyngän aluekoulu 326, 68.) Henry Nauha Pohjankylän koulu 5C 325, 69.) Janne Forström Hollihaan koulu 5R 322, 70.) Heikki Tienvieri Kyösti Kallion koulu 5B 322, 71.) Juulio Pitkämö Tyngän aluekoulu 319, 72.) Aatu Hihnala Vuorenkallion koulu 318, 73.) Timi Tanskanen Kälviän Kirkonkylän koulu 317, 74.) Andrei Koskela Hollihaan koulu 317, 75.) Juho Pyhälä Tyngän aluekoulu 316, 76.) Miro Vehmanen Hollihaan koulu 316, 77.) Nico Mäenpää Raasakan koulu 6C 315, 78.) Lari Ojala Pohjankylän koulu 6C 315, 79.) Joonas Siipola Raumankarin koulu 315, 80.) Oskari Vihelä Etelänkylän koulu 313, 81.) Jere Laurila Pohjankylän koulu 5A 313, 82.) Otto Aho Hollihaan koulu 313, 83.) Ville Niku Kyösti Kallion koulu 5C 312, 84.) Alex Suopunki Lohtajan Kirkonkylän koulu 311, 85.) Eemil Karikumpu Kyösti Kallion koulu 5A 310, 86.) Santeri Mäkinen Raumankarin koulu 310, 87.) Artturi Nikunen Raasakan koulu 6C 308, 88.) Matias Eskola Kyösti Kallion koulu 5A 306, 89.) Herman Salmela Kyösti Kallion koulu 5A 304, 90.) Robin Kämäräinen Marttilan koulu 304, 91.) Lassi Simpanen Etelänkylän koulu 303, 92.) Iiro Kallio Kyösti Kallion koulu 5A 303, 93.) Miika Ohtamaa Kyösti Kallion koulu 5B 303, 94.) Kasperi Hannula Pohjankylän koulu 5A 302, 95.) Jarno Puikko Kälviän Kirkonkylän koulu 301, 96.) Emil Klaavu Kirkonmäen koulu 299, 97.) Julius Poutanen Marttilan koulu 298, 98.) Atte Manninen Hollihaan koulu 5R 298, 99.) Jesse Tikka Kyösti Kallion koulu 5C 298, 100.) Jere Peräaho Kyösti Kallion koulu 5B 297, 101.) Aatos Perttula Pohjankylän koulu 6C 296, 102.) Konsta Hannula Pohjankylän koulu 5C 296, 103.) Kaspian Kuki Kyösti Kallion koulu 5C 296, 104.) Oliver Viio Kyösti Kallion koulu 5C 294, 105.) Joel Kivioja Roikolan koulu 293, 106.) Valtteri Sorvala Pohjankylän koulu 5C 292, 107.) Eemeli Himanka Lohtajan Kirkonkylän koulu 290, 108.) Oskari Vänttilä Vuorenkallion koulu 290, 109.) Max Witick Roikolan koulu 288, 110.) Tuomas Lokkila Tyngän aluekoulu 288, 111.) Niko Jokinen Hollihaan koulu 287, 112.) Topias Törnval Vuorenkallion koulu 287, 113.) Jyry-Matti Niemi Pohjankylän koulu 5A 286, 114.) Jami Kinaret Hollihaan koulu 5R 285, 115.) Rasmus Andersson Kirkonmäen koulu 285, 116.) Juuso Lassila Etelänkylän koulu 282, 117.) Eeli Hiltula Marttilan koulu 281, 118.) Joel Häggblom Kirkonmäen koulu 280, 119.) Vili-Ilmari Hyyppä Hollihaan koulu 5R 279, 120.) Topi Päiveröinen Kyösti Kallion koulu 5A 278, 121.) Paavo Tilvis Pohjankylän koulu 6A 275, 122.) Aleksi Nikupaavo Pohjankylän koulu 6B 274, 123.) Oskari Nissilä Kälviän Kirkonkylän koulu 270, 124.) Jani Soukka Tyngän aluekoulu 267, 125.) Henri Vedenoja Pohjankylän koulu 5B 262, 126.) Eetu Ahonen Pohjankylän koulu 5B 261, 127.) Niina Kylmälä Pohjankylän koulu 5B 261, 128.) Martti Prittinen Pohjankylän koulu 5A 259, 129.) Tuure Anttila Pohjankylän koulu 5B 256, 130.) Joona Kallio Hollihaan koulu 237, 131.) Juuso Niemelä Hollihaan koulu 5R 235, 132.) Joona Nauha Pohjankylän koulu 6B 235, 133.) Jerry Kivioja Roikolan koulu 221, 134.) Leevi Hongisto Pohjankylän koulu 5C 220, 135.) Aaro Jukkila Pohjankylän koulu 5B 216, 136.) Ville Tölli Kyösti Kallion koulu 5C 193, 137.) Sami Hannula Kyösti Kallion koulu 5C 186, 138.) 0, 139.) 0, 140.) 0, 141.) 0, 142.) 0, 143.) 0, 144.) 0, 145.) 0, 146.) 0, 147.) 0, 148.) 0, 149.) 0, 150.) 0, 151.) 0, 152.) 0, 153.) 0, 154.) 0, 155.) 0, 156.) 0, 157.) 0, 158.) 0, 159.) 0, 160.) 0, 161.) 0, 162.) 0, 163.) 0, 164.) 0, 165.) 0, 166.) 0, 167.) 0, 168.) 0, 169.) 0, 170.) 0, 171.) 0, 172.) 0, 173.) 0, 174.) 0, 175.) 0, 176.) 0, 177.) 0, 178.) 0, 179.) 0, 180.) 0
A2: 1. | B2: =IF(Koulut!B211<>0,Koulut!B211,"") -> Jesse Anttila | C2: =IF(Koulut!B211<>0,Koulut!B$209,"") -> Lohtajan Kirkonkylän koulu | D2: =Koulut!C211 -> 433 | E2: =IF(A2<>"",CONCATENATE(A2,") ",B2," ",C2," ",D2,IF(E3<>"",CONCATENATE(", ",E3),"")),"") -> 1.) Jesse Anttila Lohtajan Kirkonkylän koulu 433, 2.) Juuso Erkkilä Lohtajan Kirkonkylän koulu 424, 3.) Joni Luoma-Tokoi Roikolan koulu 409, 4.) Janne Juhola Vuorenkallion koulu 409, 5.) Jeremias Heikkilä Pohjankylän koulu 6C 407, 6.) Lauri Isopahkala Etelänkylän koulu 402, 7.) Aleksi Heikkilä Etelänkylän koulu 401, 8.) Antton Rantanilkku Raasakan koulu 6C 400, 9.) Silver Karjus Kälviän Kirkonkylän koulu 397, 10.) Arttu Mattila Raumankarin koulu 397, 11.) Teemu Hollanti Takalon koulu 396, 12.) Jere Lahtinen Takalon koulu 396, 13.) Joel Koskela Korhosen koulu 395, 14.) Ossi Peltokorpi Korhosen koulu 395, 15.) Joonas Lukkarila Lohtajan Kirkonkylän koulu 393, 16.) Riku Tohila Pohjankylän koulu 5C 390, 17.) Luka Liimatta Pohjankylän koulu 6B 386, 18.) Jere Päivärinta Korhosen koulu 385, 19.) Miika Rimpioja Korhosen koulu 385, 20.) Eemeli Impola Korhosen koulu 383, 21.) Lauri Knuuttila Marttilan koulu 376, 22.) Roope Rahkola Pohjankylän koulu 6A 373, 23.) Leevi Palola Pohjankylän koulu 6A 371, 24.) Miika Mutka Takalon koulu 371, 25.) Arttu Forss Pohjankylän koulu 6A 370, 26.) Atte Kangas Kälviän Kirkonkylän koulu 368, 27.) Samuli Ranta-Nilkku Kyösti Kallion koulu 5A 367, 28.) Jaakko Mattila Raumankarin koulu 367, 29.) Santtu Mörsky Lohtajan Kirkonkylän koulu 365, 30.) Viljami Tanhula Pohjankylän koulu 6C 361, 31.) Johannes Oja Kyösti Kallion koulu 5B 360, 32.) Tuukka Marjala Raumankarin koulu 360, 33.) Luka Karhu Roikolan koulu 359, 34.) Santeri Hirsikangas Raasakan koulu 6C 356, 35.) Aleksi Kaarlela Kyösti Kallion koulu 5B 356, 36.) Frank Sorjonen Pohjankylän koulu 6A 355, 37.) Rasmus Mäkelä Roikolan koulu 355, 38.) Aatu Teppo Kyösti Kallion koulu 5B 354, 39.) Santeri Rahja Tyngän aluekoulu 353, 40.) Heikki Tuorila Raumankarin koulu 351, 41.) Riku Kalliokoski Pohjankylän koulu 6B 350, 42.) Samuel Niemikorpi Korhosen koulu 349, 43.) Evert Neuvonen Takalon koulu 349, 44.) Andreas Thylin Kirkonmäen koulu 346, 45.) Valtteri Himanka Pohjankylän koulu 5A 345, 46.) Miika Suviola Pohjankylän koulu 6B 345, 47.) Joona Keskinen Kälviän Kirkonkylän koulu 344, 48.) Alexi Similä Pohjankylän koulu 6C 344, 49.) Kasper Weizman Kirkonmäen koulu 344, 50.) Viljami Vihelä Vuorenkallion koulu 340, 51.) Jimi Uusitalo Marttilan koulu 339, 52.) Jose Seppälä Hollihaan koulu 339, 53.) Joni Pentinmikko Raasakan koulu 6C 338, 54.) Arttu Kivioja Takalon koulu 338, 55.) Jere Eskola Takalon koulu 338, 56.) Jaakko Airas Vuorenkallion koulu 337, 57.) Hannes Häkkilä Pohjankylän koulu 6C 336, 58.) Aatu Silakka Raasakan koulu 6C 335, 59.) Tamas Hietala Pohjankylän koulu 6A 334, 60.) Mikael Ylitalo Pohjankylän koulu 5B 331, 61.) Oskari Rahkola Pohjankylän koulu 6B 331, 62.) Bimo Juntunen Pohjankylän koulu 5C 330, 63.) Panu Rimpioja Marttilan koulu 329, 64.) Riku Isopahkala Etelänkylän koulu 328, 65.) Konsta Piippo Hollihaan koulu 5R 327, 66.) Jere Ojala Pohjankylän koulu 5A 326, 67.) Hugo Stenbäck Tyngän aluekoulu 326, 68.) Henry Nauha Pohjankylän koulu 5C 325, 69.) Janne Forström Hollihaan koulu 5R 322, 70.) Heikki Tienvieri Kyösti Kallion koulu 5B 322, 71.) Juulio Pitkämö Tyngän aluekoulu 319, 72.) Aatu Hihnala Vuorenkallion koulu 318, 73.) Timi Tanskanen Kälviän Kirkonkylän koulu 317, 74.) Andrei Koskela Hollihaan koulu 317, 75.) Juho Pyhälä Tyngän aluekoulu 316, 76.) Miro Vehmanen Hollihaan koulu 316, 77.) Nico Mäenpää Raasakan koulu 6C 315, 78.) Lari Ojala Pohjankylän koulu 6C 315, 79.) Joonas Siipola Raumankarin koulu 315, 80.) Oskari Vihelä Etelänkylän koulu 313, 81.) Jere Laurila Pohjankylän koulu 5A 313, 82.) Otto Aho Hollihaan koulu 313, 83.) Ville Niku Kyösti Kallion koulu 5C 312, 84.) Alex Suopunki Lohtajan Kirkonkylän koulu 311, 85.) Eemil Karikumpu Kyösti Kallion koulu 5A 310, 86.) Santeri Mäkinen Raumankarin koulu 310, 87.) Artturi Nikunen Raasakan koulu 6C 308, 88.) Matias Eskola Kyösti Kallion koulu 5A 306, 89.) Herman Salmela Kyösti Kallion koulu 5A 304, 90.) Robin Kämäräinen Marttilan koulu 304, 91.) Lassi Simpanen Etelänkylän koulu 303, 92.) Iiro Kallio Kyösti Kallion koulu 5A 303, 93.) Miika Ohtamaa Kyösti Kallion koulu 5B 303, 94.) Kasperi Hannula Pohjankylän koulu 5A 302, 95.) Jarno Puikko Kälviän Kirkonkylän koulu 301, 96.) Emil Klaavu Kirkonmäen koulu 299, 97.) Julius Poutanen Marttilan koulu 298, 98.) Atte Manninen Hollihaan koulu 5R 298, 99.) Jesse Tikka Kyösti Kallion koulu 5C 298, 100.) Jere Peräaho Kyösti Kallion koulu 5B 297, 101.) Aatos Perttula Pohjankylän koulu 6C 296, 102.) Konsta Hannula Pohjankylän koulu 5C 296, 103.) Kaspian Kuki Kyösti Kallion koulu 5C 296, 104.) Oliver Viio Kyösti Kallion koulu 5C 294, 105.) Joel Kivioja Roikolan koulu 293, 106.) Valtteri Sorvala Pohjankylän koulu 5C 292, 107.) Eemeli Himanka Lohtajan Kirkonkylän koulu 290, 108.) Oskari Vänttilä Vuorenkallion koulu 290, 109.) Max Witick Roikolan koulu 288, 110.) Tuomas Lokkila Tyngän aluekoulu 288, 111.) Niko Jokinen Hollihaan koulu 287, 112.) Topias Törnval Vuorenkallion koulu 287, 113.) Jyry-Matti Niemi Pohjankylän koulu 5A 286, 114.) Jami Kinaret Hollihaan koulu 5R 285, 115.) Rasmus Andersson Kirkonmäen koulu 285, 116.) Juuso Lassila Etelänkylän koulu 282, 117.) Eeli Hiltula Marttilan koulu 281, 118.) Joel Häggblom Kirkonmäen koulu 280, 119.) Vili-Ilmari Hyyppä Hollihaan koulu 5R 279, 120.) Topi Päiveröinen Kyösti Kallion koulu 5A 278, 121.) Paavo Tilvis Pohjankylän koulu 6A 275, 122.) Aleksi Nikupaavo Pohjankylän koulu 6B 274, 123.) Oskari Nissilä Kälviän Kirkonkylän koulu 270, 124.) Jani Soukka Tyngän aluekoulu 267, 125.) Henri Vedenoja Pohjankylän koulu 5B 262, 126.) Eetu Ahonen Pohjankylän koulu 5B 261, 127.) Niina Kylmälä Pohjankylän koulu 5B 261, 128.) Martti Prittinen Pohjankylän koulu 5A 259, 129.) Tuure Anttila Pohjankylän koulu 5B 256, 130.) Joona Kallio Hollihaan koulu 237, 131.) Juuso Niemelä Hollihaan koulu 5R 235, 132.) Joona Nauha Pohjankylän koulu 6B 235, 133.) Jerry Kivioja Roikolan koulu 221, 134.) Leevi Hongisto Pohjankylän koulu 5C 220, 135.) Aaro Jukkila Pohjankylän koulu 5B 216, 136.) Ville Tölli Kyösti Kallion koulu 5C 193, 137.) Sami Hannula Kyösti Kallion koulu 5C 186, 138.) 0, 139.) 0, 140.) 0, 141.) 0, 142.) 0, 143.) 0, 144.) 0, 145.) 0, 146.) 0, 147.) 0, 148.) 0, 149.) 0, 150.) 0, 151.) 0, 152.) 0, 153.) 0, 154.) 0, 155.) 0, 156.) 0, 157.) 0, 158.) 0, 159.) 0, 160.) 0, 161.) 0, 162.) 0, 163.) 0, 164.) 0, 165.) 0, 166.) 0, 167.) 0, 168.) 0, 169.) 0, 170.) 0, 171.) 0, 172.) 0, 173.) 0, 174.) 0, 175.) 0, 176.) 0, 177.) 0, 178.) 0, 179.) 0, 180.) 0
A3: 2. | B3: =IF(Koulut!B213<>0,Koulut!B213,"") -> Juuso Erkkilä | C3: =IF(Koulut!B213<>0,Koulut!B$209,"") -> Lohtajan Kirkonkylän koulu | D3: =Koulut!C213 -> 424 | E3: =IF(A3<>"",CONCATENATE(A3,") ",B3," ",C3," ",D3,IF(E4<>"",CONCATENATE(", ",E4),"")),"") -> 2.) Juuso Erkkilä Lohtajan Kirkonkylän koulu 424, 3.) Joni Luoma-Tokoi Roikolan koulu 409, 4.) Janne Juhola Vuorenkallion koulu 409, 5.) Jeremias Heikkilä Pohjankylän koulu 6C 407, 6.) Lauri Isopahkala Etelänkylän koulu 402, 7.) Aleksi Heikkilä Etelänkylän koulu 401, 8.) Antton Rantanilkku Raasakan koulu 6C 400, 9.) Silver Karjus Kälviän Kirkonkylän koulu 397, 10.) Arttu Mattila Raumankarin koulu 397, 11.) Teemu Hollanti Takalon koulu 396, 12.) Jere Lahtinen Takalon koulu 396, 13.) Joel Koskela Korhosen koulu 395, 14.) Ossi Peltokorpi Korhosen koulu 395, 15.) Joonas Lukkarila Lohtajan Kirkonkylän koulu 393, 16.) Riku Tohila Pohjankylän koulu 5C 390, 17.) Luka Liimatta Pohjankylän koulu 6B 386, 18.) Jere Päivärinta Korhosen koulu 385, 19.) Miika Rimpioja Korhosen koulu 385, 20.) Eemeli Impola Korhosen koulu 383, 21.) Lauri Knuuttila Marttilan koulu 376, 22.) Roope Rahkola Pohjankylän koulu 6A 373, 23.) Leevi Palola Pohjankylän koulu 6A 371, 24.) Miika Mutka Takalon koulu 371, 25.) Arttu Forss Pohjankylän koulu 6A 370, 26.) Atte Kangas Kälviän Kirkonkylän koulu 368, 27.) Samuli Ranta-Nilkku Kyösti Kallion koulu 5A 367, 28.) Jaakko Mattila Raumankarin koulu 367, 29.) Santtu Mörsky Lohtajan Kirkonkylän koulu 365, 30.) Viljami Tanhula Pohjankylän koulu 6C 361, 31.) Johannes Oja Kyösti Kallion koulu 5B 360, 32.) Tuukka Marjala Raumankarin koulu 360, 33.) Luka Karhu Roikolan koulu 359, 34.) Santeri Hirsikangas Raasakan koulu 6C 356, 35.) Aleksi Kaarlela Kyösti Kallion koulu 5B 356, 36.) Frank Sorjonen Pohjankylän koulu 6A 355, 37.) Rasmus Mäkelä Roikolan koulu 355, 38.) Aatu Teppo Kyösti Kallion koulu 5B 354, 39.) Santeri Rahja Tyngän aluekoulu 353, 40.) Heikki Tuorila Raumankarin koulu 351, 41.) Riku Kalliokoski Pohjankylän koulu 6B 350, 42.) Samuel Niemikorpi Korhosen koulu 349, 43.) Evert Neuvonen Takalon koulu 349, 44.) Andreas Thylin Kirkonmäen koulu 346, 45.) Valtteri Himanka Pohjankylän koulu 5A 345, 46.) Miika Suviola Pohjankylän koulu 6B 345, 47.) Joona Keskinen Kälviän Kirkonkylän koulu 344, 48.) Alexi Similä Pohjankylän koulu 6C 344, 49.) Kasper Weizman Kirkonmäen koulu 344, 50.) Viljami Vihelä Vuorenkallion koulu 340, 51.) Jimi Uusitalo Marttilan koulu 339, 52.) Jose Seppälä Hollihaan koulu 339, 53.) Joni Pentinmikko Raasakan koulu 6C 338, 54.) Arttu Kivioja Takalon koulu 338, 55.) Jere Eskola Takalon koulu 338, 56.) Jaakko Airas Vuorenkallion koulu 337, 57.) Hannes Häkkilä Pohjankylän koulu 6C 336, 58.) Aatu Silakka Raasakan koulu 6C 335, 59.) Tamas Hietala Pohjankylän koulu 6A 334, 60.) Mikael Ylitalo Pohjankylän koulu 5B 331, 61.) Oskari Rahkola Pohjankylän koulu 6B 331, 62.) Bimo Juntunen Pohjankylän koulu 5C 330, 63.) Panu Rimpioja Marttilan koulu 329, 64.) Riku Isopahkala Etelänkylän koulu 328, 65.) Konsta Piippo Hollihaan koulu 5R 327, 66.) Jere Ojala Pohjankylän koulu 5A 326, 67.) Hugo Stenbäck Tyngän aluekoulu 326, 68.) Henry Nauha Pohjankylän koulu 5C 325, 69.) Janne Forström Hollihaan koulu 5R 322, 70.) Heikki Tienvieri Kyösti Kallion koulu 5B 322, 71.) Juulio Pitkämö Tyngän aluekoulu 319, 72.) Aatu Hihnala Vuorenkallion koulu 318, 73.) Timi Tanskanen Kälviän Kirkonkylän koulu 317, 74.) Andrei Koskela Hollihaan koulu 317, 75.) Juho Pyhälä Tyngän aluekoulu 316, 76.) Miro Vehmanen Hollihaan koulu 316, 77.) Nico Mäenpää Raasakan koulu 6C 315, 78.) Lari Ojala Pohjankylän koulu 6C 315, 79.) Joonas Siipola Raumankarin koulu 315, 80.) Oskari Vihelä Etelänkylän koulu 313, 81.) Jere Laurila Pohjankylän koulu 5A 313, 82.) Otto Aho Hollihaan koulu 313, 83.) Ville Niku Kyösti Kallion koulu 5C 312, 84.) Alex Suopunki Lohtajan Kirkonkylän koulu 311, 85.) Eemil Karikumpu Kyösti Kallion koulu 5A 310, 86.) Santeri Mäkinen Raumankarin koulu 310, 87.) Artturi Nikunen Raasakan koulu 6C 308, 88.) Matias Eskola Kyösti Kallion koulu 5A 306, 89.) Herman Salmela Kyösti Kallion koulu 5A 304, 90.) Robin Kämäräinen Marttilan koulu 304, 91.) Lassi Simpanen Etelänkylän koulu 303, 92.) Iiro Kallio Kyösti Kallion koulu 5A 303, 93.) Miika Ohtamaa Kyösti Kallion koulu 5B 303, 94.) Kasperi Hannula Pohjankylän koulu 5A 302, 95.) Jarno Puikko Kälviän Kirkonkylän koulu 301, 96.) Emil Klaavu Kirkonmäen koulu 299, 97.) Julius Poutanen Marttilan koulu 298, 98.) Atte Manninen Hollihaan koulu 5R 298, 99.) Jesse Tikka Kyösti Kallion koulu 5C 298, 100.) Jere Peräaho Kyösti Kallion koulu 5B 297, 101.) Aatos Perttula Pohjankylän koulu 6C 296, 102.) Konsta Hannula Pohjankylän koulu 5C 296, 103.) Kaspian Kuki Kyösti Kallion koulu 5C 296, 104.) Oliver Viio Kyösti Kallion koulu 5C 294, 105.) Joel Kivioja Roikolan koulu 293, 106.) Valtteri Sorvala Pohjankylän koulu 5C 292, 107.) Eemeli Himanka Lohtajan Kirkonkylän koulu 290, 108.) Oskari Vänttilä Vuorenkallion koulu 290, 109.) Max Witick Roikolan koulu 288, 110.) Tuomas Lokkila Tyngän aluekoulu 288, 111.) Niko Jokinen Hollihaan koulu 287, 112.) Topias Törnval Vuorenkallion koulu 287, 113.) Jyry-Matti Niemi Pohjankylän koulu 5A 286, 114.) Jami Kinaret Hollihaan koulu 5R 285, 115.) Rasmus Andersson Kirkonmäen koulu 285, 116.) Juuso Lassila Etelänkylän koulu 282, 117.) Eeli Hiltula Marttilan koulu 281, 118.) Joel Häggblom Kirkonmäen koulu 280, 119.) Vili-Ilmari Hyyppä Hollihaan koulu 5R 279, 120.) Topi Päiveröinen Kyösti Kallion koulu 5A 278, 121.) Paavo Tilvis Pohjankylän koulu 6A 275, 122.) Aleksi Nikupaavo Pohjankylän koulu 6B 274, 123.) Oskari Nissilä Kälviän Kirkonkylän koulu 270, 124.) Jani Soukka Tyngän aluekoulu 267, 125.) Henri Vedenoja Pohjankylän koulu 5B 262, 126.) Eetu Ahonen Pohjankylän koulu 5B 261, 127.) Niina Kylmälä Pohjankylän koulu 5B 261, 128.) Martti Prittinen Pohjankylän koulu 5A 259, 129.) Tuure Anttila Pohjankylän koulu 5B 256, 130.) Joona Kallio Hollihaan koulu 237, 131.) Juuso Niemelä Hollihaan koulu 5R 235, 132.) Joona Nauha Pohjankylän koulu 6B 235, 133.) Jerry Kivioja Roikolan koulu 221, 134.) Leevi Hongisto Pohjankylän koulu 5C 220, 135.) Aaro Jukkila Pohjankylän koulu 5B 216, 136.) Ville Tölli Kyösti Kallion koulu 5C 193, 137.) Sami Hannula Kyösti Kallion koulu 5C 186, 138.) 0, 139.) 0, 140.) 0, 141.) 0, 142.) 0, 143.) 0, 144.) 0, 145.) 0, 146.) 0, 147.) 0, 148.) 0, 149.) 0, 150.) 0, 151.) 0, 152.) 0, 153.) 0, 154.) 0, 155.) 0, 156.) 0, 157.) 0, 158.) 0, 159.) 0, 160.) 0, 161.) 0, 162.) 0, 163.) 0, 164.) 0, 165.) 0, 166.) 0, 167.) 0, 168.) 0, 169.) 0, 170.) 0, 171.) 0, 172.) 0, 173.) 0, 174.) 0, 175.) 0, 176.) 0, 177.) 0, 178.) 0, 179.) 0, 180.) 0
A4: 3. | B4: =IF(Koulut!B47<>0,Koulut!B47,"") -> Joni Luoma-Tokoi | C4: =IF(Koulut!B47<>0,Koulut!B$41,"") -> Roikolan koulu | D4: =Koulut!C47 -> 409 | E4: 3.) Joni Luoma-Tokoi Roikolan koulu 409, 4.) Janne Juhola Vuorenkallion koulu 409, 5.) Jeremias Heikkilä Pohjankylän koulu 6C 407, 6.) Lauri Isopahkala Etelänkylän koulu 402, 7.) Aleksi Heikkilä Etelänkylän koulu 401, 8.) Antton Rantanilkku Raasakan koulu 6C 400, 9.) Silver Karjus Kälviän Kirkonkylän koulu 397, 10.) Arttu Mattila Raumankarin koulu 397, 11.) Teemu Hollanti Takalon koulu 396, 12.) Jere Lahtinen Takalon koulu 396, 13.) Joel Koskela Korhosen koulu 395, 14.) Ossi Peltokorpi Korhosen koulu 395, 15.) Joonas Lukkarila Lohtajan Kirkonkylän koulu 393, 16.) Riku Tohila Pohjankylän koulu 5C 390, 17.) Luka Liimatta Pohjankylän koulu 6B 386, 18.) Jere Päivärinta Korhosen koulu 385, 19.) Miika Rimpioja Korhosen koulu 385, 20.) Eemeli Impola Korhosen koulu 383, 21.) Lauri Knuuttila Marttilan koulu 376, 22.) Roope Rahkola Pohjankylän koulu 6A 373, 23.) Leevi Palola Pohjankylän koulu 6A 371, 24.) Miika Mutka Takalon koulu 371, 25.) Arttu Forss Pohjankylän koulu 6A 370, 26.) Atte Kangas Kälviän Kirkonkylän koulu 368, 27.) Samuli Ranta-Nilkku Kyösti Kallion koulu 5A 367, 28.) Jaakko Mattila Raumankarin koulu 367, 29.) Santtu Mörsky Lohtajan Kirkonkylän koulu 365, 30.) Viljami Tanhula Pohjankylän koulu 6C 361, 31.) Johannes Oja Kyösti Kallion koulu 5B 360, 32.) Tuukka Marjala Raumankarin koulu 360, 33.) Luka Karhu Roikolan koulu 359, 34.) Santeri Hirsikangas Raasakan koulu 6C 356, 35.) Aleksi Kaarlela Kyösti Kallion koulu 5B 356, 36.) Frank Sorjonen Pohjankylän koulu 6A 355, 37.) Rasmus Mäkelä Roikolan koulu 355, 38.) Aatu Teppo Kyösti Kallion koulu 5B 354, 39.) Santeri Rahja Tyngän aluekoulu 353, 40.) Heikki Tuorila Raumankarin koulu 351, 41.) Riku Kalliokoski Pohjankylän koulu 6B 350, 42.) Samuel Niemikorpi Korhosen koulu 349, 43.) Evert Neuvonen Takalon koulu 349, 44.) Andreas Thylin Kirkonmäen koulu 346, 45.) Valtteri Himanka Pohjankylän koulu 5A 345, 46.) Miika Suviola Pohjankylän koulu 6B 345, 47.) Joona Keskinen Kälviän Kirkonkylän koulu 344, 48.) Alexi Similä Pohjankylän koulu 6C 344, 49.) Kasper Weizman Kirkonmäen koulu 344, 50.) Viljami Vihelä Vuorenkallion koulu 340, 51.) Jimi Uusitalo Marttilan koulu 339, 52.) Jose Seppälä Hollihaan koulu 339, 53.) Joni Pentinmikko Raasakan koulu 6C 338, 54.) Arttu Kivioja Takalon koulu 338, 55.) Jere Eskola Takalon koulu 338, 56.) Jaakko Airas Vuorenkallion koulu 337, 57.) Hannes Häkkilä Pohjankylän koulu 6C 336, 58.) Aatu Silakka Raasakan koulu 6C 335, 59.) Tamas Hietala Pohjankylän koulu 6A 334, 60.) Mikael Ylitalo Pohjankylän koulu 5B 331, 61.) Oskari Rahkola Pohjankylän koulu 6B 331, 62.) Bimo Juntunen Pohjankylän koulu 5C 330, 63.) Panu Rimpioja Marttilan koulu 329, 64.) Riku Isopahkala Etelänkylän koulu 328, 65.) Konsta Piippo Hollihaan koulu 5R 327, 66.) Jere Ojala Pohjankylän koulu 5A 326, 67.) Hugo Stenbäck Tyngän aluekoulu 326, 68.) Henry Nauha Pohjankylän koulu 5C 325, 69.) Janne Forström Hollihaan koulu 5R 322, 70.) Heikki Tienvieri Kyösti Kallion koulu 5B 322, 71.) Juulio Pitkämö Tyngän aluekoulu 319, 72.) Aatu Hihnala Vuorenkallion koulu 318, 73.) Timi Tanskanen Kälviän Kirkonkylän koulu 317, 74.) Andrei Koskela Hollihaan koulu 317, 75.) Juho Pyhälä Tyngän aluekoulu 316, 76.) Miro Vehmanen Hollihaan koulu 316, 77.) Nico Mäenpää Raasakan koulu 6C 315, 78.) Lari Ojala Pohjankylän koulu 6C 315, 79.) Joonas Siipola Raumankarin koulu 315, 80.) Oskari Vihelä Etelänkylän koulu 313, 81.) Jere Laurila Pohjankylän koulu 5A 313, 82.) Otto Aho Hollihaan koulu 313, 83.) Ville Niku Kyösti Kallion koulu 5C 312, 84.) Alex Suopunki Lohtajan Kirkonkylän koulu 311, 85.) Eemil Karikumpu Kyösti Kallion koulu 5A 310, 86.) Santeri Mäkinen Raumankarin koulu 310, 87.) Artturi Nikunen Raasakan koulu 6C 308, 88.) Matias Eskola Kyösti Kallion koulu 5A 306, 89.) Herman Salmela Kyösti Kallion koulu 5A 304, 90.) Robin Kämäräinen Marttilan koulu 304, 91.) Lassi Simpanen Etelänkylän koulu 303, 92.) Iiro Kallio Kyösti Kallion koulu 5A 303, 93.) Miika Ohtamaa Kyösti Kallion koulu 5B 303, 94.) Kasperi Hannula Pohjankylän koulu 5A 302, 95.) Jarno Puikko Kälviän Kirkonkylän koulu 301, 96.) Emil Klaavu Kirkonmäen koulu 299, 97.) Julius Poutanen Marttilan koulu 298, 98.) Atte Manninen Hollihaan koulu 5R 298, 99.) Jesse Tikka Kyösti Kallion koulu 5C 298, 100.) Jere Peräaho Kyösti Kallion koulu 5B 297, 101.) Aatos Perttula Pohjankylän koulu 6C 296, 102.) Konsta Hannula Pohjankylän koulu 5C 296, 103.) Kaspian Kuki Kyösti Kallion koulu 5C 296, 104.) Oliver Viio Kyösti Kallion koulu 5C 294, 105.) Joel Kivioja Roikolan koulu 293, 106.) Valtteri Sorvala Pohjankylän koulu 5C 292, 107.) Eemeli Himanka Lohtajan Kirkonkylän koulu 290, 108.) Oskari Vänttilä Vuorenkallion koulu 290, 109.) Max Witick Roikolan koulu 288, 110.) Tuomas Lokkila Tyngän aluekoulu 288, 111.) Niko Jokinen Hollihaan koulu 287, 112.) Topias Törnval Vuorenkallion koulu 287, 113.) Jyry-Matti Niemi Pohjankylän koulu 5A 286, 114.) Jami Kinaret Hollihaan koulu 5R 285, 115.) Rasmus Andersson Kirkonmäen koulu 285, 116.) Juuso Lassila Etelänkylän koulu 282, 117.) Eeli Hiltula Marttilan koulu 281, 118.) Joel Häggblom Kirkonmäen koulu 280, 119.) Vili-Ilmari Hyyppä Hollihaan koulu 5R 279, 120.) Topi Päiveröinen Kyösti Kallion koulu 5A 278, 121.) Paavo Tilvis Pohjankylän koulu 6A 275, 122.) Aleksi Nikupaavo Pohjankylän koulu 6B 274, 123.) Oskari Nissilä Kälviän Kirkonkylän koulu 270, 124.) Jani Soukka Tyngän aluekoulu 267, 125.) Henri Vedenoja Pohjankylän koulu 5B 262, 126.) Eetu Ahonen Pohjankylän koulu 5B 261, 127.) Niina Kylmälä Pohjankylän koulu 5B 261, 128.) Martti Prittinen Pohjankylän koulu 5A 259, 129.) Tuure Anttila Pohjankylän koulu 5B 256, 130.) Joona Kallio Hollihaan koulu 237, 131.) Juuso Niemelä Hollihaan koulu 5R 235, 132.) Joona Nauha Pohjankylän koulu 6B 235, 133.) Jerry Kivioja Roikolan koulu 221, 134.) Leevi Hongisto Pohjankylän koulu 5C 220, 135.) Aaro Jukkila Pohjankylän koulu 5B 216, 136.) Ville Tölli Kyösti Kallion koulu 5C 193, 137.) Sami Hannula Kyösti Kallion koulu 5C 186, 138.) 0, 139.) 0, 140.) 0, 141.) 0, 142.) 0, 143.) 0, 144.) 0, 145.) 0, 146.) 0, 147.) 0, 148.) 0, 149.) 0, 150.) 0, 151.) 0, 152.) 0, 153.) 0, 154.) 0, 155.) 0, 156.) 0, 157.) 0, 158.) 0, 159.) 0, 160.) 0, 161.) 0, 162.) 0, 163.) 0, 164.) 0, 165.) 0, 166.) 0, 167.) 0, 168.) 0, 169.) 0, 170.) 0, 171.) 0, 172.) 0, 173.) 0, 174.) 0, 175.) 0, 176.) 0, 177.) 0, 178.) 0, 179.) 0, 180.) 0
A5: 4. | B5: =IF(Koulut!B326<>0,Koulut!B326,"") -> Janne Juhola | C5: =IF(Koulut!B325<>0,Koulut!B$321,"") -> Vuorenkallion koulu | D5: =Koulut!C326 -> 409 | E5: 4.) Janne Juhola Vuorenkallion koulu 409, 5.) Jeremias Heikkilä Pohjankylän koulu 6C 407, 6.) Lauri Isopahkala Etelänkylän koulu 402, 7.) Aleksi Heikkilä Etelänkylän koulu 401, 8.) Antton Rantanilkku Raasakan koulu 6C 400, 9.) Silver Karjus Kälviän Kirkonkylän koulu 397, 10.) Arttu Mattila Raumankarin koulu 397, 11.) Teemu Hollanti Takalon koulu 396, 12.) Jere Lahtinen Takalon koulu 396, 13.) Joel Koskela Korhosen koulu 395, 14.) Ossi Peltokorpi Korhosen koulu 395, 15.) Joonas Lukkarila Lohtajan Kirkonkylän koulu 393, 16.) Riku Tohila Pohjankylän koulu 5C 390, 17.) Luka Liimatta Pohjankylän koulu 6B 386, 18.) Jere Päivärinta Korhosen koulu 385, 19.) Miika Rimpioja Korhosen koulu 385, 20.) Eemeli Impola Korhosen koulu 383, 21.) Lauri Knuuttila Marttilan koulu 376, 22.) Roope Rahkola Pohjankylän koulu 6A 373, 23.) Leevi Palola Pohjankylän koulu 6A 371, 24.) Miika Mutka Takalon koulu 371, 25.) Arttu Forss Pohjankylän koulu 6A 370, 26.) Atte Kangas Kälviän Kirkonkylän koulu 368, 27.) Samuli Ranta-Nilkku Kyösti Kallion koulu 5A 367, 28.) Jaakko Mattila Raumankarin koulu 367, 29.) Santtu Mörsky Lohtajan Kirkonkylän koulu 365, 30.) Viljami Tanhula Pohjankylän koulu 6C 361, 31.) Johannes Oja Kyösti Kallion koulu 5B 360, 32.) Tuukka Marjala Raumankarin koulu 360, 33.) Luka Karhu Roikolan koulu 359, 34.) Santeri Hirsikangas Raasakan koulu 6C 356, 35.) Aleksi Kaarlela Kyösti Kallion koulu 5B 356, 36.) Frank Sorjonen Pohjankylän koulu 6A 355, 37.) Rasmus Mäkelä Roikolan koulu 355, 38.) Aatu Teppo Kyösti Kallion koulu 5B 354, 39.) Santeri Rahja Tyngän aluekoulu 353, 40.) Heikki Tuorila Raumankarin koulu 351, 41.) Riku Kalliokoski Pohjankylän koulu 6B 350, 42.) Samuel Niemikorpi Korhosen koulu 349, 43.) Evert Neuvonen Takalon koulu 349, 44.) Andreas Thylin Kirkonmäen koulu 346, 45.) Valtteri Himanka Pohjankylän koulu 5A 345, 46.) Miika Suviola Pohjankylän koulu 6B 345, 47.) Joona Keskinen Kälviän Kirkonkylän koulu 344, 48.) Alexi Similä Pohjankylän koulu 6C 344, 49.) Kasper Weizman Kirkonmäen koulu 344, 50.) Viljami Vihelä Vuorenkallion koulu 340, 51.) Jimi Uusitalo Marttilan koulu 339, 52.) Jose Seppälä Hollihaan koulu 339, 53.) Joni Pentinmikko Raasakan koulu 6C 338, 54.) Arttu Kivioja Takalon koulu 338, 55.) Jere Eskola Takalon koulu 338, 56.) Jaakko Airas Vuorenkallion koulu 337, 57.) Hannes Häkkilä Pohjankylän koulu 6C 336, 58.) Aatu Silakka Raasakan koulu 6C 335, 59.) Tamas Hietala Pohjankylän koulu 6A 334, 60.) Mikael Ylitalo Pohjankylän koulu 5B 331, 61.) Oskari Rahkola Pohjankylän koulu 6B 331, 62.) Bimo Juntunen Pohjankylän koulu 5C 330, 63.) Panu Rimpioja Marttilan koulu 329, 64.) Riku Isopahkala Etelänkylän koulu 328, 65.) Konsta Piippo Hollihaan koulu 5R 327, 66.) Jere Ojala Pohjankylän koulu 5A 326, 67.) Hugo Stenbäck Tyngän aluekoulu 326, 68.) Henry Nauha Pohjankylän koulu 5C 325, 69.) Janne Forström Hollihaan koulu 5R 322, 70.) Heikki Tienvieri Kyösti Kallion koulu 5B 322, 71.) Juulio Pitkämö Tyngän aluekoulu 319, 72.) Aatu Hihnala Vuorenkallion koulu 318, 73.) Timi Tanskanen Kälviän Kirkonkylän koulu 317, 74.) Andrei Koskela Hollihaan koulu 317, 75.) Juho Pyhälä Tyngän aluekoulu 316, 76.) Miro Vehmanen Hollihaan koulu 316, 77.) Nico Mäenpää Raasakan koulu 6C 315, 78.) Lari Ojala Pohjankylän koulu 6C 315, 79.) Joonas Siipola Raumankarin koulu 315, 80.) Oskari Vihelä Etelänkylän koulu 313, 81.) Jere Laurila Pohjankylän koulu 5A 313, 82.) Otto Aho Hollihaan koulu 313, 83.) Ville Niku Kyösti Kallion koulu 5C 312, 84.) Alex Suopunki Lohtajan Kirkonkylän koulu 311, 85.) Eemil Karikumpu Kyösti Kallion koulu 5A 310, 86.) Santeri Mäkinen Raumankarin koulu 310, 87.) Artturi Nikunen Raasakan koulu 6C 308, 88.) Matias Eskola Kyösti Kallion koulu 5A 306, 89.) Herman Salmela Kyösti Kallion koulu 5A 304, 90.) Robin Kämäräinen Marttilan koulu 304, 91.) Lassi Simpanen Etelänkylän koulu 303, 92.) Iiro Kallio Kyösti Kallion koulu 5A 303, 93.) Miika Ohtamaa Kyösti Kallion koulu 5B 303, 94.) Kasperi Hannula Pohjankylän koulu 5A 302, 95.) Jarno Puikko Kälviän Kirkonkylän koulu 301, 96.) Emil Klaavu Kirkonmäen koulu 299, 97.) Julius Poutanen Marttilan koulu 298, 98.) Atte Manninen Hollihaan koulu 5R 298, 99.) Jesse Tikka Kyösti Kallion koulu 5C 298, 100.) Jere Peräaho Kyösti Kallion koulu 5B 297, 101.) Aatos Perttula Pohjankylän koulu 6C 296, 102.) Konsta Hannula Pohjankylän koulu 5C 296, 103.) Kaspian Kuki Kyösti Kallion koulu 5C 296, 104.) Oliver Viio Kyösti Kallion koulu 5C 294, 105.) Joel Kivioja Roikolan koulu 293, 106.) Valtteri Sorvala Pohjankylän koulu 5C 292, 107.) Eemeli Himanka Lohtajan Kirkonkylän koulu 290, 108.) Oskari Vänttilä Vuorenkallion koulu 290, 109.) Max Witick Roikolan koulu 288, 110.) Tuomas Lokkila Tyngän aluekoulu 288, 111.) Niko Jokinen Hollihaan koulu 287, 112.) Topias Törnval Vuorenkallion koulu 287, 113.) Jyry-Matti Niemi Pohjankylän koulu 5A 286, 114.) Jami Kinaret Hollihaan koulu 5R 285, 115.) Rasmus Andersson Kirkonmäen koulu 285, 116.) Juuso Lassila Etelänkylän koulu 282, 117.) Eeli Hiltula Marttilan koulu 281, 118.) Joel Häggblom Kirkonmäen koulu 280, 119.) Vili-Ilmari Hyyppä Hollihaan koulu 5R 279, 120.) Topi Päiveröinen Kyösti Kallion koulu 5A 278, 121.) Paavo Tilvis Pohjankylän koulu 6A 275, 122.) Aleksi Nikupaavo Pohjankylän koulu 6B 274, 123.) Oskari Nissilä Kälviän Kirkonkylän koulu 270, 124.) Jani Soukka Tyngän aluekoulu 267, 125.) Henri Vedenoja Pohjankylän koulu 5B 262, 126.) Eetu Ahonen Pohjankylän koulu 5B 261, 127.) Niina Kylmälä Pohjankylän koulu 5B 261, 128.) Martti Prittinen Pohjankylän koulu 5A 259, 129.) Tuure Anttila Pohjankylän koulu 5B 256, 130.) Joona Kallio Hollihaan koulu 237, 131.) Juuso Niemelä Hollihaan koulu 5R 235, 132.) Joona Nauha Pohjankylän koulu 6B 235, 133.) Jerry Kivioja Roikolan koulu 221, 134.) Leevi Hongisto Pohjankylän koulu 5C 220, 135.) Aaro Jukkila Pohjankylän koulu 5B 216, 136.) Ville Tölli Kyösti Kallion koulu 5C 193, 137.) Sami Hannula Kyösti Kallion koulu 5C 186, 138.) 0, 139.) 0, 140.) 0, 141.) 0, 142.) 0, 143.) 0, 144.) 0, 145.) 0, 146.) 0, 147.) 0, 148.) 0, 149.) 0, 150.) 0, 151.) 0, 152.) 0, 153.) 0, 154.) 0, 155.) 0, 156.) 0, 157.) 0, 158.) 0, 159.) 0, 160.) 0, 161.) 0, 162.) 0, 163.) 0, 164.) 0, 165.) 0, 166.) 0, 167.) 0, 168.) 0, 169.) 0, 170.) 0, 171.) 0, 172.) 0, 173.) 0, 174.) 0, 175.) 0, 176.) 0, 177.) 0, 178.) 0, 179.) 0, 180.) 0
A6: 5. | B6: =IF(Koulut!B103<>0,Koulut!B103,"") -> Jeremias Heikkilä | C6: =IF(Koulut!B103<>0,Koulut!B$97,"") -> Pohjankylän koulu 6C | D6: =Koulut!C103 -> 407 | E6: 5.) Jeremias Heikkilä Pohjankylän koulu 6C 407, 6.) Lauri Isopahkala Etelänkylän koulu 402, 7.) Aleksi Heikkilä Etelänkylän koulu 401, 8.) Antton Rantanilkku Raasakan koulu 6C 400, 9.) Silver Karjus Kälviän Kirkonkylän koulu 397, 10.) Arttu Mattila Raumankarin koulu 397, 11.) Teemu Hollanti Takalon koulu 396, 12.) Jere Lahtinen Takalon koulu 396, 13.) Joel Koskela Korhosen koulu 395, 14.) Ossi Peltokorpi Korhosen koulu 395, 15.) Joonas Lukkarila Lohtajan Kirkonkylän koulu 393, 16.) Riku Tohila Pohjankylän koulu 5C 390, 17.) Luka Liimatta Pohjankylän koulu 6B 386, 18.) Jere Päivärinta Korhosen koulu 385, 19.) Miika Rimpioja Korhosen koulu 385, 20.) Eemeli Impola Korhosen koulu 383, 21.) Lauri Knuuttila Marttilan koulu 376, 22.) Roope Rahkola Pohjankylän koulu 6A 373, 23.) Leevi Palola Pohjankylän koulu 6A 371, 24.) Miika Mutka Takalon koulu 371, 25.) Arttu Forss Pohjankylän koulu 6A 370, 26.) Atte Kangas Kälviän Kirkonkylän koulu 368, 27.) Samuli Ranta-Nilkku Kyösti Kallion koulu 5A 367, 28.) Jaakko Mattila Raumankarin koulu 367, 29.) Santtu Mörsky Lohtajan Kirkonkylän koulu 365, 30.) Viljami Tanhula Pohjankylän koulu 6C 361, 31.) Johannes Oja Kyösti Kallion koulu 5B 360, 32.) Tuukka Marjala Raumankarin koulu 360, 33.) Luka Karhu Roikolan koulu 359, 34.) Santeri Hirsikangas Raasakan koulu 6C 356, 35.) Aleksi Kaarlela Kyösti Kallion koulu 5B 356, 36.) Frank Sorjonen Pohjankylän koulu 6A 355, 37.) Rasmus Mäkelä Roikolan koulu 355, 38.) Aatu Teppo Kyösti Kallion koulu 5B 354, 39.) Santeri Rahja Tyngän aluekoulu 353, 40.) Heikki Tuorila Raumankarin koulu 351, 41.) Riku Kalliokoski Pohjankylän koulu 6B 350, 42.) Samuel Niemikorpi Korhosen koulu 349, 43.) Evert Neuvonen Takalon koulu 349, 44.) Andreas Thylin Kirkonmäen koulu 346, 45.) Valtteri Himanka Pohjankylän koulu 5A 345, 46.) Miika Suviola Pohjankylän koulu 6B 345, 47.) Joona Keskinen Kälviän Kirkonkylän koulu 344, 48.) Alexi Similä Pohjankylän koulu 6C 344, 49.) Kasper Weizman Kirkonmäen koulu 344, 50.) Viljami Vihelä Vuorenkallion koulu 340, 51.) Jimi Uusitalo Marttilan koulu 339, 52.) Jose Seppälä Hollihaan koulu 339, 53.) Joni Pentinmikko Raasakan koulu 6C 338, 54.) Arttu Kivioja Takalon koulu 338, 55.) Jere Eskola Takalon koulu 338, 56.) Jaakko Airas Vuorenkallion koulu 337, 57.) Hannes Häkkilä Pohjankylän koulu 6C 336, 58.) Aatu Silakka Raasakan koulu 6C 335, 59.) Tamas Hietala Pohjankylän koulu 6A 334, 60.) Mikael Ylitalo Pohjankylän koulu 5B 331, 61.) Oskari Rahkola Pohjankylän koulu 6B 331, 62.) Bimo Juntunen Pohjankylän koulu 5C 330, 63.) Panu Rimpioja Marttilan koulu 329, 64.) Riku Isopahkala Etelänkylän koulu 328, 65.) Konsta Piippo Hollihaan koulu 5R 327, 66.) Jere Ojala Pohjankylän koulu 5A 326, 67.) Hugo Stenbäck Tyngän aluekoulu 326, 68.) Henry Nauha Pohjankylän koulu 5C 325, 69.) Janne Forström Hollihaan koulu 5R 322, 70.) Heikki Tienvieri Kyösti Kallion koulu 5B 322, 71.) Juulio Pitkämö Tyngän aluekoulu 319, 72.) Aatu Hihnala Vuorenkallion koulu 318, 73.) Timi Tanskanen Kälviän Kirkonkylän koulu 317, 74.) Andrei Koskela Hollihaan koulu 317, 75.) Juho Pyhälä Tyngän aluekoulu 316, 76.) Miro Vehmanen Hollihaan koulu 316, 77.) Nico Mäenpää Raasakan koulu 6C 315, 78.) Lari Ojala Pohjankylän koulu 6C 315, 79.) Joonas Siipola Raumankarin koulu 315, 80.) Oskari Vihelä Etelänkylän koulu 313, 81.) Jere Laurila Pohjankylän koulu 5A 313, 82.) Otto Aho Hollihaan koulu 313, 83.) Ville Niku Kyösti Kallion koulu 5C 312, 84.) Alex Suopunki Lohtajan Kirkonkylän koulu 311, 85.) Eemil Karikumpu Kyösti Kallion koulu 5A 310, 86.) Santeri Mäkinen Raumankarin koulu 310, 87.) Artturi Nikunen Raasakan koulu 6C 308, 88.) Matias Eskola Kyösti Kallion koulu 5A 306, 89.) Herman Salmela Kyösti Kallion koulu 5A 304, 90.) Robin Kämäräinen Marttilan koulu 304, 91.) Lassi Simpanen Etelänkylän koulu 303, 92.) Iiro Kallio Kyösti Kallion koulu 5A 303, 93.) Miika Ohtamaa Kyösti Kallion koulu 5B 303, 94.) Kasperi Hannula Pohjankylän koulu 5A 302, 95.) Jarno Puikko Kälviän Kirkonkylän koulu 301, 96.) Emil Klaavu Kirkonmäen koulu 299, 97.) Julius Poutanen Marttilan koulu 298, 98.) Atte Manninen Hollihaan koulu 5R 298, 99.) Jesse Tikka Kyösti Kallion koulu 5C 298, 100.) Jere Peräaho Kyösti Kallion koulu 5B 297, 101.) Aatos Perttula Pohjankylän koulu 6C 296, 102.) Konsta Hannula Pohjankylän koulu 5C 296, 103.) Kaspian Kuki Kyösti Kallion koulu 5C 296, 104.) Oliver Viio Kyösti Kallion koulu 5C 294, 105.) Joel Kivioja Roikolan koulu 293, 106.) Valtteri Sorvala Pohjankylän koulu 5C 292, 107.) Eemeli Himanka Lohtajan Kirkonkylän koulu 290, 108.) Oskari Vänttilä Vuorenkallion koulu 290, 109.) Max Witick Roikolan koulu 288, 110.) Tuomas Lokkila Tyngän aluekoulu 288, 111.) Niko Jokinen Hollihaan koulu 287, 112.) Topias Törnval Vuorenkallion koulu 287, 113.) Jyry-Matti Niemi Pohjankylän koulu 5A 286, 114.) Jami Kinaret Hollihaan koulu 5R 285, 115.) Rasmus Andersson Kirkonmäen koulu 285, 116.) Juuso Lassila Etelänkylän koulu 282, 117.) Eeli Hiltula Marttilan koulu 281, 118.) Joel Häggblom Kirkonmäen koulu 280, 119.) Vili-Ilmari Hyyppä Hollihaan koulu 5R 279, 120.) Topi Päiveröinen Kyösti Kallion koulu 5A 278, 121.) Paavo Tilvis Pohjankylän koulu 6A 275, 122.) Aleksi Nikupaavo Pohjankylän koulu 6B 274, 123.) Oskari Nissilä Kälviän Kirkonkylän koulu 270, 124.) Jani Soukka Tyngän aluekoulu 267, 125.) Henri Vedenoja Pohjankylän koulu 5B 262, 126.) Eetu Ahonen Pohjankylän koulu 5B 261, 127.) Niina Kylmälä Pohjankylän koulu 5B 261, 128.) Martti Prittinen Pohjankylän koulu 5A 259, 129.) Tuure Anttila Pohjankylän koulu 5B 256, 130.) Joona Kallio Hollihaan koulu 237, 131.) Juuso Niemelä Hollihaan koulu 5R 235, 132.) Joona Nauha Pohjankylän koulu 6B 235, 133.) Jerry Kivioja Roikolan koulu 221, 134.) Leevi Hongisto Pohjankylän koulu 5C 220, 135.) Aaro Jukkila Pohjankylän koulu 5B 216, 136.) Ville Tölli Kyösti Kallion koulu 5C 193, 137.) Sami Hannula Kyösti Kallion koulu 5C 186, 138.) 0, 139.) 0, 140.) 0, 141.) 0, 142.) 0, 143.) 0, 144.) 0, 145.) 0, 146.) 0, 147.) 0, 148.) 0, 149.) 0, 150.) 0, 151.) 0, 152.) 0, 153.) 0, 154.) 0, 155.) 0, 156.) 0, 157.) 0, 158.) 0, 159.) 0, 160.) 0, 161.) 0, 162.) 0, 163.) 0, 164.) 0, 165.) 0, 166.) 0, 167.) 0, 168.) 0, 169.) 0, 170.) 0, 171.) 0, 172.) 0, 173.) 0, 174.) 0, 175.) 0, 176.) 0, 177.) 0, 178.) 0, 179.) 0, 180.) 0
A7: 6. | B7: =IF(Koulut!B14<>0,Koulut!B14,"") -> Lauri Isopahkala | C7: =IF(Koulut!B14<>0,Koulut!B$13,"") -> Etelänkylän koulu | D7: =Koulut!C14 -> 402 | E7: 6.) Lauri Isopahkala Etelänkylän koulu 402, 7.) Aleksi Heikkilä Etelänkylän koulu 401, 8.) Antton Rantanilkku Raasakan koulu 6C 400, 9.) Silver Karjus Kälviän Kirkonkylän koulu 397, 10.) Arttu Mattila Raumankarin koulu 397, 11.) Teemu Hollanti Takalon koulu 396, 12.) Jere Lahtinen Takalon koulu 396, 13.) Joel Koskela Korhosen koulu 395, 14.) Ossi Peltokorpi Korhosen koulu 395, 15.) Joonas Lukkarila Lohtajan Kirkonkylän koulu 393, 16.) Riku Tohila Pohjankylän koulu 5C 390, 17.) Luka Liimatta Pohjankylän koulu 6B 386, 18.) Jere Päivärinta Korhosen koulu 385, 19.) Miika Rimpioja Korhosen koulu 385, 20.) Eemeli Impola Korhosen koulu 383, 21.) Lauri Knuuttila Marttilan koulu 376, 22.) Roope Rahkola Pohjankylän koulu 6A 373, 23.) Leevi Palola Pohjankylän koulu 6A 371, 24.) Miika Mutka Takalon koulu 371, 25.) Arttu Forss Pohjankylän koulu 6A 370, 26.) Atte Kangas Kälviän Kirkonkylän koulu 368, 27.) Samuli Ranta-Nilkku Kyösti Kallion koulu 5A 367, 28.) Jaakko Mattila Raumankarin koulu 367, 29.) Santtu Mörsky Lohtajan Kirkonkylän koulu 365, 30.) Viljami Tanhula Pohjankylän koulu 6C 361, 31.) Johannes Oja Kyösti Kallion koulu 5B 360, 32.) Tuukka Marjala Raumankarin koulu 360, 33.) Luka Karhu Roikolan koulu 359, 34.) Santeri Hirsikangas Raasakan koulu 6C 356, 35.) Aleksi Kaarlela Kyösti Kallion koulu 5B 356, 36.) Frank Sorjonen Pohjankylän koulu 6A 355, 37.) Rasmus Mäkelä Roikolan koulu 355, 38.) Aatu Teppo Kyösti Kallion koulu 5B 354, 39.) Santeri Rahja Tyngän aluekoulu 353, 40.) Heikki Tuorila Raumankarin koulu 351, 41.) Riku Kalliokoski Pohjankylän koulu 6B 350, 42.) Samuel Niemikorpi Korhosen koulu 349, 43.) Evert Neuvonen Takalon koulu 349, 44.) Andreas Thylin Kirkonmäen koulu 346, 45.) Valtteri Himanka Pohjankylän koulu 5A 345, 46.) Miika Suviola Pohjankylän koulu 6B 345, 47.) Joona Keskinen Kälviän Kirkonkylän koulu 344, 48.) Alexi Similä Pohjankylän koulu 6C 344, 49.) Kasper Weizman Kirkonmäen koulu 344, 50.) Viljami Vihelä Vuorenkallion koulu 340, 51.) Jimi Uusitalo Marttilan koulu 339, 52.) Jose Seppälä Hollihaan koulu 339, 53.) Joni Pentinmikko Raasakan koulu 6C 338, 54.) Arttu Kivioja Takalon koulu 338, 55.) Jere Eskola Takalon koulu 338, 56.) Jaakko Airas Vuorenkallion koulu 337, 57.) Hannes Häkkilä Pohjankylän koulu 6C 336, 58.) Aatu Silakka Raasakan koulu 6C 335, 59.) Tamas Hietala Pohjankylän koulu 6A 334, 60.) Mikael Ylitalo Pohjankylän koulu 5B 331, 61.) Oskari Rahkola Pohjankylän koulu 6B 331, 62.) Bimo Juntunen Pohjankylän koulu 5C 330, 63.) Panu Rimpioja Marttilan koulu 329, 64.) Riku Isopahkala Etelänkylän koulu 328, 65.) Konsta Piippo Hollihaan koulu 5R 327, 66.) Jere Ojala Pohjankylän koulu 5A 326, 67.) Hugo Stenbäck Tyngän aluekoulu 326, 68.) Henry Nauha Pohjankylän koulu 5C 325, 69.) Janne Forström Hollihaan koulu 5R 322, 70.) Heikki Tienvieri Kyösti Kallion koulu 5B 322, 71.) Juulio Pitkämö Tyngän aluekoulu 319, 72.) Aatu Hihnala Vuorenkallion koulu 318, 73.) Timi Tanskanen Kälviän Kirkonkylän koulu 317, 74.) Andrei Koskela Hollihaan koulu 317, 75.) Juho Pyhälä Tyngän aluekoulu 316, 76.) Miro Vehmanen Hollihaan koulu 316, 77.) Nico Mäenpää Raasakan koulu 6C 315, 78.) Lari Ojala Pohjankylän koulu 6C 315, 79.) Joonas Siipola Raumankarin koulu 315, 80.) Oskari Vihelä Etelänkylän koulu 313, 81.) Jere Laurila Pohjankylän koulu 5A 313, 82.) Otto Aho Hollihaan koulu 313, 83.) Ville Niku Kyösti Kallion koulu 5C 312, 84.) Alex Suopunki Lohtajan Kirkonkylän koulu 311, 85.) Eemil Karikumpu Kyösti Kallion koulu 5A 310, 86.) Santeri Mäkinen Raumankarin koulu 310, 87.) Artturi Nikunen Raasakan koulu 6C 308, 88.) Matias Eskola Kyösti Kallion koulu 5A 306, 89.) Herman Salmela Kyösti Kallion koulu 5A 304, 90.) Robin Kämäräinen Marttilan koulu 304, 91.) Lassi Simpanen Etelänkylän koulu 303, 92.) Iiro Kallio Kyösti Kallion koulu 5A 303, 93.) Miika Ohtamaa Kyösti Kallion koulu 5B 303, 94.) Kasperi Hannula Pohjankylän koulu 5A 302, 95.) Jarno Puikko Kälviän Kirkonkylän koulu 301, 96.) Emil Klaavu Kirkonmäen koulu 299, 97.) Julius Poutanen Marttilan koulu 298, 98.) Atte Manninen Hollihaan koulu 5R 298, 99.) Jesse Tikka Kyösti Kallion koulu 5C 298, 100.) Jere Peräaho Kyösti Kallion koulu 5B 297, 101.) Aatos Perttula Pohjankylän koulu 6C 296, 102.) Konsta Hannula Pohjankylän koulu 5C 296, 103.) Kaspian Kuki Kyösti Kallion koulu 5C 296, 104.) Oliver Viio Kyösti Kallion koulu 5C 294, 105.) Joel Kivioja Roikolan koulu 293, 106.) Valtteri Sorvala Pohjankylän koulu 5C 292, 107.) Eemeli Himanka Lohtajan Kirkonkylän koulu 290, 108.) Oskari Vänttilä Vuorenkallion koulu 290, 109.) Max Witick Roikolan koulu 288, 110.) Tuomas Lokkila Tyngän aluekoulu 288, 111.) Niko Jokinen Hollihaan koulu 287, 112.) Topias Törnval Vuorenkallion koulu 287, 113.) Jyry-Matti Niemi Pohjankylän koulu 5A 286, 114.) Jami Kinaret Hollihaan koulu 5R 285, 115.) Rasmus Andersson Kirkonmäen koulu 285, 116.) Juuso Lassila Etelänkylän koulu 282, 117.) Eeli Hiltula Marttilan koulu 281, 118.) Joel Häggblom Kirkonmäen koulu 280, 119.) Vili-Ilmari Hyyppä Hollihaan koulu 5R 279, 120.) Topi Päiveröinen Kyösti Kallion koulu 5A 278, 121.) Paavo Tilvis Pohjankylän koulu 6A 275, 122.) Aleksi Nikupaavo Pohjankylän koulu 6B 274, 123.) Oskari Nissilä Kälviän Kirkonkylän koulu 270, 124.) Jani Soukka Tyngän aluekoulu 267, 125.) Henri Vedenoja Pohjankylän koulu 5B 262, 126.) Eetu Ahonen Pohjankylän koulu 5B 261, 127.) Niina Kylmälä Pohjankylän koulu 5B 261, 128.) Martti Prittinen Pohjankylän koulu 5A 259, 129.) Tuure Anttila Pohjankylän koulu 5B 256, 130.) Joona Kallio Hollihaan koulu 237, 131.) Juuso Niemelä Hollihaan koulu 5R 235, 132.) Joona Nauha Pohjankylän koulu 6B 235, 133.) Jerry Kivioja Roikolan koulu 221, 134.) Leevi Hongisto Pohjankylän koulu 5C 220, 135.) Aaro Jukkila Pohjankylän koulu 5B 216, 136.) Ville Tölli Kyösti Kallion koulu 5C 193, 137.) Sami Hannula Kyösti Kallion koulu 5C 186, 138.) 0, 139.) 0, 140.) 0, 141.) 0, 142.) 0, 143.) 0, 144.) 0, 145.) 0, 146.) 0, 147.) 0, 148.) 0, 149.) 0, 150.) 0, 151.) 0, 152.) 0, 153.) 0, 154.) 0, 155.) 0, 156.) 0, 157.) 0, 158.) 0, 159.) 0, 160.) 0, 161.) 0, 162.) 0, 163.) 0, 164.) 0, 165.) 0, 166.) 0, 167.) 0, 168.) 0, 169.) 0, 170.) 0, 171.) 0, 172.) 0, 173.) 0, 174.) 0, 175.) 0, 176.) 0, 177.) 0, 178.) 0, 179.) 0, 180.) 0
A8: 7. | B8: =IF(Koulut!B19<>0,Koulut!B19,"") -> Aleksi Heikkilä | C8: =IF(Koulut!B19<>0,Koulut!B$13,"") -> Etelänkylän koulu | D8: =Koulut!C19 -> 401 | E8: 7.) Aleksi Heikkilä Etelänkylän koulu 401, 8.) Antton Rantanilkku Raasakan koulu 6C 400, 9.) Silver Karjus Kälviän Kirkonkylän koulu 397, 10.) Arttu Mattila Raumankarin koulu 397, 11.) Teemu Hollanti Takalon koulu 396, 12.) Jere Lahtinen Takalon koulu 396, 13.) Joel Koskela Korhosen koulu 395, 14.) Ossi Peltokorpi Korhosen koulu 395, 15.) Joonas Lukkarila Lohtajan Kirkonkylän koulu 393, 16.) Riku Tohila Pohjankylän koulu 5C 390, 17.) Luka Liimatta Pohjankylän koulu 6B 386, 18.) Jere Päivärinta Korhosen koulu 385, 19.) Miika Rimpioja Korhosen koulu 385, 20.) Eemeli Impola Korhosen koulu 383, 21.) Lauri Knuuttila Marttilan koulu 376, 22.) Roope Rahkola Pohjankylän koulu 6A 373, 23.) Leevi Palola Pohjankylän koulu 6A 371, 24.) Miika Mutka Takalon koulu 371, 25.) Arttu Forss Pohjankylän koulu 6A 370, 26.) Atte Kangas Kälviän Kirkonkylän koulu 368, 27.) Samuli Ranta-Nilkku Kyösti Kallion koulu 5A 367, 28.) Jaakko Mattila Raumankarin koulu 367, 29.) Santtu Mörsky Lohtajan Kirkonkylän koulu 365, 30.) Viljami Tanhula Pohjankylän koulu 6C 361, 31.) Johannes Oja Kyösti Kallion koulu 5B 360, 32.) Tuukka Marjala Raumankarin koulu 360, 33.) Luka Karhu Roikolan koulu 359, 34.) Santeri Hirsikangas Raasakan koulu 6C 356, 35.) Aleksi Kaarlela Kyösti Kallion koulu 5B 356, 36.) Frank Sorjonen Pohjankylän koulu 6A 355, 37.) Rasmus Mäkelä Roikolan koulu 355, 38.) Aatu Teppo Kyösti Kallion koulu 5B 354, 39.) Santeri Rahja Tyngän aluekoulu 353, 40.) Heikki Tuorila Raumankarin koulu 351, 41.) Riku Kalliokoski Pohjankylän koulu 6B 350, 42.) Samuel Niemikorpi Korhosen koulu 349, 43.) Evert Neuvonen Takalon koulu 349, 44.) Andreas Thylin Kirkonmäen koulu 346, 45.) Valtteri Himanka Pohjankylän koulu 5A 345, 46.) Miika Suviola Pohjankylän koulu 6B 345, 47.) Joona Keskinen Kälviän Kirkonkylän koulu 344, 48.) Alexi Similä Pohjankylän koulu 6C 344, 49.) Kasper Weizman Kirkonmäen koulu 344, 50.) Viljami Vihelä Vuorenkallion koulu 340, 51.) Jimi Uusitalo Marttilan koulu 339, 52.) Jose Seppälä Hollihaan koulu 339, 53.) Joni Pentinmikko Raasakan koulu 6C 338, 54.) Arttu Kivioja Takalon koulu 338, 55.) Jere Eskola Takalon koulu 338, 56.) Jaakko Airas Vuorenkallion koulu 337, 57.) Hannes Häkkilä Pohjankylän koulu 6C 336, 58.) Aatu Silakka Raasakan koulu 6C 335, 59.) Tamas Hietala Pohjankylän koulu 6A 334, 60.) Mikael Ylitalo Pohjankylän koulu 5B 331, 61.) Oskari Rahkola Pohjankylän koulu 6B 331, 62.) Bimo Juntunen Pohjankylän koulu 5C 330, 63.) Panu Rimpioja Marttilan koulu 329, 64.) Riku Isopahkala Etelänkylän koulu 328, 65.) Konsta Piippo Hollihaan koulu 5R 327, 66.) Jere Ojala Pohjankylän koulu 5A 326, 67.) Hugo Stenbäck Tyngän aluekoulu 326, 68.) Henry Nauha Pohjankylän koulu 5C 325, 69.) Janne Forström Hollihaan koulu 5R 322, 70.) Heikki Tienvieri Kyösti Kallion koulu 5B 322, 71.) Juulio Pitkämö Tyngän aluekoulu 319, 72.) Aatu Hihnala Vuorenkallion koulu 318, 73.) Timi Tanskanen Kälviän Kirkonkylän koulu 317, 74.) Andrei Koskela Hollihaan koulu 317, 75.) Juho Pyhälä Tyngän aluekoulu 316, 76.) Miro Vehmanen Hollihaan koulu 316, 77.) Nico Mäenpää Raasakan koulu 6C 315, 78.) Lari Ojala Pohjankylän koulu 6C 315, 79.) Joonas Siipola Raumankarin koulu 315, 80.) Oskari Vihelä Etelänkylän koulu 313, 81.) Jere Laurila Pohjankylän koulu 5A 313, 82.) Otto Aho Hollihaan koulu 313, 83.) Ville Niku Kyösti Kallion koulu 5C 312, 84.) Alex Suopunki Lohtajan Kirkonkylän koulu 311, 85.) Eemil Karikumpu Kyösti Kallion koulu 5A 310, 86.) Santeri Mäkinen Raumankarin koulu 310, 87.) Artturi Nikunen Raasakan koulu 6C 308, 88.) Matias Eskola Kyösti Kallion koulu 5A 306, 89.) Herman Salmela Kyösti Kallion koulu 5A 304, 90.) Robin Kämäräinen Marttilan koulu 304, 91.) Lassi Simpanen Etelänkylän koulu 303, 92.) Iiro Kallio Kyösti Kallion koulu 5A 303, 93.) Miika Ohtamaa Kyösti Kallion koulu 5B 303, 94.) Kasperi Hannula Pohjankylän koulu 5A 302, 95.) Jarno Puikko Kälviän Kirkonkylän koulu 301, 96.) Emil Klaavu Kirkonmäen koulu 299, 97.) Julius Poutanen Marttilan koulu 298, 98.) Atte Manninen Hollihaan koulu 5R 298, 99.) Jesse Tikka Kyösti Kallion koulu 5C 298, 100.) Jere Peräaho Kyösti Kallion koulu 5B 297, 101.) Aatos Perttula Pohjankylän koulu 6C 296, 102.) Konsta Hannula Pohjankylän koulu 5C 296, 103.) Kaspian Kuki Kyösti Kallion koulu 5C 296, 104.) Oliver Viio Kyösti Kallion koulu 5C 294, 105.) Joel Kivioja Roikolan koulu 293, 106.) Valtteri Sorvala Pohjankylän koulu 5C 292, 107.) Eemeli Himanka Lohtajan Kirkonkylän koulu 290, 108.) Oskari Vänttilä Vuorenkallion koulu 290, 109.) Max Witick Roikolan koulu 288, 110.) Tuomas Lokkila Tyngän aluekoulu 288, 111.) Niko Jokinen Hollihaan koulu 287, 112.) Topias Törnval Vuorenkallion koulu 287, 113.) Jyry-Matti Niemi Pohjankylän koulu 5A 286, 114.) Jami Kinaret Hollihaan koulu 5R 285, 115.) Rasmus Andersson Kirkonmäen koulu 285, 116.) Juuso Lassila Etelänkylän koulu 282, 117.) Eeli Hiltula Marttilan koulu 281, 118.) Joel Häggblom Kirkonmäen koulu 280, 119.) Vili-Ilmari Hyyppä Hollihaan koulu 5R 279, 120.) Topi Päiveröinen Kyösti Kallion koulu 5A 278, 121.) Paavo Tilvis Pohjankylän koulu 6A 275, 122.) Aleksi Nikupaavo Pohjankylän koulu 6B 274, 123.) Oskari Nissilä Kälviän Kirkonkylän koulu 270, 124.) Jani Soukka Tyngän aluekoulu 267, 125.) Henri Vedenoja Pohjankylän koulu 5B 262, 126.) Eetu Ahonen Pohjankylän koulu 5B 261, 127.) Niina Kylmälä Pohjankylän koulu 5B 261, 128.) Martti Prittinen Pohjankylän koulu 5A 259, 129.) Tuure Anttila Pohjankylän koulu 5B 256, 130.) Joona Kallio Hollihaan koulu 237, 131.) Juuso Niemelä Hollihaan koulu 5R 235, 132.) Joona Nauha Pohjankylän koulu 6B 235, 133.) Jerry Kivioja Roikolan koulu 221, 134.) Leevi Hongisto Pohjankylän koulu 5C 220, 135.) Aaro Jukkila Pohjankylän koulu 5B 216, 136.) Ville Tölli Kyösti Kallion koulu 5C 193, 137.) Sami Hannula Kyösti Kallion koulu 5C 186, 138.) 0, 139.) 0, 140.) 0, 141.) 0, 142.) 0, 143.) 0, 144.) 0, 145.) 0, 146.) 0, 147.) 0, 148.) 0, 149.) 0, 150.) 0, 151.) 0, 152.) 0, 153.) 0, 154.) 0, 155.) 0, 156.) 0, 157.) 0, 158.) 0, 159.) 0, 160.) 0, 161.) 0, 162.) 0, 163.) 0, 164.) 0, 165.) 0, 166.) 0, 167.) 0, 168.) 0, 169.) 0, 170.) 0, 171.) 0, 172.) 0, 173.) 0, 174.) 0, 175.) 0, 176.) 0, 177.) 0, 178.) 0, 179.) 0, 180.) 0
A9: 8. | B9: =IF(Koulut!B89<>0,Koulut!B89,"") -> Antton Rantanilkku | C9: =IF(Koulut!B89<>0,Koulut!B$83,"") -> Raasakan koulu 6C | D9: =Koulut!C89 -> 400 | E9: 8.) Antton Rantanilkku Raasakan koulu 6C 400, 9.) Silver Karjus Kälviän Kirkonkylän koulu 397, 10.) Arttu Mattila Raumankarin koulu 397, 11.) Teemu Hollanti Takalon koulu 396, 12.) Jere Lahtinen Takalon koulu 396, 13.) Joel Koskela Korhosen koulu 395, 14.) Ossi Peltokorpi Korhosen koulu 395, 15.) Joonas Lukkarila Lohtajan Kirkonkylän koulu 393, 16.) Riku Tohila Pohjankylän koulu 5C 390, 17.) Luka Liimatta Pohjankylän koulu 6B 386, 18.) Jere Päivärinta Korhosen koulu 385, 19.) Miika Rimpioja Korhosen koulu 385, 20.) Eemeli Impola Korhosen koulu 383, 21.) Lauri Knuuttila Marttilan koulu 376, 22.) Roope Rahkola Pohjankylän koulu 6A 373, 23.) Leevi Palola Pohjankylän koulu 6A 371, 24.) Miika Mutka Takalon koulu 371, 25.) Arttu Forss Pohjankylän koulu 6A 370, 26.) Atte Kangas Kälviän Kirkonkylän koulu 368, 27.) Samuli Ranta-Nilkku Kyösti Kallion koulu 5A 367, 28.) Jaakko Mattila Raumankarin koulu 367, 29.) Santtu Mörsky Lohtajan Kirkonkylän koulu 365, 30.) Viljami Tanhula Pohjankylän koulu 6C 361, 31.) Johannes Oja Kyösti Kallion koulu 5B 360, 32.) Tuukka Marjala Raumankarin koulu 360, 33.) Luka Karhu Roikolan koulu 359, 34.) Santeri Hirsikangas Raasakan koulu 6C 356, 35.) Aleksi Kaarlela Kyösti Kallion koulu 5B 356, 36.) Frank Sorjonen Pohjankylän koulu 6A 355, 37.) Rasmus Mäkelä Roikolan koulu 355, 38.) Aatu Teppo Kyösti Kallion koulu 5B 354, 39.) Santeri Rahja Tyngän aluekoulu 353, 40.) Heikki Tuorila Raumankarin koulu 351, 41.) Riku Kalliokoski Pohjankylän koulu 6B 350, 42.) Samuel Niemikorpi Korhosen koulu 349, 43.) Evert Neuvonen Takalon koulu 349, 44.) Andreas Thylin Kirkonmäen koulu 346, 45.) Valtteri Himanka Pohjankylän koulu 5A 345, 46.) Miika Suviola Pohjankylän koulu 6B 345, 47.) Joona Keskinen Kälviän Kirkonkylän koulu 344, 48.) Alexi Similä Pohjankylän koulu 6C 344, 49.) Kasper Weizman Kirkonmäen koulu 344, 50.) Viljami Vihelä Vuorenkallion koulu 340, 51.) Jimi Uusitalo Marttilan koulu 339, 52.) Jose Seppälä Hollihaan koulu 339, 53.) Joni Pentinmikko Raasakan koulu 6C 338, 54.) Arttu Kivioja Takalon koulu 338, 55.) Jere Eskola Takalon koulu 338, 56.) Jaakko Airas Vuorenkallion koulu 337, 57.) Hannes Häkkilä Pohjankylän koulu 6C 336, 58.) Aatu Silakka Raasakan koulu 6C 335, 59.) Tamas Hietala Pohjankylän koulu 6A 334, 60.) Mikael Ylitalo Pohjankylän koulu 5B 331, 61.) Oskari Rahkola Pohjankylän koulu 6B 331, 62.) Bimo Juntunen Pohjankylän koulu 5C 330, 63.) Panu Rimpioja Marttilan koulu 329, 64.) Riku Isopahkala Etelänkylän koulu 328, 65.) Konsta Piippo Hollihaan koulu 5R 327, 66.) Jere Ojala Pohjankylän koulu 5A 326, 67.) Hugo Stenbäck Tyngän aluekoulu 326, 68.) Henry Nauha Pohjankylän koulu 5C 325, 69.) Janne Forström Hollihaan koulu 5R 322, 70.) Heikki Tienvieri Kyösti Kallion koulu 5B 322, 71.) Juulio Pitkämö Tyngän aluekoulu 319, 72.) Aatu Hihnala Vuorenkallion koulu 318, 73.) Timi Tanskanen Kälviän Kirkonkylän koulu 317, 74.) Andrei Koskela Hollihaan koulu 317, 75.) Juho Pyhälä Tyngän aluekoulu 316, 76.) Miro Vehmanen Hollihaan koulu 316, 77.) Nico Mäenpää Raasakan koulu 6C 315, 78.) Lari Ojala Pohjankylän koulu 6C 315, 79.) Joonas Siipola Raumankarin koulu 315, 80.) Oskari Vihelä Etelänkylän koulu 313, 81.) Jere Laurila Pohjankylän koulu 5A 313, 82.) Otto Aho Hollihaan koulu 313, 83.) Ville Niku Kyösti Kallion koulu 5C 312, 84.) Alex Suopunki Lohtajan Kirkonkylän koulu 311, 85.) Eemil Karikumpu Kyösti Kallion koulu 5A 310, 86.) Santeri Mäkinen Raumankarin koulu 310, 87.) Artturi Nikunen Raasakan koulu 6C 308, 88.) Matias Eskola Kyösti Kallion koulu 5A 306, 89.) Herman Salmela Kyösti Kallion koulu 5A 304, 90.) Robin Kämäräinen Marttilan koulu 304, 91.) Lassi Simpanen Etelänkylän koulu 303, 92.) Iiro Kallio Kyösti Kallion koulu 5A 303, 93.) Miika Ohtamaa Kyösti Kallion koulu 5B 303, 94.) Kasperi Hannula Pohjankylän koulu 5A 302, 95.) Jarno Puikko Kälviän Kirkonkylän koulu 301, 96.) Emil Klaavu Kirkonmäen koulu 299, 97.) Julius Poutanen Marttilan koulu 298, 98.) Atte Manninen Hollihaan koulu 5R 298, 99.) Jesse Tikka Kyösti Kallion koulu 5C 298, 100.) Jere Peräaho Kyösti Kallion koulu 5B 297, 101.) Aatos Perttula Pohjankylän koulu 6C 296, 102.) Konsta Hannula Pohjankylän koulu 5C 296, 103.) Kaspian Kuki Kyösti Kallion koulu 5C 296, 104.) Oliver Viio Kyösti Kallion koulu 5C 294, 105.) Joel Kivioja Roikolan koulu 293, 106.) Valtteri Sorvala Pohjankylän koulu 5C 292, 107.) Eemeli Himanka Lohtajan Kirkonkylän koulu 290, 108.) Oskari Vänttilä Vuorenkallion koulu 290, 109.) Max Witick Roikolan koulu 288, 110.) Tuomas Lokkila Tyngän aluekoulu 288, 111.) Niko Jokinen Hollihaan koulu 287, 112.) Topias Törnval Vuorenkallion koulu 287, 113.) Jyry-Matti Niemi Pohjankylän koulu 5A 286, 114.) Jami Kinaret Hollihaan koulu 5R 285, 115.) Rasmus Andersson Kirkonmäen koulu 285, 116.) Juuso Lassila Etelänkylän koulu 282, 117.) Eeli Hiltula Marttilan koulu 281, 118.) Joel Häggblom Kirkonmäen koulu 280, 119.) Vili-Ilmari Hyyppä Hollihaan koulu 5R 279, 120.) Topi Päiveröinen Kyösti Kallion koulu 5A 278, 121.) Paavo Tilvis Pohjankylän koulu 6A 275, 122.) Aleksi Nikupaavo Pohjankylän koulu 6B 274, 123.) Oskari Nissilä Kälviän Kirkonkylän koulu 270, 124.) Jani Soukka Tyngän aluekoulu 267, 125.) Henri Vedenoja Pohjankylän koulu 5B 262, 126.) Eetu Ahonen Pohjankylän koulu 5B 261, 127.) Niina Kylmälä Pohjankylän koulu 5B 261, 128.) Martti Prittinen Pohjankylän koulu 5A 259, 129.) Tuure Anttila Pohjankylän koulu 5B 256, 130.) Joona Kallio Hollihaan koulu 237, 131.) Juuso Niemelä Hollihaan koulu 5R 235, 132.) Joona Nauha Pohjankylän koulu 6B 235, 133.) Jerry Kivioja Roikolan koulu 221, 134.) Leevi Hongisto Pohjankylän koulu 5C 220, 135.) Aaro Jukkila Pohjankylän koulu 5B 216, 136.) Ville Tölli Kyösti Kallion koulu 5C 193, 137.) Sami Hannula Kyösti Kallion koulu 5C 186, 138.) 0, 139.) 0, 140.) 0, 141.) 0, 142.) 0, 143.) 0, 144.) 0, 145.) 0, 146.) 0, 147.) 0, 148.) 0, 149.) 0, 150.) 0, 151.) 0, 152.) 0, 153.) 0, 154.) 0, 155.) 0, 156.) 0, 157.) 0, 158.) 0, 159.) 0, 160.) 0, 161.) 0, 162.) 0, 163.) 0, 164.) 0, 165.) 0, 166.) 0, 167.) 0, 168.) 0, 169.) 0, 170.) 0, 171.) 0, 172.) 0, 173.) 0, 174.) 0, 175.) 0, 176.) 0, 177.) 0, 178.) 0, 179.) 0, 180.) 0
A10: 9. | B10: =IF(Koulut!B61<>0,Koulut!B61,"") -> Silver Karjus | C10: =IF(Koulut!B61<>0,Koulut!B$55,"") -> Kälviän Kirkonkylän koulu | D10: =Koulut!C61 -> 397 | E10: 9.) Silver Karjus Kälviän Kirkonkylän koulu 397, 10.) Arttu Mattila Raumankarin koulu 397, 11.) Teemu Hollanti Takalon koulu 396, 12.) Jere Lahtinen Takalon koulu 396, 13.) Joel Koskela Korhosen koulu 395, 14.) Ossi Peltokorpi Korhosen koulu 395, 15.) Joonas Lukkarila Lohtajan Kirkonkylän koulu 393, 16.) Riku Tohila Pohjankylän koulu 5C 390, 17.) Luka Liimatta Pohjankylän koulu 6B 386, 18.) Jere Päivärinta Korhosen koulu 385, 19.) Miika Rimpioja Korhosen koulu 385, 20.) Eemeli Impola Korhosen koulu 383, 21.) Lauri Knuuttila Marttilan koulu 376, 22.) Roope Rahkola Pohjankylän koulu 6A 373, 23.) Leevi Palola Pohjankylän koulu 6A 371, 24.) Miika Mutka Takalon koulu 371, 25.) Arttu Forss Pohjankylän koulu 6A 370, 26.) Atte Kangas Kälviän Kirkonkylän koulu 368, 27.) Samuli Ranta-Nilkku Kyösti Kallion koulu 5A 367, 28.) Jaakko Mattila Raumankarin koulu 367, 29.) Santtu Mörsky Lohtajan Kirkonkylän koulu 365, 30.) Viljami Tanhula Pohjankylän koulu 6C 361, 31.) Johannes Oja Kyösti Kallion koulu 5B 360, 32.) Tuukka Marjala Raumankarin koulu 360, 33.) Luka Karhu Roikolan koulu 359, 34.) Santeri Hirsikangas Raasakan koulu 6C 356, 35.) Aleksi Kaarlela Kyösti Kallion koulu 5B 356, 36.) Frank Sorjonen Pohjankylän koulu 6A 355, 37.) Rasmus Mäkelä Roikolan koulu 355, 38.) Aatu Teppo Kyösti Kallion koulu 5B 354, 39.) Santeri Rahja Tyngän aluekoulu 353, 40.) Heikki Tuorila Raumankarin koulu 351, 41.) Riku Kalliokoski Pohjankylän koulu 6B 350, 42.) Samuel Niemikorpi Korhosen koulu 349, 43.) Evert Neuvonen Takalon koulu 349, 44.) Andreas Thylin Kirkonmäen koulu 346, 45.) Valtteri Himanka Pohjankylän koulu 5A 345, 46.) Miika Suviola Pohjankylän koulu 6B 345, 47.) Joona Keskinen Kälviän Kirkonkylän koulu 344, 48.) Alexi Similä Pohjankylän koulu 6C 344, 49.) Kasper Weizman Kirkonmäen koulu 344, 50.) Viljami Vihelä Vuorenkallion koulu 340, 51.) Jimi Uusitalo Marttilan koulu 339, 52.) Jose Seppälä Hollihaan koulu 339, 53.) Joni Pentinmikko Raasakan koulu 6C 338, 54.) Arttu Kivioja Takalon koulu 338, 55.) Jere Eskola Takalon koulu 338, 56.) Jaakko Airas Vuorenkallion koulu 337, 57.) Hannes Häkkilä Pohjankylän koulu 6C 336, 58.) Aatu Silakka Raasakan koulu 6C 335, 59.) Tamas Hietala Pohjankylän koulu 6A 334, 60.) Mikael Ylitalo Pohjankylän koulu 5B 331, 61.) Oskari Rahkola Pohjankylän koulu 6B 331, 62.) Bimo Juntunen Pohjankylän koulu 5C 330, 63.) Panu Rimpioja Marttilan koulu 329, 64.) Riku Isopahkala Etelänkylän koulu 328, 65.) Konsta Piippo Hollihaan koulu 5R 327, 66.) Jere Ojala Pohjankylän koulu 5A 326, 67.) Hugo Stenbäck Tyngän aluekoulu 326, 68.) Henry Nauha Pohjankylän koulu 5C 325, 69.) Janne Forström Hollihaan koulu 5R 322, 70.) Heikki Tienvieri Kyösti Kallion koulu 5B 322, 71.) Juulio Pitkämö Tyngän aluekoulu 319, 72.) Aatu Hihnala Vuorenkallion koulu 318, 73.) Timi Tanskanen Kälviän Kirkonkylän koulu 317, 74.) Andrei Koskela Hollihaan koulu 317, 75.) Juho Pyhälä Tyngän aluekoulu 316, 76.) Miro Vehmanen Hollihaan koulu 316, 77.) Nico Mäenpää Raasakan koulu 6C 315, 78.) Lari Ojala Pohjankylän koulu 6C 315, 79.) Joonas Siipola Raumankarin koulu 315, 80.) Oskari Vihelä Etelänkylän koulu 313, 81.) Jere Laurila Pohjankylän koulu 5A 313, 82.) Otto Aho Hollihaan koulu 313, 83.) Ville Niku Kyösti Kallion koulu 5C 312, 84.) Alex Suopunki Lohtajan Kirkonkylän koulu 311, 85.) Eemil Karikumpu Kyösti Kallion koulu 5A 310, 86.) Santeri Mäkinen Raumankarin koulu 310, 87.) Artturi Nikunen Raasakan koulu 6C 308, 88.) Matias Eskola Kyösti Kallion koulu 5A 306, 89.) Herman Salmela Kyösti Kallion koulu 5A 304, 90.) Robin Kämäräinen Marttilan koulu 304, 91.) Lassi Simpanen Etelänkylän koulu 303, 92.) Iiro Kallio Kyösti Kallion koulu 5A 303, 93.) Miika Ohtamaa Kyösti Kallion koulu 5B 303, 94.) Kasperi Hannula Pohjankylän koulu 5A 302, 95.) Jarno Puikko Kälviän Kirkonkylän koulu 301, 96.) Emil Klaavu Kirkonmäen koulu 299, 97.) Julius Poutanen Marttilan koulu 298, 98.) Atte Manninen Hollihaan koulu 5R 298, 99.) Jesse Tikka Kyösti Kallion koulu 5C 298, 100.) Jere Peräaho Kyösti Kallion koulu 5B 297, 101.) Aatos Perttula Pohjankylän koulu 6C 296, 102.) Konsta Hannula Pohjankylän koulu 5C 296, 103.) Kaspian Kuki Kyösti Kallion koulu 5C 296, 104.) Oliver Viio Kyösti Kallion koulu 5C 294, 105.) Joel Kivioja Roikolan koulu 293, 106.) Valtteri Sorvala Pohjankylän koulu 5C 292, 107.) Eemeli Himanka Lohtajan Kirkonkylän koulu 290, 108.) Oskari Vänttilä Vuorenkallion koulu 290, 109.) Max Witick Roikolan koulu 288, 110.) Tuomas Lokkila Tyngän aluekoulu 288, 111.) Niko Jokinen Hollihaan koulu 287, 112.) Topias Törnval Vuorenkallion koulu 287, 113.) Jyry-Matti Niemi Pohjankylän koulu 5A 286, 114.) Jami Kinaret Hollihaan koulu 5R 285, 115.) Rasmus Andersson Kirkonmäen koulu 285, 116.) Juuso Lassila Etelänkylän koulu 282, 117.) Eeli Hiltula Marttilan koulu 281, 118.) Joel Häggblom Kirkonmäen koulu 280, 119.) Vili-Ilmari Hyyppä Hollihaan koulu 5R 279, 120.) Topi Päiveröinen Kyösti Kallion koulu 5A 278, 121.) Paavo Tilvis Pohjankylän koulu 6A 275, 122.) Aleksi Nikupaavo Pohjankylän koulu 6B 274, 123.) Oskari Nissilä Kälviän Kirkonkylän koulu 270, 124.) Jani Soukka Tyngän aluekoulu 267, 125.) Henri Vedenoja Pohjankylän koulu 5B 262, 126.) Eetu Ahonen Pohjankylän koulu 5B 261, 127.) Niina Kylmälä Pohjankylän koulu 5B 261, 128.) Martti Prittinen Pohjankylän koulu 5A 259, 129.) Tuure Anttila Pohjankylän koulu 5B 256, 130.) Joona Kallio Hollihaan koulu 237, 131.) Juuso Niemelä Hollihaan koulu 5R 235, 132.) Joona Nauha Pohjankylän koulu 6B 235, 133.) Jerry Kivioja Roikolan koulu 221, 134.) Leevi Hongisto Pohjankylän koulu 5C 220, 135.) Aaro Jukkila Pohjankylän koulu 5B 216, 136.) Ville Tölli Kyösti Kallion koulu 5C 193, 137.) Sami Hannula Kyösti Kallion koulu 5C 186, 138.) 0, 139.) 0, 140.) 0, 141.) 0, 142.) 0, 143.) 0, 144.) 0, 145.) 0, 146.) 0, 147.) 0, 148.) 0, 149.) 0, 150.) 0, 151.) 0, 152.) 0, 153.) 0, 154.) 0, 155.) 0, 156.) 0, 157.) 0, 158.) 0, 159.) 0, 160.) 0, 161.) 0, 162.) 0, 163.) 0, 164.) 0, 165.) 0, 166.) 0, 167.) 0, 168.) 0, 169.) 0, 170.) 0, 171.) 0, 172.) 0, 173.) 0, 174.) 0, 175.) 0, 176.) 0, 177.) 0, 178.) 0, 179.) 0, 180.) 0
A11: 10. | B11: =IF(Koulut!B266<>0,Koulut!B266,"") -> Arttu Mattila | C11: =IF(Koulut!B266<>0,Koulut!B$265,"") -> Raumankarin koulu | D11: =Koulut!C266 -> 397 | E11: 10.) Arttu Mattila Raumankarin koulu 397, 11.) Teemu Hollanti Takalon koulu 396, 12.) Jere Lahtinen Takalon koulu 396, 13.) Joel Koskela Korhosen koulu 395, 14.) Ossi Peltokorpi Korhosen koulu 395, 15.) Joonas Lukkarila Lohtajan Kirkonkylän koulu 393, 16.) Riku Tohila Pohjankylän koulu 5C 390, 17.) Luka Liimatta Pohjankylän koulu 6B 386, 18.) Jere Päivärinta Korhosen koulu 385, 19.) Miika Rimpioja Korhosen koulu 385, 20.) Eemeli Impola Korhosen koulu 383, 21.) Lauri Knuuttila Marttilan koulu 376, 22.) Roope Rahkola Pohjankylän koulu 6A 373, 23.) Leevi Palola Pohjankylän koulu 6A 371, 24.) Miika Mutka Takalon koulu 371, 25.) Arttu Forss Pohjankylän koulu 6A 370, 26.) Atte Kangas Kälviän Kirkonkylän koulu 368, 27.) Samuli Ranta-Nilkku Kyösti Kallion koulu 5A 367, 28.) Jaakko Mattila Raumankarin koulu 367, 29.) Santtu Mörsky Lohtajan Kirkonkylän koulu 365, 30.) Viljami Tanhula Pohjankylän koulu 6C 361, 31.) Johannes Oja Kyösti Kallion koulu 5B 360, 32.) Tuukka Marjala Raumankarin koulu 360, 33.) Luka Karhu Roikolan koulu 359, 34.) Santeri Hirsikangas Raasakan koulu 6C 356, 35.) Aleksi Kaarlela Kyösti Kallion koulu 5B 356, 36.) Frank Sorjonen Pohjankylän koulu 6A 355, 37.) Rasmus Mäkelä Roikolan koulu 355, 38.) Aatu Teppo Kyösti Kallion koulu 5B 354, 39.) Santeri Rahja Tyngän aluekoulu 353, 40.) Heikki Tuorila Raumankarin koulu 351, 41.) Riku Kalliokoski Pohjankylän koulu 6B 350, 42.) Samuel Niemikorpi Korhosen koulu 349, 43.) Evert Neuvonen Takalon koulu 349, 44.) Andreas Thylin Kirkonmäen koulu 346, 45.) Valtteri Himanka Pohjankylän koulu 5A 345, 46.) Miika Suviola Pohjankylän koulu 6B 345, 47.) Joona Keskinen Kälviän Kirkonkylän koulu 344, 48.) Alexi Similä Pohjankylän koulu 6C 344, 49.) Kasper Weizman Kirkonmäen koulu 344, 50.) Viljami Vihelä Vuorenkallion koulu 340, 51.) Jimi Uusitalo Marttilan koulu 339, 52.) Jose Seppälä Hollihaan koulu 339, 53.) Joni Pentinmikko Raasakan koulu 6C 338, 54.) Arttu Kivioja Takalon koulu 338, 55.) Jere Eskola Takalon koulu 338, 56.) Jaakko Airas Vuorenkallion koulu 337, 57.) Hannes Häkkilä Pohjankylän koulu 6C 336, 58.) Aatu Silakka Raasakan koulu 6C 335, 59.) Tamas Hietala Pohjankylän koulu 6A 334, 60.) Mikael Ylitalo Pohjankylän koulu 5B 331, 61.) Oskari Rahkola Pohjankylän koulu 6B 331, 62.) Bimo Juntunen Pohjankylän koulu 5C 330, 63.) Panu Rimpioja Marttilan koulu 329, 64.) Riku Isopahkala Etelänkylän koulu 328, 65.) Konsta Piippo Hollihaan koulu 5R 327, 66.) Jere Ojala Pohjankylän koulu 5A 326, 67.) Hugo Stenbäck Tyngän aluekoulu 326, 68.) Henry Nauha Pohjankylän koulu 5C 325, 69.) Janne Forström Hollihaan koulu 5R 322, 70.) Heikki Tienvieri Kyösti Kallion koulu 5B 322, 71.) Juulio Pitkämö Tyngän aluekoulu 319, 72.) Aatu Hihnala Vuorenkallion koulu 318, 73.) Timi Tanskanen Kälviän Kirkonkylän koulu 317, 74.) Andrei Koskela Hollihaan koulu 317, 75.) Juho Pyhälä Tyngän aluekoulu 316, 76.) Miro Vehmanen Hollihaan koulu 316, 77.) Nico Mäenpää Raasakan koulu 6C 315, 78.) Lari Ojala Pohjankylän koulu 6C 315, 79.) Joonas Siipola Raumankarin koulu 315, 80.) Oskari Vihelä Etelänkylän koulu 313, 81.) Jere Laurila Pohjankylän koulu 5A 313, 82.) Otto Aho Hollihaan koulu 313, 83.) Ville Niku Kyösti Kallion koulu 5C 312, 84.) Alex Suopunki Lohtajan Kirkonkylän koulu 311, 85.) Eemil Karikumpu Kyösti Kallion koulu 5A 310, 86.) Santeri Mäkinen Raumankarin koulu 310, 87.) Artturi Nikunen Raasakan koulu 6C 308, 88.) Matias Eskola Kyösti Kallion koulu 5A 306, 89.) Herman Salmela Kyösti Kallion koulu 5A 304, 90.) Robin Kämäräinen Marttilan koulu 304, 91.) Lassi Simpanen Etelänkylän koulu 303, 92.) Iiro Kallio Kyösti Kallion koulu 5A 303, 93.) Miika Ohtamaa Kyösti Kallion koulu 5B 303, 94.) Kasperi Hannula Pohjankylän koulu 5A 302, 95.) Jarno Puikko Kälviän Kirkonkylän koulu 301, 96.) Emil Klaavu Kirkonmäen koulu 299, 97.) Julius Poutanen Marttilan koulu 298, 98.) Atte Manninen Hollihaan koulu 5R 298, 99.) Jesse Tikka Kyösti Kallion koulu 5C 298, 100.) Jere Peräaho Kyösti Kallion koulu 5B 297, 101.) Aatos Perttula Pohjankylän koulu 6C 296, 102.) Konsta Hannula Pohjankylän koulu 5C 296, 103.) Kaspian Kuki Kyösti Kallion koulu 5C 296, 104.) Oliver Viio Kyösti Kallion koulu 5C 294, 105.) Joel Kivioja Roikolan koulu 293, 106.) Valtteri Sorvala Pohjankylän koulu 5C 292, 107.) Eemeli Himanka Lohtajan Kirkonkylän koulu 290, 108.) Oskari Vänttilä Vuorenkallion koulu 290, 109.) Max Witick Roikolan koulu 288, 110.) Tuomas Lokkila Tyngän aluekoulu 288, 111.) Niko Jokinen Hollihaan koulu 287, 112.) Topias Törnval Vuorenkallion koulu 287, 113.) Jyry-Matti Niemi Pohjankylän koulu 5A 286, 114.) Jami Kinaret Hollihaan koulu 5R 285, 115.) Rasmus Andersson Kirkonmäen koulu 285, 116.) Juuso Lassila Etelänkylän koulu 282, 117.) Eeli Hiltula Marttilan koulu 281, 118.) Joel Häggblom Kirkonmäen koulu 280, 119.) Vili-Ilmari Hyyppä Hollihaan koulu 5R 279, 120.) Topi Päiveröinen Kyösti Kallion koulu 5A 278, 121.) Paavo Tilvis Pohjankylän koulu 6A 275, 122.) Aleksi Nikupaavo Pohjankylän koulu 6B 274, 123.) Oskari Nissilä Kälviän Kirkonkylän koulu 270, 124.) Jani Soukka Tyngän aluekoulu 267, 125.) Henri Vedenoja Pohjankylän koulu 5B 262, 126.) Eetu Ahonen Pohjankylän koulu 5B 261, 127.) Niina Kylmälä Pohjankylän koulu 5B 261, 128.) Martti Prittinen Pohjankylän koulu 5A 259, 129.) Tuure Anttila Pohjankylän koulu 5B 256, 130.) Joona Kallio Hollihaan koulu 237, 131.) Juuso Niemelä Hollihaan koulu 5R 235, 132.) Joona Nauha Pohjankylän koulu 6B 235, 133.) Jerry Kivioja Roikolan koulu 221, 134.) Leevi Hongisto Pohjankylän koulu 5C 220, 135.) Aaro Jukkila Pohjankylän koulu 5B 216, 136.) Ville Tölli Kyösti Kallion koulu 5C 193, 137.) Sami Hannula Kyösti Kallion koulu 5C 186, 138.) 0, 139.) 0, 140.) 0, 141.) 0, 142.) 0, 143.) 0, 144.) 0, 145.) 0, 146.) 0, 147.) 0, 148.) 0, 149.) 0, 150.) 0, 151.) 0, 152.) 0, 153.) 0, 154.) 0, 155.) 0, 156.) 0, 157.) 0, 158.) 0, 159.) 0, 160.) 0, 161.) 0, 162.) 0, 163.) 0, 164.) 0, 165.) 0, 166.) 0, 167.) 0, 168.) 0, 169.) 0, 170.) 0, 171.) 0, 172.) 0, 173.) 0, 174.) 0, 175.) 0, 176.) 0, 177.) 0, 178.) 0, 179.) 0, 180.) 0
A12: 11. | B12: =IF(Koulut!B294<>0,Koulut!B294,"") -> Teemu Hollanti | C12: =IF(Koulut!B294<>0,Koulut!B$293,"") -> Takalon koulu | D12: =Koulut!C294 -> 396 | E12: 11.) Teemu Hollanti Takalon koulu 396, 12.) Jere Lahtinen Takalon koulu 396, 13.) Joel Koskela Korhosen koulu 395, 14.) Ossi Peltokorpi Korhosen koulu 395, 15.) Joonas Lukkarila Lohtajan Kirkonkylän koulu 393, 16.) Riku Tohila Pohjankylän koulu 5C 390, 17.) Luka Liimatta Pohjankylän koulu 6B 386, 18.) Jere Päivärinta Korhosen koulu 385, 19.) Miika Rimpioja Korhosen koulu 385, 20.) Eemeli Impola Korhosen koulu 383, 21.) Lauri Knuuttila Marttilan koulu 376, 22.) Roope Rahkola Pohjankylän koulu 6A 373, 23.) Leevi Palola Pohjankylän koulu 6A 371, 24.) Miika Mutka Takalon koulu 371, 25.) Arttu Forss Pohjankylän koulu 6A 370, 26.) Atte Kangas Kälviän Kirkonkylän koulu 368, 27.) Samuli Ranta-Nilkku Kyösti Kallion koulu 5A 367, 28.) Jaakko Mattila Raumankarin koulu 367, 29.) Santtu Mörsky Lohtajan Kirkonkylän koulu 365, 30.) Viljami Tanhula Pohjankylän koulu 6C 361, 31.) Johannes Oja Kyösti Kallion koulu 5B 360, 32.) Tuukka Marjala Raumankarin koulu 360, 33.) Luka Karhu Roikolan koulu 359, 34.) Santeri Hirsikangas Raasakan koulu 6C 356, 35.) Aleksi Kaarlela Kyösti Kallion koulu 5B 356, 36.) Frank Sorjonen Pohjankylän koulu 6A 355, 37.) Rasmus Mäkelä Roikolan koulu 355, 38.) Aatu Teppo Kyösti Kallion koulu 5B 354, 39.) Santeri Rahja Tyngän aluekoulu 353, 40.) Heikki Tuorila Raumankarin koulu 351, 41.) Riku Kalliokoski Pohjankylän koulu 6B 350, 42.) Samuel Niemikorpi Korhosen koulu 349, 43.) Evert Neuvonen Takalon koulu 349, 44.) Andreas Thylin Kirkonmäen koulu 346, 45.) Valtteri Himanka Pohjankylän koulu 5A 345, 46.) Miika Suviola Pohjankylän koulu 6B 345, 47.) Joona Keskinen Kälviän Kirkonkylän koulu 344, 48.) Alexi Similä Pohjankylän koulu 6C 344, 49.) Kasper Weizman Kirkonmäen koulu 344, 50.) Viljami Vihelä Vuorenkallion koulu 340, 51.) Jimi Uusitalo Marttilan koulu 339, 52.) Jose Seppälä Hollihaan koulu 339, 53.) Joni Pentinmikko Raasakan koulu 6C 338, 54.) Arttu Kivioja Takalon koulu 338, 55.) Jere Eskola Takalon koulu 338, 56.) Jaakko Airas Vuorenkallion koulu 337, 57.) Hannes Häkkilä Pohjankylän koulu 6C 336, 58.) Aatu Silakka Raasakan koulu 6C 335, 59.) Tamas Hietala Pohjankylän koulu 6A 334, 60.) Mikael Ylitalo Pohjankylän koulu 5B 331, 61.) Oskari Rahkola Pohjankylän koulu 6B 331, 62.) Bimo Juntunen Pohjankylän koulu 5C 330, 63.) Panu Rimpioja Marttilan koulu 329, 64.) Riku Isopahkala Etelänkylän koulu 328, 65.) Konsta Piippo Hollihaan koulu 5R 327, 66.) Jere Ojala Pohjankylän koulu 5A 326, 67.) Hugo Stenbäck Tyngän aluekoulu 326, 68.) Henry Nauha Pohjankylän koulu 5C 325, 69.) Janne Forström Hollihaan koulu 5R 322, 70.) Heikki Tienvieri Kyösti Kallion koulu 5B 322, 71.) Juulio Pitkämö Tyngän aluekoulu 319, 72.) Aatu Hihnala Vuorenkallion koulu 318, 73.) Timi Tanskanen Kälviän Kirkonkylän koulu 317, 74.) Andrei Koskela Hollihaan koulu 317, 75.) Juho Pyhälä Tyngän aluekoulu 316, 76.) Miro Vehmanen Hollihaan koulu 316, 77.) Nico Mäenpää Raasakan koulu 6C 315, 78.) Lari Ojala Pohjankylän koulu 6C 315, 79.) Joonas Siipola Raumankarin koulu 315, 80.) Oskari Vihelä Etelänkylän koulu 313, 81.) Jere Laurila Pohjankylän koulu 5A 313, 82.) Otto Aho Hollihaan koulu 313, 83.) Ville Niku Kyösti Kallion koulu 5C 312, 84.) Alex Suopunki Lohtajan Kirkonkylän koulu 311, 85.) Eemil Karikumpu Kyösti Kallion koulu 5A 310, 86.) Santeri Mäkinen Raumankarin koulu 310, 87.) Artturi Nikunen Raasakan koulu 6C 308, 88.) Matias Eskola Kyösti Kallion koulu 5A 306, 89.) Herman Salmela Kyösti Kallion koulu 5A 304, 90.) Robin Kämäräinen Marttilan koulu 304, 91.) Lassi Simpanen Etelänkylän koulu 303, 92.) Iiro Kallio Kyösti Kallion koulu 5A 303, 93.) Miika Ohtamaa Kyösti Kallion koulu 5B 303, 94.) Kasperi Hannula Pohjankylän koulu 5A 302, 95.) Jarno Puikko Kälviän Kirkonkylän koulu 301, 96.) Emil Klaavu Kirkonmäen koulu 299, 97.) Julius Poutanen Marttilan koulu 298, 98.) Atte Manninen Hollihaan koulu 5R 298, 99.) Jesse Tikka Kyösti Kallion koulu 5C 298, 100.) Jere Peräaho Kyösti Kallion koulu 5B 297, 101.) Aatos Perttula Pohjankylän koulu 6C 296, 102.) Konsta Hannula Pohjankylän koulu 5C 296, 103.) Kaspian Kuki Kyösti Kallion koulu 5C 296, 104.) Oliver Viio Kyösti Kallion koulu 5C 294, 105.) Joel Kivioja Roikolan koulu 293, 106.) Valtteri Sorvala Pohjankylän koulu 5C 292, 107.) Eemeli Himanka Lohtajan Kirkonkylän koulu 290, 108.) Oskari Vänttilä Vuorenkallion koulu 290, 109.) Max Witick Roikolan koulu 288, 110.) Tuomas Lokkila Tyngän aluekoulu 288, 111.) Niko Jokinen Hollihaan koulu 287, 112.) Topias Törnval Vuorenkallion koulu 287, 113.) Jyry-Matti Niemi Pohjankylän koulu 5A 286, 114.) Jami Kinaret Hollihaan koulu 5R 285, 115.) Rasmus Andersson Kirkonmäen koulu 285, 116.) Juuso Lassila Etelänkylän koulu 282, 117.) Eeli Hiltula Marttilan koulu 281, 118.) Joel Häggblom Kirkonmäen koulu 280, 119.) Vili-Ilmari Hyyppä Hollihaan koulu 5R 279, 120.) Topi Päiveröinen Kyösti Kallion koulu 5A 278, 121.) Paavo Tilvis Pohjankylän koulu 6A 275, 122.) Aleksi Nikupaavo Pohjankylän koulu 6B 274, 123.) Oskari Nissilä Kälviän Kirkonkylän koulu 270, 124.) Jani Soukka Tyngän aluekoulu 267, 125.) Henri Vedenoja Pohjankylän koulu 5B 262, 126.) Eetu Ahonen Pohjankylän koulu 5B 261, 127.) Niina Kylmälä Pohjankylän koulu 5B 261, 128.) Martti Prittinen Pohjankylän koulu 5A 259, 129.) Tuure Anttila Pohjankylän koulu 5B 256, 130.) Joona Kallio Hollihaan koulu 237, 131.) Juuso Niemelä Hollihaan koulu 5R 235, 132.) Joona Nauha Pohjankylän koulu 6B 235, 133.) Jerry Kivioja Roikolan koulu 221, 134.) Leevi Hongisto Pohjankylän koulu 5C 220, 135.) Aaro Jukkila Pohjankylän koulu 5B 216, 136.) Ville Tölli Kyösti Kallion koulu 5C 193, 137.) Sami Hannula Kyösti Kallion koulu 5C 186, 138.) 0, 139.) 0, 140.) 0, 141.) 0, 142.) 0, 143.) 0, 144.) 0, 145.) 0, 146.) 0, 147.) 0, 148.) 0, 149.) 0, 150.) 0, 151.) 0, 152.) 0, 153.) 0, 154.) 0, 155.) 0, 156.) 0, 157.) 0, 158.) 0, 159.) 0, 160.) 0, 161.) 0, 162.) 0, 163.) 0, 164.) 0, 165.) 0, 166.) 0, 167.) 0, 168.) 0, 169.) 0, 170.) 0, 171.) 0, 172.) 0, 173.) 0, 174.) 0, 175.) 0, 176.) 0, 177.) 0, 178.) 0, 179.) 0, 180.) 0
A13: 12. | B13: =IF(Koulut!B297<>0,Koulut!B297,"") -> Jere Lahtinen | C13: =IF(Koulut!B297<>0,Koulut!B$293,"") -> Takalon koulu | D13: =Koulut!C297 -> 396 | E13: =IF(A13<>"",CONCATENATE(A13,") ",B13," ",C13," ",D13,IF(E14<>"",CONCATENATE(", ",E14),"")),"") -> 12.) Jere Lahtinen Takalon koulu 396, 13.) Joel Koskela Korhosen koulu 395, 14.) Ossi Peltokorpi Korhosen koulu 395, 15.) Joonas Lukkarila Lohtajan Kirkonkylän koulu 393, 16.) Riku Tohila Pohjankylän koulu 5C 390, 17.) Luka Liimatta Pohjankylän koulu 6B 386, 18.) Jere Päivärinta Korhosen koulu 385, 19.) Miika Rimpioja Korhosen koulu 385, 20.) Eemeli Impola Korhosen koulu 383, 21.) Lauri Knuuttila Marttilan koulu 376, 22.) Roope Rahkola Pohjankylän koulu 6A 373, 23.) Leevi Palola Pohjankylän koulu 6A 371, 24.) Miika Mutka Takalon koulu 371, 25.) Arttu Forss Pohjankylän koulu 6A 370, 26.) Atte Kangas Kälviän Kirkonkylän koulu 368, 27.) Samuli Ranta-Nilkku Kyösti Kallion koulu 5A 367, 28.) Jaakko Mattila Raumankarin koulu 367, 29.) Santtu Mörsky Lohtajan Kirkonkylän koulu 365, 30.) Viljami Tanhula Pohjankylän koulu 6C 361, 31.) Johannes Oja Kyösti Kallion koulu 5B 360, 32.) Tuukka Marjala Raumankarin koulu 360, 33.) Luka Karhu Roikolan koulu 359, 34.) Santeri Hirsikangas Raasakan koulu 6C 356, 35.) Aleksi Kaarlela Kyösti Kallion koulu 5B 356, 36.) Frank Sorjonen Pohjankylän koulu 6A 355, 37.) Rasmus Mäkelä Roikolan koulu 355, 38.) Aatu Teppo Kyösti Kallion koulu 5B 354, 39.) Santeri Rahja Tyngän aluekoulu 353, 40.) Heikki Tuorila Raumankarin koulu 351, 41.) Riku Kalliokoski Pohjankylän koulu 6B 350, 42.) Samuel Niemikorpi Korhosen koulu 349, 43.) Evert Neuvonen Takalon koulu 349, 44.) Andreas Thylin Kirkonmäen koulu 346, 45.) Valtteri Himanka Pohjankylän koulu 5A 345, 46.) Miika Suviola Pohjankylän koulu 6B 345, 47.) Joona Keskinen Kälviän Kirkonkylän koulu 344, 48.) Alexi Similä Pohjankylän koulu 6C 344, 49.) Kasper Weizman Kirkonmäen koulu 344, 50.) Viljami Vihelä Vuorenkallion koulu 340, 51.) Jimi Uusitalo Marttilan koulu 339, 52.) Jose Seppälä Hollihaan koulu 339, 53.) Joni Pentinmikko Raasakan koulu 6C 338, 54.) Arttu Kivioja Takalon koulu 338, 55.) Jere Eskola Takalon koulu 338, 56.) Jaakko Airas Vuorenkallion koulu 337, 57.) Hannes Häkkilä Pohjankylän koulu 6C 336, 58.) Aatu Silakka Raasakan koulu 6C 335, 59.) Tamas Hietala Pohjankylän koulu 6A 334, 60.) Mikael Ylitalo Pohjankylän koulu 5B 331, 61.) Oskari Rahkola Pohjankylän koulu 6B 331, 62.) Bimo Juntunen Pohjankylän koulu 5C 330, 63.) Panu Rimpioja Marttilan koulu 329, 64.) Riku Isopahkala Etelänkylän koulu 328, 65.) Konsta Piippo Hollihaan koulu 5R 327, 66.) Jere Ojala Pohjankylän koulu 5A 326, 67.) Hugo Stenbäck Tyngän aluekoulu 326, 68.) Henry Nauha Pohjankylän koulu 5C 325, 69.) Janne Forström Hollihaan koulu 5R 322, 70.) Heikki Tienvieri Kyösti Kallion koulu 5B 322, 71.) Juulio Pitkämö Tyngän aluekoulu 319, 72.) Aatu Hihnala Vuorenkallion koulu 318, 73.) Timi Tanskanen Kälviän Kirkonkylän koulu 317, 74.) Andrei Koskela Hollihaan koulu 317, 75.) Juho Pyhälä Tyngän aluekoulu 316, 76.) Miro Vehmanen Hollihaan koulu 316, 77.) Nico Mäenpää Raasakan koulu 6C 315, 78.) Lari Ojala Pohjankylän koulu 6C 315, 79.) Joonas Siipola Raumankarin koulu 315, 80.) Oskari Vihelä Etelänkylän koulu 313, 81.) Jere Laurila Pohjankylän koulu 5A 313, 82.) Otto Aho Hollihaan koulu 313, 83.) Ville Niku Kyösti Kallion koulu 5C 312, 84.) Alex Suopunki Lohtajan Kirkonkylän koulu 311, 85.) Eemil Karikumpu Kyösti Kallion koulu 5A 310, 86.) Santeri Mäkinen Raumankarin koulu 310, 87.) Artturi Nikunen Raasakan koulu 6C 308, 88.) Matias Eskola Kyösti Kallion koulu 5A 306, 89.) Herman Salmela Kyösti Kallion koulu 5A 304, 90.) Robin Kämäräinen Marttilan koulu 304, 91.) Lassi Simpanen Etelänkylän koulu 303, 92.) Iiro Kallio Kyösti Kallion koulu 5A 303, 93.) Miika Ohtamaa Kyösti Kallion koulu 5B 303, 94.) Kasperi Hannula Pohjankylän koulu 5A 302, 95.) Jarno Puikko Kälviän Kirkonkylän koulu 301, 96.) Emil Klaavu Kirkonmäen koulu 299, 97.) Julius Poutanen Marttilan koulu 298, 98.) Atte Manninen Hollihaan koulu 5R 298, 99.) Jesse Tikka Kyösti Kallion koulu 5C 298, 100.) Jere Peräaho Kyösti Kallion koulu 5B 297, 101.) Aatos Perttula Pohjankylän koulu 6C 296, 102.) Konsta Hannula Pohjankylän koulu 5C 296, 103.) Kaspian Kuki Kyösti Kallion koulu 5C 296, 104.) Oliver Viio Kyösti Kallion koulu 5C 294, 105.) Joel Kivioja Roikolan koulu 293, 106.) Valtteri Sorvala Pohjankylän koulu 5C 292, 107.) Eemeli Himanka Lohtajan Kirkonkylän koulu 290, 108.) Oskari Vänttilä Vuorenkallion koulu 290, 109.) Max Witick Roikolan koulu 288, 110.) Tuomas Lokkila Tyngän aluekoulu 288, 111.) Niko Jokinen Hollihaan koulu 287, 112.) Topias Törnval Vuorenkallion koulu 287, 113.) Jyry-Matti Niemi Pohjankylän koulu 5A 286, 114.) Jami Kinaret Hollihaan koulu 5R 285, 115.) Rasmus Andersson Kirkonmäen koulu 285, 116.) Juuso Lassila Etelänkylän koulu 282, 117.) Eeli Hiltula Marttilan koulu 281, 118.) Joel Häggblom Kirkonmäen koulu 280, 119.) Vili-Ilmari Hyyppä Hollihaan koulu 5R 279, 120.) Topi Päiveröinen Kyösti Kallion koulu 5A 278, 121.) Paavo Tilvis Pohjankylän koulu 6A 275, 122.) Aleksi Nikupaavo Pohjankylän koulu 6B 274, 123.) Oskari Nissilä Kälviän Kirkonkylän koulu 270, 124.) Jani Soukka Tyngän aluekoulu 267, 125.) Henri Vedenoja Pohjankylän koulu 5B 262, 126.) Eetu Ahonen Pohjankylän koulu 5B 261, 127.) Niina Kylmälä Pohjankylän koulu 5B 261, 128.) Martti Prittinen Pohjankylän koulu 5A 259, 129.) Tuure Anttila Pohjankylän koulu 5B 256, 130.) Joona Kallio Hollihaan koulu 237, 131.) Juuso Niemelä Hollihaan koulu 5R 235, 132.) Joona Nauha Pohjankylän koulu 6B 235, 133.) Jerry Kivioja Roikolan koulu 221, 134.) Leevi Hongisto Pohjankylän koulu 5C 220, 135.) Aaro Jukkila Pohjankylän koulu 5B 216, 136.) Ville Tölli Kyösti Kallion koulu 5C 193, 137.) Sami Hannula Kyösti Kallion koulu 5C 186, 138.) 0, 139.) 0, 140.) 0, 141.) 0, 142.) 0, 143.) 0, 144.) 0, 145.) 0, 146.) 0, 147.) 0, 148.) 0, 149.) 0, 150.) 0, 151.) 0, 152.) 0, 153.) 0, 154.) 0, 155.) 0, 156.) 0, 157.) 0, 158.) 0, 159.) 0, 160.) 0, 161.) 0, 162.) 0, 163.) 0, 164.) 0, 165.) 0, 166.) 0, 167.) 0, 168.) 0, 169.) 0, 170.) 0, 171.) 0, 172.) 0, 173.) 0, 174.) 0, 175.) 0, 176.) 0, 177.) 0, 178.) 0, 179.) 0, 180.) 0
A14: 13. | B14: =IF(Koulut!B156<>0,Koulut!B156,"") -> Joel Koskela | C14: =IF(Koulut!B156<>0,Koulut!B$153,"") -> Korhosen koulu | D14: =Koulut!C156 -> 395 | E14: =IF(A14<>"",CONCATENATE(A14,") ",B14," ",C14," ",D14,IF(E15<>"",CONCATENATE(", ",E15),"")),"") -> 13.) Joel Koskela Korhosen koulu 395, 14.) Ossi Peltokorpi Korhosen koulu 395, 15.) Joonas Lukkarila Lohtajan Kirkonkylän koulu 393, 16.) Riku Tohila Pohjankylän koulu 5C 390, 17.) Luka Liimatta Pohjankylän koulu 6B 386, 18.) Jere Päivärinta Korhosen koulu 385, 19.) Miika Rimpioja Korhosen koulu 385, 20.) Eemeli Impola Korhosen koulu 383, 21.) Lauri Knuuttila Marttilan koulu 376, 22.) Roope Rahkola Pohjankylän koulu 6A 373, 23.) Leevi Palola Pohjankylän koulu 6A 371, 24.) Miika Mutka Takalon koulu 371, 25.) Arttu Forss Pohjankylän koulu 6A 370, 26.) Atte Kangas Kälviän Kirkonkylän koulu 368, 27.) Samuli Ranta-Nilkku Kyösti Kallion koulu 5A 367, 28.) Jaakko Mattila Raumankarin koulu 367, 29.) Santtu Mörsky Lohtajan Kirkonkylän koulu 365, 30.) Viljami Tanhula Pohjankylän koulu 6C 361, 31.) Johannes Oja Kyösti Kallion koulu 5B 360, 32.) Tuukka Marjala Raumankarin koulu 360, 33.) Luka Karhu Roikolan koulu 359, 34.) Santeri Hirsikangas Raasakan koulu 6C 356, 35.) Aleksi Kaarlela Kyösti Kallion koulu 5B 356, 36.) Frank Sorjonen Pohjankylän koulu 6A 355, 37.) Rasmus Mäkelä Roikolan koulu 355, 38.) Aatu Teppo Kyösti Kallion koulu 5B 354, 39.) Santeri Rahja Tyngän aluekoulu 353, 40.) Heikki Tuorila Raumankarin koulu 351, 41.) Riku Kalliokoski Pohjankylän koulu 6B 350, 42.) Samuel Niemikorpi Korhosen koulu 349, 43.) Evert Neuvonen Takalon koulu 349, 44.) Andreas Thylin Kirkonmäen koulu 346, 45.) Valtteri Himanka Pohjankylän koulu 5A 345, 46.) Miika Suviola Pohjankylän koulu 6B 345, 47.) Joona Keskinen Kälviän Kirkonkylän koulu 344, 48.) Alexi Similä Pohjankylän koulu 6C 344, 49.) Kasper Weizman Kirkonmäen koulu 344, 50.) Viljami Vihelä Vuorenkallion koulu 340, 51.) Jimi Uusitalo Marttilan koulu 339, 52.) Jose Seppälä Hollihaan koulu 339, 53.) Joni Pentinmikko Raasakan koulu 6C 338, 54.) Arttu Kivioja Takalon koulu 338, 55.) Jere Eskola Takalon koulu 338, 56.) Jaakko Airas Vuorenkallion koulu 337, 57.) Hannes Häkkilä Pohjankylän koulu 6C 336, 58.) Aatu Silakka Raasakan koulu 6C 335, 59.) Tamas Hietala Pohjankylän koulu 6A 334, 60.) Mikael Ylitalo Pohjankylän koulu 5B 331, 61.) Oskari Rahkola Pohjankylän koulu 6B 331, 62.) Bimo Juntunen Pohjankylän koulu 5C 330, 63.) Panu Rimpioja Marttilan koulu 329, 64.) Riku Isopahkala Etelänkylän koulu 328, 65.) Konsta Piippo Hollihaan koulu 5R 327, 66.) Jere Ojala Pohjankylän koulu 5A 326, 67.) Hugo Stenbäck Tyngän aluekoulu 326, 68.) Henry Nauha Pohjankylän koulu 5C 325, 69.) Janne Forström Hollihaan koulu 5R 322, 70.) Heikki Tienvieri Kyösti Kallion koulu 5B 322, 71.) Juulio Pitkämö Tyngän aluekoulu 319, 72.) Aatu Hihnala Vuorenkallion koulu 318, 73.) Timi Tanskanen Kälviän Kirkonkylän koulu 317, 74.) Andrei Koskela Hollihaan koulu 317, 75.) Juho Pyhälä Tyngän aluekoulu 316, 76.) Miro Vehmanen Hollihaan koulu 316, 77.) Nico Mäenpää Raasakan koulu 6C 315, 78.) Lari Ojala Pohjankylän koulu 6C 315, 79.) Joonas Siipola Raumankarin koulu 315, 80.) Oskari Vihelä Etelänkylän koulu 313, 81.) Jere Laurila Pohjankylän koulu 5A 313, 82.) Otto Aho Hollihaan koulu 313, 83.) Ville Niku Kyösti Kallion koulu 5C 312, 84.) Alex Suopunki Lohtajan Kirkonkylän koulu 311, 85.) Eemil Karikumpu Kyösti Kallion koulu 5A 310, 86.) Santeri Mäkinen Raumankarin koulu 310, 87.) Artturi Nikunen Raasakan koulu 6C 308, 88.) Matias Eskola Kyösti Kallion koulu 5A 306, 89.) Herman Salmela Kyösti Kallion koulu 5A 304, 90.) Robin Kämäräinen Marttilan koulu 304, 91.) Lassi Simpanen Etelänkylän koulu 303, 92.) Iiro Kallio Kyösti Kallion koulu 5A 303, 93.) Miika Ohtamaa Kyösti Kallion koulu 5B 303, 94.) Kasperi Hannula Pohjankylän koulu 5A 302, 95.) Jarno Puikko Kälviän Kirkonkylän koulu 301, 96.) Emil Klaavu Kirkonmäen koulu 299, 97.) Julius Poutanen Marttilan koulu 298, 98.) Atte Manninen Hollihaan koulu 5R 298, 99.) Jesse Tikka Kyösti Kallion koulu 5C 298, 100.) Jere Peräaho Kyösti Kallion koulu 5B 297, 101.) Aatos Perttula Pohjankylän koulu 6C 296, 102.) Konsta Hannula Pohjankylän koulu 5C 296, 103.) Kaspian Kuki Kyösti Kallion koulu 5C 296, 104.) Oliver Viio Kyösti Kallion koulu 5C 294, 105.) Joel Kivioja Roikolan koulu 293, 106.) Valtteri Sorvala Pohjankylän koulu 5C 292, 107.) Eemeli Himanka Lohtajan Kirkonkylän koulu 290, 108.) Oskari Vänttilä Vuorenkallion koulu 290, 109.) Max Witick Roikolan koulu 288, 110.) Tuomas Lokkila Tyngän aluekoulu 288, 111.) Niko Jokinen Hollihaan koulu 287, 112.) Topias Törnval Vuorenkallion koulu 287, 113.) Jyry-Matti Niemi Pohjankylän koulu 5A 286, 114.) Jami Kinaret Hollihaan koulu 5R 285, 115.) Rasmus Andersson Kirkonmäen koulu 285, 116.) Juuso Lassila Etelänkylän koulu 282, 117.) Eeli Hiltula Marttilan koulu 281, 118.) Joel Häggblom Kirkonmäen koulu 280, 119.) Vili-Ilmari Hyyppä Hollihaan koulu 5R 279, 120.) Topi Päiveröinen Kyösti Kallion koulu 5A 278, 121.) Paavo Tilvis Pohjankylän koulu 6A 275, 122.) Aleksi Nikupaavo Pohjankylän koulu 6B 274, 123.) Oskari Nissilä Kälviän Kirkonkylän koulu 270, 124.) Jani Soukka Tyngän aluekoulu 267, 125.) Henri Vedenoja Pohjankylän koulu 5B 262, 126.) Eetu Ahonen Pohjankylän koulu 5B 261, 127.) Niina Kylmälä Pohjankylän koulu 5B 261, 128.) Martti Prittinen Pohjankylän koulu 5A 259, 129.) Tuure Anttila Pohjankylän koulu 5B 256, 130.) Joona Kallio Hollihaan koulu 237, 131.) Juuso Niemelä Hollihaan koulu 5R 235, 132.) Joona Nauha Pohjankylän koulu 6B 235, 133.) Jerry Kivioja Roikolan koulu 221, 134.) Leevi Hongisto Pohjankylän koulu 5C 220, 135.) Aaro Jukkila Pohjankylän koulu 5B 216, 136.) Ville Tölli Kyösti Kallion koulu 5C 193, 137.) Sami Hannula Kyösti Kallion koulu 5C 186, 138.) 0, 139.) 0, 140.) 0, 141.) 0, 142.) 0, 143.) 0, 144.) 0, 145.) 0, 146.) 0, 147.) 0, 148.) 0, 149.) 0, 150.) 0, 151.) 0, 152.) 0, 153.) 0, 154.) 0, 155.) 0, 156.) 0, 157.) 0, 158.) 0, 159.) 0, 160.) 0, 161.) 0, 162.) 0, 163.) 0, 164.) 0, 165.) 0, 166.) 0, 167.) 0, 168.) 0, 169.) 0, 170.) 0, 171.) 0, 172.) 0, 173.) 0, 174.) 0, 175.) 0, 176.) 0, 177.) 0, 178.) 0, 179.) 0, 180.) 0
A15: 14. | B15: =IF(Koulut!B157<>0,Koulut!B157,"") -> Ossi Peltokorpi | C15: =IF(Koulut!B157<>0,Koulut!B$153,"") -> Korhosen koulu | D15: =Koulut!C157 -> 395 | E15: 14.) Ossi Peltokorpi Korhosen koulu 395, 15.) Joonas Lukkarila Lohtajan Kirkonkylän koulu 393, 16.) Riku Tohila Pohjankylän koulu 5C 390, 17.) Luka Liimatta Pohjankylän koulu 6B 386, 18.) Jere Päivärinta Korhosen koulu 385, 19.) Miika Rimpioja Korhosen koulu 385, 20.) Eemeli Impola Korhosen koulu 383, 21.) Lauri Knuuttila Marttilan koulu 376, 22.) Roope Rahkola Pohjankylän koulu 6A 373, 23.) Leevi Palola Pohjankylän koulu 6A 371, 24.) Miika Mutka Takalon koulu 371, 25.) Arttu Forss Pohjankylän koulu 6A 370, 26.) Atte Kangas Kälviän Kirkonkylän koulu 368, 27.) Samuli Ranta-Nilkku Kyösti Kallion koulu 5A 367, 28.) Jaakko Mattila Raumankarin koulu 367, 29.) Santtu Mörsky Lohtajan Kirkonkylän koulu 365, 30.) Viljami Tanhula Pohjankylän koulu 6C 361, 31.) Johannes Oja Kyösti Kallion koulu 5B 360, 32.) Tuukka Marjala Raumankarin koulu 360, 33.) Luka Karhu Roikolan koulu 359, 34.) Santeri Hirsikangas Raasakan koulu 6C 356, 35.) Aleksi Kaarlela Kyösti Kallion koulu 5B 356, 36.) Frank Sorjonen Pohjankylän koulu 6A 355, 37.) Rasmus Mäkelä Roikolan koulu 355, 38.) Aatu Teppo Kyösti Kallion koulu 5B 354, 39.) Santeri Rahja Tyngän aluekoulu 353, 40.) Heikki Tuorila Raumankarin koulu 351, 41.) Riku Kalliokoski Pohjankylän koulu 6B 350, 42.) Samuel Niemikorpi Korhosen koulu 349, 43.) Evert Neuvonen Takalon koulu 349, 44.) Andreas Thylin Kirkonmäen koulu 346, 45.) Valtteri Himanka Pohjankylän koulu 5A 345, 46.) Miika Suviola Pohjankylän koulu 6B 345, 47.) Joona Keskinen Kälviän Kirkonkylän koulu 344, 48.) Alexi Similä Pohjankylän koulu 6C 344, 49.) Kasper Weizman Kirkonmäen koulu 344, 50.) Viljami Vihelä Vuorenkallion koulu 340, 51.) Jimi Uusitalo Marttilan koulu 339, 52.) Jose Seppälä Hollihaan koulu 339, 53.) Joni Pentinmikko Raasakan koulu 6C 338, 54.) Arttu Kivioja Takalon koulu 338, 55.) Jere Eskola Takalon koulu 338, 56.) Jaakko Airas Vuorenkallion koulu 337, 57.) Hannes Häkkilä Pohjankylän koulu 6C 336, 58.) Aatu Silakka Raasakan koulu 6C 335, 59.) Tamas Hietala Pohjankylän koulu 6A 334, 60.) Mikael Ylitalo Pohjankylän koulu 5B 331, 61.) Oskari Rahkola Pohjankylän koulu 6B 331, 62.) Bimo Juntunen Pohjankylän koulu 5C 330, 63.) Panu Rimpioja Marttilan koulu 329, 64.) Riku Isopahkala Etelänkylän koulu 328, 65.) Konsta Piippo Hollihaan koulu 5R 327, 66.) Jere Ojala Pohjankylän koulu 5A 326, 67.) Hugo Stenbäck Tyngän aluekoulu 326, 68.) Henry Nauha Pohjankylän koulu 5C 325, 69.) Janne Forström Hollihaan koulu 5R 322, 70.) Heikki Tienvieri Kyösti Kallion koulu 5B 322, 71.) Juulio Pitkämö Tyngän aluekoulu 319, 72.) Aatu Hihnala Vuorenkallion koulu 318, 73.) Timi Tanskanen Kälviän Kirkonkylän koulu 317, 74.) Andrei Koskela Hollihaan koulu 317, 75.) Juho Pyhälä Tyngän aluekoulu 316, 76.) Miro Vehmanen Hollihaan koulu 316, 77.) Nico Mäenpää Raasakan koulu 6C 315, 78.) Lari Ojala Pohjankylän koulu 6C 315, 79.) Joonas Siipola Raumankarin koulu 315, 80.) Oskari Vihelä Etelänkylän koulu 313, 81.) Jere Laurila Pohjankylän koulu 5A 313, 82.) Otto Aho Hollihaan koulu 313, 83.) Ville Niku Kyösti Kallion koulu 5C 312, 84.) Alex Suopunki Lohtajan Kirkonkylän koulu 311, 85.) Eemil Karikumpu Kyösti Kallion koulu 5A 310, 86.) Santeri Mäkinen Raumankarin koulu 310, 87.) Artturi Nikunen Raasakan koulu 6C 308, 88.) Matias Eskola Kyösti Kallion koulu 5A 306, 89.) Herman Salmela Kyösti Kallion koulu 5A 304, 90.) Robin Kämäräinen Marttilan koulu 304, 91.) Lassi Simpanen Etelänkylän koulu 303, 92.) Iiro Kallio Kyösti Kallion koulu 5A 303, 93.) Miika Ohtamaa Kyösti Kallion koulu 5B 303, 94.) Kasperi Hannula Pohjankylän koulu 5A 302, 95.) Jarno Puikko Kälviän Kirkonkylän koulu 301, 96.) Emil Klaavu Kirkonmäen koulu 299, 97.) Julius Poutanen Marttilan koulu 298, 98.) Atte Manninen Hollihaan koulu 5R 298, 99.) Jesse Tikka Kyösti Kallion koulu 5C 298, 100.) Jere Peräaho Kyösti Kallion koulu 5B 297, 101.) Aatos Perttula Pohjankylän koulu 6C 296, 102.) Konsta Hannula Pohjankylän koulu 5C 296, 103.) Kaspian Kuki Kyösti Kallion koulu 5C 296, 104.) Oliver Viio Kyösti Kallion koulu 5C 294, 105.) Joel Kivioja Roikolan koulu 293, 106.) Valtteri Sorvala Pohjankylän koulu 5C 292, 107.) Eemeli Himanka Lohtajan Kirkonkylän koulu 290, 108.) Oskari Vänttilä Vuorenkallion koulu 290, 109.) Max Witick Roikolan koulu 288, 110.) Tuomas Lokkila Tyngän aluekoulu 288, 111.) Niko Jokinen Hollihaan koulu 287, 112.) Topias Törnval Vuorenkallion koulu 287, 113.) Jyry-Matti Niemi Pohjankylän koulu 5A 286, 114.) Jami Kinaret Hollihaan koulu 5R 285, 115.) Rasmus Andersson Kirkonmäen koulu 285, 116.) Juuso Lassila Etelänkylän koulu 282, 117.) Eeli Hiltula Marttilan koulu 281, 118.) Joel Häggblom Kirkonmäen koulu 280, 119.) Vili-Ilmari Hyyppä Hollihaan koulu 5R 279, 120.) Topi Päiveröinen Kyösti Kallion koulu 5A 278, 121.) Paavo Tilvis Pohjankylän koulu 6A 275, 122.) Aleksi Nikupaavo Pohjankylän koulu 6B 274, 123.) Oskari Nissilä Kälviän Kirkonkylän koulu 270, 124.) Jani Soukka Tyngän aluekoulu 267, 125.) Henri Vedenoja Pohjankylän koulu 5B 262, 126.) Eetu Ahonen Pohjankylän koulu 5B 261, 127.) Niina Kylmälä Pohjankylän koulu 5B 261, 128.) Martti Prittinen Pohjankylän koulu 5A 259, 129.) Tuure Anttila Pohjankylän koulu 5B 256, 130.) Joona Kallio Hollihaan koulu 237, 131.) Juuso Niemelä Hollihaan koulu 5R 235, 132.) Joona Nauha Pohjankylän koulu 6B 235, 133.) Jerry Kivioja Roikolan koulu 221, 134.) Leevi Hongisto Pohjankylän koulu 5C 220, 135.) Aaro Jukkila Pohjankylän koulu 5B 216, 136.) Ville Tölli Kyösti Kallion koulu 5C 193, 137.) Sami Hannula Kyösti Kallion koulu 5C 186, 138.) 0, 139.) 0, 140.) 0, 141.) 0, 142.) 0, 143.) 0, 144.) 0, 145.) 0, 146.) 0, 147.) 0, 148.) 0, 149.) 0, 150.) 0, 151.) 0, 152.) 0, 153.) 0, 154.) 0, 155.) 0, 156.) 0, 157.) 0, 158.) 0, 159.) 0, 160.) 0, 161.) 0, 162.) 0, 163.) 0, 164.) 0, 165.) 0, 166.) 0, 167.) 0, 168.) 0, 169.) 0, 170.) 0, 171.) 0, 172.) 0, 173.) 0, 174.) 0, 175.) 0, 176.) 0, 177.) 0, 178.) 0, 179.) 0, 180.) 0
A16: 15. | B16: =IF(Koulut!B210<>0,Koulut!B210,"") -> Joonas Lukkarila | C16: =IF(Koulut!B210<>0,Koulut!B$209,"") -> Lohtajan Kirkonkylän koulu | D16: =Koulut!C210 -> 393 | E16: 15.) Joonas Lukkarila Lohtajan Kirkonkylän koulu 393, 16.) Riku Tohila Pohjankylän koulu 5C 390, 17.) Luka Liimatta Pohjankylän koulu 6B 386, 18.) Jere Päivärinta Korhosen koulu 385, 19.) Miika Rimpioja Korhosen koulu 385, 20.) Eemeli Impola Korhosen koulu 383, 21.) Lauri Knuuttila Marttilan koulu 376, 22.) Roope Rahkola Pohjankylän koulu 6A 373, 23.) Leevi Palola Pohjankylän koulu 6A 371, 24.) Miika Mutka Takalon koulu 371, 25.) Arttu Forss Pohjankylän koulu 6A 370, 26.) Atte Kangas Kälviän Kirkonkylän koulu 368, 27.) Samuli Ranta-Nilkku Kyösti Kallion koulu 5A 367, 28.) Jaakko Mattila Raumankarin koulu 367, 29.) Santtu Mörsky Lohtajan Kirkonkylän koulu 365, 30.) Viljami Tanhula Pohjankylän koulu 6C 361, 31.) Johannes Oja Kyösti Kallion koulu 5B 360, 32.) Tuukka Marjala Raumankarin koulu 360, 33.) Luka Karhu Roikolan koulu 359, 34.) Santeri Hirsikangas Raasakan koulu 6C 356, 35.) Aleksi Kaarlela Kyösti Kallion koulu 5B 356, 36.) Frank Sorjonen Pohjankylän koulu 6A 355, 37.) Rasmus Mäkelä Roikolan koulu 355, 38.) Aatu Teppo Kyösti Kallion koulu 5B 354, 39.) Santeri Rahja Tyngän aluekoulu 353, 40.) Heikki Tuorila Raumankarin koulu 351, 41.) Riku Kalliokoski Pohjankylän koulu 6B 350, 42.) Samuel Niemikorpi Korhosen koulu 349, 43.) Evert Neuvonen Takalon koulu 349, 44.) Andreas Thylin Kirkonmäen koulu 346, 45.) Valtteri Himanka Pohjankylän koulu 5A 345, 46.) Miika Suviola Pohjankylän koulu 6B 345, 47.) Joona Keskinen Kälviän Kirkonkylän koulu 344, 48.) Alexi Similä Pohjankylän koulu 6C 344, 49.) Kasper Weizman Kirkonmäen koulu 344, 50.) Viljami Vihelä Vuorenkallion koulu 340, 51.) Jimi Uusitalo Marttilan koulu 339, 52.) Jose Seppälä Hollihaan koulu 339, 53.) Joni Pentinmikko Raasakan koulu 6C 338, 54.) Arttu Kivioja Takalon koulu 338, 55.) Jere Eskola Takalon koulu 338, 56.) Jaakko Airas Vuorenkallion koulu 337, 57.) Hannes Häkkilä Pohjankylän koulu 6C 336, 58.) Aatu Silakka Raasakan koulu 6C 335, 59.) Tamas Hietala Pohjankylän koulu 6A 334, 60.) Mikael Ylitalo Pohjankylän koulu 5B 331, 61.) Oskari Rahkola Pohjankylän koulu 6B 331, 62.) Bimo Juntunen Pohjankylän koulu 5C 330, 63.) Panu Rimpioja Marttilan koulu 329, 64.) Riku Isopahkala Etelänkylän koulu 328, 65.) Konsta Piippo Hollihaan koulu 5R 327, 66.) Jere Ojala Pohjankylän koulu 5A 326, 67.) Hugo Stenbäck Tyngän aluekoulu 326, 68.) Henry Nauha Pohjankylän koulu 5C 325, 69.) Janne Forström Hollihaan koulu 5R 322, 70.) Heikki Tienvieri Kyösti Kallion koulu 5B 322, 71.) Juulio Pitkämö Tyngän aluekoulu 319, 72.) Aatu Hihnala Vuorenkallion koulu 318, 73.) Timi Tanskanen Kälviän Kirkonkylän koulu 317, 74.) Andrei Koskela Hollihaan koulu 317, 75.) Juho Pyhälä Tyngän aluekoulu 316, 76.) Miro Vehmanen Hollihaan koulu 316, 77.) Nico Mäenpää Raasakan koulu 6C 315, 78.) Lari Ojala Pohjankylän koulu 6C 315, 79.) Joonas Siipola Raumankarin koulu 315, 80.) Oskari Vihelä Etelänkylän koulu 313, 81.) Jere Laurila Pohjankylän koulu 5A 313, 82.) Otto Aho Hollihaan koulu 313, 83.) Ville Niku Kyösti Kallion koulu 5C 312, 84.) Alex Suopunki Lohtajan Kirkonkylän koulu 311, 85.) Eemil Karikumpu Kyösti Kallion koulu 5A 310, 86.) Santeri Mäkinen Raumankarin koulu 310, 87.) Artturi Nikunen Raasakan koulu 6C 308, 88.) Matias Eskola Kyösti Kallion koulu 5A 306, 89.) Herman Salmela Kyösti Kallion koulu 5A 304, 90.) Robin Kämäräinen Marttilan koulu 304, 91.) Lassi Simpanen Etelänkylän koulu 303, 92.) Iiro Kallio Kyösti Kallion koulu 5A 303, 93.) Miika Ohtamaa Kyösti Kallion koulu 5B 303, 94.) Kasperi Hannula Pohjankylän koulu 5A 302, 95.) Jarno Puikko Kälviän Kirkonkylän koulu 301, 96.) Emil Klaavu Kirkonmäen koulu 299, 97.) Julius Poutanen Marttilan koulu 298, 98.) Atte Manninen Hollihaan koulu 5R 298, 99.) Jesse Tikka Kyösti Kallion koulu 5C 298, 100.) Jere Peräaho Kyösti Kallion koulu 5B 297, 101.) Aatos Perttula Pohjankylän koulu 6C 296, 102.) Konsta Hannula Pohjankylän koulu 5C 296, 103.) Kaspian Kuki Kyösti Kallion koulu 5C 296, 104.) Oliver Viio Kyösti Kallion koulu 5C 294, 105.) Joel Kivioja Roikolan koulu 293, 106.) Valtteri Sorvala Pohjankylän koulu 5C 292, 107.) Eemeli Himanka Lohtajan Kirkonkylän koulu 290, 108.) Oskari Vänttilä Vuorenkallion koulu 290, 109.) Max Witick Roikolan koulu 288, 110.) Tuomas Lokkila Tyngän aluekoulu 288, 111.) Niko Jokinen Hollihaan koulu 287, 112.) Topias Törnval Vuorenkallion koulu 287, 113.) Jyry-Matti Niemi Pohjankylän koulu 5A 286, 114.) Jami Kinaret Hollihaan koulu 5R 285, 115.) Rasmus Andersson Kirkonmäen koulu 285, 116.) Juuso Lassila Etelänkylän koulu 282, 117.) Eeli Hiltula Marttilan koulu 281, 118.) Joel Häggblom Kirkonmäen koulu 280, 119.) Vili-Ilmari Hyyppä Hollihaan koulu 5R 279, 120.) Topi Päiveröinen Kyösti Kallion koulu 5A 278, 121.) Paavo Tilvis Pohjankylän koulu 6A 275, 122.) Aleksi Nikupaavo Pohjankylän koulu 6B 274, 123.) Oskari Nissilä Kälviän Kirkonkylän koulu 270, 124.) Jani Soukka Tyngän aluekoulu 267, 125.) Henri Vedenoja Pohjankylän koulu 5B 262, 126.) Eetu Ahonen Pohjankylän koulu 5B 261, 127.) Niina Kylmälä Pohjankylän koulu 5B 261, 128.) Martti Prittinen Pohjankylän koulu 5A 259, 129.) Tuure Anttila Pohjankylän koulu 5B 256, 130.) Joona Kallio Hollihaan koulu 237, 131.) Juuso Niemelä Hollihaan koulu 5R 235, 132.) Joona Nauha Pohjankylän koulu 6B 235, 133.) Jerry Kivioja Roikolan koulu 221, 134.) Leevi Hongisto Pohjankylän koulu 5C 220, 135.) Aaro Jukkila Pohjankylän koulu 5B 216, 136.) Ville Tölli Kyösti Kallion koulu 5C 193, 137.) Sami Hannula Kyösti Kallion koulu 5C 186, 138.) 0, 139.) 0, 140.) 0, 141.) 0, 142.) 0, 143.) 0, 144.) 0, 145.) 0, 146.) 0, 147.) 0, 148.) 0, 149.) 0, 150.) 0, 151.) 0, 152.) 0, 153.) 0, 154.) 0, 155.) 0, 156.) 0, 157.) 0, 158.) 0, 159.) 0, 160.) 0, 161.) 0, 162.) 0, 163.) 0, 164.) 0, 165.) 0, 166.) 0, 167.) 0, 168.) 0, 169.) 0, 170.) 0, 171.) 0, 172.) 0, 173.) 0, 174.) 0, 175.) 0, 176.) 0, 177.) 0, 178.) 0, 179.) 0, 180.) 0
A17: 16. | B17: =IF(Koulut!B229<>0,Koulut!B229,"") -> Riku Tohila | C17: =IF(Koulut!B229<>0,Koulut!B$223,"") -> Pohjankylän koulu 5C | D17: =Koulut!C229 -> 390 | E17: 16.) Riku Tohila Pohjankylän koulu 5C 390, 17.) Luka Liimatta Pohjankylän koulu 6B 386, 18.) Jere Päivärinta Korhosen koulu 385, 19.) Miika Rimpioja Korhosen koulu 385, 20.) Eemeli Impola Korhosen koulu 383, 21.) Lauri Knuuttila Marttilan koulu 376, 22.) Roope Rahkola Pohjankylän koulu 6A 373, 23.) Leevi Palola Pohjankylän koulu 6A 371, 24.) Miika Mutka Takalon koulu 371, 25.) Arttu Forss Pohjankylän koulu 6A 370, 26.) Atte Kangas Kälviän Kirkonkylän koulu 368, 27.) Samuli Ranta-Nilkku Kyösti Kallion koulu 5A 367, 28.) Jaakko Mattila Raumankarin koulu 367, 29.) Santtu Mörsky Lohtajan Kirkonkylän koulu 365, 30.) Viljami Tanhula Pohjankylän koulu 6C 361, 31.) Johannes Oja Kyösti Kallion koulu 5B 360, 32.) Tuukka Marjala Raumankarin koulu 360, 33.) Luka Karhu Roikolan koulu 359, 34.) Santeri Hirsikangas Raasakan koulu 6C 356, 35.) Aleksi Kaarlela Kyösti Kallion koulu 5B 356, 36.) Frank Sorjonen Pohjankylän koulu 6A 355, 37.) Rasmus Mäkelä Roikolan koulu 355, 38.) Aatu Teppo Kyösti Kallion koulu 5B 354, 39.) Santeri Rahja Tyngän aluekoulu 353, 40.) Heikki Tuorila Raumankarin koulu 351, 41.) Riku Kalliokoski Pohjankylän koulu 6B 350, 42.) Samuel Niemikorpi Korhosen koulu 349, 43.) Evert Neuvonen Takalon koulu 349, 44.) Andreas Thylin Kirkonmäen koulu 346, 45.) Valtteri Himanka Pohjankylän koulu 5A 345, 46.) Miika Suviola Pohjankylän koulu 6B 345, 47.) Joona Keskinen Kälviän Kirkonkylän koulu 344, 48.) Alexi Similä Pohjankylän koulu 6C 344, 49.) Kasper Weizman Kirkonmäen koulu 344, 50.) Viljami Vihelä Vuorenkallion koulu 340, 51.) Jimi Uusitalo Marttilan koulu 339, 52.) Jose Seppälä Hollihaan koulu 339, 53.) Joni Pentinmikko Raasakan koulu 6C 338, 54.) Arttu Kivioja Takalon koulu 338, 55.) Jere Eskola Takalon koulu 338, 56.) Jaakko Airas Vuorenkallion koulu 337, 57.) Hannes Häkkilä Pohjankylän koulu 6C 336, 58.) Aatu Silakka Raasakan koulu 6C 335, 59.) Tamas Hietala Pohjankylän koulu 6A 334, 60.) Mikael Ylitalo Pohjankylän koulu 5B 331, 61.) Oskari Rahkola Pohjankylän koulu 6B 331, 62.) Bimo Juntunen Pohjankylän koulu 5C 330, 63.) Panu Rimpioja Marttilan koulu 329, 64.) Riku Isopahkala Etelänkylän koulu 328, 65.) Konsta Piippo Hollihaan koulu 5R 327, 66.) Jere Ojala Pohjankylän koulu 5A 326, 67.) Hugo Stenbäck Tyngän aluekoulu 326, 68.) Henry Nauha Pohjankylän koulu 5C 325, 69.) Janne Forström Hollihaan koulu 5R 322, 70.) Heikki Tienvieri Kyösti Kallion koulu 5B 322, 71.) Juulio Pitkämö Tyngän aluekoulu 319, 72.) Aatu Hihnala Vuorenkallion koulu 318, 73.) Timi Tanskanen Kälviän Kirkonkylän koulu 317, 74.) Andrei Koskela Hollihaan koulu 317, 75.) Juho Pyhälä Tyngän aluekoulu 316, 76.) Miro Vehmanen Hollihaan koulu 316, 77.) Nico Mäenpää Raasakan koulu 6C 315, 78.) Lari Ojala Pohjankylän koulu 6C 315, 79.) Joonas Siipola Raumankarin koulu 315, 80.) Oskari Vihelä Etelänkylän koulu 313, 81.) Jere Laurila Pohjankylän koulu 5A 313, 82.) Otto Aho Hollihaan koulu 313, 83.) Ville Niku Kyösti Kallion koulu 5C 312, 84.) Alex Suopunki Lohtajan Kirkonkylän koulu 311, 85.) Eemil Karikumpu Kyösti Kallion koulu 5A 310, 86.) Santeri Mäkinen Raumankarin koulu 310, 87.) Artturi Nikunen Raasakan koulu 6C 308, 88.) Matias Eskola Kyösti Kallion koulu 5A 306, 89.) Herman Salmela Kyösti Kallion koulu 5A 304, 90.) Robin Kämäräinen Marttilan koulu 304, 91.) Lassi Simpanen Etelänkylän koulu 303, 92.) Iiro Kallio Kyösti Kallion koulu 5A 303, 93.) Miika Ohtamaa Kyösti Kallion koulu 5B 303, 94.) Kasperi Hannula Pohjankylän koulu 5A 302, 95.) Jarno Puikko Kälviän Kirkonkylän koulu 301, 96.) Emil Klaavu Kirkonmäen koulu 299, 97.) Julius Poutanen Marttilan koulu 298, 98.) Atte Manninen Hollihaan koulu 5R 298, 99.) Jesse Tikka Kyösti Kallion koulu 5C 298, 100.) Jere Peräaho Kyösti Kallion koulu 5B 297, 101.) Aatos Perttula Pohjankylän koulu 6C 296, 102.) Konsta Hannula Pohjankylän koulu 5C 296, 103.) Kaspian Kuki Kyösti Kallion koulu 5C 296, 104.) Oliver Viio Kyösti Kallion koulu 5C 294, 105.) Joel Kivioja Roikolan koulu 293, 106.) Valtteri Sorvala Pohjankylän koulu 5C 292, 107.) Eemeli Himanka Lohtajan Kirkonkylän koulu 290, 108.) Oskari Vänttilä Vuorenkallion koulu 290, 109.) Max Witick Roikolan koulu 288, 110.) Tuomas Lokkila Tyngän aluekoulu 288, 111.) Niko Jokinen Hollihaan koulu 287, 112.) Topias Törnval Vuorenkallion koulu 287, 113.) Jyry-Matti Niemi Pohjankylän koulu 5A 286, 114.) Jami Kinaret Hollihaan koulu 5R 285, 115.) Rasmus Andersson Kirkonmäen koulu 285, 116.) Juuso Lassila Etelänkylän koulu 282, 117.) Eeli Hiltula Marttilan koulu 281, 118.) Joel Häggblom Kirkonmäen koulu 280, 119.) Vili-Ilmari Hyyppä Hollihaan koulu 5R 279, 120.) Topi Päiveröinen Kyösti Kallion koulu 5A 278, 121.) Paavo Tilvis Pohjankylän koulu 6A 275, 122.) Aleksi Nikupaavo Pohjankylän koulu 6B 274, 123.) Oskari Nissilä Kälviän Kirkonkylän koulu 270, 124.) Jani Soukka Tyngän aluekoulu 267, 125.) Henri Vedenoja Pohjankylän koulu 5B 262, 126.) Eetu Ahonen Pohjankylän koulu 5B 261, 127.) Niina Kylmälä Pohjankylän koulu 5B 261, 128.) Martti Prittinen Pohjankylän koulu 5A 259, 129.) Tuure Anttila Pohjankylän koulu 5B 256, 130.) Joona Kallio Hollihaan koulu 237, 131.) Juuso Niemelä Hollihaan koulu 5R 235, 132.) Joona Nauha Pohjankylän koulu 6B 235, 133.) Jerry Kivioja Roikolan koulu 221, 134.) Leevi Hongisto Pohjankylän koulu 5C 220, 135.) Aaro Jukkila Pohjankylän koulu 5B 216, 136.) Ville Tölli Kyösti Kallion koulu 5C 193, 137.) Sami Hannula Kyösti Kallion koulu 5C 186, 138.) 0, 139.) 0, 140.) 0, 141.) 0, 142.) 0, 143.) 0, 144.) 0, 145.) 0, 146.) 0, 147.) 0, 148.) 0, 149.) 0, 150.) 0, 151.) 0, 152.) 0, 153.) 0, 154.) 0, 155.) 0, 156.) 0, 157.) 0, 158.) 0, 159.) 0, 160.) 0, 161.) 0, 162.) 0, 163.) 0, 164.) 0, 165.) 0, 166.) 0, 167.) 0, 168.) 0, 169.) 0, 170.) 0, 171.) 0, 172.) 0, 173.) 0, 174.) 0, 175.) 0, 176.) 0, 177.) 0, 178.) 0, 179.) 0, 180.) 0
A18: 17. | B18: =IF(Koulut!B313<>0,Koulut!B313,"") -> Luka Liimatta | C18: =IF(Koulut!B313<>0,Koulut!B$307,"") -> Pohjankylän koulu 6B | D18: =Koulut!C313 -> 386 | E18: 17.) Luka Liimatta Pohjankylän koulu 6B 386, 18.) Jere Päivärinta Korhosen koulu 385, 19.) Miika Rimpioja Korhosen koulu 385, 20.) Eemeli Impola Korhosen koulu 383, 21.) Lauri Knuuttila Marttilan koulu 376, 22.) Roope Rahkola Pohjankylän koulu 6A 373, 23.) Leevi Palola Pohjankylän koulu 6A 371, 24.) Miika Mutka Takalon koulu 371, 25.) Arttu Forss Pohjankylän koulu 6A 370, 26.) Atte Kangas Kälviän Kirkonkylän koulu 368, 27.) Samuli Ranta-Nilkku Kyösti Kallion koulu 5A 367, 28.) Jaakko Mattila Raumankarin koulu 367, 29.) Santtu Mörsky Lohtajan Kirkonkylän koulu 365, 30.) Viljami Tanhula Pohjankylän koulu 6C 361, 31.) Johannes Oja Kyösti Kallion koulu 5B 360, 32.) Tuukka Marjala Raumankarin koulu 360, 33.) Luka Karhu Roikolan koulu 359, 34.) Santeri Hirsikangas Raasakan koulu 6C 356, 35.) Aleksi Kaarlela Kyösti Kallion koulu 5B 356, 36.) Frank Sorjonen Pohjankylän koulu 6A 355, 37.) Rasmus Mäkelä Roikolan koulu 355, 38.) Aatu Teppo Kyösti Kallion koulu 5B 354, 39.) Santeri Rahja Tyngän aluekoulu 353, 40.) Heikki Tuorila Raumankarin koulu 351, 41.) Riku Kalliokoski Pohjankylän koulu 6B 350, 42.) Samuel Niemikorpi Korhosen koulu 349, 43.) Evert Neuvonen Takalon koulu 349, 44.) Andreas Thylin Kirkonmäen koulu 346, 45.) Valtteri Himanka Pohjankylän koulu 5A 345, 46.) Miika Suviola Pohjankylän koulu 6B 345, 47.) Joona Keskinen Kälviän Kirkonkylän koulu 344, 48.) Alexi Similä Pohjankylän koulu 6C 344, 49.) Kasper Weizman Kirkonmäen koulu 344, 50.) Viljami Vihelä Vuorenkallion koulu 340, 51.) Jimi Uusitalo Marttilan koulu 339, 52.) Jose Seppälä Hollihaan koulu 339, 53.) Joni Pentinmikko Raasakan koulu 6C 338, 54.) Arttu Kivioja Takalon koulu 338, 55.) Jere Eskola Takalon koulu 338, 56.) Jaakko Airas Vuorenkallion koulu 337, 57.) Hannes Häkkilä Pohjankylän koulu 6C 336, 58.) Aatu Silakka Raasakan koulu 6C 335, 59.) Tamas Hietala Pohjankylän koulu 6A 334, 60.) Mikael Ylitalo Pohjankylän koulu 5B 331, 61.) Oskari Rahkola Pohjankylän koulu 6B 331, 62.) Bimo Juntunen Pohjankylän koulu 5C 330, 63.) Panu Rimpioja Marttilan koulu 329, 64.) Riku Isopahkala Etelänkylän koulu 328, 65.) Konsta Piippo Hollihaan koulu 5R 327, 66.) Jere Ojala Pohjankylän koulu 5A 326, 67.) Hugo Stenbäck Tyngän aluekoulu 326, 68.) Henry Nauha Pohjankylän koulu 5C 325, 69.) Janne Forström Hollihaan koulu 5R 322, 70.) Heikki Tienvieri Kyösti Kallion koulu 5B 322, 71.) Juulio Pitkämö Tyngän aluekoulu 319, 72.) Aatu Hihnala Vuorenkallion koulu 318, 73.) Timi Tanskanen Kälviän Kirkonkylän koulu 317, 74.) Andrei Koskela Hollihaan koulu 317, 75.) Juho Pyhälä Tyngän aluekoulu 316, 76.) Miro Vehmanen Hollihaan koulu 316, 77.) Nico Mäenpää Raasakan koulu 6C 315, 78.) Lari Ojala Pohjankylän koulu 6C 315, 79.) Joonas Siipola Raumankarin koulu 315, 80.) Oskari Vihelä Etelänkylän koulu 313, 81.) Jere Laurila Pohjankylän koulu 5A 313, 82.) Otto Aho Hollihaan koulu 313, 83.) Ville Niku Kyösti Kallion koulu 5C 312, 84.) Alex Suopunki Lohtajan Kirkonkylän koulu 311, 85.) Eemil Karikumpu Kyösti Kallion koulu 5A 310, 86.) Santeri Mäkinen Raumankarin koulu 310, 87.) Artturi Nikunen Raasakan koulu 6C 308, 88.) Matias Eskola Kyösti Kallion koulu 5A 306, 89.) Herman Salmela Kyösti Kallion koulu 5A 304, 90.) Robin Kämäräinen Marttilan koulu 304, 91.) Lassi Simpanen Etelänkylän koulu 303, 92.) Iiro Kallio Kyösti Kallion koulu 5A 303, 93.) Miika Ohtamaa Kyösti Kallion koulu 5B 303, 94.) Kasperi Hannula Pohjankylän koulu 5A 302, 95.) Jarno Puikko Kälviän Kirkonkylän koulu 301, 96.) Emil Klaavu Kirkonmäen koulu 299, 97.) Julius Poutanen Marttilan koulu 298, 98.) Atte Manninen Hollihaan koulu 5R 298, 99.) Jesse Tikka Kyösti Kallion koulu 5C 298, 100.) Jere Peräaho Kyösti Kallion koulu 5B 297, 101.) Aatos Perttula Pohjankylän koulu 6C 296, 102.) Konsta Hannula Pohjankylän koulu 5C 296, 103.) Kaspian Kuki Kyösti Kallion koulu 5C 296, 104.) Oliver Viio Kyösti Kallion koulu 5C 294, 105.) Joel Kivioja Roikolan koulu 293, 106.) Valtteri Sorvala Pohjankylän koulu 5C 292, 107.) Eemeli Himanka Lohtajan Kirkonkylän koulu 290, 108.) Oskari Vänttilä Vuorenkallion koulu 290, 109.) Max Witick Roikolan koulu 288, 110.) Tuomas Lokkila Tyngän aluekoulu 288, 111.) Niko Jokinen Hollihaan koulu 287, 112.) Topias Törnval Vuorenkallion koulu 287, 113.) Jyry-Matti Niemi Pohjankylän koulu 5A 286, 114.) Jami Kinaret Hollihaan koulu 5R 285, 115.) Rasmus Andersson Kirkonmäen koulu 285, 116.) Juuso Lassila Etelänkylän koulu 282, 117.) Eeli Hiltula Marttilan koulu 281, 118.) Joel Häggblom Kirkonmäen koulu 280, 119.) Vili-Ilmari Hyyppä Hollihaan koulu 5R 279, 120.) Topi Päiveröinen Kyösti Kallion koulu 5A 278, 121.) Paavo Tilvis Pohjankylän koulu 6A 275, 122.) Aleksi Nikupaavo Pohjankylän koulu 6B 274, 123.) Oskari Nissilä Kälviän Kirkonkylän koulu 270, 124.) Jani Soukka Tyngän aluekoulu 267, 125.) Henri Vedenoja Pohjankylän koulu 5B 262, 126.) Eetu Ahonen Pohjankylän koulu 5B 261, 127.) Niina Kylmälä Pohjankylän koulu 5B 261, 128.) Martti Prittinen Pohjankylän koulu 5A 259, 129.) Tuure Anttila Pohjankylän koulu 5B 256, 130.) Joona Kallio Hollihaan koulu 237, 131.) Juuso Niemelä Hollihaan koulu 5R 235, 132.) Joona Nauha Pohjankylän koulu 6B 235, 133.) Jerry Kivioja Roikolan koulu 221, 134.) Leevi Hongisto Pohjankylän koulu 5C 220, 135.) Aaro Jukkila Pohjankylän koulu 5B 216, 136.) Ville Tölli Kyösti Kallion koulu 5C 193, 137.) Sami Hannula Kyösti Kallion koulu 5C 186, 138.) 0, 139.) 0, 140.) 0, 141.) 0, 142.) 0, 143.) 0, 144.) 0, 145.) 0, 146.) 0, 147.) 0, 148.) 0, 149.) 0, 150.) 0, 151.) 0, 152.) 0, 153.) 0, 154.) 0, 155.) 0, 156.) 0, 157.) 0, 158.) 0, 159.) 0, 160.) 0, 161.) 0, 162.) 0, 163.) 0, 164.) 0, 165.) 0, 166.) 0, 167.) 0, 168.) 0, 169.) 0, 170.) 0, 171.) 0, 172.) 0, 173.) 0, 174.) 0, 175.) 0, 176.) 0, 177.) 0, 178.) 0, 179.) 0, 180.) 0
A19: 18. | B19: =IF(Koulut!B154<>0,Koulut!B154,"") -> Jere Päivärinta | C19: =IF(Koulut!B154<>0,Koulut!B$153,"") -> Korhosen koulu | D19: =Koulut!C154 -> 385 | E19: 18.) Jere Päivärinta Korhosen koulu 385, 19.) Miika Rimpioja Korhosen koulu 385, 20.) Eemeli Impola Korhosen koulu 383, 21.) Lauri Knuuttila Marttilan koulu 376, 22.) Roope Rahkola Pohjankylän koulu 6A 373, 23.) Leevi Palola Pohjankylän koulu 6A 371, 24.) Miika Mutka Takalon koulu 371, 25.) Arttu Forss Pohjankylän koulu 6A 370, 26.) Atte Kangas Kälviän Kirkonkylän koulu 368, 27.) Samuli Ranta-Nilkku Kyösti Kallion koulu 5A 367, 28.) Jaakko Mattila Raumankarin koulu 367, 29.) Santtu Mörsky Lohtajan Kirkonkylän koulu 365, 30.) Viljami Tanhula Pohjankylän koulu 6C 361, 31.) Johannes Oja Kyösti Kallion koulu 5B 360, 32.) Tuukka Marjala Raumankarin koulu 360, 33.) Luka Karhu Roikolan koulu 359, 34.) Santeri Hirsikangas Raasakan koulu 6C 356, 35.) Aleksi Kaarlela Kyösti Kallion koulu 5B 356, 36.) Frank Sorjonen Pohjankylän koulu 6A 355, 37.) Rasmus Mäkelä Roikolan koulu 355, 38.) Aatu Teppo Kyösti Kallion koulu 5B 354, 39.) Santeri Rahja Tyngän aluekoulu 353, 40.) Heikki Tuorila Raumankarin koulu 351, 41.) Riku Kalliokoski Pohjankylän koulu 6B 350, 42.) Samuel Niemikorpi Korhosen koulu 349, 43.) Evert Neuvonen Takalon koulu 349, 44.) Andreas Thylin Kirkonmäen koulu 346, 45.) Valtteri Himanka Pohjankylän koulu 5A 345, 46.) Miika Suviola Pohjankylän koulu 6B 345, 47.) Joona Keskinen Kälviän Kirkonkylän koulu 344, 48.) Alexi Similä Pohjankylän koulu 6C 344, 49.) Kasper Weizman Kirkonmäen koulu 344, 50.) Viljami Vihelä Vuorenkallion koulu 340, 51.) Jimi Uusitalo Marttilan koulu 339, 52.) Jose Seppälä Hollihaan koulu 339, 53.) Joni Pentinmikko Raasakan koulu 6C 338, 54.) Arttu Kivioja Takalon koulu 338, 55.) Jere Eskola Takalon koulu 338, 56.) Jaakko Airas Vuorenkallion koulu 337, 57.) Hannes Häkkilä Pohjankylän koulu 6C 336, 58.) Aatu Silakka Raasakan koulu 6C 335, 59.) Tamas Hietala Pohjankylän koulu 6A 334, 60.) Mikael Ylitalo Pohjankylän koulu 5B 331, 61.) Oskari Rahkola Pohjankylän koulu 6B 331, 62.) Bimo Juntunen Pohjankylän koulu 5C 330, 63.) Panu Rimpioja Marttilan koulu 329, 64.) Riku Isopahkala Etelänkylän koulu 328, 65.) Konsta Piippo Hollihaan koulu 5R 327, 66.) Jere Ojala Pohjankylän koulu 5A 326, 67.) Hugo Stenbäck Tyngän aluekoulu 326, 68.) Henry Nauha Pohjankylän koulu 5C 325, 69.) Janne Forström Hollihaan koulu 5R 322, 70.) Heikki Tienvieri Kyösti Kallion koulu 5B 322, 71.) Juulio Pitkämö Tyngän aluekoulu 319, 72.) Aatu Hihnala Vuorenkallion koulu 318, 73.) Timi Tanskanen Kälviän Kirkonkylän koulu 317, 74.) Andrei Koskela Hollihaan koulu 317, 75.) Juho Pyhälä Tyngän aluekoulu 316, 76.) Miro Vehmanen Hollihaan koulu 316, 77.) Nico Mäenpää Raasakan koulu 6C 315, 78.) Lari Ojala Pohjankylän koulu 6C 315, 79.) Joonas Siipola Raumankarin koulu 315, 80.) Oskari Vihelä Etelänkylän koulu 313, 81.) Jere Laurila Pohjankylän koulu 5A 313, 82.) Otto Aho Hollihaan koulu 313, 83.) Ville Niku Kyösti Kallion koulu 5C 312, 84.) Alex Suopunki Lohtajan Kirkonkylän koulu 311, 85.) Eemil Karikumpu Kyösti Kallion koulu 5A 310, 86.) Santeri Mäkinen Raumankarin koulu 310, 87.) Artturi Nikunen Raasakan koulu 6C 308, 88.) Matias Eskola Kyösti Kallion koulu 5A 306, 89.) Herman Salmela Kyösti Kallion koulu 5A 304, 90.) Robin Kämäräinen Marttilan koulu 304, 91.) Lassi Simpanen Etelänkylän koulu 303, 92.) Iiro Kallio Kyösti Kallion koulu 5A 303, 93.) Miika Ohtamaa Kyösti Kallion koulu 5B 303, 94.) Kasperi Hannula Pohjankylän koulu 5A 302, 95.) Jarno Puikko Kälviän Kirkonkylän koulu 301, 96.) Emil Klaavu Kirkonmäen koulu 299, 97.) Julius Poutanen Marttilan koulu 298, 98.) Atte Manninen Hollihaan koulu 5R 298, 99.) Jesse Tikka Kyösti Kallion koulu 5C 298, 100.) Jere Peräaho Kyösti Kallion koulu 5B 297, 101.) Aatos Perttula Pohjankylän koulu 6C 296, 102.) Konsta Hannula Pohjankylän koulu 5C 296, 103.) Kaspian Kuki Kyösti Kallion koulu 5C 296, 104.) Oliver Viio Kyösti Kallion koulu 5C 294, 105.) Joel Kivioja Roikolan koulu 293, 106.) Valtteri Sorvala Pohjankylän koulu 5C 292, 107.) Eemeli Himanka Lohtajan Kirkonkylän koulu 290, 108.) Oskari Vänttilä Vuorenkallion koulu 290, 109.) Max Witick Roikolan koulu 288, 110.) Tuomas Lokkila Tyngän aluekoulu 288, 111.) Niko Jokinen Hollihaan koulu 287, 112.) Topias Törnval Vuorenkallion koulu 287, 113.) Jyry-Matti Niemi Pohjankylän koulu 5A 286, 114.) Jami Kinaret Hollihaan koulu 5R 285, 115.) Rasmus Andersson Kirkonmäen koulu 285, 116.) Juuso Lassila Etelänkylän koulu 282, 117.) Eeli Hiltula Marttilan koulu 281, 118.) Joel Häggblom Kirkonmäen koulu 280, 119.) Vili-Ilmari Hyyppä Hollihaan koulu 5R 279, 120.) Topi Päiveröinen Kyösti Kallion koulu 5A 278, 121.) Paavo Tilvis Pohjankylän koulu 6A 275, 122.) Aleksi Nikupaavo Pohjankylän koulu 6B 274, 123.) Oskari Nissilä Kälviän Kirkonkylän koulu 270, 124.) Jani Soukka Tyngän aluekoulu 267, 125.) Henri Vedenoja Pohjankylän koulu 5B 262, 126.) Eetu Ahonen Pohjankylän koulu 5B 261, 127.) Niina Kylmälä Pohjankylän koulu 5B 261, 128.) Martti Prittinen Pohjankylän koulu 5A 259, 129.) Tuure Anttila Pohjankylän koulu 5B 256, 130.) Joona Kallio Hollihaan koulu 237, 131.) Juuso Niemelä Hollihaan koulu 5R 235, 132.) Joona Nauha Pohjankylän koulu 6B 235, 133.) Jerry Kivioja Roikolan koulu 221, 134.) Leevi Hongisto Pohjankylän koulu 5C 220, 135.) Aaro Jukkila Pohjankylän koulu 5B 216, 136.) Ville Tölli Kyösti Kallion koulu 5C 193, 137.) Sami Hannula Kyösti Kallion koulu 5C 186, 138.) 0, 139.) 0, 140.) 0, 141.) 0, 142.) 0, 143.) 0, 144.) 0, 145.) 0, 146.) 0, 147.) 0, 148.) 0, 149.) 0, 150.) 0, 151.) 0, 152.) 0, 153.) 0, 154.) 0, 155.) 0, 156.) 0, 157.) 0, 158.) 0, 159.) 0, 160.) 0, 161.) 0, 162.) 0, 163.) 0, 164.) 0, 165.) 0, 166.) 0, 167.) 0, 168.) 0, 169.) 0, 170.) 0, 171.) 0, 172.) 0, 173.) 0, 174.) 0, 175.) 0, 176.) 0, 177.) 0, 178.) 0, 179.) 0, 180.) 0
A20: 19. | B20: =IF(Koulut!B158<>0,Koulut!B158,"") -> Miika Rimpioja | C20: =IF(Koulut!B158<>0,Koulut!B$153,"") -> Korhosen koulu | D20: =Koulut!C158 -> 385 | E20: 19.) Miika Rimpioja Korhosen koulu 385, 20.) Eemeli Impola Korhosen koulu 383, 21.) Lauri Knuuttila Marttilan koulu 376, 22.) Roope Rahkola Pohjankylän koulu 6A 373, 23.) Leevi Palola Pohjankylän koulu 6A 371, 24.) Miika Mutka Takalon koulu 371, 25.) Arttu Forss Pohjankylän koulu 6A 370, 26.) Atte Kangas Kälviän Kirkonkylän koulu 368, 27.) Samuli Ranta-Nilkku Kyösti Kallion koulu 5A 367, 28.) Jaakko Mattila Raumankarin koulu 367, 29.) Santtu Mörsky Lohtajan Kirkonkylän koulu 365, 30.) Viljami Tanhula Pohjankylän koulu 6C 361, 31.) Johannes Oja Kyösti Kallion koulu 5B 360, 32.) Tuukka Marjala Raumankarin koulu 360, 33.) Luka Karhu Roikolan koulu 359, 34.) Santeri Hirsikangas Raasakan koulu 6C 356, 35.) Aleksi Kaarlela Kyösti Kallion koulu 5B 356, 36.) Frank Sorjonen Pohjankylän koulu 6A 355, 37.) Rasmus Mäkelä Roikolan koulu 355, 38.) Aatu Teppo Kyösti Kallion koulu 5B 354, 39.) Santeri Rahja Tyngän aluekoulu 353, 40.) Heikki Tuorila Raumankarin koulu 351, 41.) Riku Kalliokoski Pohjankylän koulu 6B 350, 42.) Samuel Niemikorpi Korhosen koulu 349, 43.) Evert Neuvonen Takalon koulu 349, 44.) Andreas Thylin Kirkonmäen koulu 346, 45.) Valtteri Himanka Pohjankylän koulu 5A 345, 46.) Miika Suviola Pohjankylän koulu 6B 345, 47.) Joona Keskinen Kälviän Kirkonkylän koulu 344, 48.) Alexi Similä Pohjankylän koulu 6C 344, 49.) Kasper Weizman Kirkonmäen koulu 344, 50.) Viljami Vihelä Vuorenkallion koulu 340, 51.) Jimi Uusitalo Marttilan koulu 339, 52.) Jose Seppälä Hollihaan koulu 339, 53.) Joni Pentinmikko Raasakan koulu 6C 338, 54.) Arttu Kivioja Takalon koulu 338, 55.) Jere Eskola Takalon koulu 338, 56.) Jaakko Airas Vuorenkallion koulu 337, 57.) Hannes Häkkilä Pohjankylän koulu 6C 336, 58.) Aatu Silakka Raasakan koulu 6C 335, 59.) Tamas Hietala Pohjankylän koulu 6A 334, 60.) Mikael Ylitalo Pohjankylän koulu 5B 331, 61.) Oskari Rahkola Pohjankylän koulu 6B 331, 62.) Bimo Juntunen Pohjankylän koulu 5C 330, 63.) Panu Rimpioja Marttilan koulu 329, 64.) Riku Isopahkala Etelänkylän koulu 328, 65.) Konsta Piippo Hollihaan koulu 5R 327, 66.) Jere Ojala Pohjankylän koulu 5A 326, 67.) Hugo Stenbäck Tyngän aluekoulu 326, 68.) Henry Nauha Pohjankylän koulu 5C 325, 69.) Janne Forström Hollihaan koulu 5R 322, 70.) Heikki Tienvieri Kyösti Kallion koulu 5B 322, 71.) Juulio Pitkämö Tyngän aluekoulu 319, 72.) Aatu Hihnala Vuorenkallion koulu 318, 73.) Timi Tanskanen Kälviän Kirkonkylän koulu 317, 74.) Andrei Koskela Hollihaan koulu 317, 75.) Juho Pyhälä Tyngän aluekoulu 316, 76.) Miro Vehmanen Hollihaan koulu 316, 77.) Nico Mäenpää Raasakan koulu 6C 315, 78.) Lari Ojala Pohjankylän koulu 6C 315, 79.) Joonas Siipola Raumankarin koulu 315, 80.) Oskari Vihelä Etelänkylän koulu 313, 81.) Jere Laurila Pohjankylän koulu 5A 313, 82.) Otto Aho Hollihaan koulu 313, 83.) Ville Niku Kyösti Kallion koulu 5C 312, 84.) Alex Suopunki Lohtajan Kirkonkylän koulu 311, 85.) Eemil Karikumpu Kyösti Kallion koulu 5A 310, 86.) Santeri Mäkinen Raumankarin koulu 310, 87.) Artturi Nikunen Raasakan koulu 6C 308, 88.) Matias Eskola Kyösti Kallion koulu 5A 306, 89.) Herman Salmela Kyösti Kallion koulu 5A 304, 90.) Robin Kämäräinen Marttilan koulu 304, 91.) Lassi Simpanen Etelänkylän koulu 303, 92.) Iiro Kallio Kyösti Kallion koulu 5A 303, 93.) Miika Ohtamaa Kyösti Kallion koulu 5B 303, 94.) Kasperi Hannula Pohjankylän koulu 5A 302, 95.) Jarno Puikko Kälviän Kirkonkylän koulu 301, 96.) Emil Klaavu Kirkonmäen koulu 299, 97.) Julius Poutanen Marttilan koulu 298, 98.) Atte Manninen Hollihaan koulu 5R 298, 99.) Jesse Tikka Kyösti Kallion koulu 5C 298, 100.) Jere Peräaho Kyösti Kallion koulu 5B 297, 101.) Aatos Perttula Pohjankylän koulu 6C 296, 102.) Konsta Hannula Pohjankylän koulu 5C 296, 103.) Kaspian Kuki Kyösti Kallion koulu 5C 296, 104.) Oliver Viio Kyösti Kallion koulu 5C 294, 105.) Joel Kivioja Roikolan koulu 293, 106.) Valtteri Sorvala Pohjankylän koulu 5C 292, 107.) Eemeli Himanka Lohtajan Kirkonkylän koulu 290, 108.) Oskari Vänttilä Vuorenkallion koulu 290, 109.) Max Witick Roikolan koulu 288, 110.) Tuomas Lokkila Tyngän aluekoulu 288, 111.) Niko Jokinen Hollihaan koulu 287, 112.) Topias Törnval Vuorenkallion koulu 287, 113.) Jyry-Matti Niemi Pohjankylän koulu 5A 286, 114.) Jami Kinaret Hollihaan koulu 5R 285, 115.) Rasmus Andersson Kirkonmäen koulu 285, 116.) Juuso Lassila Etelänkylän koulu 282, 117.) Eeli Hiltula Marttilan koulu 281, 118.) Joel Häggblom Kirkonmäen koulu 280, 119.) Vili-Ilmari Hyyppä Hollihaan koulu 5R 279, 120.) Topi Päiveröinen Kyösti Kallion koulu 5A 278, 121.) Paavo Tilvis Pohjankylän koulu 6A 275, 122.) Aleksi Nikupaavo Pohjankylän koulu 6B 274, 123.) Oskari Nissilä Kälviän Kirkonkylän koulu 270, 124.) Jani Soukka Tyngän aluekoulu 267, 125.) Henri Vedenoja Pohjankylän koulu 5B 262, 126.) Eetu Ahonen Pohjankylän koulu 5B 261, 127.) Niina Kylmälä Pohjankylän koulu 5B 261, 128.) Martti Prittinen Pohjankylän koulu 5A 259, 129.) Tuure Anttila Pohjankylän koulu 5B 256, 130.) Joona Kallio Hollihaan koulu 237, 131.) Juuso Niemelä Hollihaan koulu 5R 235, 132.) Joona Nauha Pohjankylän koulu 6B 235, 133.) Jerry Kivioja Roikolan koulu 221, 134.) Leevi Hongisto Pohjankylän koulu 5C 220, 135.) Aaro Jukkila Pohjankylän koulu 5B 216, 136.) Ville Tölli Kyösti Kallion koulu 5C 193, 137.) Sami Hannula Kyösti Kallion koulu 5C 186, 138.) 0, 139.) 0, 140.) 0, 141.) 0, 142.) 0, 143.) 0, 144.) 0, 145.) 0, 146.) 0, 147.) 0, 148.) 0, 149.) 0, 150.) 0, 151.) 0, 152.) 0, 153.) 0, 154.) 0, 155.) 0, 156.) 0, 157.) 0, 158.) 0, 159.) 0, 160.) 0, 161.) 0, 162.) 0, 163.) 0, 164.) 0, 165.) 0, 166.) 0, 167.) 0, 168.) 0, 169.) 0, 170.) 0, 171.) 0, 172.) 0, 173.) 0, 174.) 0, 175.) 0, 176.) 0, 177.) 0, 178.) 0, 179.) 0, 180.) 0
A21: 20. | B21: =IF(Koulut!B159<>0,Koulut!B159,"") -> Eemeli Impola | C21: =IF(Koulut!B159<>0,Koulut!B$153,"") -> Korhosen koulu | D21: =Koulut!C159 -> 383 | E21: 20.) Eemeli Impola Korhosen koulu 383, 21.) Lauri Knuuttila Marttilan koulu 376, 22.) Roope Rahkola Pohjankylän koulu 6A 373, 23.) Leevi Palola Pohjankylän koulu 6A 371, 24.) Miika Mutka Takalon koulu 371, 25.) Arttu Forss Pohjankylän koulu 6A 370, 26.) Atte Kangas Kälviän Kirkonkylän koulu 368, 27.) Samuli Ranta-Nilkku Kyösti Kallion koulu 5A 367, 28.) Jaakko Mattila Raumankarin koulu 367, 29.) Santtu Mörsky Lohtajan Kirkonkylän koulu 365, 30.) Viljami Tanhula Pohjankylän koulu 6C 361, 31.) Johannes Oja Kyösti Kallion koulu 5B 360, 32.) Tuukka Marjala Raumankarin koulu 360, 33.) Luka Karhu Roikolan koulu 359, 34.) Santeri Hirsikangas Raasakan koulu 6C 356, 35.) Aleksi Kaarlela Kyösti Kallion koulu 5B 356, 36.) Frank Sorjonen Pohjankylän koulu 6A 355, 37.) Rasmus Mäkelä Roikolan koulu 355, 38.) Aatu Teppo Kyösti Kallion koulu 5B 354, 39.) Santeri Rahja Tyngän aluekoulu 353, 40.) Heikki Tuorila Raumankarin koulu 351, 41.) Riku Kalliokoski Pohjankylän koulu 6B 350, 42.) Samuel Niemikorpi Korhosen koulu 349, 43.) Evert Neuvonen Takalon koulu 349, 44.) Andreas Thylin Kirkonmäen koulu 346, 45.) Valtteri Himanka Pohjankylän koulu 5A 345, 46.) Miika Suviola Pohjankylän koulu 6B 345, 47.) Joona Keskinen Kälviän Kirkonkylän koulu 344, 48.) Alexi Similä Pohjankylän koulu 6C 344, 49.) Kasper Weizman Kirkonmäen koulu 344, 50.) Viljami Vihelä Vuorenkallion koulu 340, 51.) Jimi Uusitalo Marttilan koulu 339, 52.) Jose Seppälä Hollihaan koulu 339, 53.) Joni Pentinmikko Raasakan koulu 6C 338, 54.) Arttu Kivioja Takalon koulu 338, 55.) Jere Eskola Takalon koulu 338, 56.) Jaakko Airas Vuorenkallion koulu 337, 57.) Hannes Häkkilä Pohjankylän koulu 6C 336, 58.) Aatu Silakka Raasakan koulu 6C 335, 59.) Tamas Hietala Pohjankylän koulu 6A 334, 60.) Mikael Ylitalo Pohjankylän koulu 5B 331, 61.) Oskari Rahkola Pohjankylän koulu 6B 331, 62.) Bimo Juntunen Pohjankylän koulu 5C 330, 63.) Panu Rimpioja Marttilan koulu 329, 64.) Riku Isopahkala Etelänkylän koulu 328, 65.) Konsta Piippo Hollihaan koulu 5R 327, 66.) Jere Ojala Pohjankylän koulu 5A 326, 67.) Hugo Stenbäck Tyngän aluekoulu 326, 68.) Henry Nauha Pohjankylän koulu 5C 325, 69.) Janne Forström Hollihaan koulu 5R 322, 70.) Heikki Tienvieri Kyösti Kallion koulu 5B 322, 71.) Juulio Pitkämö Tyngän aluekoulu 319, 72.) Aatu Hihnala Vuorenkallion koulu 318, 73.) Timi Tanskanen Kälviän Kirkonkylän koulu 317, 74.) Andrei Koskela Hollihaan koulu 317, 75.) Juho Pyhälä Tyngän aluekoulu 316, 76.) Miro Vehmanen Hollihaan koulu 316, 77.) Nico Mäenpää Raasakan koulu 6C 315, 78.) Lari Ojala Pohjankylän koulu 6C 315, 79.) Joonas Siipola Raumankarin koulu 315, 80.) Oskari Vihelä Etelänkylän koulu 313, 81.) Jere Laurila Pohjankylän koulu 5A 313, 82.) Otto Aho Hollihaan koulu 313, 83.) Ville Niku Kyösti Kallion koulu 5C 312, 84.) Alex Suopunki Lohtajan Kirkonkylän koulu 311, 85.) Eemil Karikumpu Kyösti Kallion koulu 5A 310, 86.) Santeri Mäkinen Raumankarin koulu 310, 87.) Artturi Nikunen Raasakan koulu 6C 308, 88.) Matias Eskola Kyösti Kallion koulu 5A 306, 89.) Herman Salmela Kyösti Kallion koulu 5A 304, 90.) Robin Kämäräinen Marttilan koulu 304, 91.) Lassi Simpanen Etelänkylän koulu 303, 92.) Iiro Kallio Kyösti Kallion koulu 5A 303, 93.) Miika Ohtamaa Kyösti Kallion koulu 5B 303, 94.) Kasperi Hannula Pohjankylän koulu 5A 302, 95.) Jarno Puikko Kälviän Kirkonkylän koulu 301, 96.) Emil Klaavu Kirkonmäen koulu 299, 97.) Julius Poutanen Marttilan koulu 298, 98.) Atte Manninen Hollihaan koulu 5R 298, 99.) Jesse Tikka Kyösti Kallion koulu 5C 298, 100.) Jere Peräaho Kyösti Kallion koulu 5B 297, 101.) Aatos Perttula Pohjankylän koulu 6C 296, 102.) Konsta Hannula Pohjankylän koulu 5C 296, 103.) Kaspian Kuki Kyösti Kallion koulu 5C 296, 104.) Oliver Viio Kyösti Kallion koulu 5C 294, 105.) Joel Kivioja Roikolan koulu 293, 106.) Valtteri Sorvala Pohjankylän koulu 5C 292, 107.) Eemeli Himanka Lohtajan Kirkonkylän koulu 290, 108.) Oskari Vänttilä Vuorenkallion koulu 290, 109.) Max Witick Roikolan koulu 288, 110.) Tuomas Lokkila Tyngän aluekoulu 288, 111.) Niko Jokinen Hollihaan koulu 287, 112.) Topias Törnval Vuorenkallion koulu 287, 113.) Jyry-Matti Niemi Pohjankylän koulu 5A 286, 114.) Jami Kinaret Hollihaan koulu 5R 285, 115.) Rasmus Andersson Kirkonmäen koulu 285, 116.) Juuso Lassila Etelänkylän koulu 282, 117.) Eeli Hiltula Marttilan koulu 281, 118.) Joel Häggblom Kirkonmäen koulu 280, 119.) Vili-Ilmari Hyyppä Hollihaan koulu 5R 279, 120.) Topi Päiveröinen Kyösti Kallion koulu 5A 278, 121.) Paavo Tilvis Pohjankylän koulu 6A 275, 122.) Aleksi Nikupaavo Pohjankylän koulu 6B 274, 123.) Oskari Nissilä Kälviän Kirkonkylän koulu 270, 124.) Jani Soukka Tyngän aluekoulu 267, 125.) Henri Vedenoja Pohjankylän koulu 5B 262, 126.) Eetu Ahonen Pohjankylän koulu 5B 261, 127.) Niina Kylmälä Pohjankylän koulu 5B 261, 128.) Martti Prittinen Pohjankylän koulu 5A 259, 129.) Tuure Anttila Pohjankylän koulu 5B 256, 130.) Joona Kallio Hollihaan koulu 237, 131.) Juuso Niemelä Hollihaan koulu 5R 235, 132.) Joona Nauha Pohjankylän koulu 6B 235, 133.) Jerry Kivioja Roikolan koulu 221, 134.) Leevi Hongisto Pohjankylän koulu 5C 220, 135.) Aaro Jukkila Pohjankylän koulu 5B 216, 136.) Ville Tölli Kyösti Kallion koulu 5C 193, 137.) Sami Hannula Kyösti Kallion koulu 5C 186, 138.) 0, 139.) 0, 140.) 0, 141.) 0, 142.) 0, 143.) 0, 144.) 0, 145.) 0, 146.) 0, 147.) 0, 148.) 0, 149.) 0, 150.) 0, 151.) 0, 152.) 0, 153.) 0, 154.) 0, 155.) 0, 156.) 0, 157.) 0, 158.) 0, 159.) 0, 160.) 0, 161.) 0, 162.) 0, 163.) 0, 164.) 0, 165.) 0, 166.) 0, 167.) 0, 168.) 0, 169.) 0, 170.) 0, 171.) 0, 172.) 0, 173.) 0, 174.) 0, 175.) 0, 176.) 0, 177.) 0, 178.) 0, 179.) 0, 180.) 0
A22: 21. | B22: =IF(Koulut!B117<>0,Koulut!B117,"") -> Lauri Knuuttila | C22: =IF(Koulut!B117<>0,Koulut!B$111,"") -> Marttilan koulu | D22: =Koulut!C117 -> 376 | E22: 21.) Lauri Knuuttila Marttilan koulu 376, 22.) Roope Rahkola Pohjankylän koulu 6A 373, 23.) Leevi Palola Pohjankylän koulu 6A 371, 24.) Miika Mutka Takalon koulu 371, 25.) Arttu Forss Pohjankylän koulu 6A 370, 26.) Atte Kangas Kälviän Kirkonkylän koulu 368, 27.) Samuli Ranta-Nilkku Kyösti Kallion koulu 5A 367, 28.) Jaakko Mattila Raumankarin koulu 367, 29.) Santtu Mörsky Lohtajan Kirkonkylän koulu 365, 30.) Viljami Tanhula Pohjankylän koulu 6C 361, 31.) Johannes Oja Kyösti Kallion koulu 5B 360, 32.) Tuukka Marjala Raumankarin koulu 360, 33.) Luka Karhu Roikolan koulu 359, 34.) Santeri Hirsikangas Raasakan koulu 6C 356, 35.) Aleksi Kaarlela Kyösti Kallion koulu 5B 356, 36.) Frank Sorjonen Pohjankylän koulu 6A 355, 37.) Rasmus Mäkelä Roikolan koulu 355, 38.) Aatu Teppo Kyösti Kallion koulu 5B 354, 39.) Santeri Rahja Tyngän aluekoulu 353, 40.) Heikki Tuorila Raumankarin koulu 351, 41.) Riku Kalliokoski Pohjankylän koulu 6B 350, 42.) Samuel Niemikorpi Korhosen koulu 349, 43.) Evert Neuvonen Takalon koulu 349, 44.) Andreas Thylin Kirkonmäen koulu 346, 45.) Valtteri Himanka Pohjankylän koulu 5A 345, 46.) Miika Suviola Pohjankylän koulu 6B 345, 47.) Joona Keskinen Kälviän Kirkonkylän koulu 344, 48.) Alexi Similä Pohjankylän koulu 6C 344, 49.) Kasper Weizman Kirkonmäen koulu 344, 50.) Viljami Vihelä Vuorenkallion koulu 340, 51.) Jimi Uusitalo Marttilan koulu 339, 52.) Jose Seppälä Hollihaan koulu 339, 53.) Joni Pentinmikko Raasakan koulu 6C 338, 54.) Arttu Kivioja Takalon koulu 338, 55.) Jere Eskola Takalon koulu 338, 56.) Jaakko Airas Vuorenkallion koulu 337, 57.) Hannes Häkkilä Pohjankylän koulu 6C 336, 58.) Aatu Silakka Raasakan koulu 6C 335, 59.) Tamas Hietala Pohjankylän koulu 6A 334, 60.) Mikael Ylitalo Pohjankylän koulu 5B 331, 61.) Oskari Rahkola Pohjankylän koulu 6B 331, 62.) Bimo Juntunen Pohjankylän koulu 5C 330, 63.) Panu Rimpioja Marttilan koulu 329, 64.) Riku Isopahkala Etelänkylän koulu 328, 65.) Konsta Piippo Hollihaan koulu 5R 327, 66.) Jere Ojala Pohjankylän koulu 5A 326, 67.) Hugo Stenbäck Tyngän aluekoulu 326, 68.) Henry Nauha Pohjankylän koulu 5C 325, 69.) Janne Forström Hollihaan koulu 5R 322, 70.) Heikki Tienvieri Kyösti Kallion koulu 5B 322, 71.) Juulio Pitkämö Tyngän aluekoulu 319, 72.) Aatu Hihnala Vuorenkallion koulu 318, 73.) Timi Tanskanen Kälviän Kirkonkylän koulu 317, 74.) Andrei Koskela Hollihaan koulu 317, 75.) Juho Pyhälä Tyngän aluekoulu 316, 76.) Miro Vehmanen Hollihaan koulu 316, 77.) Nico Mäenpää Raasakan koulu 6C 315, 78.) Lari Ojala Pohjankylän koulu 6C 315, 79.) Joonas Siipola Raumankarin koulu 315, 80.) Oskari Vihelä Etelänkylän koulu 313, 81.) Jere Laurila Pohjankylän koulu 5A 313, 82.) Otto Aho Hollihaan koulu 313, 83.) Ville Niku Kyösti Kallion koulu 5C 312, 84.) Alex Suopunki Lohtajan Kirkonkylän koulu 311, 85.) Eemil Karikumpu Kyösti Kallion koulu 5A 310, 86.) Santeri Mäkinen Raumankarin koulu 310, 87.) Artturi Nikunen Raasakan koulu 6C 308, 88.) Matias Eskola Kyösti Kallion koulu 5A 306, 89.) Herman Salmela Kyösti Kallion koulu 5A 304, 90.) Robin Kämäräinen Marttilan koulu 304, 91.) Lassi Simpanen Etelänkylän koulu 303, 92.) Iiro Kallio Kyösti Kallion koulu 5A 303, 93.) Miika Ohtamaa Kyösti Kallion koulu 5B 303, 94.) Kasperi Hannula Pohjankylän koulu 5A 302, 95.) Jarno Puikko Kälviän Kirkonkylän koulu 301, 96.) Emil Klaavu Kirkonmäen koulu 299, 97.) Julius Poutanen Marttilan koulu 298, 98.) Atte Manninen Hollihaan koulu 5R 298, 99.) Jesse Tikka Kyösti Kallion koulu 5C 298, 100.) Jere Peräaho Kyösti Kallion koulu 5B 297, 101.) Aatos Perttula Pohjankylän koulu 6C 296, 102.) Konsta Hannula Pohjankylän koulu 5C 296, 103.) Kaspian Kuki Kyösti Kallion koulu 5C 296, 104.) Oliver Viio Kyösti Kallion koulu 5C 294, 105.) Joel Kivioja Roikolan koulu 293, 106.) Valtteri Sorvala Pohjankylän koulu 5C 292, 107.) Eemeli Himanka Lohtajan Kirkonkylän koulu 290, 108.) Oskari Vänttilä Vuorenkallion koulu 290, 109.) Max Witick Roikolan koulu 288, 110.) Tuomas Lokkila Tyngän aluekoulu 288, 111.) Niko Jokinen Hollihaan koulu 287, 112.) Topias Törnval Vuorenkallion koulu 287, 113.) Jyry-Matti Niemi Pohjankylän koulu 5A 286, 114.) Jami Kinaret Hollihaan koulu 5R 285, 115.) Rasmus Andersson Kirkonmäen koulu 285, 116.) Juuso Lassila Etelänkylän koulu 282, 117.) Eeli Hiltula Marttilan koulu 281, 118.) Joel Häggblom Kirkonmäen koulu 280, 119.) Vili-Ilmari Hyyppä Hollihaan koulu 5R 279, 120.) Topi Päiveröinen Kyösti Kallion koulu 5A 278, 121.) Paavo Tilvis Pohjankylän koulu 6A 275, 122.) Aleksi Nikupaavo Pohjankylän koulu 6B 274, 123.) Oskari Nissilä Kälviän Kirkonkylän koulu 270, 124.) Jani Soukka Tyngän aluekoulu 267, 125.) Henri Vedenoja Pohjankylän koulu 5B 262, 126.) Eetu Ahonen Pohjankylän koulu 5B 261, 127.) Niina Kylmälä Pohjankylän koulu 5B 261, 128.) Martti Prittinen Pohjankylän koulu 5A 259, 129.) Tuure Anttila Pohjankylän koulu 5B 256, 130.) Joona Kallio Hollihaan koulu 237, 131.) Juuso Niemelä Hollihaan koulu 5R 235, 132.) Joona Nauha Pohjankylän koulu 6B 235, 133.) Jerry Kivioja Roikolan koulu 221, 134.) Leevi Hongisto Pohjankylän koulu 5C 220, 135.) Aaro Jukkila Pohjankylän koulu 5B 216, 136.) Ville Tölli Kyösti Kallion koulu 5C 193, 137.) Sami Hannula Kyösti Kallion koulu 5C 186, 138.) 0, 139.) 0, 140.) 0, 141.) 0, 142.) 0, 143.) 0, 144.) 0, 145.) 0, 146.) 0, 147.) 0, 148.) 0, 149.) 0, 150.) 0, 151.) 0, 152.) 0, 153.) 0, 154.) 0, 155.) 0, 156.) 0, 157.) 0, 158.) 0, 159.) 0, 160.) 0, 161.) 0, 162.) 0, 163.) 0, 164.) 0, 165.) 0, 166.) 0, 167.) 0, 168.) 0, 169.) 0, 170.) 0, 171.) 0, 172.) 0, 173.) 0, 174.) 0, 175.) 0, 176.) 0, 177.) 0, 178.) 0, 179.) 0, 180.) 0
A23: 22. | B23: =IF(Koulut!B29<>0,Koulut!B29,"") -> Roope Rahkola | C23: =IF(Koulut!B29<>0,Koulut!B$27,"") -> Pohjankylän koulu 6A | D23: =Koulut!C29 -> 373 | E23: 22.) Roope Rahkola Pohjankylän koulu 6A 373, 23.) Leevi Palola Pohjankylän koulu 6A 371, 24.) Miika Mutka Takalon koulu 371, 25.) Arttu Forss Pohjankylän koulu 6A 370, 26.) Atte Kangas Kälviän Kirkonkylän koulu 368, 27.) Samuli Ranta-Nilkku Kyösti Kallion koulu 5A 367, 28.) Jaakko Mattila Raumankarin koulu 367, 29.) Santtu Mörsky Lohtajan Kirkonkylän koulu 365, 30.) Viljami Tanhula Pohjankylän koulu 6C 361, 31.) Johannes Oja Kyösti Kallion koulu 5B 360, 32.) Tuukka Marjala Raumankarin koulu 360, 33.) Luka Karhu Roikolan koulu 359, 34.) Santeri Hirsikangas Raasakan koulu 6C 356, 35.) Aleksi Kaarlela Kyösti Kallion koulu 5B 356, 36.) Frank Sorjonen Pohjankylän koulu 6A 355, 37.) Rasmus Mäkelä Roikolan koulu 355, 38.) Aatu Teppo Kyösti Kallion koulu 5B 354, 39.) Santeri Rahja Tyngän aluekoulu 353, 40.) Heikki Tuorila Raumankarin koulu 351, 41.) Riku Kalliokoski Pohjankylän koulu 6B 350, 42.) Samuel Niemikorpi Korhosen koulu 349, 43.) Evert Neuvonen Takalon koulu 349, 44.) Andreas Thylin Kirkonmäen koulu 346, 45.) Valtteri Himanka Pohjankylän koulu 5A 345, 46.) Miika Suviola Pohjankylän koulu 6B 345, 47.) Joona Keskinen Kälviän Kirkonkylän koulu 344, 48.) Alexi Similä Pohjankylän koulu 6C 344, 49.) Kasper Weizman Kirkonmäen koulu 344, 50.) Viljami Vihelä Vuorenkallion koulu 340, 51.) Jimi Uusitalo Marttilan koulu 339, 52.) Jose Seppälä Hollihaan koulu 339, 53.) Joni Pentinmikko Raasakan koulu 6C 338, 54.) Arttu Kivioja Takalon koulu 338, 55.) Jere Eskola Takalon koulu 338, 56.) Jaakko Airas Vuorenkallion koulu 337, 57.) Hannes Häkkilä Pohjankylän koulu 6C 336, 58.) Aatu Silakka Raasakan koulu 6C 335, 59.) Tamas Hietala Pohjankylän koulu 6A 334, 60.) Mikael Ylitalo Pohjankylän koulu 5B 331, 61.) Oskari Rahkola Pohjankylän koulu 6B 331, 62.) Bimo Juntunen Pohjankylän koulu 5C 330, 63.) Panu Rimpioja Marttilan koulu 329, 64.) Riku Isopahkala Etelänkylän koulu 328, 65.) Konsta Piippo Hollihaan koulu 5R 327, 66.) Jere Ojala Pohjankylän koulu 5A 326, 67.) Hugo Stenbäck Tyngän aluekoulu 326, 68.) Henry Nauha Pohjankylän koulu 5C 325, 69.) Janne Forström Hollihaan koulu 5R 322, 70.) Heikki Tienvieri Kyösti Kallion koulu 5B 322, 71.) Juulio Pitkämö Tyngän aluekoulu 319, 72.) Aatu Hihnala Vuorenkallion koulu 318, 73.) Timi Tanskanen Kälviän Kirkonkylän koulu 317, 74.) Andrei Koskela Hollihaan koulu 317, 75.) Juho Pyhälä Tyngän aluekoulu 316, 76.) Miro Vehmanen Hollihaan koulu 316, 77.) Nico Mäenpää Raasakan koulu 6C 315, 78.) Lari Ojala Pohjankylän koulu 6C 315, 79.) Joonas Siipola Raumankarin koulu 315, 80.) Oskari Vihelä Etelänkylän koulu 313, 81.) Jere Laurila Pohjankylän koulu 5A 313, 82.) Otto Aho Hollihaan koulu 313, 83.) Ville Niku Kyösti Kallion koulu 5C 312, 84.) Alex Suopunki Lohtajan Kirkonkylän koulu 311, 85.) Eemil Karikumpu Kyösti Kallion koulu 5A 310, 86.) Santeri Mäkinen Raumankarin koulu 310, 87.) Artturi Nikunen Raasakan koulu 6C 308, 88.) Matias Eskola Kyösti Kallion koulu 5A 306, 89.) Herman Salmela Kyösti Kallion koulu 5A 304, 90.) Robin Kämäräinen Marttilan koulu 304, 91.) Lassi Simpanen Etelänkylän koulu 303, 92.) Iiro Kallio Kyösti Kallion koulu 5A 303, 93.) Miika Ohtamaa Kyösti Kallion koulu 5B 303, 94.) Kasperi Hannula Pohjankylän koulu 5A 302, 95.) Jarno Puikko Kälviän Kirkonkylän koulu 301, 96.) Emil Klaavu Kirkonmäen koulu 299, 97.) Julius Poutanen Marttilan koulu 298, 98.) Atte Manninen Hollihaan koulu 5R 298, 99.) Jesse Tikka Kyösti Kallion koulu 5C 298, 100.) Jere Peräaho Kyösti Kallion koulu 5B 297, 101.) Aatos Perttula Pohjankylän koulu 6C 296, 102.) Konsta Hannula Pohjankylän koulu 5C 296, 103.) Kaspian Kuki Kyösti Kallion koulu 5C 296, 104.) Oliver Viio Kyösti Kallion koulu 5C 294, 105.) Joel Kivioja Roikolan koulu 293, 106.) Valtteri Sorvala Pohjankylän koulu 5C 292, 107.) Eemeli Himanka Lohtajan Kirkonkylän koulu 290, 108.) Oskari Vänttilä Vuorenkallion koulu 290, 109.) Max Witick Roikolan koulu 288, 110.) Tuomas Lokkila Tyngän aluekoulu 288, 111.) Niko Jokinen Hollihaan koulu 287, 112.) Topias Törnval Vuorenkallion koulu 287, 113.) Jyry-Matti Niemi Pohjankylän koulu 5A 286, 114.) Jami Kinaret Hollihaan koulu 5R 285, 115.) Rasmus Andersson Kirkonmäen koulu 285, 116.) Juuso Lassila Etelänkylän koulu 282, 117.) Eeli Hiltula Marttilan koulu 281, 118.) Joel Häggblom Kirkonmäen koulu 280, 119.) Vili-Ilmari Hyyppä Hollihaan koulu 5R 279, 120.) Topi Päiveröinen Kyösti Kallion koulu 5A 278, 121.) Paavo Tilvis Pohjankylän koulu 6A 275, 122.) Aleksi Nikupaavo Pohjankylän koulu 6B 274, 123.) Oskari Nissilä Kälviän Kirkonkylän koulu 270, 124.) Jani Soukka Tyngän aluekoulu 267, 125.) Henri Vedenoja Pohjankylän koulu 5B 262, 126.) Eetu Ahonen Pohjankylän koulu 5B 261, 127.) Niina Kylmälä Pohjankylän koulu 5B 261, 128.) Martti Prittinen Pohjankylän koulu 5A 259, 129.) Tuure Anttila Pohjankylän koulu 5B 256, 130.) Joona Kallio Hollihaan koulu 237, 131.) Juuso Niemelä Hollihaan koulu 5R 235, 132.) Joona Nauha Pohjankylän koulu 6B 235, 133.) Jerry Kivioja Roikolan koulu 221, 134.) Leevi Hongisto Pohjankylän koulu 5C 220, 135.) Aaro Jukkila Pohjankylän koulu 5B 216, 136.) Ville Tölli Kyösti Kallion koulu 5C 193, 137.) Sami Hannula Kyösti Kallion koulu 5C 186, 138.) 0, 139.) 0, 140.) 0, 141.) 0, 142.) 0, 143.) 0, 144.) 0, 145.) 0, 146.) 0, 147.) 0, 148.) 0, 149.) 0, 150.) 0, 151.) 0, 152.) 0, 153.) 0, 154.) 0, 155.) 0, 156.) 0, 157.) 0, 158.) 0, 159.) 0, 160.) 0, 161.) 0, 162.) 0, 163.) 0, 164.) 0, 165.) 0, 166.) 0, 167.) 0, 168.) 0, 169.) 0, 170.) 0, 171.) 0, 172.) 0, 173.) 0, 174.) 0, 175.) 0, 176.) 0, 177.) 0, 178.) 0, 179.) 0, 180.) 0
A24: 23. | B24: =IF(Koulut!B28<>0,Koulut!B28,"") -> Leevi Palola | C24: =IF(Koulut!B28<>0,Koulut!B$27,"") -> Pohjankylän koulu 6A | D24: =Koulut!C28 -> 371 | E24: 23.) Leevi Palola Pohjankylän koulu 6A 371, 24.) Miika Mutka Takalon koulu 371, 25.) Arttu Forss Pohjankylän koulu 6A 370, 26.) Atte Kangas Kälviän Kirkonkylän koulu 368, 27.) Samuli Ranta-Nilkku Kyösti Kallion koulu 5A 367, 28.) Jaakko Mattila Raumankarin koulu 367, 29.) Santtu Mörsky Lohtajan Kirkonkylän koulu 365, 30.) Viljami Tanhula Pohjankylän koulu 6C 361, 31.) Johannes Oja Kyösti Kallion koulu 5B 360, 32.) Tuukka Marjala Raumankarin koulu 360, 33.) Luka Karhu Roikolan koulu 359, 34.) Santeri Hirsikangas Raasakan koulu 6C 356, 35.) Aleksi Kaarlela Kyösti Kallion koulu 5B 356, 36.) Frank Sorjonen Pohjankylän koulu 6A 355, 37.) Rasmus Mäkelä Roikolan koulu 355, 38.) Aatu Teppo Kyösti Kallion koulu 5B 354, 39.) Santeri Rahja Tyngän aluekoulu 353, 40.) Heikki Tuorila Raumankarin koulu 351, 41.) Riku Kalliokoski Pohjankylän koulu 6B 350, 42.) Samuel Niemikorpi Korhosen koulu 349, 43.) Evert Neuvonen Takalon koulu 349, 44.) Andreas Thylin Kirkonmäen koulu 346, 45.) Valtteri Himanka Pohjankylän koulu 5A 345, 46.) Miika Suviola Pohjankylän koulu 6B 345, 47.) Joona Keskinen Kälviän Kirkonkylän koulu 344, 48.) Alexi Similä Pohjankylän koulu 6C 344, 49.) Kasper Weizman Kirkonmäen koulu 344, 50.) Viljami Vihelä Vuorenkallion koulu 340, 51.) Jimi Uusitalo Marttilan koulu 339, 52.) Jose Seppälä Hollihaan koulu 339, 53.) Joni Pentinmikko Raasakan koulu 6C 338, 54.) Arttu Kivioja Takalon koulu 338, 55.) Jere Eskola Takalon koulu 338, 56.) Jaakko Airas Vuorenkallion koulu 337, 57.) Hannes Häkkilä Pohjankylän koulu 6C 336, 58.) Aatu Silakka Raasakan koulu 6C 335, 59.) Tamas Hietala Pohjankylän koulu 6A 334, 60.) Mikael Ylitalo Pohjankylän koulu 5B 331, 61.) Oskari Rahkola Pohjankylän koulu 6B 331, 62.) Bimo Juntunen Pohjankylän koulu 5C 330, 63.) Panu Rimpioja Marttilan koulu 329, 64.) Riku Isopahkala Etelänkylän koulu 328, 65.) Konsta Piippo Hollihaan koulu 5R 327, 66.) Jere Ojala Pohjankylän koulu 5A 326, 67.) Hugo Stenbäck Tyngän aluekoulu 326, 68.) Henry Nauha Pohjankylän koulu 5C 325, 69.) Janne Forström Hollihaan koulu 5R 322, 70.) Heikki Tienvieri Kyösti Kallion koulu 5B 322, 71.) Juulio Pitkämö Tyngän aluekoulu 319, 72.) Aatu Hihnala Vuorenkallion koulu 318, 73.) Timi Tanskanen Kälviän Kirkonkylän koulu 317, 74.) Andrei Koskela Hollihaan koulu 317, 75.) Juho Pyhälä Tyngän aluekoulu 316, 76.) Miro Vehmanen Hollihaan koulu 316, 77.) Nico Mäenpää Raasakan koulu 6C 315, 78.) Lari Ojala Pohjankylän koulu 6C 315, 79.) Joonas Siipola Raumankarin koulu 315, 80.) Oskari Vihelä Etelänkylän koulu 313, 81.) Jere Laurila Pohjankylän koulu 5A 313, 82.) Otto Aho Hollihaan koulu 313, 83.) Ville Niku Kyösti Kallion koulu 5C 312, 84.) Alex Suopunki Lohtajan Kirkonkylän koulu 311, 85.) Eemil Karikumpu Kyösti Kallion koulu 5A 310, 86.) Santeri Mäkinen Raumankarin koulu 310, 87.) Artturi Nikunen Raasakan koulu 6C 308, 88.) Matias Eskola Kyösti Kallion koulu 5A 306, 89.) Herman Salmela Kyösti Kallion koulu 5A 304, 90.) Robin Kämäräinen Marttilan koulu 304, 91.) Lassi Simpanen Etelänkylän koulu 303, 92.) Iiro Kallio Kyösti Kallion koulu 5A 303, 93.) Miika Ohtamaa Kyösti Kallion koulu 5B 303, 94.) Kasperi Hannula Pohjankylän koulu 5A 302, 95.) Jarno Puikko Kälviän Kirkonkylän koulu 301, 96.) Emil Klaavu Kirkonmäen koulu 299, 97.) Julius Poutanen Marttilan koulu 298, 98.) Atte Manninen Hollihaan koulu 5R 298, 99.) Jesse Tikka Kyösti Kallion koulu 5C 298, 100.) Jere Peräaho Kyösti Kallion koulu 5B 297, 101.) Aatos Perttula Pohjankylän koulu 6C 296, 102.) Konsta Hannula Pohjankylän koulu 5C 296, 103.) Kaspian Kuki Kyösti Kallion koulu 5C 296, 104.) Oliver Viio Kyösti Kallion koulu 5C 294, 105.) Joel Kivioja Roikolan koulu 293, 106.) Valtteri Sorvala Pohjankylän koulu 5C 292, 107.) Eemeli Himanka Lohtajan Kirkonkylän koulu 290, 108.) Oskari Vänttilä Vuorenkallion koulu 290, 109.) Max Witick Roikolan koulu 288, 110.) Tuomas Lokkila Tyngän aluekoulu 288, 111.) Niko Jokinen Hollihaan koulu 287, 112.) Topias Törnval Vuorenkallion koulu 287, 113.) Jyry-Matti Niemi Pohjankylän koulu 5A 286, 114.) Jami Kinaret Hollihaan koulu 5R 285, 115.) Rasmus Andersson Kirkonmäen koulu 285, 116.) Juuso Lassila Etelänkylän koulu 282, 117.) Eeli Hiltula Marttilan koulu 281, 118.) Joel Häggblom Kirkonmäen koulu 280, 119.) Vili-Ilmari Hyyppä Hollihaan koulu 5R 279, 120.) Topi Päiveröinen Kyösti Kallion koulu 5A 278, 121.) Paavo Tilvis Pohjankylän koulu 6A 275, 122.) Aleksi Nikupaavo Pohjankylän koulu 6B 274, 123.) Oskari Nissilä Kälviän Kirkonkylän koulu 270, 124.) Jani Soukka Tyngän aluekoulu 267, 125.) Henri Vedenoja Pohjankylän koulu 5B 262, 126.) Eetu Ahonen Pohjankylän koulu 5B 261, 127.) Niina Kylmälä Pohjankylän koulu 5B 261, 128.) Martti Prittinen Pohjankylän koulu 5A 259, 129.) Tuure Anttila Pohjankylän koulu 5B 256, 130.) Joona Kallio Hollihaan koulu 237, 131.) Juuso Niemelä Hollihaan koulu 5R 235, 132.) Joona Nauha Pohjankylän koulu 6B 235, 133.) Jerry Kivioja Roikolan koulu 221, 134.) Leevi Hongisto Pohjankylän koulu 5C 220, 135.) Aaro Jukkila Pohjankylän koulu 5B 216, 136.) Ville Tölli Kyösti Kallion koulu 5C 193, 137.) Sami Hannula Kyösti Kallion koulu 5C 186, 138.) 0, 139.) 0, 140.) 0, 141.) 0, 142.) 0, 143.) 0, 144.) 0, 145.) 0, 146.) 0, 147.) 0, 148.) 0, 149.) 0, 150.) 0, 151.) 0, 152.) 0, 153.) 0, 154.) 0, 155.) 0, 156.) 0, 157.) 0, 158.) 0, 159.) 0, 160.) 0, 161.) 0, 162.) 0, 163.) 0, 164.) 0, 165.) 0, 166.) 0, 167.) 0, 168.) 0, 169.) 0, 170.) 0, 171.) 0, 172.) 0, 173.) 0, 174.) 0, 175.) 0, 176.) 0, 177.) 0, 178.) 0, 179.) 0, 180.) 0
A25: 24. | B25: =IF(Koulut!B296<>0,Koulut!B296,"") -> Miika Mutka | C25: =IF(Koulut!B296<>0,Koulut!B$293,"") -> Takalon koulu | D25: =Koulut!C296 -> 371 | E25: 24.) Miika Mutka Takalon koulu 371, 25.) Arttu Forss Pohjankylän koulu 6A 370, 26.) Atte Kangas Kälviän Kirkonkylän koulu 368, 27.) Samuli Ranta-Nilkku Kyösti Kallion koulu 5A 367, 28.) Jaakko Mattila Raumankarin koulu 367, 29.) Santtu Mörsky Lohtajan Kirkonkylän koulu 365, 30.) Viljami Tanhula Pohjankylän koulu 6C 361, 31.) Johannes Oja Kyösti Kallion koulu 5B 360, 32.) Tuukka Marjala Raumankarin koulu 360, 33.) Luka Karhu Roikolan koulu 359, 34.) Santeri Hirsikangas Raasakan koulu 6C 356, 35.) Aleksi Kaarlela Kyösti Kallion koulu 5B 356, 36.) Frank Sorjonen Pohjankylän koulu 6A 355, 37.) Rasmus Mäkelä Roikolan koulu 355, 38.) Aatu Teppo Kyösti Kallion koulu 5B 354, 39.) Santeri Rahja Tyngän aluekoulu 353, 40.) Heikki Tuorila Raumankarin koulu 351, 41.) Riku Kalliokoski Pohjankylän koulu 6B 350, 42.) Samuel Niemikorpi Korhosen koulu 349, 43.) Evert Neuvonen Takalon koulu 349, 44.) Andreas Thylin Kirkonmäen koulu 346, 45.) Valtteri Himanka Pohjankylän koulu 5A 345, 46.) Miika Suviola Pohjankylän koulu 6B 345, 47.) Joona Keskinen Kälviän Kirkonkylän koulu 344, 48.) Alexi Similä Pohjankylän koulu 6C 344, 49.) Kasper Weizman Kirkonmäen koulu 344, 50.) Viljami Vihelä Vuorenkallion koulu 340, 51.) Jimi Uusitalo Marttilan koulu 339, 52.) Jose Seppälä Hollihaan koulu 339, 53.) Joni Pentinmikko Raasakan koulu 6C 338, 54.) Arttu Kivioja Takalon koulu 338, 55.) Jere Eskola Takalon koulu 338, 56.) Jaakko Airas Vuorenkallion koulu 337, 57.) Hannes Häkkilä Pohjankylän koulu 6C 336, 58.) Aatu Silakka Raasakan koulu 6C 335, 59.) Tamas Hietala Pohjankylän koulu 6A 334, 60.) Mikael Ylitalo Pohjankylän koulu 5B 331, 61.) Oskari Rahkola Pohjankylän koulu 6B 331, 62.) Bimo Juntunen Pohjankylän koulu 5C 330, 63.) Panu Rimpioja Marttilan koulu 329, 64.) Riku Isopahkala Etelänkylän koulu 328, 65.) Konsta Piippo Hollihaan koulu 5R 327, 66.) Jere Ojala Pohjankylän koulu 5A 326, 67.) Hugo Stenbäck Tyngän aluekoulu 326, 68.) Henry Nauha Pohjankylän koulu 5C 325, 69.) Janne Forström Hollihaan koulu 5R 322, 70.) Heikki Tienvieri Kyösti Kallion koulu 5B 322, 71.) Juulio Pitkämö Tyngän aluekoulu 319, 72.) Aatu Hihnala Vuorenkallion koulu 318, 73.) Timi Tanskanen Kälviän Kirkonkylän koulu 317, 74.) Andrei Koskela Hollihaan koulu 317, 75.) Juho Pyhälä Tyngän aluekoulu 316, 76.) Miro Vehmanen Hollihaan koulu 316, 77.) Nico Mäenpää Raasakan koulu 6C 315, 78.) Lari Ojala Pohjankylän koulu 6C 315, 79.) Joonas Siipola Raumankarin koulu 315, 80.) Oskari Vihelä Etelänkylän koulu 313, 81.) Jere Laurila Pohjankylän koulu 5A 313, 82.) Otto Aho Hollihaan koulu 313, 83.) Ville Niku Kyösti Kallion koulu 5C 312, 84.) Alex Suopunki Lohtajan Kirkonkylän koulu 311, 85.) Eemil Karikumpu Kyösti Kallion koulu 5A 310, 86.) Santeri Mäkinen Raumankarin koulu 310, 87.) Artturi Nikunen Raasakan koulu 6C 308, 88.) Matias Eskola Kyösti Kallion koulu 5A 306, 89.) Herman Salmela Kyösti Kallion koulu 5A 304, 90.) Robin Kämäräinen Marttilan koulu 304, 91.) Lassi Simpanen Etelänkylän koulu 303, 92.) Iiro Kallio Kyösti Kallion koulu 5A 303, 93.) Miika Ohtamaa Kyösti Kallion koulu 5B 303, 94.) Kasperi Hannula Pohjankylän koulu 5A 302, 95.) Jarno Puikko Kälviän Kirkonkylän koulu 301, 96.) Emil Klaavu Kirkonmäen koulu 299, 97.) Julius Poutanen Marttilan koulu 298, 98.) Atte Manninen Hollihaan koulu 5R 298, 99.) Jesse Tikka Kyösti Kallion koulu 5C 298, 100.) Jere Peräaho Kyösti Kallion koulu 5B 297, 101.) Aatos Perttula Pohjankylän koulu 6C 296, 102.) Konsta Hannula Pohjankylän koulu 5C 296, 103.) Kaspian Kuki Kyösti Kallion koulu 5C 296, 104.) Oliver Viio Kyösti Kallion koulu 5C 294, 105.) Joel Kivioja Roikolan koulu 293, 106.) Valtteri Sorvala Pohjankylän koulu 5C 292, 107.) Eemeli Himanka Lohtajan Kirkonkylän koulu 290, 108.) Oskari Vänttilä Vuorenkallion koulu 290, 109.) Max Witick Roikolan koulu 288, 110.) Tuomas Lokkila Tyngän aluekoulu 288, 111.) Niko Jokinen Hollihaan koulu 287, 112.) Topias Törnval Vuorenkallion koulu 287, 113.) Jyry-Matti Niemi Pohjankylän koulu 5A 286, 114.) Jami Kinaret Hollihaan koulu 5R 285, 115.) Rasmus Andersson Kirkonmäen koulu 285, 116.) Juuso Lassila Etelänkylän koulu 282, 117.) Eeli Hiltula Marttilan koulu 281, 118.) Joel Häggblom Kirkonmäen koulu 280, 119.) Vili-Ilmari Hyyppä Hollihaan koulu 5R 279, 120.) Topi Päiveröinen Kyösti Kallion koulu 5A 278, 121.) Paavo Tilvis Pohjankylän koulu 6A 275, 122.) Aleksi Nikupaavo Pohjankylän koulu 6B 274, 123.) Oskari Nissilä Kälviän Kirkonkylän koulu 270, 124.) Jani Soukka Tyngän aluekoulu 267, 125.) Henri Vedenoja Pohjankylän koulu 5B 262, 126.) Eetu Ahonen Pohjankylän koulu 5B 261, 127.) Niina Kylmälä Pohjankylän koulu 5B 261, 128.) Martti Prittinen Pohjankylän koulu 5A 259, 129.) Tuure Anttila Pohjankylän koulu 5B 256, 130.) Joona Kallio Hollihaan koulu 237, 131.) Juuso Niemelä Hollihaan koulu 5R 235, 132.) Joona Nauha Pohjankylän koulu 6B 235, 133.) Jerry Kivioja Roikolan koulu 221, 134.) Leevi Hongisto Pohjankylän koulu 5C 220, 135.) Aaro Jukkila Pohjankylän koulu 5B 216, 136.) Ville Tölli Kyösti Kallion koulu 5C 193, 137.) Sami Hannula Kyösti Kallion koulu 5C 186, 138.) 0, 139.) 0, 140.) 0, 141.) 0, 142.) 0, 143.) 0, 144.) 0, 145.) 0, 146.) 0, 147.) 0, 148.) 0, 149.) 0, 150.) 0, 151.) 0, 152.) 0, 153.) 0, 154.) 0, 155.) 0, 156.) 0, 157.) 0, 158.) 0, 159.) 0, 160.) 0, 161.) 0, 162.) 0, 163.) 0, 164.) 0, 165.) 0, 166.) 0, 167.) 0, 168.) 0, 169.) 0, 170.) 0, 171.) 0, 172.) 0, 173.) 0, 174.) 0, 175.) 0, 176.) 0, 177.) 0, 178.) 0, 179.) 0, 180.) 0
A26: 25. | B26: =IF(Koulut!B33<>0,Koulut!B33,"") -> Arttu Forss | C26: =IF(Koulut!B33<>0,Koulut!B$27,"") -> Pohjankylän koulu 6A | D26: =Koulut!C33 -> 370 | E26: 25.) Arttu Forss Pohjankylän koulu 6A 370, 26.) Atte Kangas Kälviän Kirkonkylän koulu 368, 27.) Samuli Ranta-Nilkku Kyösti Kallion koulu 5A 367, 28.) Jaakko Mattila Raumankarin koulu 367, 29.) Santtu Mörsky Lohtajan Kirkonkylän koulu 365, 30.) Viljami Tanhula Pohjankylän koulu 6C 361, 31.) Johannes Oja Kyösti Kallion koulu 5B 360, 32.) Tuukka Marjala Raumankarin koulu 360, 33.) Luka Karhu Roikolan koulu 359, 34.) Santeri Hirsikangas Raasakan koulu 6C 356, 35.) Aleksi Kaarlela Kyösti Kallion koulu 5B 356, 36.) Frank Sorjonen Pohjankylän koulu 6A 355, 37.) Rasmus Mäkelä Roikolan koulu 355, 38.) Aatu Teppo Kyösti Kallion koulu 5B 354, 39.) Santeri Rahja Tyngän aluekoulu 353, 40.) Heikki Tuorila Raumankarin koulu 351, 41.) Riku Kalliokoski Pohjankylän koulu 6B 350, 42.) Samuel Niemikorpi Korhosen koulu 349, 43.) Evert Neuvonen Takalon koulu 349, 44.) Andreas Thylin Kirkonmäen koulu 346, 45.) Valtteri Himanka Pohjankylän koulu 5A 345, 46.) Miika Suviola Pohjankylän koulu 6B 345, 47.) Joona Keskinen Kälviän Kirkonkylän koulu 344, 48.) Alexi Similä Pohjankylän koulu 6C 344, 49.) Kasper Weizman Kirkonmäen koulu 344, 50.) Viljami Vihelä Vuorenkallion koulu 340, 51.) Jimi Uusitalo Marttilan koulu 339, 52.) Jose Seppälä Hollihaan koulu 339, 53.) Joni Pentinmikko Raasakan koulu 6C 338, 54.) Arttu Kivioja Takalon koulu 338, 55.) Jere Eskola Takalon koulu 338, 56.) Jaakko Airas Vuorenkallion koulu 337, 57.) Hannes Häkkilä Pohjankylän koulu 6C 336, 58.) Aatu Silakka Raasakan koulu 6C 335, 59.) Tamas Hietala Pohjankylän koulu 6A 334, 60.) Mikael Ylitalo Pohjankylän koulu 5B 331, 61.) Oskari Rahkola Pohjankylän koulu 6B 331, 62.) Bimo Juntunen Pohjankylän koulu 5C 330, 63.) Panu Rimpioja Marttilan koulu 329, 64.) Riku Isopahkala Etelänkylän koulu 328, 65.) Konsta Piippo Hollihaan koulu 5R 327, 66.) Jere Ojala Pohjankylän koulu 5A 326, 67.) Hugo Stenbäck Tyngän aluekoulu 326, 68.) Henry Nauha Pohjankylän koulu 5C 325, 69.) Janne Forström Hollihaan koulu 5R 322, 70.) Heikki Tienvieri Kyösti Kallion koulu 5B 322, 71.) Juulio Pitkämö Tyngän aluekoulu 319, 72.) Aatu Hihnala Vuorenkallion koulu 318, 73.) Timi Tanskanen Kälviän Kirkonkylän koulu 317, 74.) Andrei Koskela Hollihaan koulu 317, 75.) Juho Pyhälä Tyngän aluekoulu 316, 76.) Miro Vehmanen Hollihaan koulu 316, 77.) Nico Mäenpää Raasakan koulu 6C 315, 78.) Lari Ojala Pohjankylän koulu 6C 315, 79.) Joonas Siipola Raumankarin koulu 315, 80.) Oskari Vihelä Etelänkylän koulu 313, 81.) Jere Laurila Pohjankylän koulu 5A 313, 82.) Otto Aho Hollihaan koulu 313, 83.) Ville Niku Kyösti Kallion koulu 5C 312, 84.) Alex Suopunki Lohtajan Kirkonkylän koulu 311, 85.) Eemil Karikumpu Kyösti Kallion koulu 5A 310, 86.) Santeri Mäkinen Raumankarin koulu 310, 87.) Artturi Nikunen Raasakan koulu 6C 308, 88.) Matias Eskola Kyösti Kallion koulu 5A 306, 89.) Herman Salmela Kyösti Kallion koulu 5A 304, 90.) Robin Kämäräinen Marttilan koulu 304, 91.) Lassi Simpanen Etelänkylän koulu 303, 92.) Iiro Kallio Kyösti Kallion koulu 5A 303, 93.) Miika Ohtamaa Kyösti Kallion koulu 5B 303, 94.) Kasperi Hannula Pohjankylän koulu 5A 302, 95.) Jarno Puikko Kälviän Kirkonkylän koulu 301, 96.) Emil Klaavu Kirkonmäen koulu 299, 97.) Julius Poutanen Marttilan koulu 298, 98.) Atte Manninen Hollihaan koulu 5R 298, 99.) Jesse Tikka Kyösti Kallion koulu 5C 298, 100.) Jere Peräaho Kyösti Kallion koulu 5B 297, 101.) Aatos Perttula Pohjankylän koulu 6C 296, 102.) Konsta Hannula Pohjankylän koulu 5C 296, 103.) Kaspian Kuki Kyösti Kallion koulu 5C 296, 104.) Oliver Viio Kyösti Kallion koulu 5C 294, 105.) Joel Kivioja Roikolan koulu 293, 106.) Valtteri Sorvala Pohjankylän koulu 5C 292, 107.) Eemeli Himanka Lohtajan Kirkonkylän koulu 290, 108.) Oskari Vänttilä Vuorenkallion koulu 290, 109.) Max Witick Roikolan koulu 288, 110.) Tuomas Lokkila Tyngän aluekoulu 288, 111.) Niko Jokinen Hollihaan koulu 287, 112.) Topias Törnval Vuorenkallion koulu 287, 113.) Jyry-Matti Niemi Pohjankylän koulu 5A 286, 114.) Jami Kinaret Hollihaan koulu 5R 285, 115.) Rasmus Andersson Kirkonmäen koulu 285, 116.) Juuso Lassila Etelänkylän koulu 282, 117.) Eeli Hiltula Marttilan koulu 281, 118.) Joel Häggblom Kirkonmäen koulu 280, 119.) Vili-Ilmari Hyyppä Hollihaan koulu 5R 279, 120.) Topi Päiveröinen Kyösti Kallion koulu 5A 278, 121.) Paavo Tilvis Pohjankylän koulu 6A 275, 122.) Aleksi Nikupaavo Pohjankylän koulu 6B 274, 123.) Oskari Nissilä Kälviän Kirkonkylän koulu 270, 124.) Jani Soukka Tyngän aluekoulu 267, 125.) Henri Vedenoja Pohjankylän koulu 5B 262, 126.) Eetu Ahonen Pohjankylän koulu 5B 261, 127.) Niina Kylmälä Pohjankylän koulu 5B 261, 128.) Martti Prittinen Pohjankylän koulu 5A 259, 129.) Tuure Anttila Pohjankylän koulu 5B 256, 130.) Joona Kallio Hollihaan koulu 237, 131.) Juuso Niemelä Hollihaan koulu 5R 235, 132.) Joona Nauha Pohjankylän koulu 6B 235, 133.) Jerry Kivioja Roikolan koulu 221, 134.) Leevi Hongisto Pohjankylän koulu 5C 220, 135.) Aaro Jukkila Pohjankylän koulu 5B 216, 136.) Ville Tölli Kyösti Kallion koulu 5C 193, 137.) Sami Hannula Kyösti Kallion koulu 5C 186, 138.) 0, 139.) 0, 140.) 0, 141.) 0, 142.) 0, 143.) 0, 144.) 0, 145.) 0, 146.) 0, 147.) 0, 148.) 0, 149.) 0, 150.) 0, 151.) 0, 152.) 0, 153.) 0, 154.) 0, 155.) 0, 156.) 0, 157.) 0, 158.) 0, 159.) 0, 160.) 0, 161.) 0, 162.) 0, 163.) 0, 164.) 0, 165.) 0, 166.) 0, 167.) 0, 168.) 0, 169.) 0, 170.) 0, 171.) 0, 172.) 0, 173.) 0, 174.) 0, 175.) 0, 176.) 0, 177.) 0, 178.) 0, 179.) 0, 180.) 0
A27: 26. | B27: =IF(Koulut!B59<>0,Koulut!B59,"") -> Atte Kangas | C27: =IF(Koulut!B59<>0,Koulut!B$55,"") -> Kälviän Kirkonkylän koulu | D27: =Koulut!C59 -> 368 | E27: 26.) Atte Kangas Kälviän Kirkonkylän koulu 368, 27.) Samuli Ranta-Nilkku Kyösti Kallion koulu 5A 367, 28.) Jaakko Mattila Raumankarin koulu 367, 29.) Santtu Mörsky Lohtajan Kirkonkylän koulu 365, 30.) Viljami Tanhula Pohjankylän koulu 6C 361, 31.) Johannes Oja Kyösti Kallion koulu 5B 360, 32.) Tuukka Marjala Raumankarin koulu 360, 33.) Luka Karhu Roikolan koulu 359, 34.) Santeri Hirsikangas Raasakan koulu 6C 356, 35.) Aleksi Kaarlela Kyösti Kallion koulu 5B 356, 36.) Frank Sorjonen Pohjankylän koulu 6A 355, 37.) Rasmus Mäkelä Roikolan koulu 355, 38.) Aatu Teppo Kyösti Kallion koulu 5B 354, 39.) Santeri Rahja Tyngän aluekoulu 353, 40.) Heikki Tuorila Raumankarin koulu 351, 41.) Riku Kalliokoski Pohjankylän koulu 6B 350, 42.) Samuel Niemikorpi Korhosen koulu 349, 43.) Evert Neuvonen Takalon koulu 349, 44.) Andreas Thylin Kirkonmäen koulu 346, 45.) Valtteri Himanka Pohjankylän koulu 5A 345, 46.) Miika Suviola Pohjankylän koulu 6B 345, 47.) Joona Keskinen Kälviän Kirkonkylän koulu 344, 48.) Alexi Similä Pohjankylän koulu 6C 344, 49.) Kasper Weizman Kirkonmäen koulu 344, 50.) Viljami Vihelä Vuorenkallion koulu 340, 51.) Jimi Uusitalo Marttilan koulu 339, 52.) Jose Seppälä Hollihaan koulu 339, 53.) Joni Pentinmikko Raasakan koulu 6C 338, 54.) Arttu Kivioja Takalon koulu 338, 55.) Jere Eskola Takalon koulu 338, 56.) Jaakko Airas Vuorenkallion koulu 337, 57.) Hannes Häkkilä Pohjankylän koulu 6C 336, 58.) Aatu Silakka Raasakan koulu 6C 335, 59.) Tamas Hietala Pohjankylän koulu 6A 334, 60.) Mikael Ylitalo Pohjankylän koulu 5B 331, 61.) Oskari Rahkola Pohjankylän koulu 6B 331, 62.) Bimo Juntunen Pohjankylän koulu 5C 330, 63.) Panu Rimpioja Marttilan koulu 329, 64.) Riku Isopahkala Etelänkylän koulu 328, 65.) Konsta Piippo Hollihaan koulu 5R 327, 66.) Jere Ojala Pohjankylän koulu 5A 326, 67.) Hugo Stenbäck Tyngän aluekoulu 326, 68.) Henry Nauha Pohjankylän koulu 5C 325, 69.) Janne Forström Hollihaan koulu 5R 322, 70.) Heikki Tienvieri Kyösti Kallion koulu 5B 322, 71.) Juulio Pitkämö Tyngän aluekoulu 319, 72.) Aatu Hihnala Vuorenkallion koulu 318, 73.) Timi Tanskanen Kälviän Kirkonkylän koulu 317, 74.) Andrei Koskela Hollihaan koulu 317, 75.) Juho Pyhälä Tyngän aluekoulu 316, 76.) Miro Vehmanen Hollihaan koulu 316, 77.) Nico Mäenpää Raasakan koulu 6C 315, 78.) Lari Ojala Pohjankylän koulu 6C 315, 79.) Joonas Siipola Raumankarin koulu 315, 80.) Oskari Vihelä Etelänkylän koulu 313, 81.) Jere Laurila Pohjankylän koulu 5A 313, 82.) Otto Aho Hollihaan koulu 313, 83.) Ville Niku Kyösti Kallion koulu 5C 312, 84.) Alex Suopunki Lohtajan Kirkonkylän koulu 311, 85.) Eemil Karikumpu Kyösti Kallion koulu 5A 310, 86.) Santeri Mäkinen Raumankarin koulu 310, 87.) Artturi Nikunen Raasakan koulu 6C 308, 88.) Matias Eskola Kyösti Kallion koulu 5A 306, 89.) Herman Salmela Kyösti Kallion koulu 5A 304, 90.) Robin Kämäräinen Marttilan koulu 304, 91.) Lassi Simpanen Etelänkylän koulu 303, 92.) Iiro Kallio Kyösti Kallion koulu 5A 303, 93.) Miika Ohtamaa Kyösti Kallion koulu 5B 303, 94.) Kasperi Hannula Pohjankylän koulu 5A 302, 95.) Jarno Puikko Kälviän Kirkonkylän koulu 301, 96.) Emil Klaavu Kirkonmäen koulu 299, 97.) Julius Poutanen Marttilan koulu 298, 98.) Atte Manninen Hollihaan koulu 5R 298, 99.) Jesse Tikka Kyösti Kallion koulu 5C 298, 100.) Jere Peräaho Kyösti Kallion koulu 5B 297, 101.) Aatos Perttula Pohjankylän koulu 6C 296, 102.) Konsta Hannula Pohjankylän koulu 5C 296, 103.) Kaspian Kuki Kyösti Kallion koulu 5C 296, 104.) Oliver Viio Kyösti Kallion koulu 5C 294, 105.) Joel Kivioja Roikolan koulu 293, 106.) Valtteri Sorvala Pohjankylän koulu 5C 292, 107.) Eemeli Himanka Lohtajan Kirkonkylän koulu 290, 108.) Oskari Vänttilä Vuorenkallion koulu 290, 109.) Max Witick Roikolan koulu 288, 110.) Tuomas Lokkila Tyngän aluekoulu 288, 111.) Niko Jokinen Hollihaan koulu 287, 112.) Topias Törnval Vuorenkallion koulu 287, 113.) Jyry-Matti Niemi Pohjankylän koulu 5A 286, 114.) Jami Kinaret Hollihaan koulu 5R 285, 115.) Rasmus Andersson Kirkonmäen koulu 285, 116.) Juuso Lassila Etelänkylän koulu 282, 117.) Eeli Hiltula Marttilan koulu 281, 118.) Joel Häggblom Kirkonmäen koulu 280, 119.) Vili-Ilmari Hyyppä Hollihaan koulu 5R 279, 120.) Topi Päiveröinen Kyösti Kallion koulu 5A 278, 121.) Paavo Tilvis Pohjankylän koulu 6A 275, 122.) Aleksi Nikupaavo Pohjankylän koulu 6B 274, 123.) Oskari Nissilä Kälviän Kirkonkylän koulu 270, 124.) Jani Soukka Tyngän aluekoulu 267, 125.) Henri Vedenoja Pohjankylän koulu 5B 262, 126.) Eetu Ahonen Pohjankylän koulu 5B 261, 127.) Niina Kylmälä Pohjankylän koulu 5B 261, 128.) Martti Prittinen Pohjankylän koulu 5A 259, 129.) Tuure Anttila Pohjankylän koulu 5B 256, 130.) Joona Kallio Hollihaan koulu 237, 131.) Juuso Niemelä Hollihaan koulu 5R 235, 132.) Joona Nauha Pohjankylän koulu 6B 235, 133.) Jerry Kivioja Roikolan koulu 221, 134.) Leevi Hongisto Pohjankylän koulu 5C 220, 135.) Aaro Jukkila Pohjankylän koulu 5B 216, 136.) Ville Tölli Kyösti Kallion koulu 5C 193, 137.) Sami Hannula Kyösti Kallion koulu 5C 186, 138.) 0, 139.) 0, 140.) 0, 141.) 0, 142.) 0, 143.) 0, 144.) 0, 145.) 0, 146.) 0, 147.) 0, 148.) 0, 149.) 0, 150.) 0, 151.) 0, 152.) 0, 153.) 0, 154.) 0, 155.) 0, 156.) 0, 157.) 0, 158.) 0, 159.) 0, 160.) 0, 161.) 0, 162.) 0, 163.) 0, 164.) 0, 165.) 0, 166.) 0, 167.) 0, 168.) 0, 169.) 0, 170.) 0, 171.) 0, 172.) 0, 173.) 0, 174.) 0, 175.) 0, 176.) 0, 177.) 0, 178.) 0, 179.) 0, 180.) 0
A28: 27. | B28: =IF(Koulut!B72<>0,Koulut!B72,"") -> Samuli Ranta-Nilkku | C28: =IF(Koulut!B72<>0,Koulut!B$69,"") -> Kyösti Kallion koulu 5A | D28: =Koulut!C72 -> 367 | E28: 27.) Samuli Ranta-Nilkku Kyösti Kallion koulu 5A 367, 28.) Jaakko Mattila Raumankarin koulu 367, 29.) Santtu Mörsky Lohtajan Kirkonkylän koulu 365, 30.) Viljami Tanhula Pohjankylän koulu 6C 361, 31.) Johannes Oja Kyösti Kallion koulu 5B 360, 32.) Tuukka Marjala Raumankarin koulu 360, 33.) Luka Karhu Roikolan koulu 359, 34.) Santeri Hirsikangas Raasakan koulu 6C 356, 35.) Aleksi Kaarlela Kyösti Kallion koulu 5B 356, 36.) Frank Sorjonen Pohjankylän koulu 6A 355, 37.) Rasmus Mäkelä Roikolan koulu 355, 38.) Aatu Teppo Kyösti Kallion koulu 5B 354, 39.) Santeri Rahja Tyngän aluekoulu 353, 40.) Heikki Tuorila Raumankarin koulu 351, 41.) Riku Kalliokoski Pohjankylän koulu 6B 350, 42.) Samuel Niemikorpi Korhosen koulu 349, 43.) Evert Neuvonen Takalon koulu 349, 44.) Andreas Thylin Kirkonmäen koulu 346, 45.) Valtteri Himanka Pohjankylän koulu 5A 345, 46.) Miika Suviola Pohjankylän koulu 6B 345, 47.) Joona Keskinen Kälviän Kirkonkylän koulu 344, 48.) Alexi Similä Pohjankylän koulu 6C 344, 49.) Kasper Weizman Kirkonmäen koulu 344, 50.) Viljami Vihelä Vuorenkallion koulu 340, 51.) Jimi Uusitalo Marttilan koulu 339, 52.) Jose Seppälä Hollihaan koulu 339, 53.) Joni Pentinmikko Raasakan koulu 6C 338, 54.) Arttu Kivioja Takalon koulu 338, 55.) Jere Eskola Takalon koulu 338, 56.) Jaakko Airas Vuorenkallion koulu 337, 57.) Hannes Häkkilä Pohjankylän koulu 6C 336, 58.) Aatu Silakka Raasakan koulu 6C 335, 59.) Tamas Hietala Pohjankylän koulu 6A 334, 60.) Mikael Ylitalo Pohjankylän koulu 5B 331, 61.) Oskari Rahkola Pohjankylän koulu 6B 331, 62.) Bimo Juntunen Pohjankylän koulu 5C 330, 63.) Panu Rimpioja Marttilan koulu 329, 64.) Riku Isopahkala Etelänkylän koulu 328, 65.) Konsta Piippo Hollihaan koulu 5R 327, 66.) Jere Ojala Pohjankylän koulu 5A 326, 67.) Hugo Stenbäck Tyngän aluekoulu 326, 68.) Henry Nauha Pohjankylän koulu 5C 325, 69.) Janne Forström Hollihaan koulu 5R 322, 70.) Heikki Tienvieri Kyösti Kallion koulu 5B 322, 71.) Juulio Pitkämö Tyngän aluekoulu 319, 72.) Aatu Hihnala Vuorenkallion koulu 318, 73.) Timi Tanskanen Kälviän Kirkonkylän koulu 317, 74.) Andrei Koskela Hollihaan koulu 317, 75.) Juho Pyhälä Tyngän aluekoulu 316, 76.) Miro Vehmanen Hollihaan koulu 316, 77.) Nico Mäenpää Raasakan koulu 6C 315, 78.) Lari Ojala Pohjankylän koulu 6C 315, 79.) Joonas Siipola Raumankarin koulu 315, 80.) Oskari Vihelä Etelänkylän koulu 313, 81.) Jere Laurila Pohjankylän koulu 5A 313, 82.) Otto Aho Hollihaan koulu 313, 83.) Ville Niku Kyösti Kallion koulu 5C 312, 84.) Alex Suopunki Lohtajan Kirkonkylän koulu 311, 85.) Eemil Karikumpu Kyösti Kallion koulu 5A 310, 86.) Santeri Mäkinen Raumankarin koulu 310, 87.) Artturi Nikunen Raasakan koulu 6C 308, 88.) Matias Eskola Kyösti Kallion koulu 5A 306, 89.) Herman Salmela Kyösti Kallion koulu 5A 304, 90.) Robin Kämäräinen Marttilan koulu 304, 91.) Lassi Simpanen Etelänkylän koulu 303, 92.) Iiro Kallio Kyösti Kallion koulu 5A 303, 93.) Miika Ohtamaa Kyösti Kallion koulu 5B 303, 94.) Kasperi Hannula Pohjankylän koulu 5A 302, 95.) Jarno Puikko Kälviän Kirkonkylän koulu 301, 96.) Emil Klaavu Kirkonmäen koulu 299, 97.) Julius Poutanen Marttilan koulu 298, 98.) Atte Manninen Hollihaan koulu 5R 298, 99.) Jesse Tikka Kyösti Kallion koulu 5C 298, 100.) Jere Peräaho Kyösti Kallion koulu 5B 297, 101.) Aatos Perttula Pohjankylän koulu 6C 296, 102.) Konsta Hannula Pohjankylän koulu 5C 296, 103.) Kaspian Kuki Kyösti Kallion koulu 5C 296, 104.) Oliver Viio Kyösti Kallion koulu 5C 294, 105.) Joel Kivioja Roikolan koulu 293, 106.) Valtteri Sorvala Pohjankylän koulu 5C 292, 107.) Eemeli Himanka Lohtajan Kirkonkylän koulu 290, 108.) Oskari Vänttilä Vuorenkallion koulu 290, 109.) Max Witick Roikolan koulu 288, 110.) Tuomas Lokkila Tyngän aluekoulu 288, 111.) Niko Jokinen Hollihaan koulu 287, 112.) Topias Törnval Vuorenkallion koulu 287, 113.) Jyry-Matti Niemi Pohjankylän koulu 5A 286, 114.) Jami Kinaret Hollihaan koulu 5R 285, 115.) Rasmus Andersson Kirkonmäen koulu 285, 116.) Juuso Lassila Etelänkylän koulu 282, 117.) Eeli Hiltula Marttilan koulu 281, 118.) Joel Häggblom Kirkonmäen koulu 280, 119.) Vili-Ilmari Hyyppä Hollihaan koulu 5R 279, 120.) Topi Päiveröinen Kyösti Kallion koulu 5A 278, 121.) Paavo Tilvis Pohjankylän koulu 6A 275, 122.) Aleksi Nikupaavo Pohjankylän koulu 6B 274, 123.) Oskari Nissilä Kälviän Kirkonkylän koulu 270, 124.) Jani Soukka Tyngän aluekoulu 267, 125.) Henri Vedenoja Pohjankylän koulu 5B 262, 126.) Eetu Ahonen Pohjankylän koulu 5B 261, 127.) Niina Kylmälä Pohjankylän koulu 5B 261, 128.) Martti Prittinen Pohjankylän koulu 5A 259, 129.) Tuure Anttila Pohjankylän koulu 5B 256, 130.) Joona Kallio Hollihaan koulu 237, 131.) Juuso Niemelä Hollihaan koulu 5R 235, 132.) Joona Nauha Pohjankylän koulu 6B 235, 133.) Jerry Kivioja Roikolan koulu 221, 134.) Leevi Hongisto Pohjankylän koulu 5C 220, 135.) Aaro Jukkila Pohjankylän koulu 5B 216, 136.) Ville Tölli Kyösti Kallion koulu 5C 193, 137.) Sami Hannula Kyösti Kallion koulu 5C 186, 138.) 0, 139.) 0, 140.) 0, 141.) 0, 142.) 0, 143.) 0, 144.) 0, 145.) 0, 146.) 0, 147.) 0, 148.) 0, 149.) 0, 150.) 0, 151.) 0, 152.) 0, 153.) 0, 154.) 0, 155.) 0, 156.) 0, 157.) 0, 158.) 0, 159.) 0, 160.) 0, 161.) 0, 162.) 0, 163.) 0, 164.) 0, 165.) 0, 166.) 0, 167.) 0, 168.) 0, 169.) 0, 170.) 0, 171.) 0, 172.) 0, 173.) 0, 174.) 0, 175.) 0, 176.) 0, 177.) 0, 178.) 0, 179.) 0, 180.) 0
A29: 28. | B29: =IF(Koulut!B267<>0,Koulut!B267,"") -> Jaakko Mattila | C29: =IF(Koulut!B267<>0,Koulut!B$265,"") -> Raumankarin koulu | D29: =Koulut!C267 -> 367 | E29: 28.) Jaakko Mattila Raumankarin koulu 367, 29.) Santtu Mörsky Lohtajan Kirkonkylän koulu 365, 30.) Viljami Tanhula Pohjankylän koulu 6C 361, 31.) Johannes Oja Kyösti Kallion koulu 5B 360, 32.) Tuukka Marjala Raumankarin koulu 360, 33.) Luka Karhu Roikolan koulu 359, 34.) Santeri Hirsikangas Raasakan koulu 6C 356, 35.) Aleksi Kaarlela Kyösti Kallion koulu 5B 356, 36.) Frank Sorjonen Pohjankylän koulu 6A 355, 37.) Rasmus Mäkelä Roikolan koulu 355, 38.) Aatu Teppo Kyösti Kallion koulu 5B 354, 39.) Santeri Rahja Tyngän aluekoulu 353, 40.) Heikki Tuorila Raumankarin koulu 351, 41.) Riku Kalliokoski Pohjankylän koulu 6B 350, 42.) Samuel Niemikorpi Korhosen koulu 349, 43.) Evert Neuvonen Takalon koulu 349, 44.) Andreas Thylin Kirkonmäen koulu 346, 45.) Valtteri Himanka Pohjankylän koulu 5A 345, 46.) Miika Suviola Pohjankylän koulu 6B 345, 47.) Joona Keskinen Kälviän Kirkonkylän koulu 344, 48.) Alexi Similä Pohjankylän koulu 6C 344, 49.) Kasper Weizman Kirkonmäen koulu 344, 50.) Viljami Vihelä Vuorenkallion koulu 340, 51.) Jimi Uusitalo Marttilan koulu 339, 52.) Jose Seppälä Hollihaan koulu 339, 53.) Joni Pentinmikko Raasakan koulu 6C 338, 54.) Arttu Kivioja Takalon koulu 338, 55.) Jere Eskola Takalon koulu 338, 56.) Jaakko Airas Vuorenkallion koulu 337, 57.) Hannes Häkkilä Pohjankylän koulu 6C 336, 58.) Aatu Silakka Raasakan koulu 6C 335, 59.) Tamas Hietala Pohjankylän koulu 6A 334, 60.) Mikael Ylitalo Pohjankylän koulu 5B 331, 61.) Oskari Rahkola Pohjankylän koulu 6B 331, 62.) Bimo Juntunen Pohjankylän koulu 5C 330, 63.) Panu Rimpioja Marttilan koulu 329, 64.) Riku Isopahkala Etelänkylän koulu 328, 65.) Konsta Piippo Hollihaan koulu 5R 327, 66.) Jere Ojala Pohjankylän koulu 5A 326, 67.) Hugo Stenbäck Tyngän aluekoulu 326, 68.) Henry Nauha Pohjankylän koulu 5C 325, 69.) Janne Forström Hollihaan koulu 5R 322, 70.) Heikki Tienvieri Kyösti Kallion koulu 5B 322, 71.) Juulio Pitkämö Tyngän aluekoulu 319, 72.) Aatu Hihnala Vuorenkallion koulu 318, 73.) Timi Tanskanen Kälviän Kirkonkylän koulu 317, 74.) Andrei Koskela Hollihaan koulu 317, 75.) Juho Pyhälä Tyngän aluekoulu 316, 76.) Miro Vehmanen Hollihaan koulu 316, 77.) Nico Mäenpää Raasakan koulu 6C 315, 78.) Lari Ojala Pohjankylän koulu 6C 315, 79.) Joonas Siipola Raumankarin koulu 315, 80.) Oskari Vihelä Etelänkylän koulu 313, 81.) Jere Laurila Pohjankylän koulu 5A 313, 82.) Otto Aho Hollihaan koulu 313, 83.) Ville Niku Kyösti Kallion koulu 5C 312, 84.) Alex Suopunki Lohtajan Kirkonkylän koulu 311, 85.) Eemil Karikumpu Kyösti Kallion koulu 5A 310, 86.) Santeri Mäkinen Raumankarin koulu 310, 87.) Artturi Nikunen Raasakan koulu 6C 308, 88.) Matias Eskola Kyösti Kallion koulu 5A 306, 89.) Herman Salmela Kyösti Kallion koulu 5A 304, 90.) Robin Kämäräinen Marttilan koulu 304, 91.) Lassi Simpanen Etelänkylän koulu 303, 92.) Iiro Kallio Kyösti Kallion koulu 5A 303, 93.) Miika Ohtamaa Kyösti Kallion koulu 5B 303, 94.) Kasperi Hannula Pohjankylän koulu 5A 302, 95.) Jarno Puikko Kälviän Kirkonkylän koulu 301, 96.) Emil Klaavu Kirkonmäen koulu 299, 97.) Julius Poutanen Marttilan koulu 298, 98.) Atte Manninen Hollihaan koulu 5R 298, 99.) Jesse Tikka Kyösti Kallion koulu 5C 298, 100.) Jere Peräaho Kyösti Kallion koulu 5B 297, 101.) Aatos Perttula Pohjankylän koulu 6C 296, 102.) Konsta Hannula Pohjankylän koulu 5C 296, 103.) Kaspian Kuki Kyösti Kallion koulu 5C 296, 104.) Oliver Viio Kyösti Kallion koulu 5C 294, 105.) Joel Kivioja Roikolan koulu 293, 106.) Valtteri Sorvala Pohjankylän koulu 5C 292, 107.) Eemeli Himanka Lohtajan Kirkonkylän koulu 290, 108.) Oskari Vänttilä Vuorenkallion koulu 290, 109.) Max Witick Roikolan koulu 288, 110.) Tuomas Lokkila Tyngän aluekoulu 288, 111.) Niko Jokinen Hollihaan koulu 287, 112.) Topias Törnval Vuorenkallion koulu 287, 113.) Jyry-Matti Niemi Pohjankylän koulu 5A 286, 114.) Jami Kinaret Hollihaan koulu 5R 285, 115.) Rasmus Andersson Kirkonmäen koulu 285, 116.) Juuso Lassila Etelänkylän koulu 282, 117.) Eeli Hiltula Marttilan koulu 281, 118.) Joel Häggblom Kirkonmäen koulu 280, 119.) Vili-Ilmari Hyyppä Hollihaan koulu 5R 279, 120.) Topi Päiveröinen Kyösti Kallion koulu 5A 278, 121.) Paavo Tilvis Pohjankylän koulu 6A 275, 122.) Aleksi Nikupaavo Pohjankylän koulu 6B 274, 123.) Oskari Nissilä Kälviän Kirkonkylän koulu 270, 124.) Jani Soukka Tyngän aluekoulu 267, 125.) Henri Vedenoja Pohjankylän koulu 5B 262, 126.) Eetu Ahonen Pohjankylän koulu 5B 261, 127.) Niina Kylmälä Pohjankylän koulu 5B 261, 128.) Martti Prittinen Pohjankylän koulu 5A 259, 129.) Tuure Anttila Pohjankylän koulu 5B 256, 130.) Joona Kallio Hollihaan koulu 237, 131.) Juuso Niemelä Hollihaan koulu 5R 235, 132.) Joona Nauha Pohjankylän koulu 6B 235, 133.) Jerry Kivioja Roikolan koulu 221, 134.) Leevi Hongisto Pohjankylän koulu 5C 220, 135.) Aaro Jukkila Pohjankylän koulu 5B 216, 136.) Ville Tölli Kyösti Kallion koulu 5C 193, 137.) Sami Hannula Kyösti Kallion koulu 5C 186, 138.) 0, 139.) 0, 140.) 0, 141.) 0, 142.) 0, 143.) 0, 144.) 0, 145.) 0, 146.) 0, 147.) 0, 148.) 0, 149.) 0, 150.) 0, 151.) 0, 152.) 0, 153.) 0, 154.) 0, 155.) 0, 156.) 0, 157.) 0, 158.) 0, 159.) 0, 160.) 0, 161.) 0, 162.) 0, 163.) 0, 164.) 0, 165.) 0, 166.) 0, 167.) 0, 168.) 0, 169.) 0, 170.) 0, 171.) 0, 172.) 0, 173.) 0, 174.) 0, 175.) 0, 176.) 0, 177.) 0, 178.) 0, 179.) 0, 180.) 0
A30: 29. | B30: =IF(Koulut!B215<>0,Koulut!B215,"") -> Santtu Mörsky | C30: =IF(Koulut!B215<>0,Koulut!B$209,"") -> Lohtajan Kirkonkylän koulu | D30: =Koulut!C215 -> 365 | E30: 29.) Santtu Mörsky Lohtajan Kirkonkylän koulu 365, 30.) Viljami Tanhula Pohjankylän koulu 6C 361, 31.) Johannes Oja Kyösti Kallion koulu 5B 360, 32.) Tuukka Marjala Raumankarin koulu 360, 33.) Luka Karhu Roikolan koulu 359, 34.) Santeri Hirsikangas Raasakan koulu 6C 356, 35.) Aleksi Kaarlela Kyösti Kallion koulu 5B 356, 36.) Frank Sorjonen Pohjankylän koulu 6A 355, 37.) Rasmus Mäkelä Roikolan koulu 355, 38.) Aatu Teppo Kyösti Kallion koulu 5B 354, 39.) Santeri Rahja Tyngän aluekoulu 353, 40.) Heikki Tuorila Raumankarin koulu 351, 41.) Riku Kalliokoski Pohjankylän koulu 6B 350, 42.) Samuel Niemikorpi Korhosen koulu 349, 43.) Evert Neuvonen Takalon koulu 349, 44.) Andreas Thylin Kirkonmäen koulu 346, 45.) Valtteri Himanka Pohjankylän koulu 5A 345, 46.) Miika Suviola Pohjankylän koulu 6B 345, 47.) Joona Keskinen Kälviän Kirkonkylän koulu 344, 48.) Alexi Similä Pohjankylän koulu 6C 344, 49.) Kasper Weizman Kirkonmäen koulu 344, 50.) Viljami Vihelä Vuorenkallion koulu 340, 51.) Jimi Uusitalo Marttilan koulu 339, 52.) Jose Seppälä Hollihaan koulu 339, 53.) Joni Pentinmikko Raasakan koulu 6C 338, 54.) Arttu Kivioja Takalon koulu 338, 55.) Jere Eskola Takalon koulu 338, 56.) Jaakko Airas Vuorenkallion koulu 337, 57.) Hannes Häkkilä Pohjankylän koulu 6C 336, 58.) Aatu Silakka Raasakan koulu 6C 335, 59.) Tamas Hietala Pohjankylän koulu 6A 334, 60.) Mikael Ylitalo Pohjankylän koulu 5B 331, 61.) Oskari Rahkola Pohjankylän koulu 6B 331, 62.) Bimo Juntunen Pohjankylän koulu 5C 330, 63.) Panu Rimpioja Marttilan koulu 329, 64.) Riku Isopahkala Etelänkylän koulu 328, 65.) Konsta Piippo Hollihaan koulu 5R 327, 66.) Jere Ojala Pohjankylän koulu 5A 326, 67.) Hugo Stenbäck Tyngän aluekoulu 326, 68.) Henry Nauha Pohjankylän koulu 5C 325, 69.) Janne Forström Hollihaan koulu 5R 322, 70.) Heikki Tienvieri Kyösti Kallion koulu 5B 322, 71.) Juulio Pitkämö Tyngän aluekoulu 319, 72.) Aatu Hihnala Vuorenkallion koulu 318, 73.) Timi Tanskanen Kälviän Kirkonkylän koulu 317, 74.) Andrei Koskela Hollihaan koulu 317, 75.) Juho Pyhälä Tyngän aluekoulu 316, 76.) Miro Vehmanen Hollihaan koulu 316, 77.) Nico Mäenpää Raasakan koulu 6C 315, 78.) Lari Ojala Pohjankylän koulu 6C 315, 79.) Joonas Siipola Raumankarin koulu 315, 80.) Oskari Vihelä Etelänkylän koulu 313, 81.) Jere Laurila Pohjankylän koulu 5A 313, 82.) Otto Aho Hollihaan koulu 313, 83.) Ville Niku Kyösti Kallion koulu 5C 312, 84.) Alex Suopunki Lohtajan Kirkonkylän koulu 311, 85.) Eemil Karikumpu Kyösti Kallion koulu 5A 310, 86.) Santeri Mäkinen Raumankarin koulu 310, 87.) Artturi Nikunen Raasakan koulu 6C 308, 88.) Matias Eskola Kyösti Kallion koulu 5A 306, 89.) Herman Salmela Kyösti Kallion koulu 5A 304, 90.) Robin Kämäräinen Marttilan koulu 304, 91.) Lassi Simpanen Etelänkylän koulu 303, 92.) Iiro Kallio Kyösti Kallion koulu 5A 303, 93.) Miika Ohtamaa Kyösti Kallion koulu 5B 303, 94.) Kasperi Hannula Pohjankylän koulu 5A 302, 95.) Jarno Puikko Kälviän Kirkonkylän koulu 301, 96.) Emil Klaavu Kirkonmäen koulu 299, 97.) Julius Poutanen Marttilan koulu 298, 98.) Atte Manninen Hollihaan koulu 5R 298, 99.) Jesse Tikka Kyösti Kallion koulu 5C 298, 100.) Jere Peräaho Kyösti Kallion koulu 5B 297, 101.) Aatos Perttula Pohjankylän koulu 6C 296, 102.) Konsta Hannula Pohjankylän koulu 5C 296, 103.) Kaspian Kuki Kyösti Kallion koulu 5C 296, 104.) Oliver Viio Kyösti Kallion koulu 5C 294, 105.) Joel Kivioja Roikolan koulu 293, 106.) Valtteri Sorvala Pohjankylän koulu 5C 292, 107.) Eemeli Himanka Lohtajan Kirkonkylän koulu 290, 108.) Oskari Vänttilä Vuorenkallion koulu 290, 109.) Max Witick Roikolan koulu 288, 110.) Tuomas Lokkila Tyngän aluekoulu 288, 111.) Niko Jokinen Hollihaan koulu 287, 112.) Topias Törnval Vuorenkallion koulu 287, 113.) Jyry-Matti Niemi Pohjankylän koulu 5A 286, 114.) Jami Kinaret Hollihaan koulu 5R 285, 115.) Rasmus Andersson Kirkonmäen koulu 285, 116.) Juuso Lassila Etelänkylän koulu 282, 117.) Eeli Hiltula Marttilan koulu 281, 118.) Joel Häggblom Kirkonmäen koulu 280, 119.) Vili-Ilmari Hyyppä Hollihaan koulu 5R 279, 120.) Topi Päiveröinen Kyösti Kallion koulu 5A 278, 121.) Paavo Tilvis Pohjankylän koulu 6A 275, 122.) Aleksi Nikupaavo Pohjankylän koulu 6B 274, 123.) Oskari Nissilä Kälviän Kirkonkylän koulu 270, 124.) Jani Soukka Tyngän aluekoulu 267, 125.) Henri Vedenoja Pohjankylän koulu 5B 262, 126.) Eetu Ahonen Pohjankylän koulu 5B 261, 127.) Niina Kylmälä Pohjankylän koulu 5B 261, 128.) Martti Prittinen Pohjankylän koulu 5A 259, 129.) Tuure Anttila Pohjankylän koulu 5B 256, 130.) Joona Kallio Hollihaan koulu 237, 131.) Juuso Niemelä Hollihaan koulu 5R 235, 132.) Joona Nauha Pohjankylän koulu 6B 235, 133.) Jerry Kivioja Roikolan koulu 221, 134.) Leevi Hongisto Pohjankylän koulu 5C 220, 135.) Aaro Jukkila Pohjankylän koulu 5B 216, 136.) Ville Tölli Kyösti Kallion koulu 5C 193, 137.) Sami Hannula Kyösti Kallion koulu 5C 186, 138.) 0, 139.) 0, 140.) 0, 141.) 0, 142.) 0, 143.) 0, 144.) 0, 145.) 0, 146.) 0, 147.) 0, 148.) 0, 149.) 0, 150.) 0, 151.) 0, 152.) 0, 153.) 0, 154.) 0, 155.) 0, 156.) 0, 157.) 0, 158.) 0, 159.) 0, 160.) 0, 161.) 0, 162.) 0, 163.) 0, 164.) 0, 165.) 0, 166.) 0, 167.) 0, 168.) 0, 169.) 0, 170.) 0, 171.) 0, 172.) 0, 173.) 0, 174.) 0, 175.) 0, 176.) 0, 177.) 0, 178.) 0, 179.) 0, 180.) 0
A31: 30. | B31: =IF(Koulut!B101<>0,Koulut!B101,"") -> Viljami Tanhula | C31: =IF(Koulut!B101<>0,Koulut!B$97,"") -> Pohjankylän koulu 6C | D31: =Koulut!C101 -> 361 | E31: 30.) Viljami Tanhula Pohjankylän koulu 6C 361, 31.) Johannes Oja Kyösti Kallion koulu 5B 360, 32.) Tuukka Marjala Raumankarin koulu 360, 33.) Luka Karhu Roikolan koulu 359, 34.) Santeri Hirsikangas Raasakan koulu 6C 356, 35.) Aleksi Kaarlela Kyösti Kallion koulu 5B 356, 36.) Frank Sorjonen Pohjankylän koulu 6A 355, 37.) Rasmus Mäkelä Roikolan koulu 355, 38.) Aatu Teppo Kyösti Kallion koulu 5B 354, 39.) Santeri Rahja Tyngän aluekoulu 353, 40.) Heikki Tuorila Raumankarin koulu 351, 41.) Riku Kalliokoski Pohjankylän koulu 6B 350, 42.) Samuel Niemikorpi Korhosen koulu 349, 43.) Evert Neuvonen Takalon koulu 349, 44.) Andreas Thylin Kirkonmäen koulu 346, 45.) Valtteri Himanka Pohjankylän koulu 5A 345, 46.) Miika Suviola Pohjankylän koulu 6B 345, 47.) Joona Keskinen Kälviän Kirkonkylän koulu 344, 48.) Alexi Similä Pohjankylän koulu 6C 344, 49.) Kasper Weizman Kirkonmäen koulu 344, 50.) Viljami Vihelä Vuorenkallion koulu 340, 51.) Jimi Uusitalo Marttilan koulu 339, 52.) Jose Seppälä Hollihaan koulu 339, 53.) Joni Pentinmikko Raasakan koulu 6C 338, 54.) Arttu Kivioja Takalon koulu 338, 55.) Jere Eskola Takalon koulu 338, 56.) Jaakko Airas Vuorenkallion koulu 337, 57.) Hannes Häkkilä Pohjankylän koulu 6C 336, 58.) Aatu Silakka Raasakan koulu 6C 335, 59.) Tamas Hietala Pohjankylän koulu 6A 334, 60.) Mikael Ylitalo Pohjankylän koulu 5B 331, 61.) Oskari Rahkola Pohjankylän koulu 6B 331, 62.) Bimo Juntunen Pohjankylän koulu 5C 330, 63.) Panu Rimpioja Marttilan koulu 329, 64.) Riku Isopahkala Etelänkylän koulu 328, 65.) Konsta Piippo Hollihaan koulu 5R 327, 66.) Jere Ojala Pohjankylän koulu 5A 326, 67.) Hugo Stenbäck Tyngän aluekoulu 326, 68.) Henry Nauha Pohjankylän koulu 5C 325, 69.) Janne Forström Hollihaan koulu 5R 322, 70.) Heikki Tienvieri Kyösti Kallion koulu 5B 322, 71.) Juulio Pitkämö Tyngän aluekoulu 319, 72.) Aatu Hihnala Vuorenkallion koulu 318, 73.) Timi Tanskanen Kälviän Kirkonkylän koulu 317, 74.) Andrei Koskela Hollihaan koulu 317, 75.) Juho Pyhälä Tyngän aluekoulu 316, 76.) Miro Vehmanen Hollihaan koulu 316, 77.) Nico Mäenpää Raasakan koulu 6C 315, 78.) Lari Ojala Pohjankylän koulu 6C 315, 79.) Joonas Siipola Raumankarin koulu 315, 80.) Oskari Vihelä Etelänkylän koulu 313, 81.) Jere Laurila Pohjankylän koulu 5A 313, 82.) Otto Aho Hollihaan koulu 313, 83.) Ville Niku Kyösti Kallion koulu 5C 312, 84.) Alex Suopunki Lohtajan Kirkonkylän koulu 311, 85.) Eemil Karikumpu Kyösti Kallion koulu 5A 310, 86.) Santeri Mäkinen Raumankarin koulu 310, 87.) Artturi Nikunen Raasakan koulu 6C 308, 88.) Matias Eskola Kyösti Kallion koulu 5A 306, 89.) Herman Salmela Kyösti Kallion koulu 5A 304, 90.) Robin Kämäräinen Marttilan koulu 304, 91.) Lassi Simpanen Etelänkylän koulu 303, 92.) Iiro Kallio Kyösti Kallion koulu 5A 303, 93.) Miika Ohtamaa Kyösti Kallion koulu 5B 303, 94.) Kasperi Hannula Pohjankylän koulu 5A 302, 95.) Jarno Puikko Kälviän Kirkonkylän koulu 301, 96.) Emil Klaavu Kirkonmäen koulu 299, 97.) Julius Poutanen Marttilan koulu 298, 98.) Atte Manninen Hollihaan koulu 5R 298, 99.) Jesse Tikka Kyösti Kallion koulu 5C 298, 100.) Jere Peräaho Kyösti Kallion koulu 5B 297, 101.) Aatos Perttula Pohjankylän koulu 6C 296, 102.) Konsta Hannula Pohjankylän koulu 5C 296, 103.) Kaspian Kuki Kyösti Kallion koulu 5C 296, 104.) Oliver Viio Kyösti Kallion koulu 5C 294, 105.) Joel Kivioja Roikolan koulu 293, 106.) Valtteri Sorvala Pohjankylän koulu 5C 292, 107.) Eemeli Himanka Lohtajan Kirkonkylän koulu 290, 108.) Oskari Vänttilä Vuorenkallion koulu 290, 109.) Max Witick Roikolan koulu 288, 110.) Tuomas Lokkila Tyngän aluekoulu 288, 111.) Niko Jokinen Hollihaan koulu 287, 112.) Topias Törnval Vuorenkallion koulu 287, 113.) Jyry-Matti Niemi Pohjankylän koulu 5A 286, 114.) Jami Kinaret Hollihaan koulu 5R 285, 115.) Rasmus Andersson Kirkonmäen koulu 285, 116.) Juuso Lassila Etelänkylän koulu 282, 117.) Eeli Hiltula Marttilan koulu 281, 118.) Joel Häggblom Kirkonmäen koulu 280, 119.) Vili-Ilmari Hyyppä Hollihaan koulu 5R 279, 120.) Topi Päiveröinen Kyösti Kallion koulu 5A 278, 121.) Paavo Tilvis Pohjankylän koulu 6A 275, 122.) Aleksi Nikupaavo Pohjankylän koulu 6B 274, 123.) Oskari Nissilä Kälviän Kirkonkylän koulu 270, 124.) Jani Soukka Tyngän aluekoulu 267, 125.) Henri Vedenoja Pohjankylän koulu 5B 262, 126.) Eetu Ahonen Pohjankylän koulu 5B 261, 127.) Niina Kylmälä Pohjankylän koulu 5B 261, 128.) Martti Prittinen Pohjankylän koulu 5A 259, 129.) Tuure Anttila Pohjankylän koulu 5B 256, 130.) Joona Kallio Hollihaan koulu 237, 131.) Juuso Niemelä Hollihaan koulu 5R 235, 132.) Joona Nauha Pohjankylän koulu 6B 235, 133.) Jerry Kivioja Roikolan koulu 221, 134.) Leevi Hongisto Pohjankylän koulu 5C 220, 135.) Aaro Jukkila Pohjankylän koulu 5B 216, 136.) Ville Tölli Kyösti Kallion koulu 5C 193, 137.) Sami Hannula Kyösti Kallion koulu 5C 186, 138.) 0, 139.) 0, 140.) 0, 141.) 0, 142.) 0, 143.) 0, 144.) 0, 145.) 0, 146.) 0, 147.) 0, 148.) 0, 149.) 0, 150.) 0, 151.) 0, 152.) 0, 153.) 0, 154.) 0, 155.) 0, 156.) 0, 157.) 0, 158.) 0, 159.) 0, 160.) 0, 161.) 0, 162.) 0, 163.) 0, 164.) 0, 165.) 0, 166.) 0, 167.) 0, 168.) 0, 169.) 0, 170.) 0, 171.) 0, 172.) 0, 173.) 0, 174.) 0, 175.) 0, 176.) 0, 177.) 0, 178.) 0, 179.) 0, 180.) 0
A32: 31. | B32: =IF(Koulut!B168<>0,Koulut!B168,"") -> Johannes Oja | C32: =IF(Koulut!B168<>0,Koulut!B$167,"") -> Kyösti Kallion koulu 5B | D32: =Koulut!C168 -> 360 | E32: 31.) Johannes Oja Kyösti Kallion koulu 5B 360, 32.) Tuukka Marjala Raumankarin koulu 360, 33.) Luka Karhu Roikolan koulu 359, 34.) Santeri Hirsikangas Raasakan koulu 6C 356, 35.) Aleksi Kaarlela Kyösti Kallion koulu 5B 356, 36.) Frank Sorjonen Pohjankylän koulu 6A 355, 37.) Rasmus Mäkelä Roikolan koulu 355, 38.) Aatu Teppo Kyösti Kallion koulu 5B 354, 39.) Santeri Rahja Tyngän aluekoulu 353, 40.) Heikki Tuorila Raumankarin koulu 351, 41.) Riku Kalliokoski Pohjankylän koulu 6B 350, 42.) Samuel Niemikorpi Korhosen koulu 349, 43.) Evert Neuvonen Takalon koulu 349, 44.) Andreas Thylin Kirkonmäen koulu 346, 45.) Valtteri Himanka Pohjankylän koulu 5A 345, 46.) Miika Suviola Pohjankylän koulu 6B 345, 47.) Joona Keskinen Kälviän Kirkonkylän koulu 344, 48.) Alexi Similä Pohjankylän koulu 6C 344, 49.) Kasper Weizman Kirkonmäen koulu 344, 50.) Viljami Vihelä Vuorenkallion koulu 340, 51.) Jimi Uusitalo Marttilan koulu 339, 52.) Jose Seppälä Hollihaan koulu 339, 53.) Joni Pentinmikko Raasakan koulu 6C 338, 54.) Arttu Kivioja Takalon koulu 338, 55.) Jere Eskola Takalon koulu 338, 56.) Jaakko Airas Vuorenkallion koulu 337, 57.) Hannes Häkkilä Pohjankylän koulu 6C 336, 58.) Aatu Silakka Raasakan koulu 6C 335, 59.) Tamas Hietala Pohjankylän koulu 6A 334, 60.) Mikael Ylitalo Pohjankylän koulu 5B 331, 61.) Oskari Rahkola Pohjankylän koulu 6B 331, 62.) Bimo Juntunen Pohjankylän koulu 5C 330, 63.) Panu Rimpioja Marttilan koulu 329, 64.) Riku Isopahkala Etelänkylän koulu 328, 65.) Konsta Piippo Hollihaan koulu 5R 327, 66.) Jere Ojala Pohjankylän koulu 5A 326, 67.) Hugo Stenbäck Tyngän aluekoulu 326, 68.) Henry Nauha Pohjankylän koulu 5C 325, 69.) Janne Forström Hollihaan koulu 5R 322, 70.) Heikki Tienvieri Kyösti Kallion koulu 5B 322, 71.) Juulio Pitkämö Tyngän aluekoulu 319, 72.) Aatu Hihnala Vuorenkallion koulu 318, 73.) Timi Tanskanen Kälviän Kirkonkylän koulu 317, 74.) Andrei Koskela Hollihaan koulu 317, 75.) Juho Pyhälä Tyngän aluekoulu 316, 76.) Miro Vehmanen Hollihaan koulu 316, 77.) Nico Mäenpää Raasakan koulu 6C 315, 78.) Lari Ojala Pohjankylän koulu 6C 315, 79.) Joonas Siipola Raumankarin koulu 315, 80.) Oskari Vihelä Etelänkylän koulu 313, 81.) Jere Laurila Pohjankylän koulu 5A 313, 82.) Otto Aho Hollihaan koulu 313, 83.) Ville Niku Kyösti Kallion koulu 5C 312, 84.) Alex Suopunki Lohtajan Kirkonkylän koulu 311, 85.) Eemil Karikumpu Kyösti Kallion koulu 5A 310, 86.) Santeri Mäkinen Raumankarin koulu 310, 87.) Artturi Nikunen Raasakan koulu 6C 308, 88.) Matias Eskola Kyösti Kallion koulu 5A 306, 89.) Herman Salmela Kyösti Kallion koulu 5A 304, 90.) Robin Kämäräinen Marttilan koulu 304, 91.) Lassi Simpanen Etelänkylän koulu 303, 92.) Iiro Kallio Kyösti Kallion koulu 5A 303, 93.) Miika Ohtamaa Kyösti Kallion koulu 5B 303, 94.) Kasperi Hannula Pohjankylän koulu 5A 302, 95.) Jarno Puikko Kälviän Kirkonkylän koulu 301, 96.) Emil Klaavu Kirkonmäen koulu 299, 97.) Julius Poutanen Marttilan koulu 298, 98.) Atte Manninen Hollihaan koulu 5R 298, 99.) Jesse Tikka Kyösti Kallion koulu 5C 298, 100.) Jere Peräaho Kyösti Kallion koulu 5B 297, 101.) Aatos Perttula Pohjankylän koulu 6C 296, 102.) Konsta Hannula Pohjankylän koulu 5C 296, 103.) Kaspian Kuki Kyösti Kallion koulu 5C 296, 104.) Oliver Viio Kyösti Kallion koulu 5C 294, 105.) Joel Kivioja Roikolan koulu 293, 106.) Valtteri Sorvala Pohjankylän koulu 5C 292, 107.) Eemeli Himanka Lohtajan Kirkonkylän koulu 290, 108.) Oskari Vänttilä Vuorenkallion koulu 290, 109.) Max Witick Roikolan koulu 288, 110.) Tuomas Lokkila Tyngän aluekoulu 288, 111.) Niko Jokinen Hollihaan koulu 287, 112.) Topias Törnval Vuorenkallion koulu 287, 113.) Jyry-Matti Niemi Pohjankylän koulu 5A 286, 114.) Jami Kinaret Hollihaan koulu 5R 285, 115.) Rasmus Andersson Kirkonmäen koulu 285, 116.) Juuso Lassila Etelänkylän koulu 282, 117.) Eeli Hiltula Marttilan koulu 281, 118.) Joel Häggblom Kirkonmäen koulu 280, 119.) Vili-Ilmari Hyyppä Hollihaan koulu 5R 279, 120.) Topi Päiveröinen Kyösti Kallion koulu 5A 278, 121.) Paavo Tilvis Pohjankylän koulu 6A 275, 122.) Aleksi Nikupaavo Pohjankylän koulu 6B 274, 123.) Oskari Nissilä Kälviän Kirkonkylän koulu 270, 124.) Jani Soukka Tyngän aluekoulu 267, 125.) Henri Vedenoja Pohjankylän koulu 5B 262, 126.) Eetu Ahonen Pohjankylän koulu 5B 261, 127.) Niina Kylmälä Pohjankylän koulu 5B 261, 128.) Martti Prittinen Pohjankylän koulu 5A 259, 129.) Tuure Anttila Pohjankylän koulu 5B 256, 130.) Joona Kallio Hollihaan koulu 237, 131.) Juuso Niemelä Hollihaan koulu 5R 235, 132.) Joona Nauha Pohjankylän koulu 6B 235, 133.) Jerry Kivioja Roikolan koulu 221, 134.) Leevi Hongisto Pohjankylän koulu 5C 220, 135.) Aaro Jukkila Pohjankylän koulu 5B 216, 136.) Ville Tölli Kyösti Kallion koulu 5C 193, 137.) Sami Hannula Kyösti Kallion koulu 5C 186, 138.) 0, 139.) 0, 140.) 0, 141.) 0, 142.) 0, 143.) 0, 144.) 0, 145.) 0, 146.) 0, 147.) 0, 148.) 0, 149.) 0, 150.) 0, 151.) 0, 152.) 0, 153.) 0, 154.) 0, 155.) 0, 156.) 0, 157.) 0, 158.) 0, 159.) 0, 160.) 0, 161.) 0, 162.) 0, 163.) 0, 164.) 0, 165.) 0, 166.) 0, 167.) 0, 168.) 0, 169.) 0, 170.) 0, 171.) 0, 172.) 0, 173.) 0, 174.) 0, 175.) 0, 176.) 0, 177.) 0, 178.) 0, 179.) 0, 180.) 0
A33: 32. | B33: =IF(Koulut!B269<>0,Koulut!B269,"") -> Tuukka Marjala | C33: =IF(Koulut!B269<>0,Koulut!B$265,"") -> Raumankarin koulu | D33: =Koulut!C269 -> 360 | E33: 32.) Tuukka Marjala Raumankarin koulu 360, 33.) Luka Karhu Roikolan koulu 359, 34.) Santeri Hirsikangas Raasakan koulu 6C 356, 35.) Aleksi Kaarlela Kyösti Kallion koulu 5B 356, 36.) Frank Sorjonen Pohjankylän koulu 6A 355, 37.) Rasmus Mäkelä Roikolan koulu 355, 38.) Aatu Teppo Kyösti Kallion koulu 5B 354, 39.) Santeri Rahja Tyngän aluekoulu 353, 40.) Heikki Tuorila Raumankarin koulu 351, 41.) Riku Kalliokoski Pohjankylän koulu 6B 350, 42.) Samuel Niemikorpi Korhosen koulu 349, 43.) Evert Neuvonen Takalon koulu 349, 44.) Andreas Thylin Kirkonmäen koulu 346, 45.) Valtteri Himanka Pohjankylän koulu 5A 345, 46.) Miika Suviola Pohjankylän koulu 6B 345, 47.) Joona Keskinen Kälviän Kirkonkylän koulu 344, 48.) Alexi Similä Pohjankylän koulu 6C 344, 49.) Kasper Weizman Kirkonmäen koulu 344, 50.) Viljami Vihelä Vuorenkallion koulu 340, 51.) Jimi Uusitalo Marttilan koulu 339, 52.) Jose Seppälä Hollihaan koulu 339, 53.) Joni Pentinmikko Raasakan koulu 6C 338, 54.) Arttu Kivioja Takalon koulu 338, 55.) Jere Eskola Takalon koulu 338, 56.) Jaakko Airas Vuorenkallion koulu 337, 57.) Hannes Häkkilä Pohjankylän koulu 6C 336, 58.) Aatu Silakka Raasakan koulu 6C 335, 59.) Tamas Hietala Pohjankylän koulu 6A 334, 60.) Mikael Ylitalo Pohjankylän koulu 5B 331, 61.) Oskari Rahkola Pohjankylän koulu 6B 331, 62.) Bimo Juntunen Pohjankylän koulu 5C 330, 63.) Panu Rimpioja Marttilan koulu 329, 64.) Riku Isopahkala Etelänkylän koulu 328, 65.) Konsta Piippo Hollihaan koulu 5R 327, 66.) Jere Ojala Pohjankylän koulu 5A 326, 67.) Hugo Stenbäck Tyngän aluekoulu 326, 68.) Henry Nauha Pohjankylän koulu 5C 325, 69.) Janne Forström Hollihaan koulu 5R 322, 70.) Heikki Tienvieri Kyösti Kallion koulu 5B 322, 71.) Juulio Pitkämö Tyngän aluekoulu 319, 72.) Aatu Hihnala Vuorenkallion koulu 318, 73.) Timi Tanskanen Kälviän Kirkonkylän koulu 317, 74.) Andrei Koskela Hollihaan koulu 317, 75.) Juho Pyhälä Tyngän aluekoulu 316, 76.) Miro Vehmanen Hollihaan koulu 316, 77.) Nico Mäenpää Raasakan koulu 6C 315, 78.) Lari Ojala Pohjankylän koulu 6C 315, 79.) Joonas Siipola Raumankarin koulu 315, 80.) Oskari Vihelä Etelänkylän koulu 313, 81.) Jere Laurila Pohjankylän koulu 5A 313, 82.) Otto Aho Hollihaan koulu 313, 83.) Ville Niku Kyösti Kallion koulu 5C 312, 84.) Alex Suopunki Lohtajan Kirkonkylän koulu 311, 85.) Eemil Karikumpu Kyösti Kallion koulu 5A 310, 86.) Santeri Mäkinen Raumankarin koulu 310, 87.) Artturi Nikunen Raasakan koulu 6C 308, 88.) Matias Eskola Kyösti Kallion koulu 5A 306, 89.) Herman Salmela Kyösti Kallion koulu 5A 304, 90.) Robin Kämäräinen Marttilan koulu 304, 91.) Lassi Simpanen Etelänkylän koulu 303, 92.) Iiro Kallio Kyösti Kallion koulu 5A 303, 93.) Miika Ohtamaa Kyösti Kallion koulu 5B 303, 94.) Kasperi Hannula Pohjankylän koulu 5A 302, 95.) Jarno Puikko Kälviän Kirkonkylän koulu 301, 96.) Emil Klaavu Kirkonmäen koulu 299, 97.) Julius Poutanen Marttilan koulu 298, 98.) Atte Manninen Hollihaan koulu 5R 298, 99.) Jesse Tikka Kyösti Kallion koulu 5C 298, 100.) Jere Peräaho Kyösti Kallion koulu 5B 297, 101.) Aatos Perttula Pohjankylän koulu 6C 296, 102.) Konsta Hannula Pohjankylän koulu 5C 296, 103.) Kaspian Kuki Kyösti Kallion koulu 5C 296, 104.) Oliver Viio Kyösti Kallion koulu 5C 294, 105.) Joel Kivioja Roikolan koulu 293, 106.) Valtteri Sorvala Pohjankylän koulu 5C 292, 107.) Eemeli Himanka Lohtajan Kirkonkylän koulu 290, 108.) Oskari Vänttilä Vuorenkallion koulu 290, 109.) Max Witick Roikolan koulu 288, 110.) Tuomas Lokkila Tyngän aluekoulu 288, 111.) Niko Jokinen Hollihaan koulu 287, 112.) Topias Törnval Vuorenkallion koulu 287, 113.) Jyry-Matti Niemi Pohjankylän koulu 5A 286, 114.) Jami Kinaret Hollihaan koulu 5R 285, 115.) Rasmus Andersson Kirkonmäen koulu 285, 116.) Juuso Lassila Etelänkylän koulu 282, 117.) Eeli Hiltula Marttilan koulu 281, 118.) Joel Häggblom Kirkonmäen koulu 280, 119.) Vili-Ilmari Hyyppä Hollihaan koulu 5R 279, 120.) Topi Päiveröinen Kyösti Kallion koulu 5A 278, 121.) Paavo Tilvis Pohjankylän koulu 6A 275, 122.) Aleksi Nikupaavo Pohjankylän koulu 6B 274, 123.) Oskari Nissilä Kälviän Kirkonkylän koulu 270, 124.) Jani Soukka Tyngän aluekoulu 267, 125.) Henri Vedenoja Pohjankylän koulu 5B 262, 126.) Eetu Ahonen Pohjankylän koulu 5B 261, 127.) Niina Kylmälä Pohjankylän koulu 5B 261, 128.) Martti Prittinen Pohjankylän koulu 5A 259, 129.) Tuure Anttila Pohjankylän koulu 5B 256, 130.) Joona Kallio Hollihaan koulu 237, 131.) Juuso Niemelä Hollihaan koulu 5R 235, 132.) Joona Nauha Pohjankylän koulu 6B 235, 133.) Jerry Kivioja Roikolan koulu 221, 134.) Leevi Hongisto Pohjankylän koulu 5C 220, 135.) Aaro Jukkila Pohjankylän koulu 5B 216, 136.) Ville Tölli Kyösti Kallion koulu 5C 193, 137.) Sami Hannula Kyösti Kallion koulu 5C 186, 138.) 0, 139.) 0, 140.) 0, 141.) 0, 142.) 0, 143.) 0, 144.) 0, 145.) 0, 146.) 0, 147.) 0, 148.) 0, 149.) 0, 150.) 0, 151.) 0, 152.) 0, 153.) 0, 154.) 0, 155.) 0, 156.) 0, 157.) 0, 158.) 0, 159.) 0, 160.) 0, 161.) 0, 162.) 0, 163.) 0, 164.) 0, 165.) 0, 166.) 0, 167.) 0, 168.) 0, 169.) 0, 170.) 0, 171.) 0, 172.) 0, 173.) 0, 174.) 0, 175.) 0, 176.) 0, 177.) 0, 178.) 0, 179.) 0, 180.) 0
A34: 33. | B34: =IF(Koulut!B44<>0,Koulut!B44,"") -> Luka Karhu | C34: =IF(Koulut!B44<>0,Koulut!B$41,"") -> Roikolan koulu | D34: =Koulut!C44 -> 359 | E34: 33.) Luka Karhu Roikolan koulu 359, 34.) Santeri Hirsikangas Raasakan koulu 6C 356, 35.) Aleksi Kaarlela Kyösti Kallion koulu 5B 356, 36.) Frank Sorjonen Pohjankylän koulu 6A 355, 37.) Rasmus Mäkelä Roikolan koulu 355, 38.) Aatu Teppo Kyösti Kallion koulu 5B 354, 39.) Santeri Rahja Tyngän aluekoulu 353, 40.) Heikki Tuorila Raumankarin koulu 351, 41.) Riku Kalliokoski Pohjankylän koulu 6B 350, 42.) Samuel Niemikorpi Korhosen koulu 349, 43.) Evert Neuvonen Takalon koulu 349, 44.) Andreas Thylin Kirkonmäen koulu 346, 45.) Valtteri Himanka Pohjankylän koulu 5A 345, 46.) Miika Suviola Pohjankylän koulu 6B 345, 47.) Joona Keskinen Kälviän Kirkonkylän koulu 344, 48.) Alexi Similä Pohjankylän koulu 6C 344, 49.) Kasper Weizman Kirkonmäen koulu 344, 50.) Viljami Vihelä Vuorenkallion koulu 340, 51.) Jimi Uusitalo Marttilan koulu 339, 52.) Jose Seppälä Hollihaan koulu 339, 53.) Joni Pentinmikko Raasakan koulu 6C 338, 54.) Arttu Kivioja Takalon koulu 338, 55.) Jere Eskola Takalon koulu 338, 56.) Jaakko Airas Vuorenkallion koulu 337, 57.) Hannes Häkkilä Pohjankylän koulu 6C 336, 58.) Aatu Silakka Raasakan koulu 6C 335, 59.) Tamas Hietala Pohjankylän koulu 6A 334, 60.) Mikael Ylitalo Pohjankylän koulu 5B 331, 61.) Oskari Rahkola Pohjankylän koulu 6B 331, 62.) Bimo Juntunen Pohjankylän koulu 5C 330, 63.) Panu Rimpioja Marttilan koulu 329, 64.) Riku Isopahkala Etelänkylän koulu 328, 65.) Konsta Piippo Hollihaan koulu 5R 327, 66.) Jere Ojala Pohjankylän koulu 5A 326, 67.) Hugo Stenbäck Tyngän aluekoulu 326, 68.) Henry Nauha Pohjankylän koulu 5C 325, 69.) Janne Forström Hollihaan koulu 5R 322, 70.) Heikki Tienvieri Kyösti Kallion koulu 5B 322, 71.) Juulio Pitkämö Tyngän aluekoulu 319, 72.) Aatu Hihnala Vuorenkallion koulu 318, 73.) Timi Tanskanen Kälviän Kirkonkylän koulu 317, 74.) Andrei Koskela Hollihaan koulu 317, 75.) Juho Pyhälä Tyngän aluekoulu 316, 76.) Miro Vehmanen Hollihaan koulu 316, 77.) Nico Mäenpää Raasakan koulu 6C 315, 78.) Lari Ojala Pohjankylän koulu 6C 315, 79.) Joonas Siipola Raumankarin koulu 315, 80.) Oskari Vihelä Etelänkylän koulu 313, 81.) Jere Laurila Pohjankylän koulu 5A 313, 82.) Otto Aho Hollihaan koulu 313, 83.) Ville Niku Kyösti Kallion koulu 5C 312, 84.) Alex Suopunki Lohtajan Kirkonkylän koulu 311, 85.) Eemil Karikumpu Kyösti Kallion koulu 5A 310, 86.) Santeri Mäkinen Raumankarin koulu 310, 87.) Artturi Nikunen Raasakan koulu 6C 308, 88.) Matias Eskola Kyösti Kallion koulu 5A 306, 89.) Herman Salmela Kyösti Kallion koulu 5A 304, 90.) Robin Kämäräinen Marttilan koulu 304, 91.) Lassi Simpanen Etelänkylän koulu 303, 92.) Iiro Kallio Kyösti Kallion koulu 5A 303, 93.) Miika Ohtamaa Kyösti Kallion koulu 5B 303, 94.) Kasperi Hannula Pohjankylän koulu 5A 302, 95.) Jarno Puikko Kälviän Kirkonkylän koulu 301, 96.) Emil Klaavu Kirkonmäen koulu 299, 97.) Julius Poutanen Marttilan koulu 298, 98.) Atte Manninen Hollihaan koulu 5R 298, 99.) Jesse Tikka Kyösti Kallion koulu 5C 298, 100.) Jere Peräaho Kyösti Kallion koulu 5B 297, 101.) Aatos Perttula Pohjankylän koulu 6C 296, 102.) Konsta Hannula Pohjankylän koulu 5C 296, 103.) Kaspian Kuki Kyösti Kallion koulu 5C 296, 104.) Oliver Viio Kyösti Kallion koulu 5C 294, 105.) Joel Kivioja Roikolan koulu 293, 106.) Valtteri Sorvala Pohjankylän koulu 5C 292, 107.) Eemeli Himanka Lohtajan Kirkonkylän koulu 290, 108.) Oskari Vänttilä Vuorenkallion koulu 290, 109.) Max Witick Roikolan koulu 288, 110.) Tuomas Lokkila Tyngän aluekoulu 288, 111.) Niko Jokinen Hollihaan koulu 287, 112.) Topias Törnval Vuorenkallion koulu 287, 113.) Jyry-Matti Niemi Pohjankylän koulu 5A 286, 114.) Jami Kinaret Hollihaan koulu 5R 285, 115.) Rasmus Andersson Kirkonmäen koulu 285, 116.) Juuso Lassila Etelänkylän koulu 282, 117.) Eeli Hiltula Marttilan koulu 281, 118.) Joel Häggblom Kirkonmäen koulu 280, 119.) Vili-Ilmari Hyyppä Hollihaan koulu 5R 279, 120.) Topi Päiveröinen Kyösti Kallion koulu 5A 278, 121.) Paavo Tilvis Pohjankylän koulu 6A 275, 122.) Aleksi Nikupaavo Pohjankylän koulu 6B 274, 123.) Oskari Nissilä Kälviän Kirkonkylän koulu 270, 124.) Jani Soukka Tyngän aluekoulu 267, 125.) Henri Vedenoja Pohjankylän koulu 5B 262, 126.) Eetu Ahonen Pohjankylän koulu 5B 261, 127.) Niina Kylmälä Pohjankylän koulu 5B 261, 128.) Martti Prittinen Pohjankylän koulu 5A 259, 129.) Tuure Anttila Pohjankylän koulu 5B 256, 130.) Joona Kallio Hollihaan koulu 237, 131.) Juuso Niemelä Hollihaan koulu 5R 235, 132.) Joona Nauha Pohjankylän koulu 6B 235, 133.) Jerry Kivioja Roikolan koulu 221, 134.) Leevi Hongisto Pohjankylän koulu 5C 220, 135.) Aaro Jukkila Pohjankylän koulu 5B 216, 136.) Ville Tölli Kyösti Kallion koulu 5C 193, 137.) Sami Hannula Kyösti Kallion koulu 5C 186, 138.) 0, 139.) 0, 140.) 0, 141.) 0, 142.) 0, 143.) 0, 144.) 0, 145.) 0, 146.) 0, 147.) 0, 148.) 0, 149.) 0, 150.) 0, 151.) 0, 152.) 0, 153.) 0, 154.) 0, 155.) 0, 156.) 0, 157.) 0, 158.) 0, 159.) 0, 160.) 0, 161.) 0, 162.) 0, 163.) 0, 164.) 0, 165.) 0, 166.) 0, 167.) 0, 168.) 0, 169.) 0, 170.) 0, 171.) 0, 172.) 0, 173.) 0, 174.) 0, 175.) 0, 176.) 0, 177.) 0, 178.) 0, 179.) 0, 180.) 0
A35: 34. | B35: =IF(Koulut!B84<>0,Koulut!B84,"") -> Santeri Hirsikangas | C35: =IF(Koulut!B84<>0,Koulut!B$83,"") -> Raasakan koulu 6C | D35: =Koulut!C84 -> 356 | E35: 34.) Santeri Hirsikangas Raasakan koulu 6C 356, 35.) Aleksi Kaarlela Kyösti Kallion koulu 5B 356, 36.) Frank Sorjonen Pohjankylän koulu 6A 355, 37.) Rasmus Mäkelä Roikolan koulu 355, 38.) Aatu Teppo Kyösti Kallion koulu 5B 354, 39.) Santeri Rahja Tyngän aluekoulu 353, 40.) Heikki Tuorila Raumankarin koulu 351, 41.) Riku Kalliokoski Pohjankylän koulu 6B 350, 42.) Samuel Niemikorpi Korhosen koulu 349, 43.) Evert Neuvonen Takalon koulu 349, 44.) Andreas Thylin Kirkonmäen koulu 346, 45.) Valtteri Himanka Pohjankylän koulu 5A 345, 46.) Miika Suviola Pohjankylän koulu 6B 345, 47.) Joona Keskinen Kälviän Kirkonkylän koulu 344, 48.) Alexi Similä Pohjankylän koulu 6C 344, 49.) Kasper Weizman Kirkonmäen koulu 344, 50.) Viljami Vihelä Vuorenkallion koulu 340, 51.) Jimi Uusitalo Marttilan koulu 339, 52.) Jose Seppälä Hollihaan koulu 339, 53.) Joni Pentinmikko Raasakan koulu 6C 338, 54.) Arttu Kivioja Takalon koulu 338, 55.) Jere Eskola Takalon koulu 338, 56.) Jaakko Airas Vuorenkallion koulu 337, 57.) Hannes Häkkilä Pohjankylän koulu 6C 336, 58.) Aatu Silakka Raasakan koulu 6C 335, 59.) Tamas Hietala Pohjankylän koulu 6A 334, 60.) Mikael Ylitalo Pohjankylän koulu 5B 331, 61.) Oskari Rahkola Pohjankylän koulu 6B 331, 62.) Bimo Juntunen Pohjankylän koulu 5C 330, 63.) Panu Rimpioja Marttilan koulu 329, 64.) Riku Isopahkala Etelänkylän koulu 328, 65.) Konsta Piippo Hollihaan koulu 5R 327, 66.) Jere Ojala Pohjankylän koulu 5A 326, 67.) Hugo Stenbäck Tyngän aluekoulu 326, 68.) Henry Nauha Pohjankylän koulu 5C 325, 69.) Janne Forström Hollihaan koulu 5R 322, 70.) Heikki Tienvieri Kyösti Kallion koulu 5B 322, 71.) Juulio Pitkämö Tyngän aluekoulu 319, 72.) Aatu Hihnala Vuorenkallion koulu 318, 73.) Timi Tanskanen Kälviän Kirkonkylän koulu 317, 74.) Andrei Koskela Hollihaan koulu 317, 75.) Juho Pyhälä Tyngän aluekoulu 316, 76.) Miro Vehmanen Hollihaan koulu 316, 77.) Nico Mäenpää Raasakan koulu 6C 315, 78.) Lari Ojala Pohjankylän koulu 6C 315, 79.) Joonas Siipola Raumankarin koulu 315, 80.) Oskari Vihelä Etelänkylän koulu 313, 81.) Jere Laurila Pohjankylän koulu 5A 313, 82.) Otto Aho Hollihaan koulu 313, 83.) Ville Niku Kyösti Kallion koulu 5C 312, 84.) Alex Suopunki Lohtajan Kirkonkylän koulu 311, 85.) Eemil Karikumpu Kyösti Kallion koulu 5A 310, 86.) Santeri Mäkinen Raumankarin koulu 310, 87.) Artturi Nikunen Raasakan koulu 6C 308, 88.) Matias Eskola Kyösti Kallion koulu 5A 306, 89.) Herman Salmela Kyösti Kallion koulu 5A 304, 90.) Robin Kämäräinen Marttilan koulu 304, 91.) Lassi Simpanen Etelänkylän koulu 303, 92.) Iiro Kallio Kyösti Kallion koulu 5A 303, 93.) Miika Ohtamaa Kyösti Kallion koulu 5B 303, 94.) Kasperi Hannula Pohjankylän koulu 5A 302, 95.) Jarno Puikko Kälviän Kirkonkylän koulu 301, 96.) Emil Klaavu Kirkonmäen koulu 299, 97.) Julius Poutanen Marttilan koulu 298, 98.) Atte Manninen Hollihaan koulu 5R 298, 99.) Jesse Tikka Kyösti Kallion koulu 5C 298, 100.) Jere Peräaho Kyösti Kallion koulu 5B 297, 101.) Aatos Perttula Pohjankylän koulu 6C 296, 102.) Konsta Hannula Pohjankylän koulu 5C 296, 103.) Kaspian Kuki Kyösti Kallion koulu 5C 296, 104.) Oliver Viio Kyösti Kallion koulu 5C 294, 105.) Joel Kivioja Roikolan koulu 293, 106.) Valtteri Sorvala Pohjankylän koulu 5C 292, 107.) Eemeli Himanka Lohtajan Kirkonkylän koulu 290, 108.) Oskari Vänttilä Vuorenkallion koulu 290, 109.) Max Witick Roikolan koulu 288, 110.) Tuomas Lokkila Tyngän aluekoulu 288, 111.) Niko Jokinen Hollihaan koulu 287, 112.) Topias Törnval Vuorenkallion koulu 287, 113.) Jyry-Matti Niemi Pohjankylän koulu 5A 286, 114.) Jami Kinaret Hollihaan koulu 5R 285, 115.) Rasmus Andersson Kirkonmäen koulu 285, 116.) Juuso Lassila Etelänkylän koulu 282, 117.) Eeli Hiltula Marttilan koulu 281, 118.) Joel Häggblom Kirkonmäen koulu 280, 119.) Vili-Ilmari Hyyppä Hollihaan koulu 5R 279, 120.) Topi Päiveröinen Kyösti Kallion koulu 5A 278, 121.) Paavo Tilvis Pohjankylän koulu 6A 275, 122.) Aleksi Nikupaavo Pohjankylän koulu 6B 274, 123.) Oskari Nissilä Kälviän Kirkonkylän koulu 270, 124.) Jani Soukka Tyngän aluekoulu 267, 125.) Henri Vedenoja Pohjankylän koulu 5B 262, 126.) Eetu Ahonen Pohjankylän koulu 5B 261, 127.) Niina Kylmälä Pohjankylän koulu 5B 261, 128.) Martti Prittinen Pohjankylän koulu 5A 259, 129.) Tuure Anttila Pohjankylän koulu 5B 256, 130.) Joona Kallio Hollihaan koulu 237, 131.) Juuso Niemelä Hollihaan koulu 5R 235, 132.) Joona Nauha Pohjankylän koulu 6B 235, 133.) Jerry Kivioja Roikolan koulu 221, 134.) Leevi Hongisto Pohjankylän koulu 5C 220, 135.) Aaro Jukkila Pohjankylän koulu 5B 216, 136.) Ville Tölli Kyösti Kallion koulu 5C 193, 137.) Sami Hannula Kyösti Kallion koulu 5C 186, 138.) 0, 139.) 0, 140.) 0, 141.) 0, 142.) 0, 143.) 0, 144.) 0, 145.) 0, 146.) 0, 147.) 0, 148.) 0, 149.) 0, 150.) 0, 151.) 0, 152.) 0, 153.) 0, 154.) 0, 155.) 0, 156.) 0, 157.) 0, 158.) 0, 159.) 0, 160.) 0, 161.) 0, 162.) 0, 163.) 0, 164.) 0, 165.) 0, 166.) 0, 167.) 0, 168.) 0, 169.) 0, 170.) 0, 171.) 0, 172.) 0, 173.) 0, 174.) 0, 175.) 0, 176.) 0, 177.) 0, 178.) 0, 179.) 0, 180.) 0
A36: 35. | B36: =IF(Koulut!B169<>0,Koulut!B169,"") -> Aleksi Kaarlela | C36: =IF(Koulut!B169<>0,Koulut!B$167,"") -> Kyösti Kallion koulu 5B | D36: =Koulut!C169 -> 356 | E36: 35.) Aleksi Kaarlela Kyösti Kallion koulu 5B 356, 36.) Frank Sorjonen Pohjankylän koulu 6A 355, 37.) Rasmus Mäkelä Roikolan koulu 355, 38.) Aatu Teppo Kyösti Kallion koulu 5B 354, 39.) Santeri Rahja Tyngän aluekoulu 353, 40.) Heikki Tuorila Raumankarin koulu 351, 41.) Riku Kalliokoski Pohjankylän koulu 6B 350, 42.) Samuel Niemikorpi Korhosen koulu 349, 43.) Evert Neuvonen Takalon koulu 349, 44.) Andreas Thylin Kirkonmäen koulu 346, 45.) Valtteri Himanka Pohjankylän koulu 5A 345, 46.) Miika Suviola Pohjankylän koulu 6B 345, 47.) Joona Keskinen Kälviän Kirkonkylän koulu 344, 48.) Alexi Similä Pohjankylän koulu 6C 344, 49.) Kasper Weizman Kirkonmäen koulu 344, 50.) Viljami Vihelä Vuorenkallion koulu 340, 51.) Jimi Uusitalo Marttilan koulu 339, 52.) Jose Seppälä Hollihaan koulu 339, 53.) Joni Pentinmikko Raasakan koulu 6C 338, 54.) Arttu Kivioja Takalon koulu 338, 55.) Jere Eskola Takalon koulu 338, 56.) Jaakko Airas Vuorenkallion koulu 337, 57.) Hannes Häkkilä Pohjankylän koulu 6C 336, 58.) Aatu Silakka Raasakan koulu 6C 335, 59.) Tamas Hietala Pohjankylän koulu 6A 334, 60.) Mikael Ylitalo Pohjankylän koulu 5B 331, 61.) Oskari Rahkola Pohjankylän koulu 6B 331, 62.) Bimo Juntunen Pohjankylän koulu 5C 330, 63.) Panu Rimpioja Marttilan koulu 329, 64.) Riku Isopahkala Etelänkylän koulu 328, 65.) Konsta Piippo Hollihaan koulu 5R 327, 66.) Jere Ojala Pohjankylän koulu 5A 326, 67.) Hugo Stenbäck Tyngän aluekoulu 326, 68.) Henry Nauha Pohjankylän koulu 5C 325, 69.) Janne Forström Hollihaan koulu 5R 322, 70.) Heikki Tienvieri Kyösti Kallion koulu 5B 322, 71.) Juulio Pitkämö Tyngän aluekoulu 319, 72.) Aatu Hihnala Vuorenkallion koulu 318, 73.) Timi Tanskanen Kälviän Kirkonkylän koulu 317, 74.) Andrei Koskela Hollihaan koulu 317, 75.) Juho Pyhälä Tyngän aluekoulu 316, 76.) Miro Vehmanen Hollihaan koulu 316, 77.) Nico Mäenpää Raasakan koulu 6C 315, 78.) Lari Ojala Pohjankylän koulu 6C 315, 79.) Joonas Siipola Raumankarin koulu 315, 80.) Oskari Vihelä Etelänkylän koulu 313, 81.) Jere Laurila Pohjankylän koulu 5A 313, 82.) Otto Aho Hollihaan koulu 313, 83.) Ville Niku Kyösti Kallion koulu 5C 312, 84.) Alex Suopunki Lohtajan Kirkonkylän koulu 311, 85.) Eemil Karikumpu Kyösti Kallion koulu 5A 310, 86.) Santeri Mäkinen Raumankarin koulu 310, 87.) Artturi Nikunen Raasakan koulu 6C 308, 88.) Matias Eskola Kyösti Kallion koulu 5A 306, 89.) Herman Salmela Kyösti Kallion koulu 5A 304, 90.) Robin Kämäräinen Marttilan koulu 304, 91.) Lassi Simpanen Etelänkylän koulu 303, 92.) Iiro Kallio Kyösti Kallion koulu 5A 303, 93.) Miika Ohtamaa Kyösti Kallion koulu 5B 303, 94.) Kasperi Hannula Pohjankylän koulu 5A 302, 95.) Jarno Puikko Kälviän Kirkonkylän koulu 301, 96.) Emil Klaavu Kirkonmäen koulu 299, 97.) Julius Poutanen Marttilan koulu 298, 98.) Atte Manninen Hollihaan koulu 5R 298, 99.) Jesse Tikka Kyösti Kallion koulu 5C 298, 100.) Jere Peräaho Kyösti Kallion koulu 5B 297, 101.) Aatos Perttula Pohjankylän koulu 6C 296, 102.) Konsta Hannula Pohjankylän koulu 5C 296, 103.) Kaspian Kuki Kyösti Kallion koulu 5C 296, 104.) Oliver Viio Kyösti Kallion koulu 5C 294, 105.) Joel Kivioja Roikolan koulu 293, 106.) Valtteri Sorvala Pohjankylän koulu 5C 292, 107.) Eemeli Himanka Lohtajan Kirkonkylän koulu 290, 108.) Oskari Vänttilä Vuorenkallion koulu 290, 109.) Max Witick Roikolan koulu 288, 110.) Tuomas Lokkila Tyngän aluekoulu 288, 111.) Niko Jokinen Hollihaan koulu 287, 112.) Topias Törnval Vuorenkallion koulu 287, 113.) Jyry-Matti Niemi Pohjankylän koulu 5A 286, 114.) Jami Kinaret Hollihaan koulu 5R 285, 115.) Rasmus Andersson Kirkonmäen koulu 285, 116.) Juuso Lassila Etelänkylän koulu 282, 117.) Eeli Hiltula Marttilan koulu 281, 118.) Joel Häggblom Kirkonmäen koulu 280, 119.) Vili-Ilmari Hyyppä Hollihaan koulu 5R 279, 120.) Topi Päiveröinen Kyösti Kallion koulu 5A 278, 121.) Paavo Tilvis Pohjankylän koulu 6A 275, 122.) Aleksi Nikupaavo Pohjankylän koulu 6B 274, 123.) Oskari Nissilä Kälviän Kirkonkylän koulu 270, 124.) Jani Soukka Tyngän aluekoulu 267, 125.) Henri Vedenoja Pohjankylän koulu 5B 262, 126.) Eetu Ahonen Pohjankylän koulu 5B 261, 127.) Niina Kylmälä Pohjankylän koulu 5B 261, 128.) Martti Prittinen Pohjankylän koulu 5A 259, 129.) Tuure Anttila Pohjankylän koulu 5B 256, 130.) Joona Kallio Hollihaan koulu 237, 131.) Juuso Niemelä Hollihaan koulu 5R 235, 132.) Joona Nauha Pohjankylän koulu 6B 235, 133.) Jerry Kivioja Roikolan koulu 221, 134.) Leevi Hongisto Pohjankylän koulu 5C 220, 135.) Aaro Jukkila Pohjankylän koulu 5B 216, 136.) Ville Tölli Kyösti Kallion koulu 5C 193, 137.) Sami Hannula Kyösti Kallion koulu 5C 186, 138.) 0, 139.) 0, 140.) 0, 141.) 0, 142.) 0, 143.) 0, 144.) 0, 145.) 0, 146.) 0, 147.) 0, 148.) 0, 149.) 0, 150.) 0, 151.) 0, 152.) 0, 153.) 0, 154.) 0, 155.) 0, 156.) 0, 157.) 0, 158.) 0, 159.) 0, 160.) 0, 161.) 0, 162.) 0, 163.) 0, 164.) 0, 165.) 0, 166.) 0, 167.) 0, 168.) 0, 169.) 0, 170.) 0, 171.) 0, 172.) 0, 173.) 0, 174.) 0, 175.) 0, 176.) 0, 177.) 0, 178.) 0, 179.) 0, 180.) 0
A37: 36. | B37: =IF(Koulut!B32<>0,Koulut!B32,"") -> Frank Sorjonen | C37: =IF(Koulut!B32<>0,Koulut!B$27,"") -> Pohjankylän koulu 6A | D37: =Koulut!C32 -> 355 | E37: 36.) Frank Sorjonen Pohjankylän koulu 6A 355, 37.) Rasmus Mäkelä Roikolan koulu 355, 38.) Aatu Teppo Kyösti Kallion koulu 5B 354, 39.) Santeri Rahja Tyngän aluekoulu 353, 40.) Heikki Tuorila Raumankarin koulu 351, 41.) Riku Kalliokoski Pohjankylän koulu 6B 350, 42.) Samuel Niemikorpi Korhosen koulu 349, 43.) Evert Neuvonen Takalon koulu 349, 44.) Andreas Thylin Kirkonmäen koulu 346, 45.) Valtteri Himanka Pohjankylän koulu 5A 345, 46.) Miika Suviola Pohjankylän koulu 6B 345, 47.) Joona Keskinen Kälviän Kirkonkylän koulu 344, 48.) Alexi Similä Pohjankylän koulu 6C 344, 49.) Kasper Weizman Kirkonmäen koulu 344, 50.) Viljami Vihelä Vuorenkallion koulu 340, 51.) Jimi Uusitalo Marttilan koulu 339, 52.) Jose Seppälä Hollihaan koulu 339, 53.) Joni Pentinmikko Raasakan koulu 6C 338, 54.) Arttu Kivioja Takalon koulu 338, 55.) Jere Eskola Takalon koulu 338, 56.) Jaakko Airas Vuorenkallion koulu 337, 57.) Hannes Häkkilä Pohjankylän koulu 6C 336, 58.) Aatu Silakka Raasakan koulu 6C 335, 59.) Tamas Hietala Pohjankylän koulu 6A 334, 60.) Mikael Ylitalo Pohjankylän koulu 5B 331, 61.) Oskari Rahkola Pohjankylän koulu 6B 331, 62.) Bimo Juntunen Pohjankylän koulu 5C 330, 63.) Panu Rimpioja Marttilan koulu 329, 64.) Riku Isopahkala Etelänkylän koulu 328, 65.) Konsta Piippo Hollihaan koulu 5R 327, 66.) Jere Ojala Pohjankylän koulu 5A 326, 67.) Hugo Stenbäck Tyngän aluekoulu 326, 68.) Henry Nauha Pohjankylän koulu 5C 325, 69.) Janne Forström Hollihaan koulu 5R 322, 70.) Heikki Tienvieri Kyösti Kallion koulu 5B 322, 71.) Juulio Pitkämö Tyngän aluekoulu 319, 72.) Aatu Hihnala Vuorenkallion koulu 318, 73.) Timi Tanskanen Kälviän Kirkonkylän koulu 317, 74.) Andrei Koskela Hollihaan koulu 317, 75.) Juho Pyhälä Tyngän aluekoulu 316, 76.) Miro Vehmanen Hollihaan koulu 316, 77.) Nico Mäenpää Raasakan koulu 6C 315, 78.) Lari Ojala Pohjankylän koulu 6C 315, 79.) Joonas Siipola Raumankarin koulu 315, 80.) Oskari Vihelä Etelänkylän koulu 313, 81.) Jere Laurila Pohjankylän koulu 5A 313, 82.) Otto Aho Hollihaan koulu 313, 83.) Ville Niku Kyösti Kallion koulu 5C 312, 84.) Alex Suopunki Lohtajan Kirkonkylän koulu 311, 85.) Eemil Karikumpu Kyösti Kallion koulu 5A 310, 86.) Santeri Mäkinen Raumankarin koulu 310, 87.) Artturi Nikunen Raasakan koulu 6C 308, 88.) Matias Eskola Kyösti Kallion koulu 5A 306, 89.) Herman Salmela Kyösti Kallion koulu 5A 304, 90.) Robin Kämäräinen Marttilan koulu 304, 91.) Lassi Simpanen Etelänkylän koulu 303, 92.) Iiro Kallio Kyösti Kallion koulu 5A 303, 93.) Miika Ohtamaa Kyösti Kallion koulu 5B 303, 94.) Kasperi Hannula Pohjankylän koulu 5A 302, 95.) Jarno Puikko Kälviän Kirkonkylän koulu 301, 96.) Emil Klaavu Kirkonmäen koulu 299, 97.) Julius Poutanen Marttilan koulu 298, 98.) Atte Manninen Hollihaan koulu 5R 298, 99.) Jesse Tikka Kyösti Kallion koulu 5C 298, 100.) Jere Peräaho Kyösti Kallion koulu 5B 297, 101.) Aatos Perttula Pohjankylän koulu 6C 296, 102.) Konsta Hannula Pohjankylän koulu 5C 296, 103.) Kaspian Kuki Kyösti Kallion koulu 5C 296, 104.) Oliver Viio Kyösti Kallion koulu 5C 294, 105.) Joel Kivioja Roikolan koulu 293, 106.) Valtteri Sorvala Pohjankylän koulu 5C 292, 107.) Eemeli Himanka Lohtajan Kirkonkylän koulu 290, 108.) Oskari Vänttilä Vuorenkallion koulu 290, 109.) Max Witick Roikolan koulu 288, 110.) Tuomas Lokkila Tyngän aluekoulu 288, 111.) Niko Jokinen Hollihaan koulu 287, 112.) Topias Törnval Vuorenkallion koulu 287, 113.) Jyry-Matti Niemi Pohjankylän koulu 5A 286, 114.) Jami Kinaret Hollihaan koulu 5R 285, 115.) Rasmus Andersson Kirkonmäen koulu 285, 116.) Juuso Lassila Etelänkylän koulu 282, 117.) Eeli Hiltula Marttilan koulu 281, 118.) Joel Häggblom Kirkonmäen koulu 280, 119.) Vili-Ilmari Hyyppä Hollihaan koulu 5R 279, 120.) Topi Päiveröinen Kyösti Kallion koulu 5A 278, 121.) Paavo Tilvis Pohjankylän koulu 6A 275, 122.) Aleksi Nikupaavo Pohjankylän koulu 6B 274, 123.) Oskari Nissilä Kälviän Kirkonkylän koulu 270, 124.) Jani Soukka Tyngän aluekoulu 267, 125.) Henri Vedenoja Pohjankylän koulu 5B 262, 126.) Eetu Ahonen Pohjankylän koulu 5B 261, 127.) Niina Kylmälä Pohjankylän koulu 5B 261, 128.) Martti Prittinen Pohjankylän koulu 5A 259, 129.) Tuure Anttila Pohjankylän koulu 5B 256, 130.) Joona Kallio Hollihaan koulu 237, 131.) Juuso Niemelä Hollihaan koulu 5R 235, 132.) Joona Nauha Pohjankylän koulu 6B 235, 133.) Jerry Kivioja Roikolan koulu 221, 134.) Leevi Hongisto Pohjankylän koulu 5C 220, 135.) Aaro Jukkila Pohjankylän koulu 5B 216, 136.) Ville Tölli Kyösti Kallion koulu 5C 193, 137.) Sami Hannula Kyösti Kallion koulu 5C 186, 138.) 0, 139.) 0, 140.) 0, 141.) 0, 142.) 0, 143.) 0, 144.) 0, 145.) 0, 146.) 0, 147.) 0, 148.) 0, 149.) 0, 150.) 0, 151.) 0, 152.) 0, 153.) 0, 154.) 0, 155.) 0, 156.) 0, 157.) 0, 158.) 0, 159.) 0, 160.) 0, 161.) 0, 162.) 0, 163.) 0, 164.) 0, 165.) 0, 166.) 0, 167.) 0, 168.) 0, 169.) 0, 170.) 0, 171.) 0, 172.) 0, 173.) 0, 174.) 0, 175.) 0, 176.) 0, 177.) 0, 178.) 0, 179.) 0, 180.) 0
A38: 37. | B38: =IF(Koulut!B46<>0,Koulut!B46,"") -> Rasmus Mäkelä | C38: =IF(Koulut!B46<>0,Koulut!B$41,"") -> Roikolan koulu | D38: =Koulut!C46 -> 355 | E38: 37.) Rasmus Mäkelä Roikolan koulu 355, 38.) Aatu Teppo Kyösti Kallion koulu 5B 354, 39.) Santeri Rahja Tyngän aluekoulu 353, 40.) Heikki Tuorila Raumankarin koulu 351, 41.) Riku Kalliokoski Pohjankylän koulu 6B 350, 42.) Samuel Niemikorpi Korhosen koulu 349, 43.) Evert Neuvonen Takalon koulu 349, 44.) Andreas Thylin Kirkonmäen koulu 346, 45.) Valtteri Himanka Pohjankylän koulu 5A 345, 46.) Miika Suviola Pohjankylän koulu 6B 345, 47.) Joona Keskinen Kälviän Kirkonkylän koulu 344, 48.) Alexi Similä Pohjankylän koulu 6C 344, 49.) Kasper Weizman Kirkonmäen koulu 344, 50.) Viljami Vihelä Vuorenkallion koulu 340, 51.) Jimi Uusitalo Marttilan koulu 339, 52.) Jose Seppälä Hollihaan koulu 339, 53.) Joni Pentinmikko Raasakan koulu 6C 338, 54.) Arttu Kivioja Takalon koulu 338, 55.) Jere Eskola Takalon koulu 338, 56.) Jaakko Airas Vuorenkallion koulu 337, 57.) Hannes Häkkilä Pohjankylän koulu 6C 336, 58.) Aatu Silakka Raasakan koulu 6C 335, 59.) Tamas Hietala Pohjankylän koulu 6A 334, 60.) Mikael Ylitalo Pohjankylän koulu 5B 331, 61.) Oskari Rahkola Pohjankylän koulu 6B 331, 62.) Bimo Juntunen Pohjankylän koulu 5C 330, 63.) Panu Rimpioja Marttilan koulu 329, 64.) Riku Isopahkala Etelänkylän koulu 328, 65.) Konsta Piippo Hollihaan koulu 5R 327, 66.) Jere Ojala Pohjankylän koulu 5A 326, 67.) Hugo Stenbäck Tyngän aluekoulu 326, 68.) Henry Nauha Pohjankylän koulu 5C 325, 69.) Janne Forström Hollihaan koulu 5R 322, 70.) Heikki Tienvieri Kyösti Kallion koulu 5B 322, 71.) Juulio Pitkämö Tyngän aluekoulu 319, 72.) Aatu Hihnala Vuorenkallion koulu 318, 73.) Timi Tanskanen Kälviän Kirkonkylän koulu 317, 74.) Andrei Koskela Hollihaan koulu 317, 75.) Juho Pyhälä Tyngän aluekoulu 316, 76.) Miro Vehmanen Hollihaan koulu 316, 77.) Nico Mäenpää Raasakan koulu 6C 315, 78.) Lari Ojala Pohjankylän koulu 6C 315, 79.) Joonas Siipola Raumankarin koulu 315, 80.) Oskari Vihelä Etelänkylän koulu 313, 81.) Jere Laurila Pohjankylän koulu 5A 313, 82.) Otto Aho Hollihaan koulu 313, 83.) Ville Niku Kyösti Kallion koulu 5C 312, 84.) Alex Suopunki Lohtajan Kirkonkylän koulu 311, 85.) Eemil Karikumpu Kyösti Kallion koulu 5A 310, 86.) Santeri Mäkinen Raumankarin koulu 310, 87.) Artturi Nikunen Raasakan koulu 6C 308, 88.) Matias Eskola Kyösti Kallion koulu 5A 306, 89.) Herman Salmela Kyösti Kallion koulu 5A 304, 90.) Robin Kämäräinen Marttilan koulu 304, 91.) Lassi Simpanen Etelänkylän koulu 303, 92.) Iiro Kallio Kyösti Kallion koulu 5A 303, 93.) Miika Ohtamaa Kyösti Kallion koulu 5B 303, 94.) Kasperi Hannula Pohjankylän koulu 5A 302, 95.) Jarno Puikko Kälviän Kirkonkylän koulu 301, 96.) Emil Klaavu Kirkonmäen koulu 299, 97.) Julius Poutanen Marttilan koulu 298, 98.) Atte Manninen Hollihaan koulu 5R 298, 99.) Jesse Tikka Kyösti Kallion koulu 5C 298, 100.) Jere Peräaho Kyösti Kallion koulu 5B 297, 101.) Aatos Perttula Pohjankylän koulu 6C 296, 102.) Konsta Hannula Pohjankylän koulu 5C 296, 103.) Kaspian Kuki Kyösti Kallion koulu 5C 296, 104.) Oliver Viio Kyösti Kallion koulu 5C 294, 105.) Joel Kivioja Roikolan koulu 293, 106.) Valtteri Sorvala Pohjankylän koulu 5C 292, 107.) Eemeli Himanka Lohtajan Kirkonkylän koulu 290, 108.) Oskari Vänttilä Vuorenkallion koulu 290, 109.) Max Witick Roikolan koulu 288, 110.) Tuomas Lokkila Tyngän aluekoulu 288, 111.) Niko Jokinen Hollihaan koulu 287, 112.) Topias Törnval Vuorenkallion koulu 287, 113.) Jyry-Matti Niemi Pohjankylän koulu 5A 286, 114.) Jami Kinaret Hollihaan koulu 5R 285, 115.) Rasmus Andersson Kirkonmäen koulu 285, 116.) Juuso Lassila Etelänkylän koulu 282, 117.) Eeli Hiltula Marttilan koulu 281, 118.) Joel Häggblom Kirkonmäen koulu 280, 119.) Vili-Ilmari Hyyppä Hollihaan koulu 5R 279, 120.) Topi Päiveröinen Kyösti Kallion koulu 5A 278, 121.) Paavo Tilvis Pohjankylän koulu 6A 275, 122.) Aleksi Nikupaavo Pohjankylän koulu 6B 274, 123.) Oskari Nissilä Kälviän Kirkonkylän koulu 270, 124.) Jani Soukka Tyngän aluekoulu 267, 125.) Henri Vedenoja Pohjankylän koulu 5B 262, 126.) Eetu Ahonen Pohjankylän koulu 5B 261, 127.) Niina Kylmälä Pohjankylän koulu 5B 261, 128.) Martti Prittinen Pohjankylän koulu 5A 259, 129.) Tuure Anttila Pohjankylän koulu 5B 256, 130.) Joona Kallio Hollihaan koulu 237, 131.) Juuso Niemelä Hollihaan koulu 5R 235, 132.) Joona Nauha Pohjankylän koulu 6B 235, 133.) Jerry Kivioja Roikolan koulu 221, 134.) Leevi Hongisto Pohjankylän koulu 5C 220, 135.) Aaro Jukkila Pohjankylän koulu 5B 216, 136.) Ville Tölli Kyösti Kallion koulu 5C 193, 137.) Sami Hannula Kyösti Kallion koulu 5C 186, 138.) 0, 139.) 0, 140.) 0, 141.) 0, 142.) 0, 143.) 0, 144.) 0, 145.) 0, 146.) 0, 147.) 0, 148.) 0, 149.) 0, 150.) 0, 151.) 0, 152.) 0, 153.) 0, 154.) 0, 155.) 0, 156.) 0, 157.) 0, 158.) 0, 159.) 0, 160.) 0, 161.) 0, 162.) 0, 163.) 0, 164.) 0, 165.) 0, 166.) 0, 167.) 0, 168.) 0, 169.) 0, 170.) 0, 171.) 0, 172.) 0, 173.) 0, 174.) 0, 175.) 0, 176.) 0, 177.) 0, 178.) 0, 179.) 0, 180.) 0
A39: 38. | B39: =IF(Koulut!B173<>0,Koulut!B173,"") -> Aatu Teppo | C39: =IF(Koulut!B173<>0,Koulut!B$167,"") -> Kyösti Kallion koulu 5B | D39: =Koulut!C173 -> 354 | E39: 38.) Aatu Teppo Kyösti Kallion koulu 5B 354, 39.) Santeri Rahja Tyngän aluekoulu 353, 40.) Heikki Tuorila Raumankarin koulu 351, 41.) Riku Kalliokoski Pohjankylän koulu 6B 350, 42.) Samuel Niemikorpi Korhosen koulu 349, 43.) Evert Neuvonen Takalon koulu 349, 44.) Andreas Thylin Kirkonmäen koulu 346, 45.) Valtteri Himanka Pohjankylän koulu 5A 345, 46.) Miika Suviola Pohjankylän koulu 6B 345, 47.) Joona Keskinen Kälviän Kirkonkylän koulu 344, 48.) Alexi Similä Pohjankylän koulu 6C 344, 49.) Kasper Weizman Kirkonmäen koulu 344, 50.) Viljami Vihelä Vuorenkallion koulu 340, 51.) Jimi Uusitalo Marttilan koulu 339, 52.) Jose Seppälä Hollihaan koulu 339, 53.) Joni Pentinmikko Raasakan koulu 6C 338, 54.) Arttu Kivioja Takalon koulu 338, 55.) Jere Eskola Takalon koulu 338, 56.) Jaakko Airas Vuorenkallion koulu 337, 57.) Hannes Häkkilä Pohjankylän koulu 6C 336, 58.) Aatu Silakka Raasakan koulu 6C 335, 59.) Tamas Hietala Pohjankylän koulu 6A 334, 60.) Mikael Ylitalo Pohjankylän koulu 5B 331, 61.) Oskari Rahkola Pohjankylän koulu 6B 331, 62.) Bimo Juntunen Pohjankylän koulu 5C 330, 63.) Panu Rimpioja Marttilan koulu 329, 64.) Riku Isopahkala Etelänkylän koulu 328, 65.) Konsta Piippo Hollihaan koulu 5R 327, 66.) Jere Ojala Pohjankylän koulu 5A 326, 67.) Hugo Stenbäck Tyngän aluekoulu 326, 68.) Henry Nauha Pohjankylän koulu 5C 325, 69.) Janne Forström Hollihaan koulu 5R 322, 70.) Heikki Tienvieri Kyösti Kallion koulu 5B 322, 71.) Juulio Pitkämö Tyngän aluekoulu 319, 72.) Aatu Hihnala Vuorenkallion koulu 318, 73.) Timi Tanskanen Kälviän Kirkonkylän koulu 317, 74.) Andrei Koskela Hollihaan koulu 317, 75.) Juho Pyhälä Tyngän aluekoulu 316, 76.) Miro Vehmanen Hollihaan koulu 316, 77.) Nico Mäenpää Raasakan koulu 6C 315, 78.) Lari Ojala Pohjankylän koulu 6C 315, 79.) Joonas Siipola Raumankarin koulu 315, 80.) Oskari Vihelä Etelänkylän koulu 313, 81.) Jere Laurila Pohjankylän koulu 5A 313, 82.) Otto Aho Hollihaan koulu 313, 83.) Ville Niku Kyösti Kallion koulu 5C 312, 84.) Alex Suopunki Lohtajan Kirkonkylän koulu 311, 85.) Eemil Karikumpu Kyösti Kallion koulu 5A 310, 86.) Santeri Mäkinen Raumankarin koulu 310, 87.) Artturi Nikunen Raasakan koulu 6C 308, 88.) Matias Eskola Kyösti Kallion koulu 5A 306, 89.) Herman Salmela Kyösti Kallion koulu 5A 304, 90.) Robin Kämäräinen Marttilan koulu 304, 91.) Lassi Simpanen Etelänkylän koulu 303, 92.) Iiro Kallio Kyösti Kallion koulu 5A 303, 93.) Miika Ohtamaa Kyösti Kallion koulu 5B 303, 94.) Kasperi Hannula Pohjankylän koulu 5A 302, 95.) Jarno Puikko Kälviän Kirkonkylän koulu 301, 96.) Emil Klaavu Kirkonmäen koulu 299, 97.) Julius Poutanen Marttilan koulu 298, 98.) Atte Manninen Hollihaan koulu 5R 298, 99.) Jesse Tikka Kyösti Kallion koulu 5C 298, 100.) Jere Peräaho Kyösti Kallion koulu 5B 297, 101.) Aatos Perttula Pohjankylän koulu 6C 296, 102.) Konsta Hannula Pohjankylän koulu 5C 296, 103.) Kaspian Kuki Kyösti Kallion koulu 5C 296, 104.) Oliver Viio Kyösti Kallion koulu 5C 294, 105.) Joel Kivioja Roikolan koulu 293, 106.) Valtteri Sorvala Pohjankylän koulu 5C 292, 107.) Eemeli Himanka Lohtajan Kirkonkylän koulu 290, 108.) Oskari Vänttilä Vuorenkallion koulu 290, 109.) Max Witick Roikolan koulu 288, 110.) Tuomas Lokkila Tyngän aluekoulu 288, 111.) Niko Jokinen Hollihaan koulu 287, 112.) Topias Törnval Vuorenkallion koulu 287, 113.) Jyry-Matti Niemi Pohjankylän koulu 5A 286, 114.) Jami Kinaret Hollihaan koulu 5R 285, 115.) Rasmus Andersson Kirkonmäen koulu 285, 116.) Juuso Lassila Etelänkylän koulu 282, 117.) Eeli Hiltula Marttilan koulu 281, 118.) Joel Häggblom Kirkonmäen koulu 280, 119.) Vili-Ilmari Hyyppä Hollihaan koulu 5R 279, 120.) Topi Päiveröinen Kyösti Kallion koulu 5A 278, 121.) Paavo Tilvis Pohjankylän koulu 6A 275, 122.) Aleksi Nikupaavo Pohjankylän koulu 6B 274, 123.) Oskari Nissilä Kälviän Kirkonkylän koulu 270, 124.) Jani Soukka Tyngän aluekoulu 267, 125.) Henri Vedenoja Pohjankylän koulu 5B 262, 126.) Eetu Ahonen Pohjankylän koulu 5B 261, 127.) Niina Kylmälä Pohjankylän koulu 5B 261, 128.) Martti Prittinen Pohjankylän koulu 5A 259, 129.) Tuure Anttila Pohjankylän koulu 5B 256, 130.) Joona Kallio Hollihaan koulu 237, 131.) Juuso Niemelä Hollihaan koulu 5R 235, 132.) Joona Nauha Pohjankylän koulu 6B 235, 133.) Jerry Kivioja Roikolan koulu 221, 134.) Leevi Hongisto Pohjankylän koulu 5C 220, 135.) Aaro Jukkila Pohjankylän koulu 5B 216, 136.) Ville Tölli Kyösti Kallion koulu 5C 193, 137.) Sami Hannula Kyösti Kallion koulu 5C 186, 138.) 0, 139.) 0, 140.) 0, 141.) 0, 142.) 0, 143.) 0, 144.) 0, 145.) 0, 146.) 0, 147.) 0, 148.) 0, 149.) 0, 150.) 0, 151.) 0, 152.) 0, 153.) 0, 154.) 0, 155.) 0, 156.) 0, 157.) 0, 158.) 0, 159.) 0, 160.) 0, 161.) 0, 162.) 0, 163.) 0, 164.) 0, 165.) 0, 166.) 0, 167.) 0, 168.) 0, 169.) 0, 170.) 0, 171.) 0, 172.) 0, 173.) 0, 174.) 0, 175.) 0, 176.) 0, 177.) 0, 178.) 0, 179.) 0, 180.) 0
A40: 39. | B40: =IF(Koulut!B201<>0,Koulut!B201,"") -> Santeri Rahja | C40: =IF(Koulut!B201<>0,Koulut!B$195,"") -> Tyngän aluekoulu | D40: =Koulut!C201 -> 353 | E40: 39.) Santeri Rahja Tyngän aluekoulu 353, 40.) Heikki Tuorila Raumankarin koulu 351, 41.) Riku Kalliokoski Pohjankylän koulu 6B 350, 42.) Samuel Niemikorpi Korhosen koulu 349, 43.) Evert Neuvonen Takalon koulu 349, 44.) Andreas Thylin Kirkonmäen koulu 346, 45.) Valtteri Himanka Pohjankylän koulu 5A 345, 46.) Miika Suviola Pohjankylän koulu 6B 345, 47.) Joona Keskinen Kälviän Kirkonkylän koulu 344, 48.) Alexi Similä Pohjankylän koulu 6C 344, 49.) Kasper Weizman Kirkonmäen koulu 344, 50.) Viljami Vihelä Vuorenkallion koulu 340, 51.) Jimi Uusitalo Marttilan koulu 339, 52.) Jose Seppälä Hollihaan koulu 339, 53.) Joni Pentinmikko Raasakan koulu 6C 338, 54.) Arttu Kivioja Takalon koulu 338, 55.) Jere Eskola Takalon koulu 338, 56.) Jaakko Airas Vuorenkallion koulu 337, 57.) Hannes Häkkilä Pohjankylän koulu 6C 336, 58.) Aatu Silakka Raasakan koulu 6C 335, 59.) Tamas Hietala Pohjankylän koulu 6A 334, 60.) Mikael Ylitalo Pohjankylän koulu 5B 331, 61.) Oskari Rahkola Pohjankylän koulu 6B 331, 62.) Bimo Juntunen Pohjankylän koulu 5C 330, 63.) Panu Rimpioja Marttilan koulu 329, 64.) Riku Isopahkala Etelänkylän koulu 328, 65.) Konsta Piippo Hollihaan koulu 5R 327, 66.) Jere Ojala Pohjankylän koulu 5A 326, 67.) Hugo Stenbäck Tyngän aluekoulu 326, 68.) Henry Nauha Pohjankylän koulu 5C 325, 69.) Janne Forström Hollihaan koulu 5R 322, 70.) Heikki Tienvieri Kyösti Kallion koulu 5B 322, 71.) Juulio Pitkämö Tyngän aluekoulu 319, 72.) Aatu Hihnala Vuorenkallion koulu 318, 73.) Timi Tanskanen Kälviän Kirkonkylän koulu 317, 74.) Andrei Koskela Hollihaan koulu 317, 75.) Juho Pyhälä Tyngän aluekoulu 316, 76.) Miro Vehmanen Hollihaan koulu 316, 77.) Nico Mäenpää Raasakan koulu 6C 315, 78.) Lari Ojala Pohjankylän koulu 6C 315, 79.) Joonas Siipola Raumankarin koulu 315, 80.) Oskari Vihelä Etelänkylän koulu 313, 81.) Jere Laurila Pohjankylän koulu 5A 313, 82.) Otto Aho Hollihaan koulu 313, 83.) Ville Niku Kyösti Kallion koulu 5C 312, 84.) Alex Suopunki Lohtajan Kirkonkylän koulu 311, 85.) Eemil Karikumpu Kyösti Kallion koulu 5A 310, 86.) Santeri Mäkinen Raumankarin koulu 310, 87.) Artturi Nikunen Raasakan koulu 6C 308, 88.) Matias Eskola Kyösti Kallion koulu 5A 306, 89.) Herman Salmela Kyösti Kallion koulu 5A 304, 90.) Robin Kämäräinen Marttilan koulu 304, 91.) Lassi Simpanen Etelänkylän koulu 303, 92.) Iiro Kallio Kyösti Kallion koulu 5A 303, 93.) Miika Ohtamaa Kyösti Kallion koulu 5B 303, 94.) Kasperi Hannula Pohjankylän koulu 5A 302, 95.) Jarno Puikko Kälviän Kirkonkylän koulu 301, 96.) Emil Klaavu Kirkonmäen koulu 299, 97.) Julius Poutanen Marttilan koulu 298, 98.) Atte Manninen Hollihaan koulu 5R 298, 99.) Jesse Tikka Kyösti Kallion koulu 5C 298, 100.) Jere Peräaho Kyösti Kallion koulu 5B 297, 101.) Aatos Perttula Pohjankylän koulu 6C 296, 102.) Konsta Hannula Pohjankylän koulu 5C 296, 103.) Kaspian Kuki Kyösti Kallion koulu 5C 296, 104.) Oliver Viio Kyösti Kallion koulu 5C 294, 105.) Joel Kivioja Roikolan koulu 293, 106.) Valtteri Sorvala Pohjankylän koulu 5C 292, 107.) Eemeli Himanka Lohtajan Kirkonkylän koulu 290, 108.) Oskari Vänttilä Vuorenkallion koulu 290, 109.) Max Witick Roikolan koulu 288, 110.) Tuomas Lokkila Tyngän aluekoulu 288, 111.) Niko Jokinen Hollihaan koulu 287, 112.) Topias Törnval Vuorenkallion koulu 287, 113.) Jyry-Matti Niemi Pohjankylän koulu 5A 286, 114.) Jami Kinaret Hollihaan koulu 5R 285, 115.) Rasmus Andersson Kirkonmäen koulu 285, 116.) Juuso Lassila Etelänkylän koulu 282, 117.) Eeli Hiltula Marttilan koulu 281, 118.) Joel Häggblom Kirkonmäen koulu 280, 119.) Vili-Ilmari Hyyppä Hollihaan koulu 5R 279, 120.) Topi Päiveröinen Kyösti Kallion koulu 5A 278, 121.) Paavo Tilvis Pohjankylän koulu 6A 275, 122.) Aleksi Nikupaavo Pohjankylän koulu 6B 274, 123.) Oskari Nissilä Kälviän Kirkonkylän koulu 270, 124.) Jani Soukka Tyngän aluekoulu 267, 125.) Henri Vedenoja Pohjankylän koulu 5B 262, 126.) Eetu Ahonen Pohjankylän koulu 5B 261, 127.) Niina Kylmälä Pohjankylän koulu 5B 261, 128.) Martti Prittinen Pohjankylän koulu 5A 259, 129.) Tuure Anttila Pohjankylän koulu 5B 256, 130.) Joona Kallio Hollihaan koulu 237, 131.) Juuso Niemelä Hollihaan koulu 5R 235, 132.) Joona Nauha Pohjankylän koulu 6B 235, 133.) Jerry Kivioja Roikolan koulu 221, 134.) Leevi Hongisto Pohjankylän koulu 5C 220, 135.) Aaro Jukkila Pohjankylän koulu 5B 216, 136.) Ville Tölli Kyösti Kallion koulu 5C 193, 137.) Sami Hannula Kyösti Kallion koulu 5C 186, 138.) 0, 139.) 0, 140.) 0, 141.) 0, 142.) 0, 143.) 0, 144.) 0, 145.) 0, 146.) 0, 147.) 0, 148.) 0, 149.) 0, 150.) 0, 151.) 0, 152.) 0, 153.) 0, 154.) 0, 155.) 0, 156.) 0, 157.) 0, 158.) 0, 159.) 0, 160.) 0, 161.) 0, 162.) 0, 163.) 0, 164.) 0, 165.) 0, 166.) 0, 167.) 0, 168.) 0, 169.) 0, 170.) 0, 171.) 0, 172.) 0, 173.) 0, 174.) 0, 175.) 0, 176.) 0, 177.) 0, 178.) 0, 179.) 0, 180.) 0
A41: 40. | B41: =IF(Koulut!B271<>0,Koulut!B271,"") -> Heikki Tuorila | C41: =IF(Koulut!B271<>0,Koulut!B$265,"") -> Raumankarin koulu | D41: =Koulut!C271 -> 351 | E41: 40.) Heikki Tuorila Raumankarin koulu 351, 41.) Riku Kalliokoski Pohjankylän koulu 6B 350, 42.) Samuel Niemikorpi Korhosen koulu 349, 43.) Evert Neuvonen Takalon koulu 349, 44.) Andreas Thylin Kirkonmäen koulu 346, 45.) Valtteri Himanka Pohjankylän koulu 5A 345, 46.) Miika Suviola Pohjankylän koulu 6B 345, 47.) Joona Keskinen Kälviän Kirkonkylän koulu 344, 48.) Alexi Similä Pohjankylän koulu 6C 344, 49.) Kasper Weizman Kirkonmäen koulu 344, 50.) Viljami Vihelä Vuorenkallion koulu 340, 51.) Jimi Uusitalo Marttilan koulu 339, 52.) Jose Seppälä Hollihaan koulu 339, 53.) Joni Pentinmikko Raasakan koulu 6C 338, 54.) Arttu Kivioja Takalon koulu 338, 55.) Jere Eskola Takalon koulu 338, 56.) Jaakko Airas Vuorenkallion koulu 337, 57.) Hannes Häkkilä Pohjankylän koulu 6C 336, 58.) Aatu Silakka Raasakan koulu 6C 335, 59.) Tamas Hietala Pohjankylän koulu 6A 334, 60.) Mikael Ylitalo Pohjankylän koulu 5B 331, 61.) Oskari Rahkola Pohjankylän koulu 6B 331, 62.) Bimo Juntunen Pohjankylän koulu 5C 330, 63.) Panu Rimpioja Marttilan koulu 329, 64.) Riku Isopahkala Etelänkylän koulu 328, 65.) Konsta Piippo Hollihaan koulu 5R 327, 66.) Jere Ojala Pohjankylän koulu 5A 326, 67.) Hugo Stenbäck Tyngän aluekoulu 326, 68.) Henry Nauha Pohjankylän koulu 5C 325, 69.) Janne Forström Hollihaan koulu 5R 322, 70.) Heikki Tienvieri Kyösti Kallion koulu 5B 322, 71.) Juulio Pitkämö Tyngän aluekoulu 319, 72.) Aatu Hihnala Vuorenkallion koulu 318, 73.) Timi Tanskanen Kälviän Kirkonkylän koulu 317, 74.) Andrei Koskela Hollihaan koulu 317, 75.) Juho Pyhälä Tyngän aluekoulu 316, 76.) Miro Vehmanen Hollihaan koulu 316, 77.) Nico Mäenpää Raasakan koulu 6C 315, 78.) Lari Ojala Pohjankylän koulu 6C 315, 79.) Joonas Siipola Raumankarin koulu 315, 80.) Oskari Vihelä Etelänkylän koulu 313, 81.) Jere Laurila Pohjankylän koulu 5A 313, 82.) Otto Aho Hollihaan koulu 313, 83.) Ville Niku Kyösti Kallion koulu 5C 312, 84.) Alex Suopunki Lohtajan Kirkonkylän koulu 311, 85.) Eemil Karikumpu Kyösti Kallion koulu 5A 310, 86.) Santeri Mäkinen Raumankarin koulu 310, 87.) Artturi Nikunen Raasakan koulu 6C 308, 88.) Matias Eskola Kyösti Kallion koulu 5A 306, 89.) Herman Salmela Kyösti Kallion koulu 5A 304, 90.) Robin Kämäräinen Marttilan koulu 304, 91.) Lassi Simpanen Etelänkylän koulu 303, 92.) Iiro Kallio Kyösti Kallion koulu 5A 303, 93.) Miika Ohtamaa Kyösti Kallion koulu 5B 303, 94.) Kasperi Hannula Pohjankylän koulu 5A 302, 95.) Jarno Puikko Kälviän Kirkonkylän koulu 301, 96.) Emil Klaavu Kirkonmäen koulu 299, 97.) Julius Poutanen Marttilan koulu 298, 98.) Atte Manninen Hollihaan koulu 5R 298, 99.) Jesse Tikka Kyösti Kallion koulu 5C 298, 100.) Jere Peräaho Kyösti Kallion koulu 5B 297, 101.) Aatos Perttula Pohjankylän koulu 6C 296, 102.) Konsta Hannula Pohjankylän koulu 5C 296, 103.) Kaspian Kuki Kyösti Kallion koulu 5C 296, 104.) Oliver Viio Kyösti Kallion koulu 5C 294, 105.) Joel Kivioja Roikolan koulu 293, 106.) Valtteri Sorvala Pohjankylän koulu 5C 292, 107.) Eemeli Himanka Lohtajan Kirkonkylän koulu 290, 108.) Oskari Vänttilä Vuorenkallion koulu 290, 109.) Max Witick Roikolan koulu 288, 110.) Tuomas Lokkila Tyngän aluekoulu 288, 111.) Niko Jokinen Hollihaan koulu 287, 112.) Topias Törnval Vuorenkallion koulu 287, 113.) Jyry-Matti Niemi Pohjankylän koulu 5A 286, 114.) Jami Kinaret Hollihaan koulu 5R 285, 115.) Rasmus Andersson Kirkonmäen koulu 285, 116.) Juuso Lassila Etelänkylän koulu 282, 117.) Eeli Hiltula Marttilan koulu 281, 118.) Joel Häggblom Kirkonmäen koulu 280, 119.) Vili-Ilmari Hyyppä Hollihaan koulu 5R 279, 120.) Topi Päiveröinen Kyösti Kallion koulu 5A 278, 121.) Paavo Tilvis Pohjankylän koulu 6A 275, 122.) Aleksi Nikupaavo Pohjankylän koulu 6B 274, 123.) Oskari Nissilä Kälviän Kirkonkylän koulu 270, 124.) Jani Soukka Tyngän aluekoulu 267, 125.) Henri Vedenoja Pohjankylän koulu 5B 262, 126.) Eetu Ahonen Pohjankylän koulu 5B 261, 127.) Niina Kylmälä Pohjankylän koulu 5B 261, 128.) Martti Prittinen Pohjankylän koulu 5A 259, 129.) Tuure Anttila Pohjankylän koulu 5B 256, 130.) Joona Kallio Hollihaan koulu 237, 131.) Juuso Niemelä Hollihaan koulu 5R 235, 132.) Joona Nauha Pohjankylän koulu 6B 235, 133.) Jerry Kivioja Roikolan koulu 221, 134.) Leevi Hongisto Pohjankylän koulu 5C 220, 135.) Aaro Jukkila Pohjankylän koulu 5B 216, 136.) Ville Tölli Kyösti Kallion koulu 5C 193, 137.) Sami Hannula Kyösti Kallion koulu 5C 186, 138.) 0, 139.) 0, 140.) 0, 141.) 0, 142.) 0, 143.) 0, 144.) 0, 145.) 0, 146.) 0, 147.) 0, 148.) 0, 149.) 0, 150.) 0, 151.) 0, 152.) 0, 153.) 0, 154.) 0, 155.) 0, 156.) 0, 157.) 0, 158.) 0, 159.) 0, 160.) 0, 161.) 0, 162.) 0, 163.) 0, 164.) 0, 165.) 0, 166.) 0, 167.) 0, 168.) 0, 169.) 0, 170.) 0, 171.) 0, 172.) 0, 173.) 0, 174.) 0, 175.) 0, 176.) 0, 177.) 0, 178.) 0, 179.) 0, 180.) 0
A42: 41. | B42: =IF(Koulut!B311<>0,Koulut!B311,"") -> Riku Kalliokoski | C42: =IF(Koulut!B311<>0,Koulut!B$307,"") -> Pohjankylän koulu 6B | D42: =Koulut!C311 -> 350 | E42: 41.) Riku Kalliokoski Pohjankylän koulu 6B 350, 42.) Samuel Niemikorpi Korhosen koulu 349, 43.) Evert Neuvonen Takalon koulu 349, 44.) Andreas Thylin Kirkonmäen koulu 346, 45.) Valtteri Himanka Pohjankylän koulu 5A 345, 46.) Miika Suviola Pohjankylän koulu 6B 345, 47.) Joona Keskinen Kälviän Kirkonkylän koulu 344, 48.) Alexi Similä Pohjankylän koulu 6C 344, 49.) Kasper Weizman Kirkonmäen koulu 344, 50.) Viljami Vihelä Vuorenkallion koulu 340, 51.) Jimi Uusitalo Marttilan koulu 339, 52.) Jose Seppälä Hollihaan koulu 339, 53.) Joni Pentinmikko Raasakan koulu 6C 338, 54.) Arttu Kivioja Takalon koulu 338, 55.) Jere Eskola Takalon koulu 338, 56.) Jaakko Airas Vuorenkallion koulu 337, 57.) Hannes Häkkilä Pohjankylän koulu 6C 336, 58.) Aatu Silakka Raasakan koulu 6C 335, 59.) Tamas Hietala Pohjankylän koulu 6A 334, 60.) Mikael Ylitalo Pohjankylän koulu 5B 331, 61.) Oskari Rahkola Pohjankylän koulu 6B 331, 62.) Bimo Juntunen Pohjankylän koulu 5C 330, 63.) Panu Rimpioja Marttilan koulu 329, 64.) Riku Isopahkala Etelänkylän koulu 328, 65.) Konsta Piippo Hollihaan koulu 5R 327, 66.) Jere Ojala Pohjankylän koulu 5A 326, 67.) Hugo Stenbäck Tyngän aluekoulu 326, 68.) Henry Nauha Pohjankylän koulu 5C 325, 69.) Janne Forström Hollihaan koulu 5R 322, 70.) Heikki Tienvieri Kyösti Kallion koulu 5B 322, 71.) Juulio Pitkämö Tyngän aluekoulu 319, 72.) Aatu Hihnala Vuorenkallion koulu 318, 73.) Timi Tanskanen Kälviän Kirkonkylän koulu 317, 74.) Andrei Koskela Hollihaan koulu 317, 75.) Juho Pyhälä Tyngän aluekoulu 316, 76.) Miro Vehmanen Hollihaan koulu 316, 77.) Nico Mäenpää Raasakan koulu 6C 315, 78.) Lari Ojala Pohjankylän koulu 6C 315, 79.) Joonas Siipola Raumankarin koulu 315, 80.) Oskari Vihelä Etelänkylän koulu 313, 81.) Jere Laurila Pohjankylän koulu 5A 313, 82.) Otto Aho Hollihaan koulu 313, 83.) Ville Niku Kyösti Kallion koulu 5C 312, 84.) Alex Suopunki Lohtajan Kirkonkylän koulu 311, 85.) Eemil Karikumpu Kyösti Kallion koulu 5A 310, 86.) Santeri Mäkinen Raumankarin koulu 310, 87.) Artturi Nikunen Raasakan koulu 6C 308, 88.) Matias Eskola Kyösti Kallion koulu 5A 306, 89.) Herman Salmela Kyösti Kallion koulu 5A 304, 90.) Robin Kämäräinen Marttilan koulu 304, 91.) Lassi Simpanen Etelänkylän koulu 303, 92.) Iiro Kallio Kyösti Kallion koulu 5A 303, 93.) Miika Ohtamaa Kyösti Kallion koulu 5B 303, 94.) Kasperi Hannula Pohjankylän koulu 5A 302, 95.) Jarno Puikko Kälviän Kirkonkylän koulu 301, 96.) Emil Klaavu Kirkonmäen koulu 299, 97.) Julius Poutanen Marttilan koulu 298, 98.) Atte Manninen Hollihaan koulu 5R 298, 99.) Jesse Tikka Kyösti Kallion koulu 5C 298, 100.) Jere Peräaho Kyösti Kallion koulu 5B 297, 101.) Aatos Perttula Pohjankylän koulu 6C 296, 102.) Konsta Hannula Pohjankylän koulu 5C 296, 103.) Kaspian Kuki Kyösti Kallion koulu 5C 296, 104.) Oliver Viio Kyösti Kallion koulu 5C 294, 105.) Joel Kivioja Roikolan koulu 293, 106.) Valtteri Sorvala Pohjankylän koulu 5C 292, 107.) Eemeli Himanka Lohtajan Kirkonkylän koulu 290, 108.) Oskari Vänttilä Vuorenkallion koulu 290, 109.) Max Witick Roikolan koulu 288, 110.) Tuomas Lokkila Tyngän aluekoulu 288, 111.) Niko Jokinen Hollihaan koulu 287, 112.) Topias Törnval Vuorenkallion koulu 287, 113.) Jyry-Matti Niemi Pohjankylän koulu 5A 286, 114.) Jami Kinaret Hollihaan koulu 5R 285, 115.) Rasmus Andersson Kirkonmäen koulu 285, 116.) Juuso Lassila Etelänkylän koulu 282, 117.) Eeli Hiltula Marttilan koulu 281, 118.) Joel Häggblom Kirkonmäen koulu 280, 119.) Vili-Ilmari Hyyppä Hollihaan koulu 5R 279, 120.) Topi Päiveröinen Kyösti Kallion koulu 5A 278, 121.) Paavo Tilvis Pohjankylän koulu 6A 275, 122.) Aleksi Nikupaavo Pohjankylän koulu 6B 274, 123.) Oskari Nissilä Kälviän Kirkonkylän koulu 270, 124.) Jani Soukka Tyngän aluekoulu 267, 125.) Henri Vedenoja Pohjankylän koulu 5B 262, 126.) Eetu Ahonen Pohjankylän koulu 5B 261, 127.) Niina Kylmälä Pohjankylän koulu 5B 261, 128.) Martti Prittinen Pohjankylän koulu 5A 259, 129.) Tuure Anttila Pohjankylän koulu 5B 256, 130.) Joona Kallio Hollihaan koulu 237, 131.) Juuso Niemelä Hollihaan koulu 5R 235, 132.) Joona Nauha Pohjankylän koulu 6B 235, 133.) Jerry Kivioja Roikolan koulu 221, 134.) Leevi Hongisto Pohjankylän koulu 5C 220, 135.) Aaro Jukkila Pohjankylän koulu 5B 216, 136.) Ville Tölli Kyösti Kallion koulu 5C 193, 137.) Sami Hannula Kyösti Kallion koulu 5C 186, 138.) 0, 139.) 0, 140.) 0, 141.) 0, 142.) 0, 143.) 0, 144.) 0, 145.) 0, 146.) 0, 147.) 0, 148.) 0, 149.) 0, 150.) 0, 151.) 0, 152.) 0, 153.) 0, 154.) 0, 155.) 0, 156.) 0, 157.) 0, 158.) 0, 159.) 0, 160.) 0, 161.) 0, 162.) 0, 163.) 0, 164.) 0, 165.) 0, 166.) 0, 167.) 0, 168.) 0, 169.) 0, 170.) 0, 171.) 0, 172.) 0, 173.) 0, 174.) 0, 175.) 0, 176.) 0, 177.) 0, 178.) 0, 179.) 0, 180.) 0
A43: 42. | B43: =IF(Koulut!B155<>0,Koulut!B155,"") -> Samuel Niemikorpi | C43: =IF(Koulut!B155<>0,Koulut!B$153,"") -> Korhosen koulu | D43: =Koulut!C155 -> 349 | E43: 42.) Samuel Niemikorpi Korhosen koulu 349, 43.) Evert Neuvonen Takalon koulu 349, 44.) Andreas Thylin Kirkonmäen koulu 346, 45.) Valtteri Himanka Pohjankylän koulu 5A 345, 46.) Miika Suviola Pohjankylän koulu 6B 345, 47.) Joona Keskinen Kälviän Kirkonkylän koulu 344, 48.) Alexi Similä Pohjankylän koulu 6C 344, 49.) Kasper Weizman Kirkonmäen koulu 344, 50.) Viljami Vihelä Vuorenkallion koulu 340, 51.) Jimi Uusitalo Marttilan koulu 339, 52.) Jose Seppälä Hollihaan koulu 339, 53.) Joni Pentinmikko Raasakan koulu 6C 338, 54.) Arttu Kivioja Takalon koulu 338, 55.) Jere Eskola Takalon koulu 338, 56.) Jaakko Airas Vuorenkallion koulu 337, 57.) Hannes Häkkilä Pohjankylän koulu 6C 336, 58.) Aatu Silakka Raasakan koulu 6C 335, 59.) Tamas Hietala Pohjankylän koulu 6A 334, 60.) Mikael Ylitalo Pohjankylän koulu 5B 331, 61.) Oskari Rahkola Pohjankylän koulu 6B 331, 62.) Bimo Juntunen Pohjankylän koulu 5C 330, 63.) Panu Rimpioja Marttilan koulu 329, 64.) Riku Isopahkala Etelänkylän koulu 328, 65.) Konsta Piippo Hollihaan koulu 5R 327, 66.) Jere Ojala Pohjankylän koulu 5A 326, 67.) Hugo Stenbäck Tyngän aluekoulu 326, 68.) Henry Nauha Pohjankylän koulu 5C 325, 69.) Janne Forström Hollihaan koulu 5R 322, 70.) Heikki Tienvieri Kyösti Kallion koulu 5B 322, 71.) Juulio Pitkämö Tyngän aluekoulu 319, 72.) Aatu Hihnala Vuorenkallion koulu 318, 73.) Timi Tanskanen Kälviän Kirkonkylän koulu 317, 74.) Andrei Koskela Hollihaan koulu 317, 75.) Juho Pyhälä Tyngän aluekoulu 316, 76.) Miro Vehmanen Hollihaan koulu 316, 77.) Nico Mäenpää Raasakan koulu 6C 315, 78.) Lari Ojala Pohjankylän koulu 6C 315, 79.) Joonas Siipola Raumankarin koulu 315, 80.) Oskari Vihelä Etelänkylän koulu 313, 81.) Jere Laurila Pohjankylän koulu 5A 313, 82.) Otto Aho Hollihaan koulu 313, 83.) Ville Niku Kyösti Kallion koulu 5C 312, 84.) Alex Suopunki Lohtajan Kirkonkylän koulu 311, 85.) Eemil Karikumpu Kyösti Kallion koulu 5A 310, 86.) Santeri Mäkinen Raumankarin koulu 310, 87.) Artturi Nikunen Raasakan koulu 6C 308, 88.) Matias Eskola Kyösti Kallion koulu 5A 306, 89.) Herman Salmela Kyösti Kallion koulu 5A 304, 90.) Robin Kämäräinen Marttilan koulu 304, 91.) Lassi Simpanen Etelänkylän koulu 303, 92.) Iiro Kallio Kyösti Kallion koulu 5A 303, 93.) Miika Ohtamaa Kyösti Kallion koulu 5B 303, 94.) Kasperi Hannula Pohjankylän koulu 5A 302, 95.) Jarno Puikko Kälviän Kirkonkylän koulu 301, 96.) Emil Klaavu Kirkonmäen koulu 299, 97.) Julius Poutanen Marttilan koulu 298, 98.) Atte Manninen Hollihaan koulu 5R 298, 99.) Jesse Tikka Kyösti Kallion koulu 5C 298, 100.) Jere Peräaho Kyösti Kallion koulu 5B 297, 101.) Aatos Perttula Pohjankylän koulu 6C 296, 102.) Konsta Hannula Pohjankylän koulu 5C 296, 103.) Kaspian Kuki Kyösti Kallion koulu 5C 296, 104.) Oliver Viio Kyösti Kallion koulu 5C 294, 105.) Joel Kivioja Roikolan koulu 293, 106.) Valtteri Sorvala Pohjankylän koulu 5C 292, 107.) Eemeli Himanka Lohtajan Kirkonkylän koulu 290, 108.) Oskari Vänttilä Vuorenkallion koulu 290, 109.) Max Witick Roikolan koulu 288, 110.) Tuomas Lokkila Tyngän aluekoulu 288, 111.) Niko Jokinen Hollihaan koulu 287, 112.) Topias Törnval Vuorenkallion koulu 287, 113.) Jyry-Matti Niemi Pohjankylän koulu 5A 286, 114.) Jami Kinaret Hollihaan koulu 5R 285, 115.) Rasmus Andersson Kirkonmäen koulu 285, 116.) Juuso Lassila Etelänkylän koulu 282, 117.) Eeli Hiltula Marttilan koulu 281, 118.) Joel Häggblom Kirkonmäen koulu 280, 119.) Vili-Ilmari Hyyppä Hollihaan koulu 5R 279, 120.) Topi Päiveröinen Kyösti Kallion koulu 5A 278, 121.) Paavo Tilvis Pohjankylän koulu 6A 275, 122.) Aleksi Nikupaavo Pohjankylän koulu 6B 274, 123.) Oskari Nissilä Kälviän Kirkonkylän koulu 270, 124.) Jani Soukka Tyngän aluekoulu 267, 125.) Henri Vedenoja Pohjankylän koulu 5B 262, 126.) Eetu Ahonen Pohjankylän koulu 5B 261, 127.) Niina Kylmälä Pohjankylän koulu 5B 261, 128.) Martti Prittinen Pohjankylän koulu 5A 259, 129.) Tuure Anttila Pohjankylän koulu 5B 256, 130.) Joona Kallio Hollihaan koulu 237, 131.) Juuso Niemelä Hollihaan koulu 5R 235, 132.) Joona Nauha Pohjankylän koulu 6B 235, 133.) Jerry Kivioja Roikolan koulu 221, 134.) Leevi Hongisto Pohjankylän koulu 5C 220, 135.) Aaro Jukkila Pohjankylän koulu 5B 216, 136.) Ville Tölli Kyösti Kallion koulu 5C 193, 137.) Sami Hannula Kyösti Kallion koulu 5C 186, 138.) 0, 139.) 0, 140.) 0, 141.) 0, 142.) 0, 143.) 0, 144.) 0, 145.) 0, 146.) 0, 147.) 0, 148.) 0, 149.) 0, 150.) 0, 151.) 0, 152.) 0, 153.) 0, 154.) 0, 155.) 0, 156.) 0, 157.) 0, 158.) 0, 159.) 0, 160.) 0, 161.) 0, 162.) 0, 163.) 0, 164.) 0, 165.) 0, 166.) 0, 167.) 0, 168.) 0, 169.) 0, 170.) 0, 171.) 0, 172.) 0, 173.) 0, 174.) 0, 175.) 0, 176.) 0, 177.) 0, 178.) 0, 179.) 0, 180.) 0
A44: 43. | B44: =IF(Koulut!B295<>0,Koulut!B295,"") -> Evert Neuvonen | C44: =IF(Koulut!B295<>0,Koulut!B$293,"") -> Takalon koulu | D44: =Koulut!C295 -> 349 | E44: 43.) Evert Neuvonen Takalon koulu 349, 44.) Andreas Thylin Kirkonmäen koulu 346, 45.) Valtteri Himanka Pohjankylän koulu 5A 345, 46.) Miika Suviola Pohjankylän koulu 6B 345, 47.) Joona Keskinen Kälviän Kirkonkylän koulu 344, 48.) Alexi Similä Pohjankylän koulu 6C 344, 49.) Kasper Weizman Kirkonmäen koulu 344, 50.) Viljami Vihelä Vuorenkallion koulu 340, 51.) Jimi Uusitalo Marttilan koulu 339, 52.) Jose Seppälä Hollihaan koulu 339, 53.) Joni Pentinmikko Raasakan koulu 6C 338, 54.) Arttu Kivioja Takalon koulu 338, 55.) Jere Eskola Takalon koulu 338, 56.) Jaakko Airas Vuorenkallion koulu 337, 57.) Hannes Häkkilä Pohjankylän koulu 6C 336, 58.) Aatu Silakka Raasakan koulu 6C 335, 59.) Tamas Hietala Pohjankylän koulu 6A 334, 60.) Mikael Ylitalo Pohjankylän koulu 5B 331, 61.) Oskari Rahkola Pohjankylän koulu 6B 331, 62.) Bimo Juntunen Pohjankylän koulu 5C 330, 63.) Panu Rimpioja Marttilan koulu 329, 64.) Riku Isopahkala Etelänkylän koulu 328, 65.) Konsta Piippo Hollihaan koulu 5R 327, 66.) Jere Ojala Pohjankylän koulu 5A 326, 67.) Hugo Stenbäck Tyngän aluekoulu 326, 68.) Henry Nauha Pohjankylän koulu 5C 325, 69.) Janne Forström Hollihaan koulu 5R 322, 70.) Heikki Tienvieri Kyösti Kallion koulu 5B 322, 71.) Juulio Pitkämö Tyngän aluekoulu 319, 72.) Aatu Hihnala Vuorenkallion koulu 318, 73.) Timi Tanskanen Kälviän Kirkonkylän koulu 317, 74.) Andrei Koskela Hollihaan koulu 317, 75.) Juho Pyhälä Tyngän aluekoulu 316, 76.) Miro Vehmanen Hollihaan koulu 316, 77.) Nico Mäenpää Raasakan koulu 6C 315, 78.) Lari Ojala Pohjankylän koulu 6C 315, 79.) Joonas Siipola Raumankarin koulu 315, 80.) Oskari Vihelä Etelänkylän koulu 313, 81.) Jere Laurila Pohjankylän koulu 5A 313, 82.) Otto Aho Hollihaan koulu 313, 83.) Ville Niku Kyösti Kallion koulu 5C 312, 84.) Alex Suopunki Lohtajan Kirkonkylän koulu 311, 85.) Eemil Karikumpu Kyösti Kallion koulu 5A 310, 86.) Santeri Mäkinen Raumankarin koulu 310, 87.) Artturi Nikunen Raasakan koulu 6C 308, 88.) Matias Eskola Kyösti Kallion koulu 5A 306, 89.) Herman Salmela Kyösti Kallion koulu 5A 304, 90.) Robin Kämäräinen Marttilan koulu 304, 91.) Lassi Simpanen Etelänkylän koulu 303, 92.) Iiro Kallio Kyösti Kallion koulu 5A 303, 93.) Miika Ohtamaa Kyösti Kallion koulu 5B 303, 94.) Kasperi Hannula Pohjankylän koulu 5A 302, 95.) Jarno Puikko Kälviän Kirkonkylän koulu 301, 96.) Emil Klaavu Kirkonmäen koulu 299, 97.) Julius Poutanen Marttilan koulu 298, 98.) Atte Manninen Hollihaan koulu 5R 298, 99.) Jesse Tikka Kyösti Kallion koulu 5C 298, 100.) Jere Peräaho Kyösti Kallion koulu 5B 297, 101.) Aatos Perttula Pohjankylän koulu 6C 296, 102.) Konsta Hannula Pohjankylän koulu 5C 296, 103.) Kaspian Kuki Kyösti Kallion koulu 5C 296, 104.) Oliver Viio Kyösti Kallion koulu 5C 294, 105.) Joel Kivioja Roikolan koulu 293, 106.) Valtteri Sorvala Pohjankylän koulu 5C 292, 107.) Eemeli Himanka Lohtajan Kirkonkylän koulu 290, 108.) Oskari Vänttilä Vuorenkallion koulu 290, 109.) Max Witick Roikolan koulu 288, 110.) Tuomas Lokkila Tyngän aluekoulu 288, 111.) Niko Jokinen Hollihaan koulu 287, 112.) Topias Törnval Vuorenkallion koulu 287, 113.) Jyry-Matti Niemi Pohjankylän koulu 5A 286, 114.) Jami Kinaret Hollihaan koulu 5R 285, 115.) Rasmus Andersson Kirkonmäen koulu 285, 116.) Juuso Lassila Etelänkylän koulu 282, 117.) Eeli Hiltula Marttilan koulu 281, 118.) Joel Häggblom Kirkonmäen koulu 280, 119.) Vili-Ilmari Hyyppä Hollihaan koulu 5R 279, 120.) Topi Päiveröinen Kyösti Kallion koulu 5A 278, 121.) Paavo Tilvis Pohjankylän koulu 6A 275, 122.) Aleksi Nikupaavo Pohjankylän koulu 6B 274, 123.) Oskari Nissilä Kälviän Kirkonkylän koulu 270, 124.) Jani Soukka Tyngän aluekoulu 267, 125.) Henri Vedenoja Pohjankylän koulu 5B 262, 126.) Eetu Ahonen Pohjankylän koulu 5B 261, 127.) Niina Kylmälä Pohjankylän koulu 5B 261, 128.) Martti Prittinen Pohjankylän koulu 5A 259, 129.) Tuure Anttila Pohjankylän koulu 5B 256, 130.) Joona Kallio Hollihaan koulu 237, 131.) Juuso Niemelä Hollihaan koulu 5R 235, 132.) Joona Nauha Pohjankylän koulu 6B 235, 133.) Jerry Kivioja Roikolan koulu 221, 134.) Leevi Hongisto Pohjankylän koulu 5C 220, 135.) Aaro Jukkila Pohjankylän koulu 5B 216, 136.) Ville Tölli Kyösti Kallion koulu 5C 193, 137.) Sami Hannula Kyösti Kallion koulu 5C 186, 138.) 0, 139.) 0, 140.) 0, 141.) 0, 142.) 0, 143.) 0, 144.) 0, 145.) 0, 146.) 0, 147.) 0, 148.) 0, 149.) 0, 150.) 0, 151.) 0, 152.) 0, 153.) 0, 154.) 0, 155.) 0, 156.) 0, 157.) 0, 158.) 0, 159.) 0, 160.) 0, 161.) 0, 162.) 0, 163.) 0, 164.) 0, 165.) 0, 166.) 0, 167.) 0, 168.) 0, 169.) 0, 170.) 0, 171.) 0, 172.) 0, 173.) 0, 174.) 0, 175.) 0, 176.) 0, 177.) 0, 178.) 0, 179.) 0, 180.) 0
A45: 44. | B45: =IF(Koulut!B182<>0,Koulut!B182,"") -> Andreas Thylin | C45: =IF(Koulut!B182<>0,Koulut!B$181,"") -> Kirkonmäen koulu | D45: =Koulut!C182 -> 346 | E45: 44.) Andreas Thylin Kirkonmäen koulu 346, 45.) Valtteri Himanka Pohjankylän koulu 5A 345, 46.) Miika Suviola Pohjankylän koulu 6B 345, 47.) Joona Keskinen Kälviän Kirkonkylän koulu 344, 48.) Alexi Similä Pohjankylän koulu 6C 344, 49.) Kasper Weizman Kirkonmäen koulu 344, 50.) Viljami Vihelä Vuorenkallion koulu 340, 51.) Jimi Uusitalo Marttilan koulu 339, 52.) Jose Seppälä Hollihaan koulu 339, 53.) Joni Pentinmikko Raasakan koulu 6C 338, 54.) Arttu Kivioja Takalon koulu 338, 55.) Jere Eskola Takalon koulu 338, 56.) Jaakko Airas Vuorenkallion koulu 337, 57.) Hannes Häkkilä Pohjankylän koulu 6C 336, 58.) Aatu Silakka Raasakan koulu 6C 335, 59.) Tamas Hietala Pohjankylän koulu 6A 334, 60.) Mikael Ylitalo Pohjankylän koulu 5B 331, 61.) Oskari Rahkola Pohjankylän koulu 6B 331, 62.) Bimo Juntunen Pohjankylän koulu 5C 330, 63.) Panu Rimpioja Marttilan koulu 329, 64.) Riku Isopahkala Etelänkylän koulu 328, 65.) Konsta Piippo Hollihaan koulu 5R 327, 66.) Jere Ojala Pohjankylän koulu 5A 326, 67.) Hugo Stenbäck Tyngän aluekoulu 326, 68.) Henry Nauha Pohjankylän koulu 5C 325, 69.) Janne Forström Hollihaan koulu 5R 322, 70.) Heikki Tienvieri Kyösti Kallion koulu 5B 322, 71.) Juulio Pitkämö Tyngän aluekoulu 319, 72.) Aatu Hihnala Vuorenkallion koulu 318, 73.) Timi Tanskanen Kälviän Kirkonkylän koulu 317, 74.) Andrei Koskela Hollihaan koulu 317, 75.) Juho Pyhälä Tyngän aluekoulu 316, 76.) Miro Vehmanen Hollihaan koulu 316, 77.) Nico Mäenpää Raasakan koulu 6C 315, 78.) Lari Ojala Pohjankylän koulu 6C 315, 79.) Joonas Siipola Raumankarin koulu 315, 80.) Oskari Vihelä Etelänkylän koulu 313, 81.) Jere Laurila Pohjankylän koulu 5A 313, 82.) Otto Aho Hollihaan koulu 313, 83.) Ville Niku Kyösti Kallion koulu 5C 312, 84.) Alex Suopunki Lohtajan Kirkonkylän koulu 311, 85.) Eemil Karikumpu Kyösti Kallion koulu 5A 310, 86.) Santeri Mäkinen Raumankarin koulu 310, 87.) Artturi Nikunen Raasakan koulu 6C 308, 88.) Matias Eskola Kyösti Kallion koulu 5A 306, 89.) Herman Salmela Kyösti Kallion koulu 5A 304, 90.) Robin Kämäräinen Marttilan koulu 304, 91.) Lassi Simpanen Etelänkylän koulu 303, 92.) Iiro Kallio Kyösti Kallion koulu 5A 303, 93.) Miika Ohtamaa Kyösti Kallion koulu 5B 303, 94.) Kasperi Hannula Pohjankylän koulu 5A 302, 95.) Jarno Puikko Kälviän Kirkonkylän koulu 301, 96.) Emil Klaavu Kirkonmäen koulu 299, 97.) Julius Poutanen Marttilan koulu 298, 98.) Atte Manninen Hollihaan koulu 5R 298, 99.) Jesse Tikka Kyösti Kallion koulu 5C 298, 100.) Jere Peräaho Kyösti Kallion koulu 5B 297, 101.) Aatos Perttula Pohjankylän koulu 6C 296, 102.) Konsta Hannula Pohjankylän koulu 5C 296, 103.) Kaspian Kuki Kyösti Kallion koulu 5C 296, 104.) Oliver Viio Kyösti Kallion koulu 5C 294, 105.) Joel Kivioja Roikolan koulu 293, 106.) Valtteri Sorvala Pohjankylän koulu 5C 292, 107.) Eemeli Himanka Lohtajan Kirkonkylän koulu 290, 108.) Oskari Vänttilä Vuorenkallion koulu 290, 109.) Max Witick Roikolan koulu 288, 110.) Tuomas Lokkila Tyngän aluekoulu 288, 111.) Niko Jokinen Hollihaan koulu 287, 112.) Topias Törnval Vuorenkallion koulu 287, 113.) Jyry-Matti Niemi Pohjankylän koulu 5A 286, 114.) Jami Kinaret Hollihaan koulu 5R 285, 115.) Rasmus Andersson Kirkonmäen koulu 285, 116.) Juuso Lassila Etelänkylän koulu 282, 117.) Eeli Hiltula Marttilan koulu 281, 118.) Joel Häggblom Kirkonmäen koulu 280, 119.) Vili-Ilmari Hyyppä Hollihaan koulu 5R 279, 120.) Topi Päiveröinen Kyösti Kallion koulu 5A 278, 121.) Paavo Tilvis Pohjankylän koulu 6A 275, 122.) Aleksi Nikupaavo Pohjankylän koulu 6B 274, 123.) Oskari Nissilä Kälviän Kirkonkylän koulu 270, 124.) Jani Soukka Tyngän aluekoulu 267, 125.) Henri Vedenoja Pohjankylän koulu 5B 262, 126.) Eetu Ahonen Pohjankylän koulu 5B 261, 127.) Niina Kylmälä Pohjankylän koulu 5B 261, 128.) Martti Prittinen Pohjankylän koulu 5A 259, 129.) Tuure Anttila Pohjankylän koulu 5B 256, 130.) Joona Kallio Hollihaan koulu 237, 131.) Juuso Niemelä Hollihaan koulu 5R 235, 132.) Joona Nauha Pohjankylän koulu 6B 235, 133.) Jerry Kivioja Roikolan koulu 221, 134.) Leevi Hongisto Pohjankylän koulu 5C 220, 135.) Aaro Jukkila Pohjankylän koulu 5B 216, 136.) Ville Tölli Kyösti Kallion koulu 5C 193, 137.) Sami Hannula Kyösti Kallion koulu 5C 186, 138.) 0, 139.) 0, 140.) 0, 141.) 0, 142.) 0, 143.) 0, 144.) 0, 145.) 0, 146.) 0, 147.) 0, 148.) 0, 149.) 0, 150.) 0, 151.) 0, 152.) 0, 153.) 0, 154.) 0, 155.) 0, 156.) 0, 157.) 0, 158.) 0, 159.) 0, 160.) 0, 161.) 0, 162.) 0, 163.) 0, 164.) 0, 165.) 0, 166.) 0, 167.) 0, 168.) 0, 169.) 0, 170.) 0, 171.) 0, 172.) 0, 173.) 0, 174.) 0, 175.) 0, 176.) 0, 177.) 0, 178.) 0, 179.) 0, 180.) 0
A46: 45. | B46: =IF(Koulut!B129<>0,Koulut!B129,"") -> Valtteri Himanka | C46: =IF(Koulut!B129<>0,Koulut!B$125,"") -> Pohjankylän koulu 5A | D46: =Koulut!C129 -> 345 | E46: 45.) Valtteri Himanka Pohjankylän koulu 5A 345, 46.) Miika Suviola Pohjankylän koulu 6B 345, 47.) Joona Keskinen Kälviän Kirkonkylän koulu 344, 48.) Alexi Similä Pohjankylän koulu 6C 344, 49.) Kasper Weizman Kirkonmäen koulu 344, 50.) Viljami Vihelä Vuorenkallion koulu 340, 51.) Jimi Uusitalo Marttilan koulu 339, 52.) Jose Seppälä Hollihaan koulu 339, 53.) Joni Pentinmikko Raasakan koulu 6C 338, 54.) Arttu Kivioja Takalon koulu 338, 55.) Jere Eskola Takalon koulu 338, 56.) Jaakko Airas Vuorenkallion koulu 337, 57.) Hannes Häkkilä Pohjankylän koulu 6C 336, 58.) Aatu Silakka Raasakan koulu 6C 335, 59.) Tamas Hietala Pohjankylän koulu 6A 334, 60.) Mikael Ylitalo Pohjankylän koulu 5B 331, 61.) Oskari Rahkola Pohjankylän koulu 6B 331, 62.) Bimo Juntunen Pohjankylän koulu 5C 330, 63.) Panu Rimpioja Marttilan koulu 329, 64.) Riku Isopahkala Etelänkylän koulu 328, 65.) Konsta Piippo Hollihaan koulu 5R 327, 66.) Jere Ojala Pohjankylän koulu 5A 326, 67.) Hugo Stenbäck Tyngän aluekoulu 326, 68.) Henry Nauha Pohjankylän koulu 5C 325, 69.) Janne Forström Hollihaan koulu 5R 322, 70.) Heikki Tienvieri Kyösti Kallion koulu 5B 322, 71.) Juulio Pitkämö Tyngän aluekoulu 319, 72.) Aatu Hihnala Vuorenkallion koulu 318, 73.) Timi Tanskanen Kälviän Kirkonkylän koulu 317, 74.) Andrei Koskela Hollihaan koulu 317, 75.) Juho Pyhälä Tyngän aluekoulu 316, 76.) Miro Vehmanen Hollihaan koulu 316, 77.) Nico Mäenpää Raasakan koulu 6C 315, 78.) Lari Ojala Pohjankylän koulu 6C 315, 79.) Joonas Siipola Raumankarin koulu 315, 80.) Oskari Vihelä Etelänkylän koulu 313, 81.) Jere Laurila Pohjankylän koulu 5A 313, 82.) Otto Aho Hollihaan koulu 313, 83.) Ville Niku Kyösti Kallion koulu 5C 312, 84.) Alex Suopunki Lohtajan Kirkonkylän koulu 311, 85.) Eemil Karikumpu Kyösti Kallion koulu 5A 310, 86.) Santeri Mäkinen Raumankarin koulu 310, 87.) Artturi Nikunen Raasakan koulu 6C 308, 88.) Matias Eskola Kyösti Kallion koulu 5A 306, 89.) Herman Salmela Kyösti Kallion koulu 5A 304, 90.) Robin Kämäräinen Marttilan koulu 304, 91.) Lassi Simpanen Etelänkylän koulu 303, 92.) Iiro Kallio Kyösti Kallion koulu 5A 303, 93.) Miika Ohtamaa Kyösti Kallion koulu 5B 303, 94.) Kasperi Hannula Pohjankylän koulu 5A 302, 95.) Jarno Puikko Kälviän Kirkonkylän koulu 301, 96.) Emil Klaavu Kirkonmäen koulu 299, 97.) Julius Poutanen Marttilan koulu 298, 98.) Atte Manninen Hollihaan koulu 5R 298, 99.) Jesse Tikka Kyösti Kallion koulu 5C 298, 100.) Jere Peräaho Kyösti Kallion koulu 5B 297, 101.) Aatos Perttula Pohjankylän koulu 6C 296, 102.) Konsta Hannula Pohjankylän koulu 5C 296, 103.) Kaspian Kuki Kyösti Kallion koulu 5C 296, 104.) Oliver Viio Kyösti Kallion koulu 5C 294, 105.) Joel Kivioja Roikolan koulu 293, 106.) Valtteri Sorvala Pohjankylän koulu 5C 292, 107.) Eemeli Himanka Lohtajan Kirkonkylän koulu 290, 108.) Oskari Vänttilä Vuorenkallion koulu 290, 109.) Max Witick Roikolan koulu 288, 110.) Tuomas Lokkila Tyngän aluekoulu 288, 111.) Niko Jokinen Hollihaan koulu 287, 112.) Topias Törnval Vuorenkallion koulu 287, 113.) Jyry-Matti Niemi Pohjankylän koulu 5A 286, 114.) Jami Kinaret Hollihaan koulu 5R 285, 115.) Rasmus Andersson Kirkonmäen koulu 285, 116.) Juuso Lassila Etelänkylän koulu 282, 117.) Eeli Hiltula Marttilan koulu 281, 118.) Joel Häggblom Kirkonmäen koulu 280, 119.) Vili-Ilmari Hyyppä Hollihaan koulu 5R 279, 120.) Topi Päiveröinen Kyösti Kallion koulu 5A 278, 121.) Paavo Tilvis Pohjankylän koulu 6A 275, 122.) Aleksi Nikupaavo Pohjankylän koulu 6B 274, 123.) Oskari Nissilä Kälviän Kirkonkylän koulu 270, 124.) Jani Soukka Tyngän aluekoulu 267, 125.) Henri Vedenoja Pohjankylän koulu 5B 262, 126.) Eetu Ahonen Pohjankylän koulu 5B 261, 127.) Niina Kylmälä Pohjankylän koulu 5B 261, 128.) Martti Prittinen Pohjankylän koulu 5A 259, 129.) Tuure Anttila Pohjankylän koulu 5B 256, 130.) Joona Kallio Hollihaan koulu 237, 131.) Juuso Niemelä Hollihaan koulu 5R 235, 132.) Joona Nauha Pohjankylän koulu 6B 235, 133.) Jerry Kivioja Roikolan koulu 221, 134.) Leevi Hongisto Pohjankylän koulu 5C 220, 135.) Aaro Jukkila Pohjankylän koulu 5B 216, 136.) Ville Tölli Kyösti Kallion koulu 5C 193, 137.) Sami Hannula Kyösti Kallion koulu 5C 186, 138.) 0, 139.) 0, 140.) 0, 141.) 0, 142.) 0, 143.) 0, 144.) 0, 145.) 0, 146.) 0, 147.) 0, 148.) 0, 149.) 0, 150.) 0, 151.) 0, 152.) 0, 153.) 0, 154.) 0, 155.) 0, 156.) 0, 157.) 0, 158.) 0, 159.) 0, 160.) 0, 161.) 0, 162.) 0, 163.) 0, 164.) 0, 165.) 0, 166.) 0, 167.) 0, 168.) 0, 169.) 0, 170.) 0, 171.) 0, 172.) 0, 173.) 0, 174.) 0, 175.) 0, 176.) 0, 177.) 0, 178.) 0, 179.) 0, 180.) 0
A47: 46. | B47: =IF(Koulut!B309<>0,Koulut!B309,"") -> Miika Suviola | C47: =IF(Koulut!B309<>0,Koulut!B$307,"") -> Pohjankylän koulu 6B | D47: =Koulut!C309 -> 345 | E47: 46.) Miika Suviola Pohjankylän koulu 6B 345, 47.) Joona Keskinen Kälviän Kirkonkylän koulu 344, 48.) Alexi Similä Pohjankylän koulu 6C 344, 49.) Kasper Weizman Kirkonmäen koulu 344, 50.) Viljami Vihelä Vuorenkallion koulu 340, 51.) Jimi Uusitalo Marttilan koulu 339, 52.) Jose Seppälä Hollihaan koulu 339, 53.) Joni Pentinmikko Raasakan koulu 6C 338, 54.) Arttu Kivioja Takalon koulu 338, 55.) Jere Eskola Takalon koulu 338, 56.) Jaakko Airas Vuorenkallion koulu 337, 57.) Hannes Häkkilä Pohjankylän koulu 6C 336, 58.) Aatu Silakka Raasakan koulu 6C 335, 59.) Tamas Hietala Pohjankylän koulu 6A 334, 60.) Mikael Ylitalo Pohjankylän koulu 5B 331, 61.) Oskari Rahkola Pohjankylän koulu 6B 331, 62.) Bimo Juntunen Pohjankylän koulu 5C 330, 63.) Panu Rimpioja Marttilan koulu 329, 64.) Riku Isopahkala Etelänkylän koulu 328, 65.) Konsta Piippo Hollihaan koulu 5R 327, 66.) Jere Ojala Pohjankylän koulu 5A 326, 67.) Hugo Stenbäck Tyngän aluekoulu 326, 68.) Henry Nauha Pohjankylän koulu 5C 325, 69.) Janne Forström Hollihaan koulu 5R 322, 70.) Heikki Tienvieri Kyösti Kallion koulu 5B 322, 71.) Juulio Pitkämö Tyngän aluekoulu 319, 72.) Aatu Hihnala Vuorenkallion koulu 318, 73.) Timi Tanskanen Kälviän Kirkonkylän koulu 317, 74.) Andrei Koskela Hollihaan koulu 317, 75.) Juho Pyhälä Tyngän aluekoulu 316, 76.) Miro Vehmanen Hollihaan koulu 316, 77.) Nico Mäenpää Raasakan koulu 6C 315, 78.) Lari Ojala Pohjankylän koulu 6C 315, 79.) Joonas Siipola Raumankarin koulu 315, 80.) Oskari Vihelä Etelänkylän koulu 313, 81.) Jere Laurila Pohjankylän koulu 5A 313, 82.) Otto Aho Hollihaan koulu 313, 83.) Ville Niku Kyösti Kallion koulu 5C 312, 84.) Alex Suopunki Lohtajan Kirkonkylän koulu 311, 85.) Eemil Karikumpu Kyösti Kallion koulu 5A 310, 86.) Santeri Mäkinen Raumankarin koulu 310, 87.) Artturi Nikunen Raasakan koulu 6C 308, 88.) Matias Eskola Kyösti Kallion koulu 5A 306, 89.) Herman Salmela Kyösti Kallion koulu 5A 304, 90.) Robin Kämäräinen Marttilan koulu 304, 91.) Lassi Simpanen Etelänkylän koulu 303, 92.) Iiro Kallio Kyösti Kallion koulu 5A 303, 93.) Miika Ohtamaa Kyösti Kallion koulu 5B 303, 94.) Kasperi Hannula Pohjankylän koulu 5A 302, 95.) Jarno Puikko Kälviän Kirkonkylän koulu 301, 96.) Emil Klaavu Kirkonmäen koulu 299, 97.) Julius Poutanen Marttilan koulu 298, 98.) Atte Manninen Hollihaan koulu 5R 298, 99.) Jesse Tikka Kyösti Kallion koulu 5C 298, 100.) Jere Peräaho Kyösti Kallion koulu 5B 297, 101.) Aatos Perttula Pohjankylän koulu 6C 296, 102.) Konsta Hannula Pohjankylän koulu 5C 296, 103.) Kaspian Kuki Kyösti Kallion koulu 5C 296, 104.) Oliver Viio Kyösti Kallion koulu 5C 294, 105.) Joel Kivioja Roikolan koulu 293, 106.) Valtteri Sorvala Pohjankylän koulu 5C 292, 107.) Eemeli Himanka Lohtajan Kirkonkylän koulu 290, 108.) Oskari Vänttilä Vuorenkallion koulu 290, 109.) Max Witick Roikolan koulu 288, 110.) Tuomas Lokkila Tyngän aluekoulu 288, 111.) Niko Jokinen Hollihaan koulu 287, 112.) Topias Törnval Vuorenkallion koulu 287, 113.) Jyry-Matti Niemi Pohjankylän koulu 5A 286, 114.) Jami Kinaret Hollihaan koulu 5R 285, 115.) Rasmus Andersson Kirkonmäen koulu 285, 116.) Juuso Lassila Etelänkylän koulu 282, 117.) Eeli Hiltula Marttilan koulu 281, 118.) Joel Häggblom Kirkonmäen koulu 280, 119.) Vili-Ilmari Hyyppä Hollihaan koulu 5R 279, 120.) Topi Päiveröinen Kyösti Kallion koulu 5A 278, 121.) Paavo Tilvis Pohjankylän koulu 6A 275, 122.) Aleksi Nikupaavo Pohjankylän koulu 6B 274, 123.) Oskari Nissilä Kälviän Kirkonkylän koulu 270, 124.) Jani Soukka Tyngän aluekoulu 267, 125.) Henri Vedenoja Pohjankylän koulu 5B 262, 126.) Eetu Ahonen Pohjankylän koulu 5B 261, 127.) Niina Kylmälä Pohjankylän koulu 5B 261, 128.) Martti Prittinen Pohjankylän koulu 5A 259, 129.) Tuure Anttila Pohjankylän koulu 5B 256, 130.) Joona Kallio Hollihaan koulu 237, 131.) Juuso Niemelä Hollihaan koulu 5R 235, 132.) Joona Nauha Pohjankylän koulu 6B 235, 133.) Jerry Kivioja Roikolan koulu 221, 134.) Leevi Hongisto Pohjankylän koulu 5C 220, 135.) Aaro Jukkila Pohjankylän koulu 5B 216, 136.) Ville Tölli Kyösti Kallion koulu 5C 193, 137.) Sami Hannula Kyösti Kallion koulu 5C 186, 138.) 0, 139.) 0, 140.) 0, 141.) 0, 142.) 0, 143.) 0, 144.) 0, 145.) 0, 146.) 0, 147.) 0, 148.) 0, 149.) 0, 150.) 0, 151.) 0, 152.) 0, 153.) 0, 154.) 0, 155.) 0, 156.) 0, 157.) 0, 158.) 0, 159.) 0, 160.) 0, 161.) 0, 162.) 0, 163.) 0, 164.) 0, 165.) 0, 166.) 0, 167.) 0, 168.) 0, 169.) 0, 170.) 0, 171.) 0, 172.) 0, 173.) 0, 174.) 0, 175.) 0, 176.) 0, 177.) 0, 178.) 0, 179.) 0, 180.) 0
